Workbook

Sheet Implementation (hidden)
A1: Staffing for EIM Implementation Phase (18 months) | B1: Updated per conversation with Brian Holmes 8-4-17
A2: Functional Role | B2: Department | C2: FTE | D2: Duration (months) | E2: Time (%) | F2: Man Months Total | G2: Man Years Total | I2: Capital (%) | J2: O&M (%) | L2: Avista OH @ 75% | O2: Capital | P2: O&M
A3: Project Management
A4: Overall Program Manager | B4: Consultant | C4: 1 | D4: 18 | E4: 1 | F4: =PRODUCT(C4:E4) -> 18 | G4: =(F4/12) -> 1.5 | I4: 0.75 | J4: 0.25 | L4: =275*40*48*1.5 -> 792000 | O4: =I4*L4 -> 594000 | P4: =J4*L4 -> 198000
A5: Project Manager | B5: Consultant | C5: 1 | D5: 18 | E5: 0.8 | F5: 14.4 | G5: =(F5/12) -> 1.2 | I5: 0.75 | J5: 0.25 | L5: =200*40*48*1.2 -> 460800 | O5: 345600 | P5: 115200
A6: Testing and Training Lead | B6: Consultant | C6: 1 | D6: 12 | E6: 1 | F6: =PRODUCT(C6:E6) -> 12 | G6: =(F6/12) -> 1 | I6: 0.75 | J6: 0.25 | L6: =175*40*48 -> 336000 | O6: 252000 | P6: 84000
A7: Power Supply Lead | B7: Power Supply | C7: 1 | D7: 18 | E7: 1 | F7: 18 | G7: 1.5 | I7: 0.5 | J7: 0.5 | L7: =150000*1.5*1.65 -> 371250 | O7: 185625 | P7: 185625
A8: System Ops Lead (SCADA) | B8: Sys Ops | C8: 1 | D8: 18 | E8: 1 | F8: 18 | G8: 1.5 | I8: 0.75 | J8: 0.25 | L8: =130000*1.5*1.65 -> 321750 | O8: 241312.5 | P8: 80437.5
A9: Enterprise Technology (ET) Lead | B9: ET | C9: 1 | D9: 18 | E9: 1 | F9: 18 | G9: 1.5 | I9: 0.75 | J9: 0.25 | L9: =125000*1.5*1.65 -> 309375 | O9: 232031.25 | P9: 77343.75
A10: Director support (contract negotiation, guidance, outreach) | B10: PS, Sys Ops, ET | C10: 3 | D10: 18 | E10: 0.1 | F10: =PRODUCT(C10:E10) -> 5.4 | G10: =(F10/12) -> 0.45 | I10: 0.25 | J10: 0.75 | L10: =150000 -> 150000 | O10: 37500 | P10: 112500
B11: Avista Total | C11: =SUM(C7,C8,C9,C10) -> 6 | F11: =SUM(F7,F8,F9,F10) -> 59.4 | G11: =SUM(G7,G8,G9,G10) -> 4.95 | L11: =SUM(L4:L10) -> 2741175 | O11: =SUM(O4:O10) -> 1888068.75 | P11: =SUM(P4:P10) -> 853106.25
B12: Consultant Total | C12: =SUM(C4,C5,C6) -> 3 | F12: =SUM(F4,F5,F6) -> 44.4 | G12: =SUM(G4,G5) -> 2.7
A13: Power Supply
A14: Market Analyst - Integration/business process | B14: Power Supply | C14: 1 | D14: 18 | E14: 1 | F14: =PRODUCT(C14:E14) -> 18 | G14: =(F14/12) -> 1.5 | I14: 0.25 | J14: 0.75 | L14: =130000*1.5*1.65 -> 321750 | O14: =I14*L14 -> 80437.5 | P14: =J14*L14 -> 241312.5
A15: Market Analyst - Integration/displays/testing (New) | B15: Power Supply | C15: 1 | D15: 12 | E15: 1 | F15: =PRODUCT(C15:E15) -> 12 | G15: =(F15/12) -> 1 | I15: 0.75 | J15: 0.25 | L15: =120000*1.65 -> 198000 | O15: =I15*L15 -> 148500 | P15: =J15*L15 -> 49500
A16: Market Analyst - Base schedule, hydro bidding | B16: Power Supply | C16: 1 | D16: 12 | E16: 0.5 | F16: =PRODUCT(C16:E16) -> 6 | G16: =(F16/12) -> 0.5 | I16: 0.25 | J16: 0.75 | L16: =125000*0.5*1.65 -> 103125 | O16: =I16*L16 -> 25781.25 | P16: =J16*L16 -> 77343.75
A17: Real-time scheduler - training/testing | B17: Power Supply | C17: 10 | D17: 12 | E17: 0.15 | F17: =PRODUCT(C17:E17) -> 18 | G17: 1.5 | I17: 0.75 | J17: 0.25 | L17: =125000*1.65*1.5 -> 309375 | O17: =I17*L17 -> 232031.25 | P17: =J17*L17 -> 77343.75
B18: Avista Total | C18: =SUM(C14,C15,C16,C17) -> 13 | F18: =SUM(F14,F15,F16, F17) -> 54 | G18: =SUM(G14,G15,G16, G17) -> 4.5 | L18: =SUM(L14:L17) -> 932250 | O18: =SUM(O14:O17) -> 486750 | P18: =SUM(P14:P17) -> 445500
A20: Generation Controls, Metering, Data | M20: w/o Meter
A21: Metering Engineer - design | B21: Engineering | C21: 1 | D21: 12 | E21: 1 | F21: =PRODUCT(C21:E21) -> 12 | G21: =(F21/12) -> 1 | I21: 1 | J21: 0 | L21: =100000*1.65 -> 165000 | M21: 0
A22: Controls Engineer - AGC design | B22: GPSS (Generation) | C22: 1 | D22: 18 | E22: 1 | F22: =PRODUCT(C22:E22) -> 18 | G22: 1.5 | I22: 1 | J22: 0 | L22: =120000*1.5*1.65 -> 297000 | M22: =120000*0.5*1.65 -> 99000 | O22: =I22*M22 -> 99000 | P22: =J22*M22 -> 0
A23: Metering and Controls Techs | B23: GPSS (Generation) | C23: 2 | D23: 18 | E23: 1 | F23: =PRODUCT(C23:E23) -> 36 | G23: 3 | I23: 1 | J23: 0 | L23: =104000*2*3*1.65 -> 1029600 | M23: =104000*0.75*1.65 -> 128700 | O23: 128700 | P23: 0
A24: Comm Engineer - Plant telemety | B24: ET | C24: 1 | D24: 18 | E24: 1 | F24: =PRODUCT(C24:E24) -> 18 | G24: 1.5 | I24: 1 | J24: 0 | L24: =90000*1.5*1.65 -> 222750 | M24: =90000*0.5*1.65 -> 74250 | O24: 74250 | P24: 0
A25: Comm Tech | B25: ET | C25: 2 | D25: 12 | E25: 0.75 | F25: 18 | G25: 1.5 | I25: 1 | J25: 0 | L25: =104000*1.5*1.65 -> 257400 | M25: =104000*0.5*1.65 -> 85800 | O25: 85800 | P25: 0
A26: Metering and Controls Engineering Support | B26: Contractor | C26: 1 | D26: 12 | E26: 1 | F26: =PRODUCT(C26:E26) -> 12 | G26: 1 | I26: 1 | J26: 0 | L26: =175*40*48 -> 336000 | M26: =175*40*48*0.25 -> 84000 | O26: 84000 | P26: 0
A27: Resource Data - Plant managers, operators, engineers | B27: GPSS (Generation) | C27: 10 | D27: 12 | E27: 0.1 | F27: 12 | G27: 1 | I27: 0 | J27: 1 | L27: =150000 -> 150000 | M27: =150000 -> 150000 | O27: 0 | P27: 150000
B28: Avista Total | C28: =SUM(C21,C22,C23,C24,C25) -> 7 | F28: =SUM(F21,F22,F23,F24,F25,F27) -> 114 | G28: =SUM(G21,G22,G23,G24,G25) -> 8.5 | L28: =SUM(L21:L27) -> 2457750 | M28: =SUM(M21:M27) -> 621750 | O28: =SUM(O22:O27) -> 471750 | P28: =SUM(P24:P27) -> 150000
B29: Consultant Total | C29: =C26 -> 1 | F29: =F26 -> 12 | G29: 0.5
A30: System Ops
A31: SCADA Engineer - SCADA, AGC, Metering, Displays | B31: Sys Ops | C31: 1 | D31: 18 | E31: 1 | F31: =PRODUCT(C31:E31) -> 18 | G31: =(F31/12) -> 1.5 | I31: 1 | J31: 0 | L31: =95000*1.5*1.65 -> 235125 | O31: =I31*L31 -> 235125 | P31: =J31*L31 -> 0
A32: SCADA Engineer - SCADA, AGC, Metering, Displays (New) | B32: Sys Ops | C32: 1 | D32: 12 | E32: 1 | F32: =PRODUCT(C32:E32) -> 12 | G32: =(F32/12) -> 1 | I32: 1 | J32: 0 | L32: =115000*1.65 -> 189750 | O32: =I32*L32 -> 189750 | P32: =J32*L32 -> 0
A33: Ops Engineer - network model | B33: Sys Ops | C33: 1 | D33: 18 | E33: 1 | F33: =PRODUCT(C33:E33) -> 18 | G33: 1.5 | I33: 0 | J33: 1 | L33: =115000*1.5*1.65 -> 284625 | O33: 0 | P33: 284625
A34: Ops Engineer - outage, integration support (New) | B34: Sys Ops | C34: 1 | D34: 12 | E34: 1 | F34: 12 | G34: 1 | I34: 0.75 | J34: 0.25 | L34: =115000*1.65 -> 189750 | O34: 142312.5 | P34: 47437.5
A35: System Operator - market testing/training | B35: Sys Ops | C35: 10 | D35: 12 | E35: 0.15 | F35: =PRODUCT(C35:E35) -> 18 | G35: 1.5 | I35: 0.75 | J35: 0.25 | L35: =135000*1.65*1.5 -> 334125 | O35: 250593.75 | P35: 83531.25
A36: PI Engineer - data and screen development | B36: PI Support | C36: 1 | D36: 12 | E36: 0.5 | F36: 6 | G36: 0.5 | I36: 1 | J36: 0 | L36: =130000*0.5*1.65 -> 107250 | O36: 107250 | P36: 0
A37: Integration support | B37: Consultant | C37: 1 | D37: 12 | E37: 0.75 | F37: 9 | G37: 0.75 | I37: 0.75 | J37: 0.25 | L37: =175*40*48*0.75 -> 252000 | O37: 189000 | P37: 63000
B38: Avista Total | C38: =SUM(C31,C33,C34,C35,C36) -> 14 | F38: =SUM(F31,F33,F34,F35,F36) -> 72 | G38: =SUM(G31,G33,G34,G35,G36) -> 6 | L38: =SUM(L30:L37) -> 1592625 | O38: =SUM(O30:O37) -> 1114031.25 | P38: =SUM(P30:P37) -> 478593.75
B39: Consultant Total | C39: =C37 -> 1 | F39: =F37 -> 9 | G39: =G37 -> 0.75
A40: Settlements
A41: Settlement Analyst - Business process | B41: Resource Accntg | C41: 1 | D41: 18 | E41: 0.75 | F41: =PRODUCT(C41:E41) -> 13.5 | G41: =(F41/12) -> 1.125 | I41: 0.5 | J41: 0.5 | L41: =70000*1.1*1.65 -> 127050 | O41: =I41*L41 -> 63525 | P41: =J41*L41 -> 63525
A42: Settlement Analyst - support, testing (New) | B42: Resource Accntg | C42: 1 | D42: 12 | E42: 1 | F42: 12 | G42: 1 | I42: 0.75 | J42: 0.25 | L42: =60000*1.65 -> 99000 | O42: 74250 | P42: 24750
A43: Data Analyst - Nucleus Team (New) | B43: Risk | C43: 1 | D43: 18 | E43: 1 | F43: =PRODUCT(C43:E43) -> 18 | G43: 1.5 | I43: 0.75 | J43: 0.25 | L43: =100000*1.5*1.65 -> 247500 | O43: 185625 | P43: 61875
A44: Settlement Support | B44: Consultant | C44: 1 | D44: 12 | E44: 0.5 | F44: 6 | G44: 0.5 | I44: 0.75 | J44: 0.25 | L44: =175*40*48*0.5 -> 168000 | O44: 126000 | P44: 42000
B45: Avista Total | C45: =SUM(C41,C42,C43) -> 3 | F45: =SUM(F41,F42,F43) -> 43.5 | G45: =SUM(G41,G42,G43) -> 3.625 | L45: =SUM(L41:L44) -> 641550 | O45: =SUM(O41:O44) -> 449400 | P45: =SUM(P41:P44) -> 192150
B46: Consultant Total | C46: =C44 -> 1 | F46: =F44 -> 6 | G46: =G44 -> 0.5
A47: Compliance
A48: Compliance - EQR, filings support | B48: Compliance | C48: 1 | D48: 12 | E48: 0.5 | F48: =PRODUCT(C48:E48) -> 6 | G48: =(F48/12) -> 0.5 | I48: 0 | J48: 1 | L48: =80000*0.5*1.65 -> 66000 | O48: =I48*L48 -> 0 | P48: =J48*L48 -> 66000
A49: Tranmission Contracts - tariff changes, stakeholder process | B49: Transmission | C49: 1 | D49: 18 | E49: 0.75 | F49: =PRODUCT(C49:E49) -> 13.5 | G49: =(F49/12) -> 1.125 | I49: 0 | J49: 1 | L49: =120000*1.1*1.65 -> 217800 | O49: 0 | P49: 217800
A50: Environmental - GHG reporting | B50: Environmental | C50: 1 | D50: 6 | E50: 0.5 | F50: =PRODUCT(C50:E50) -> 3 | G50: 0.25 | I50: 0 | J50: 1 | L50: =65000*0.3*1.65 -> 32175 | O50: 0 | P50: 32175
B51: Avista Total | C51: =SUM(C48,C49,C50) -> 3 | F51: =SUM(F48,F49,F50) -> 22.5 | G51: =SUM(G48,G49,G50) -> 1.875 | L51: =SUM(L47:L50) -> 315975 | O51: =SUM(O47:O50) -> 0 | P51: =SUM(P47:P50) -> 315975
A52: Contracts/Legal
A53: Contracts - CAISO | B53: Contracts | C53: 1 | D53: 12 | E53: 0.5 | F53: =PRODUCT(C53:E53) -> 6 | G53: =(F53/12) -> 0.5 | I53: 0.25 | J53: 0.75 | L53: =80000*0.5*1.65 -> 66000 | O53: =I53*L53 -> 16500 | P53: =J53*L53 -> 49500
A54: Contracts - Technology | B54: Contracts | C54: 1 | D54: 12 | E54: 0.5 | F54: =PRODUCT(C54:E54) -> 6 | G54: =(F54/12) -> 0.5 | I54: 0.25 | J54: 0.75 | L54: =80000*0.5*1.65 -> 66000 | O54: 16500 | P54: 49500
A55: Legal support | B55: Legal | C55: 1 | D55: 18 | E55: 0.67 | F55: 12.06 | G55: 1.005 | I55: 0.25 | J55: 0.75 | L55: =150000*1.65 -> 247500 | O55: 61875 | P55: 185625
B56: Avista Total | C56: =SUM(C53,C54,C55) -> 3 | F56: =SUM(F53,F55) -> 18.06 | G56: =SUM(G53,G55) -> 1.505 | L56: =SUM(L53:L55) -> 379500 | O56: =SUM(O53:O55) -> 94875 | P56: =SUM(P53:P55) -> 284625
A57: Technology Support
A58: ET New App integration | B58: ET | C58: 2 | D58: 12 | E58: 0.75 | F58: =PRODUCT(C58:E58) -> 18 | G58: =(F58/12) -> 1.5 | I58: 1 | J58: 0 | L58: =175000*1.5*1.65 -> 433125 | O58: =I58*L58 -> 433125 | P58: =J58*L58 -> 0
A59: ET Nucleus ( 1 New) | B59: ET | C59: 2 | D59: 12 | E59: 1 | F59: =PRODUCT(C59:E59) -> 24 | G59: =(F59/12) -> 2 | I59: 0.75 | J59: 0.25 | L59: =175000*2*1.65 -> 577500 | O59: 433125 | P59: 144375
A60: ET Infrastructure | B60: ET | C60: 2 | D60: 12 | E60: 0.75 | F60: 18 | G60: 1.5 | I60: 1 | J60: 0 | L60: =175000*1.5*1.65 -> 433125 | O60: 433125 | P60: 0
A61: ET Tech support (PS, Sys Ops, Settlements) (1 New) | B61: ET | C61: 1 | D61: 12 | E61: 1 | F61: =PRODUCT(C61:E61) -> 12 | G61: 1 | I61: 1 | J61: 0 | L61: =175000*1.5*1.65 -> 433125 | O61: 433125 | P61: 0
A62: Infrastructure / Tech support | B62: Consultant | C62: 1 | D62: 12 | E62: 1 | F62: 12 | G62: 1 | I62: 1 | J62: 0 | L62: =160*40*48 -> 307200 | O62: 307200 | P62: 0
B63: Avista Total | C63: =SUM(C58,C59,C60,C61,) -> 7 | F63: =SUM(F58,F59,F60,F61,) -> 72 | G63: =SUM(G58,G59,G60,G61,) -> 6 | L63: =SUM(L58:L62) -> 2184075 | O63: =SUM(O58:O62) -> 2039700 | P63: =SUM(P58:P62) -> 144375
B64: Consultant Total | C64: =C62 -> 1 | F64: =F62 -> 12 | G64: =G62 -> 1
A65: Training
A66: Training Lead - included in PM above | B66: Consultant
A67: Avista Employees | B67: All departments | C67: ?
J70: Total Labor | L70: =SUM(L11,L18,L28,L38,L45,L51,L56,L63) -> 11244900
B71: Avista Total | C71: =SUM(C11,C18,C28,C38,C45,C51,C56,C63) -> 56 | F71: =SUM(F11,F18,F28,F38,F45,F51,F56,F63) -> 455.46 | G71: =SUM(G11,G18,G28,G38,G45,G51,G56,G63) -> 36.955
B72: Consultant Total | C72: =SUM(C12,C20,C29,C39,C46,C52,C57,C64,C69) -> 7 | F72: =SUM(F12,F29,F39,F46,F64,F69) -> 83.4 | G72: =SUM(G12,G29,G39,G46,G64,G69) -> 5.45 | J72: Avista | L72: =SUM(L70-L74) -> 8592900
B73: Project Total | C73: =SUM(C71:C72) -> 63 | F73: =SUM(F71:F72) -> 538.86 | G73: =SUM(G71:G72) -> 42.405
J74: Contract | L74: =SUM(L4,L5,L6,L26,L37,L44,L62) -> 2652000
A75: Note: Avista labor assume 65% loader | O75: Captial | P75: O&M
J77: Total Labor without metering | L77: =SUM(L11,L18,M28,L38,L45,L51,L56,L63) -> 9408900 | O77: =SUM(O11,O18,O28,O38,O45,O51,O56,O63) -> 6544575 | P77: =SUM(P11,P18,P28,P38,P45,P51,P56,P63) -> 2864325
J79: Avista | L79: =SUM(L77-L81) -> 7008900 | O79: =SUM(O77-O81) -> 4646775 | P79: 2362125
J81: Contract | L81: =SUM(L4,L5,L6,M26,L37,L44,L62) -> 2400000 | O81: =SUM(O4,O5,O6,O26,O37,O44,O62) -> 1897800 | P81: =SUM(P4,P5,P6,P26,P37,P44,P62) -> 502200
J83: Hardware/Software | L83: 2875000 | O83: 2875000 | P83: 0
J85: CAISO Fee | L85: 400000 | O85: 0 | P85: 400000
J87: Total Project | L87: =SUM(L79:L85) -> 12683900 | O87: =SUM(O79:O85) -> 9419575 | P87: =SUM(P79:P85) -> 3264325
O89: =O87/L87 -> 0.7426402763 | P89: =P87/L87 -> 0.2573597237

Sheet On-going (hidden)
A1: Staffing for On-Going EIM Steady State Operation - All O&M
A2: Functional Role | B2: Department | C2: FTE | D2: Hire Date | G2: Annual
A4: Power Supply Analyst - bids, outage management | B4: PS | C4: 1 | D4: 18 months prior to go-live | G4: =120000*1.75 -> 210000
A5: Sys Ops - Network model and support | B5: Sys Op | C5: 1 | D5: 18 months prior to go-live | G5: =115000*1.75 -> 201250
A6: Sys Ops - SCADA and tech support | B6: Sys Op | C6: 0 or 1 | D6: 18 months prior to go-live | G6: =115000*1.75 -> 201250
A7: Sys Ops - CAISO EIM desk | B7: Sys Op | C7: 5 | D7: 9 months prior to go-live | G7: =135000*1.75*5*1.2 -> 1417500
A8: Settlement Analyst | B8: Res Acctng | C8: 1 | D8: 12 months prior to go-live | G8: =60000*1.75 -> 105000
A9: Data Management - Data submittal, metering | B9: RA or Risk | C9: 1 | D9: 18 months prior to go-live | G9: =100000*1.5*1.5 -> 225000
A10: Compliance - EQR and GHG | B10: Compliance | C10: 0 or 1 | D10: 12 months prior to go-live | G10: =60000*1.75 -> 105000
A11: Technical Support - Nucleus/New Apps | B11: ET | C11: 1 or 2 | D11: 18 months prior to go-live | G11: =125000*2*1.75 -> 437500
B12: Total | C12: 10 to 13
F13: Total | G13: =SUM(G4:G11) -> 2902500 | H13: Labor
F15: CAISO | G15: 250000 | H15: Annual Fee
F17: Apps/Tech | G17: =2875000*0.15 -> 431250 | H17: Maintenance fees
F19: Total | G19: =SUM(G13+G15+G17) -> 3583750 | H19: All O&M

Sheet Applications (hidden)
A1: Technology Requirements | B1: Status | C1: Application | F1: Cost
A2: Program Management | B2: Exisiting | C2: Microsoft Project
A3: Market data Base | B3: Evaluate | C3: Nucleus or RFP
A4: Bidding tool (B2B) | B4: New | C4: RFP | F4: 1000000
A5: Settlement tool (shadow) (B2B) | B5: New | C5: RFP
A6: Settlement allocations - PoPUD | B6: New | C6: RFP
A7: Optimization tool | B7: Existing | C7: ADSS
A8: System Ops Tools | B8: Modify | F8: 750000
A9: Outage management | B9: Modify | C9: Crow expansion (used by Sys Ops)
A10: SCADA mods - AGC, metering, displays | B10: Modify | C10: AREVA
A11: PI displays | B11: Modify | C11: PI
A12: Real-time contingency analysis | B12: Evaluate | C12: Peak RC or AREVA
A13: Transmission scheduling | B13: Modify | C13: OATI
A14: PCE modifications | B14: Modify | C14: PCE modifications
A15: Meter data retrieval | B15: Existing | C15: SCADA/telecomm network expansion | F15: 200000
A16: Meter data submittal | B16: Evaluate | C16: Nucleus or RFP | F16: 300000
A17: Data verification | B17: Evaluate | C17: Nucleus or RFP | F17: 65000
A18: CAISO dispatch and other info (XML Listener) | B18: Evaluate | C18: SCADA or RFP | F18: 210000
A19: Reporting - EQR, GHG | B19: Existing/New | C19: RFP? | F19: 50000
A21: Hardware | B21: New | F21: 300000
E23: Total | F23: =SUM(F2:F21) -> 2875000

Sheet Benefits
A1: Results from E3 Benefit Study
C2: Data associated with Figure 1 (used for verification analysis below) | I2: Scenario | J2: Model | K2: Transmission (MW) | L2: Hydro share (%) | M2: Wind/solar share (%) | N2: Predicted Annual EIM Benefits (million 2017$ per year)
A3: Entity Tag | B3: Entity full name | C3: 2015 Actuals | D3: 2016 Actuals | E3: H1 2017 Actuals | F3: Study Min | G3: MAX | I3: 1 | J3: 1 | K3: 300 | L3: 0.13 | M3: 0.05 | N3: 1.54
A4: CAISO | B4: CAISO PAC | F4: 0.0252152782 | G4: 0.05134747561 | I4: 2 | J4: 1 | K4: 300 | L4: 0.13 | M4: 0.26 | N4: 1.63
A5: Pac | B5: CAISO PAC | F5: 0.0873363136 | G5: 0.1778484932 | I5: 3 | J5: 1 | K5: 300 | L5: 0.24 | M5: 0.05 | N5: 1.88
A6: NVE | B6: NV Energy | F6: 0.09397038345 | G6: 0.2165604374 | I6: 4 | J6: 1 | K6: 300 | L6: 0.24 | M6: 0.26 | N6: 2
A7: PSE | B7: Puget Sound Energy | F7: 0.6046789498 | G7: 0.6698539265 | I7: 5 | J7: 1 | K7: 300 | L7: 0.49 | M7: 0.05 | N7: 2.92
A8: APS | B8: Arizona Public Service | F8: 0.1839845108 | G8: 0.4646388493 | I8: 6 | J8: 1 | K8: 300 | L8: 0.49 | M8: 0.26 | N8: 3.1
A9: PGE | B9: Portland General Electric | F9: 0.1288396047 | G9: 0.2910820698 | I9: 7 | J9: 1 | K9: 500 | L9: 0.13 | M9: 0.05 | N9: 1.84
A10: IPC | B10: Idaho Power Company | F10: 0.2233649492 | G10: 0.2778442051 | I10: 8 | J10: 1 | K10: 500 | L10: 0.13 | M10: 0.26 | N10: 1.96
A11: SCL | B11: Seattle City Light | F11: 0.4352041642 | G11: 2.828827067 | I11: 9 | J11: 1 | K11: 500 | L11: 0.24 | M11: 0.05 | N11: 2.27
A12: CAISO Actual | B12: CAISO | C12: 0.05782838678 | D12: 0.1287590038 | E12: 0.2180330075 | I12: 10 | J12: 1 | K12: 500 | L12: 0.24 | M12: 0.26 | N12: 2.41
A13: Pac Actual | B13: PAC | C13: 0.3938885979 | D13: 0.6787474866 | E13: 0.5801357182 | I13: 11 | J13: 1 | K13: 500 | L13: 0.49 | M13: 0.05 | N13: 3.51
A14: NVE Actual | B14: NV Energy | D14: 0.4458032537 | E14: 0.4466290693 | I14: 12 | J14: 1 | K14: 500 | L14: 0.49 | M14: 0.26 | N14: 3.73
A15: APS Actual | B15: APS | D15: 0.816425961 | E15: 0.8649956139 | I15: 13 | J15: 0 | K15: 300 | L15: 0.13 | M15: 0.05 | N15: 4.94
A16: PSE Actual | B16: PSE | D16: 0.2775037062 | E16: 0.3828261801 | I16: 14 | J16: 0 | K16: 300 | L16: 0.13 | M16: 0.26 | N16: 5.17
A17: CHPD | B17: CHPD | F17: 0.8828948143 | G17: 4.138569442 | I17: 15 | J17: 0 | K17: 300 | L17: 0.24 | M17: 0.05 | N17: 6.12
I18: 16 | J18: 0 | K18: 300 | L18: 0.24 | M18: 0.26 | N18: 6.4
B19: UPDATED | I19: 17 | J19: 0 | K19: 300 | L19: 0.49 | M19: 0.05 | N19: 9.66
A20: Annual Net EIM Benefits ($M) | I20: 18 | J20: 0 | K20: 300 | L20: 0.49 | M20: 0.26 | N20: 10.11
B21: BA Load | I21: 19 | J21: 0 | K21: 500 | L21: 0.13 | M21: 0.05 | N21: 5.96
A22: Base | B22: 5.79 | I22: 20 | J22: 0 | K22: 500 | L22: 0.13 | M22: 0.26 | N22: 6.22
I23: 21 | J23: 0 | K23: 500 | L23: 0.24 | M23: 0.05 | N23: 7.39
A24: Range | B24: 3.5 - 9.17 | I24: 22 | J24: 0 | K24: 500 | L24: 0.24 | M24: 0.26 | N24: 7.72
A25: Low | B25: 3.5 | I25: 23 | J25: 0 | K25: 500 | L25: 0.49 | M25: 0.05 | N25: 11.69
A26: High | B26: 9.17 | I26: 24 | J26: 0 | K26: 500 | L26: 0.49 | M26: 0.26 | N26: 12.22
B28: ORIGINAL | E28: Original Assessment (2017) | J28: Balancing Area Load ($M)
A29: Annual Net EIM Benefits ($M) | J29: Gross | K29: *Reduction | L29: Net | O29: Verification Analysis ($/MWh benefit from Figure 1 in E3 Benefit Report)
B30: BA Load | E30: Base = Avg Scenarios (3,5,9,11,15,17,21,23) | I30: Base | J30: =AVERAGE(N5,N7,N11,N13,N17,N19,N23,N25) -> 5.68 | K30: 1.5 | L30: =J30-K30 -> 4.18 | O30: Avista annual energy served = 12,450,000 MWh
A31: Base | B31: 4.19 | E31: Low = Avg Scenarios (1, 13) | I31: Low | J31: =AVERAGE(N3,N15) -> 3.24 | K31: 0.5 | L31: =J31-K31 -> 2.74
E32: High = Avg Scenarios (15,17,21,23) | I32: High | J32: =AVERAGE(N17,N19,N23,N25) -> 8.715 | K32: 2 | L32: =J32-K32 -> 6.715 | O32: Base | P32: NVE 2016 actual or PSE Q3 actual results = $0.45/MWh
A33: Range | B33: 2.74 - 6.73 | P33: Avista Base | R33: =12.45*0.45 -> 5.6025
A34: Low | B34: 2.74 | E34: Other Low = Scenario 11 | I34: Low | J34: 3.51 | K34: 0.75 | L34: =J34-K34 -> 2.76 | O34: Low | P34: PSE 2016 actual or PGE &IPC Study results = $0.29/MWh
A35: High | B35: 6.73 | P35: Avista Low Case | R35: =12.45*0.29 -> 3.6105
E36: *Estimated Reductions (15 minute optimization revenue without EIM, assumed perfect modeling and bidding in analysis) | O36: High | P36: PAC 2016 actual results = $0.68/MWh
P37: Avista High Case | R37: =12.45*0.68 -> 8.466
E39: Updated Assessment (2019) | I39: Balancing Area Load ($M)
J40: Gross | K40: *Reduction | L40: Net
E41: Base = Avg Scenarios (6, 12, 18, 24) | I41: Base | J41: =AVERAGE(N8,N14,N20,N26) -> 7.29 | K41: 1.5 | L41: =J41-K41 -> 5.79
E42: Low = Avg Scenarios (3,15) | I42: Low | J42: =AVERAGE(N5,N17) -> 4 | K42: 0.5 | L42: =J42-K42 -> 3.5
E43: High = Avg Scenarios (18, 24) | I43: High | J43: =AVERAGE(N20,N26) -> 11.165 | K43: 2 | L43: =J43-K43 -> 9.165
E45: Notes
E46: *Estimated Reductions (15 minute optimization revenue without EIM, assumed perfect modeling and bidding in analysis)

Sheet Comparison (hidden)
A1: EIM Cost Comparisons
C2: Implementaton ($M) | H2: Ongoing Costs (Estimates)
A3: Utility Actual | B3: Total | C3: Labor (Consultant) | D3: Technology | E3: Other | F3: Metering | G3: Notes | H3: FTE (New/Repurposed) | I3: Labor | J3: Other
A4: Pacificorp | B4: 20.1 | C4: 7.6 | D4: 5 | E4: 1.5 | F4: 7 | H4: 9/4/new desk | I4: 3
A5: NVE | B5: 11.22 | C5: 4.16 | D5: 2.92 | E5: 1.31 | F5: 2.83 | I5: 5
A6: APS | B6: 21.2 | G6: Includes EMS | I6: 4
A7: PSE | B7: 14 | H7: 8/2/no desk | I7: 3.75
A8: PGE | B8: 11.25 | C8: 7.65 (1.90) | D8: 2.6 | E8: 1 | F8: 0 | H8: No desk | I8: 2.3
A9: Avista | B9: 12.78 | C9: 9.41 (2.40) | D9: 2.88 | E9: 0.5 | F9: 0 | I9: 3.63
A11: Estimates
A12: Idaho | B12: 11.1
A13: Powerex
A14: SMUD | B14: 6.7
A15: LADWP
A16: SRP

Sheet Summary
C2: 10 Year NPV (2022 -2031) | G2: 10 Year Breakeven Revenue Requirement (2022-2031)
C3: Based on nominal dollars
C4: Balancing Area Load - IRP Market Escalation | G4: Balancing Area Load - IRP Market Escalation
B5: Capital & O&M Scenario | C5: High ($9.17M) | D5: Base ($5.79M) | E5: Low($3.5M) | G5: Capital & O&M Scenario | H5: 2022 Revenue ($M)
B6: =' Cost-Benefit $21.4 M (IRP)'!$B$2 -> 21400000 | C6: =' Cost-Benefit $21.4 M (IRP)'!C33 -> 52340942.66 | D6: =' Cost-Benefit $21.4 M (IRP)'!C34 -> 17342767.89 | E6: =' Cost-Benefit $21.4 M (IRP)'!C35 -> -6369013.23 | G6: =' Cost-Benefit $21.4 M (IRP)'!$B$2 -> 21400000 | H6: =' Cost-Benefit $21.4 M (IRP)'!G21/1000000 -> 5.014
B7: ='Cost-Benefit $26.7 M (IRP)'!$B$2 -> 26700000 | C7: ='Cost-Benefit $26.7 M (IRP)'!C33 -> 44297768.95 | D7: ='Cost-Benefit $26.7 M (IRP)'!C34 -> 9299594.189 | E7: ='Cost-Benefit $26.7 M (IRP)'!C35 -> -14412186.94 | G7: ='Cost-Benefit $26.7 M (IRP)'!$B$2 -> 26700000 | H7: ='Cost-Benefit $26.7 M (IRP)'!G21/1000000 -> 5.96
B8: ='Cost-Benefit $32.1 M (IRP)'!$B$2 -> 32100000 | C8: ='Cost-Benefit $32.1 M (IRP)'!C34 -> 3886355.833 | D8: ='Cost-Benefit $32.1 M (IRP)'!C35 -> -19623070.29 | E8: ='Cost-Benefit $32.1 M (IRP)'!C36 -> -35551054.27 | G8: ='Cost-Benefit $32.1 M (IRP)'!$B$2 -> 32100000 | H8: ='Cost-Benefit $32.1 M (IRP)'!G22/1000000 -> 7.750594501
C11: Balancing Area Load - 2% Market Escalation | G11: Balancing Area Load - 2% Market Escalation
B12: Capital & O&M Scenario | C12: High ($9.17M) | D12: Base ($5.79M) | E12: Low($3.5M) | G12: Capital & O&M Scenario | H12: 2022 Revenue ($M)
B13: =' Cost-Benefit $21.4 M (IRP)'!$B$2 -> 21400000 | C13: ='Cost-Benefit $21.4 M (2%)'!C33 -> 24478619.6 | D13: ='Cost-Benefit $21.4 M (2%)'!C34 -> -249691.2653 | E13: ='Cost-Benefit $21.4 M (2%)'!C35 -> -17003487.68 | G13: =' Cost-Benefit $21.4 M (IRP)'!$B$2 -> 21400000 | H13: ='Cost-Benefit $21.4 M (2%)'!G21/1000000 -> 6.383
B14: ='Cost-Benefit $26.7 M (IRP)'!$B$2 -> 26700000 | C14: ='Cost-Benefit $26.7 M (2%)'!C33 -> 16435445.89 | D14: ='Cost-Benefit $26.7 M (2%)'!C34 -> -8292864.971 | E14: ='Cost-Benefit $26.7 M (2%)'!C35 -> -25046661.38 | G14: ='Cost-Benefit $26.7 M (IRP)'!$B$2 -> 26700000 | H14: ='Cost-Benefit $26.7 M (2%)'!G21/1000000 -> 7.588
B15: ='Cost-Benefit $32.1 M (IRP)'!$B$2 -> 32100000 | C15: ='Cost-Benefit $32.1 M (2%)'!C34 -> 11083092.04 | D15: ='Cost-Benefit $32.1 M (2%)'!C35 -> -15079002.4 | E15: ='Cost-Benefit $32.1 M (2%)'!C36 -> -32804208.39 | G15: ='Cost-Benefit $32.1 M (IRP)'!$B$2 -> 32100000 | H15: ='Cost-Benefit $32.1 M (2%)'!G22/1000000 -> 8.174962923
B17: Note: | C17: Analysis for $21.4M and $26.7M scenarios updated in Jan 2020, analysis for $32.1M scenario was updated in Oct 2020

Sheet Cost-Benefit $21.4 M (IRP)
B1: EIM Net Benefit/Cost
B2: 21400000 | C2: (Initial capital plus integration expense)
B3: 3500000 | C3: (annual O&M)
B4: IRP Method
B6: Inflation Factor | C6: 0.015 | D6: 100 | E6: =D6*1.015 -> 101.5 | F6: 103.0225 | G6: 104.5678375 | H6: 106.1363551 | I6: 107.7284004 | J6: 109.3443264 | K6: 110.9844913 | L6: 112.6492587 | M6: 114.3389975 | N6: 116.0540825 | O6: 117.7948937 | P6: =O6*1.015 -> 119.5618171
B7: Benefit Factor (2017 IRP Mid-C) | D7: 107.7822412 | E7: 109.0290512 | F7: 110.438695 | G7: 117.9690533 | H7: 134.9154928 | I7: 145.6084123 | J7: 148.1119785 | K7: 155.7518716 | L7: 170.9720996 | M7: 182.6156949 | N7: 200.2634268 | O7: 213.0045454 | P7: 218.5289527
D8: -2 | E8: -1 | F8: 0 | G8: 1 | H8: 2 | I8: 3 | J8: 4 | K8: 5 | L8: 6 | M8: 7 | N8: 8 | O8: 9 | P8: 10
C9: NPV 2019$ | D9: 2019 | E9: 2020 | F9: 2021 | G9: 2022 | H9: 2023 | I9: 2024 | J9: 2025 | K9: 2026 | L9: 2027 | M9: 2028 | N9: 2029 | O9: 2030 | P9: 2031 | S9: Total
B10: Costs | E10: 0.5 | F10: 0.5
B11: Implementation CapEx | C11: =NPV('10 Year 18.9 Mill'!DiscRate,E11:P11)+D11 -> 14523878.88 | D11: 0 | E11: =$B$2*E$10*$A15 -> 8025000 | F11: =$B$2*F$10*$A15 -> 8025000 | G11: 0 | H11: 0 | I11: 0 | J11: 0 | K11: 0 | L11: 0 | M11: 0 | N11: 0 | O11: 0 | P11: 0 | S11: =SUM(D11:Q11) -> 16050000
B12: Implementation AFUDC | C12: =NPV('10 Year 18.9 Mill'!DiscRate,E12:P12)+D12 -> 1526121.116 | D12: 0 | E12: =SUM(D11:D12,E11)*'10 Year 18.9 Mill'!DiscRate -> 555955.95 | F12: =SUM(E11:E12,F11)*'10 Year 18.9 Mill'!DiscRate -> 1150427.416 | G12: 0 | H12: 0 | I12: 0 | J12: 0 | K12: 0 | L12: 0 | M12: 0 | N12: 0 | O12: 0 | P12: 0 | S12: =SUM(D12:Q12) -> 1706383.366
B13: Total Rate Base | C13: =NPV('10 Year 18.9 Mill'!DiscRate,E13:P13)+D13 -> 16050000 | D13: =SUM(D11:D12) -> 0 | E13: 8580955.95 | F13: 9175427.416 | G13: 0 | H13: 0 | I13: 0 | J13: 0 | K13: 0 | L13: 0 | M13: 0 | N13: 0 | O13: 0 | P13: =SUM(P11:P12) -> 0 | S13: =SUM(D13:Q13) -> 17756383.37
A15: 0.75 | B15: Capital Recovery Rev. Req. | C15: =NPV('10 Year 18.9 Mill'!DiscRate,E15:P15)+D15 -> 13822354.74 | D15: 0 | E15: 0 | F15: 0 | G15: ='10 Year 18.9 Mill'!$T$28 -> 3545159.529 | H15: ='10 Year 18.9 Mill'!$T$29 -> 3116109.505 | I15: ='10 Year 18.9 Mill'!$T$30 -> 2722978.125 | J15: ='10 Year 18.9 Mill'!$T$31 -> 2384483.216 | K15: ='10 Year 18.9 Mill'!$T$32 -> 2089626.181 | L15: ='10 Year 18.9 Mill'!$T$33 -> 1827333.876 | M15: ='10 Year 18.9 Mill'!$T$34 -> 1590257.568 | N15: ='10 Year 18.9 Mill'!$T$35 -> 1381006.46 | O15: ='10 Year 18.9 Mill'!$T$36 -> 1201123.983 | P15: ='10 Year 18.9 Mill'!$T$37 -> 1042927.541 | S15: =SUM(D15:Q15) -> 20901005.98
A16: 0.25 | B16: Implementation O&M | C16: =NPV('10 Year 18.9 Mill'!DiscRate,E16:P16)+D16 -> 4841292.961 | D16: 0 | E16: =$B$2*$A16*E$10 -> 2675000 | F16: =$B$2*$A16*F$10 -> 2675000 | G16: 0 | H16: 0 | I16: 0 | J16: 0 | K16: 0 | L16: 0 | M16: 0 | N16: 0 | O16: 0 | S16: =SUM(D16:Q16) -> 5350000
B17: On-Going O&M | C17: =NPV('10 Year 18.9 Mill'!DiscRate,E17:P17)+D17 -> 23946079.04 | D17: 0 | E17: 0 | F17: 0 | G17: =$B$3*G$6/100 -> 3659874.312 | H17: =$B$3*H$6/100 -> 3714772.427 | I17: 3770494.014 | J17: 3827051.424 | K17: 3884457.195 | L17: 3942724.053 | M17: 4001864.914 | N17: 4061892.888 | O17: 4122821.281 | P17: 4184663.6 | S17: =SUM(D17:Q17) -> 39170616.11
B18: Cost Revenue Requirement | C18: =NPV('10 Year 18.9 Mill'!DiscRate,E18:P18)+D18 -> 42609726.74 | D18: =SUM(D15:D17) -> 0 | E18: 2675000 | F18: 2675000 | G18: 7205033.841 | H18: 6830881.932 | I18: 6493472.139 | J18: 6211534.64 | K18: 5974083.376 | L18: 5770057.929 | M18: 5592122.482 | N18: 5442899.348 | O18: 5323945.264 | P18: 5227591.141 | S18: =SUM(D18:Q18) -> 65421622.09
B20: Benefits
B21: Break-Even | C21: =NPV('10 Year 18.9 Mill'!DiscRate,E21:P21)+D21 -> 42615655.67 | D21: 0 | E21: 0 | F21: 0 | G21: 5014000 | H21: =G21*H$7/G$7 -> 5734268.96 | I21: =H21*I$7/H$7 -> 6188746.614 | J21: 6295154.867 | K21: 6619870.738 | L21: 7266771.102 | M21: 7761655.012 | N21: 8511730.776 | O21: 9053262.363 | P21: 9288064.434 | S21: =SUM(D21:Q21) -> 71733524.87
B23: Balancing Area Load Case
B24: High | C24: =NPV('10 Year 18.9 Mill'!DiscRate,E24:P24)+D24 -> 94950669.4 | D24: 0 | E24: 0 | F24: 0 | G24: =Benefits!$B$26*1000000*G$7/100*(1+'10 Year 18.9 Mill'!$T$8) -> 11171543.62 | H24: =Benefits!$B$26*1000000*H$7/100*(1+'10 Year 18.9 Mill'!$T$8) -> 12776353.38 | I24: =Benefits!$B$26*1000000*I$7/100*(1+'10 Year 18.9 Mill'!$T$8) -> 13788961.46 | J24: =Benefits!$B$26*1000000*J$7/100*(1+'10 Year 18.9 Mill'!$T$8) -> 14026046.51 | K24: =Benefits!$B$26*1000000*K$7/100*(1+'10 Year 18.9 Mill'!$T$8) -> 14749536.25 | L24: =Benefits!$B$26*1000000*L$7/100*(1+'10 Year 18.9 Mill'!$T$8) -> 16190875.62 | M24: =Benefits!$B$26*1000000*M$7/100*(1+'10 Year 18.9 Mill'!$T$8) -> 17293511.68 | N24: =Benefits!$B$26*1000000*N$7/100*(1+'10 Year 18.9 Mill'!$T$8) -> 18964733.08 | O24: =Benefits!$B$26*1000000*O$7/100*(1+'10 Year 18.9 Mill'!$T$8) -> 20171303.43 | P24: =Benefits!$B$26*1000000*P$7/100*(1+'10 Year 18.9 Mill'!$T$8) -> 20694458.92 | S24: =SUM(D24:Q24) -> 159827324
B25: Base | C25: =NPV('10 Year 18.9 Mill'!DiscRate,E25:P25)+D25 -> 59952494.63 | D25: 0 | E25: 0 | F25: 0 | G25: =Benefits!$B$22*1000000*G$7/100*(1+'10 Year 18.9 Mill'!$T$8) -> 7053788.177 | H25: =Benefits!$B$22*1000000*H$7/100*(1+'10 Year 18.9 Mill'!$T$8) -> 8067075.906 | I25: =Benefits!$B$22*1000000*I$7/100*(1+'10 Year 18.9 Mill'!$T$8) -> 8706443.497 | J25: =Benefits!$B$22*1000000*J$7/100*(1+'10 Year 18.9 Mill'!$T$8) -> 8856140.601 | K25: =Benefits!$B$22*1000000*K$7/100*(1+'10 Year 18.9 Mill'!$T$8) -> 9312956.91 | L25: =Benefits!$B$22*1000000*L$7/100*(1+'10 Year 18.9 Mill'!$T$8) -> 10223028.34 | M25: =Benefits!$B$22*1000000*M$7/100*(1+'10 Year 18.9 Mill'!$T$8) -> 10919240.2 | N25: =Benefits!$B$22*1000000*N$7/100*(1+'10 Year 18.9 Mill'!$T$8) -> 11974460.69 | O25: =Benefits!$B$22*1000000*O$7/100*(1+'10 Year 18.9 Mill'!$T$8) -> 12736297.37 | P25: =Benefits!$B$22*1000000*P$7/100*(1+'10 Year 18.9 Mill'!$T$8) -> 13066621.28 | S25: =SUM(D25:Q25) -> 100916053
B26: Low | C26: =NPV('10 Year 18.9 Mill'!DiscRate,E26:P26)+D26 -> 36240713.51 | D26: 0 | E26: 0 | F26: 0 | G26: =Benefits!$B$25*1000000*G$7/100*(1+'10 Year 18.9 Mill'!$T$8) -> 4263947.948 | H26: =Benefits!$B$25*1000000*H$7/100*(1+'10 Year 18.9 Mill'!$T$8) -> 4876470.755 | I26: =Benefits!$B$25*1000000*I$7/100*(1+'10 Year 18.9 Mill'!$T$8) -> 5262962.39 | J26: =Benefits!$B$25*1000000*J$7/100*(1+'10 Year 18.9 Mill'!$T$8) -> 5353452.867 | K26: =Benefits!$B$25*1000000*K$7/100*(1+'10 Year 18.9 Mill'!$T$8) -> 5629593.987 | L26: =Benefits!$B$25*1000000*L$7/100*(1+'10 Year 18.9 Mill'!$T$8) -> 6179723.519 | M26: =Benefits!$B$25*1000000*M$7/100*(1+'10 Year 18.9 Mill'!$T$8) -> 6600576.977 | N26: =Benefits!$B$25*1000000*N$7/100*(1+'10 Year 18.9 Mill'!$T$8) -> 7238447.742 | O26: =Benefits!$B$25*1000000*O$7/100*(1+'10 Year 18.9 Mill'!$T$8) -> 7698970.777 | P26: =Benefits!$B$25*1000000*P$7/100*(1+'10 Year 18.9 Mill'!$T$8) -> 7898648.441 | S26: =SUM(D26:Q26) -> 61002795.4
B28: Net Benefit/Cost
B29: Scenario | C29: NPV 2017$ | D29: 2019 | E29: 2020 | F29: 2021 | G29: 2022 | H29: 2023 | I29: 2024 | J29: 2025 | K29: 2026 | L29: 2027 | M29: 2028 | N29: 2029 | O29: 2030 | P29: 2031 | S29: Total
B30: Break-Even | C30: =NPV('10 Year 18.9 Mill'!DiscRate,E30:P30)+D30 -> 5928.928615 | D30: =D21-D$18 -> 0 | E30: -2675000 | F30: -2675000 | G30: -2191033.841 | H30: -1096612.972 | I30: -304725.5248 | J30: 83620.22751 | K30: 645787.3623 | L30: 1496713.173 | M30: 2169532.53 | N30: 3068831.429 | O30: 3729317.099 | P30: 4060473.294 | S30: =SUM(D30:Q30) -> 6311902.777
B32: Balancing Area Load Case
B33: High | C33: =NPV('10 Year 18.9 Mill'!DiscRate,E33:P33)+D33 -> 52340942.66 | D33: =D24-D$18 -> 0 | E33: =E24-E$18 -> -2675000 | F33: -2675000 | G33: 3966509.782 | H33: 5945471.447 | I33: 7295489.324 | J33: 7814511.873 | K33: 8775452.87 | L33: 10420817.69 | M33: 11701389.2 | N33: 13521833.74 | O33: 14847358.17 | P33: 15466867.78 | S33: =SUM(D33:Q33) -> 94405701.87
B34: Base | C34: =NPV('10 Year 18.9 Mill'!DiscRate,E34:P34)+D34 -> 17342767.89 | D34: =D25-D$18 -> 0 | E34: =E25-E$18 -> -2675000 | F34: -2675000 | G34: -151245.6644 | H34: 1236193.974 | I34: 2212971.358 | J34: 2644605.961 | K34: 3338873.534 | L34: 4452970.407 | M34: 5327117.717 | N34: 6531561.345 | O34: 7412352.107 | P34: 7839030.138 | S34: =SUM(D34:Q34) -> 35494430.88
B35: Low | C35: =NPV('10 Year 18.9 Mill'!DiscRate,E35:P35)+D35 -> -6369013.23 | D35: =D26-D$18 -> 0 | E35: =E26-E$18 -> -2675000 | F35: -2675000 | G35: -2941085.893 | H35: -1954411.177 | I35: -1230509.749 | J35: -858081.7721 | K35: -344489.3891 | L35: 409665.5904 | M35: 1008454.495 | N35: 1795548.394 | O35: 2375025.513 | P35: 2671057.301 | S35: =SUM(D35:Q35) -> -4418826.687

Sheet Cost-Benefit $21.4 M (2%)
B1: EIM Net Benefit/Cost
B2: 21400000 | C2: (Initial capital plus integration expense)
B3: 3500000 | C3: (annual O&M)
B4: 2% Market Method
B6: Inflation Factor | C6: 0.015 | D6: 100 | E6: =D6*1.015 -> 101.5 | F6: 103.0225 | G6: 104.5678375 | H6: 106.1363551 | I6: 107.7284004 | J6: 109.3443264 | K6: 110.9844913 | L6: 112.6492587 | M6: 114.3389975 | N6: 116.0540825 | O6: 117.7948937 | P6: 119.5618171
B7: Benefit Factor (2% escalation) | D7: 100 | E7: =D7*1.02 -> 102 | F7: 104.04 | G7: 106.1208 | H7: 108.243216 | I7: 110.4080803 | J7: 112.6162419 | K7: 114.8685668 | L7: 117.1659381 | M7: 119.5092569 | N7: 121.899442 | O7: 124.3374308 | P7: 126.8241795
D8: -2 | E8: -1 | F8: 0 | G8: 1 | H8: 2 | I8: 3 | J8: 4 | K8: 5 | L8: 6 | M8: 7 | N8: 8 | O8: 9 | P8: 10
C9: NPV 2019$ | D9: 2019 | E9: 2020 | F9: 2021 | G9: 2022 | H9: 2023 | I9: 2024 | J9: 2025 | K9: 2026 | L9: 2027 | M9: 2028 | N9: 2029 | O9: 2030 | P9: 2031 | S9: Total
B10: Costs | E10: 0.5 | F10: 0.5
B11: Implementation CapEx | C11: =NPV('10 Year 18.9 Mill'!DiscRate,E11:P11)+D11 -> 14523878.88 | D11: 0 | E11: =$B$2*E$10*$A15 -> 8025000 | F11: =$B$2*F$10*$A15 -> 8025000 | G11: 0 | H11: 0 | I11: 0 | J11: 0 | K11: 0 | L11: 0 | M11: 0 | N11: 0 | O11: 0 | P11: 0 | S11: =SUM(D11:Q11) -> 16050000
B12: Implementation AFUDC | C12: =NPV('10 Year 18.9 Mill'!DiscRate,E12:P12)+D12 -> 1526121.116 | D12: 0 | E12: =SUM(D11:D12,E11)*'10 Year 18.9 Mill'!DiscRate -> 555955.95 | F12: =SUM(E11:E12,F11)*'10 Year 18.9 Mill'!DiscRate -> 1150427.416 | G12: 0 | H12: 0 | I12: 0 | J12: 0 | K12: 0 | L12: 0 | M12: 0 | N12: 0 | O12: 0 | P12: 0 | S12: =SUM(D12:Q12) -> 1706383.366
B13: Total Rate Base | C13: =NPV('10 Year 18.9 Mill'!DiscRate,E13:P13)+D13 -> 16050000 | D13: =SUM(D11:D12) -> 0 | E13: 8580955.95 | F13: 9175427.416 | G13: 0 | H13: 0 | I13: 0 | J13: 0 | K13: 0 | L13: 0 | M13: 0 | N13: 0 | O13: 0 | P13: =SUM(P11:P12) -> 0 | S13: =SUM(D13:Q13) -> 17756383.37
A15: 0.75 | B15: Capital Recovery Rev. Req. | C15: =NPV('10 Year 18.9 Mill'!DiscRate,E15:P15)+D15 -> 13822354.74 | D15: 0 | E15: 0 | F15: 0 | G15: ='10 Year 18.9 Mill'!$T$28 -> 3545159.529 | H15: ='10 Year 18.9 Mill'!$T$29 -> 3116109.505 | I15: ='10 Year 18.9 Mill'!$T$30 -> 2722978.125 | J15: ='10 Year 18.9 Mill'!$T$31 -> 2384483.216 | K15: ='10 Year 18.9 Mill'!$T$32 -> 2089626.181 | L15: ='10 Year 18.9 Mill'!$T$33 -> 1827333.876 | M15: ='10 Year 18.9 Mill'!$T$34 -> 1590257.568 | N15: ='10 Year 18.9 Mill'!$T$35 -> 1381006.46 | O15: ='10 Year 18.9 Mill'!$T$36 -> 1201123.983 | P15: ='10 Year 18.9 Mill'!$T$37 -> 1042927.541 | S15: =SUM(D15:Q15) -> 20901005.98
A16: 0.25 | B16: Implementation O&M | C16: =NPV('10 Year 18.9 Mill'!DiscRate,E16:P16)+D16 -> 4841292.961 | D16: 0 | E16: =$B$2*$A16*E$10 -> 2675000 | F16: =$B$2*$A16*F$10 -> 2675000 | G16: 0 | H16: 0 | I16: 0 | J16: 0 | K16: 0 | L16: 0 | M16: 0 | N16: 0 | O16: 0 | S16: =SUM(D16:Q16) -> 5350000
B17: On-Going O&M | C17: =NPV('10 Year 18.9 Mill'!DiscRate,E17:P17)+D17 -> 23946079.04 | D17: 0 | E17: 0 | F17: 0 | G17: =$B$3*G$6/100 -> 3659874.312 | H17: =$B$3*H$6/100 -> 3714772.427 | I17: 3770494.014 | J17: 3827051.424 | K17: 3884457.195 | L17: 3942724.053 | M17: 4001864.914 | N17: 4061892.888 | O17: 4122821.281 | P17: 4184663.6 | S17: =SUM(D17:Q17) -> 39170616.11
B18: Cost Revenue Requirement | C18: =NPV('10 Year 18.9 Mill'!DiscRate,E18:P18)+D18 -> 42609726.74 | D18: =SUM(D15:D17) -> 0 | E18: 2675000 | F18: 2675000 | G18: 7205033.841 | H18: 6830881.932 | I18: 6493472.139 | J18: 6211534.64 | K18: 5974083.376 | L18: 5770057.929 | M18: 5592122.482 | N18: 5442899.348 | O18: 5323945.264 | P18: 5227591.141 | S18: =SUM(D18:Q18) -> 65421622.09
B20: Benefits | S20: =SUM(D20:Q20) -> 0
B21: Break-Even | C21: =NPV('10 Year 18.9 Mill'!DiscRate,E21:P21)+D21 -> 42611451.18 | D21: 0 | E21: 0 | F21: 0 | G21: 6383000 | H21: =G21*H$7/G$7 -> 6510660 | I21: =H21*I$7/H$7 -> 6640873.2 | J21: 6773690.664 | K21: 6909164.477 | L21: 7047347.767 | M21: 7188294.722 | N21: 7332060.617 | O21: 7478701.829 | P21: 7628275.866 | S21: =SUM(D21:Q21) -> 69892069.14
B23: Balancing Area Load
B24: High | C24: =NPV('10 Year 18.9 Mill'!DiscRate,E24:P24)+D24 -> 67088346.34 | D24: 0 | E24: 0 | F24: 0 | G24: =Benefits!$B$26*1000000*G$7/100*(1+'10 Year 18.9 Mill'!$T$8) -> 10049526.66 | H24: =Benefits!$B$26*1000000*H$7/100*(1+'10 Year 18.9 Mill'!$T$8) -> 10250517.19 | I24: =Benefits!$B$26*1000000*I$7/100*(1+'10 Year 18.9 Mill'!$T$8) -> 10455527.54 | J24: =Benefits!$B$26*1000000*J$7/100*(1+'10 Year 18.9 Mill'!$T$8) -> 10664638.09 | K24: =Benefits!$B$26*1000000*K$7/100*(1+'10 Year 18.9 Mill'!$T$8) -> 10877930.85 | L24: =Benefits!$B$26*1000000*L$7/100*(1+'10 Year 18.9 Mill'!$T$8) -> 11095489.47 | M24: =Benefits!$B$26*1000000*M$7/100*(1+'10 Year 18.9 Mill'!$T$8) -> 11317399.26 | N24: =Benefits!$B$26*1000000*N$7/100*(1+'10 Year 18.9 Mill'!$T$8) -> 11543747.24 | O24: =Benefits!$B$26*1000000*O$7/100*(1+'10 Year 18.9 Mill'!$T$8) -> 11774622.19 | P24: =Benefits!$B$26*1000000*P$7/100*(1+'10 Year 18.9 Mill'!$T$8) -> 12010114.63 | S24: =SUM(D24:Q24) -> 110039513.1
B25: Base | C25: =NPV('10 Year 18.9 Mill'!DiscRate,E25:P25)+D25 -> 42360035.47 | D25: 0 | E25: 0 | F25: 0 | G25: =Benefits!$B$22*1000000*G$7/100*(1+'10 Year 18.9 Mill'!$T$8) -> 6345339.08 | H25: =Benefits!$B$22*1000000*H$7/100*(1+'10 Year 18.9 Mill'!$T$8) -> 6472245.862 | I25: =Benefits!$B$22*1000000*I$7/100*(1+'10 Year 18.9 Mill'!$T$8) -> 6601690.779 | J25: =Benefits!$B$22*1000000*J$7/100*(1+'10 Year 18.9 Mill'!$T$8) -> 6733724.595 | K25: =Benefits!$B$22*1000000*K$7/100*(1+'10 Year 18.9 Mill'!$T$8) -> 6868399.087 | L25: =Benefits!$B$22*1000000*L$7/100*(1+'10 Year 18.9 Mill'!$T$8) -> 7005767.068 | M25: =Benefits!$B$22*1000000*M$7/100*(1+'10 Year 18.9 Mill'!$T$8) -> 7145882.41 | N25: =Benefits!$B$22*1000000*N$7/100*(1+'10 Year 18.9 Mill'!$T$8) -> 7288800.058 | O25: =Benefits!$B$22*1000000*O$7/100*(1+'10 Year 18.9 Mill'!$T$8) -> 7434576.059 | P25: =Benefits!$B$22*1000000*P$7/100*(1+'10 Year 18.9 Mill'!$T$8) -> 7583267.58 | S25: =SUM(D25:Q25) -> 69479692.58
B26: Low | C26: =NPV('10 Year 18.9 Mill'!DiscRate,E26:P26)+D26 -> 25606239.06 | D26: 0 | E26: 0 | F26: 0 | G26: =Benefits!$B$25*1000000*G$7/100*(1+'10 Year 18.9 Mill'!$T$8) -> 3835697.199 | H26: =Benefits!$B$25*1000000*H$7/100*(1+'10 Year 18.9 Mill'!$T$8) -> 3912411.143 | I26: =Benefits!$B$25*1000000*I$7/100*(1+'10 Year 18.9 Mill'!$T$8) -> 3990659.366 | J26: =Benefits!$B$25*1000000*J$7/100*(1+'10 Year 18.9 Mill'!$T$8) -> 4070472.553 | K26: =Benefits!$B$25*1000000*K$7/100*(1+'10 Year 18.9 Mill'!$T$8) -> 4151882.004 | L26: =Benefits!$B$25*1000000*L$7/100*(1+'10 Year 18.9 Mill'!$T$8) -> 4234919.644 | M26: =Benefits!$B$25*1000000*M$7/100*(1+'10 Year 18.9 Mill'!$T$8) -> 4319618.037 | N26: =Benefits!$B$25*1000000*N$7/100*(1+'10 Year 18.9 Mill'!$T$8) -> 4406010.398 | O26: =Benefits!$B$25*1000000*O$7/100*(1+'10 Year 18.9 Mill'!$T$8) -> 4494130.606 | P26: =Benefits!$B$25*1000000*P$7/100*(1+'10 Year 18.9 Mill'!$T$8) -> 4584013.218 | S26: =SUM(D26:Q26) -> 41999814.17
B28: Net Benefit/Cost
B29: Scenario | C29: NPV 2017$ | D29: 2019 | E29: 2020 | F29: 2021 | G29: 2022 | H29: 2023 | I29: 2024 | J29: 2025 | K29: 2026 | L29: 2027 | M29: 2028 | N29: 2029 | O29: 2030 | P29: 2031 | S29: Total
B30: Break-Even | C30: =NPV('10 Year 18.9 Mill'!DiscRate,E30:P30)+D30 -> 1724.43981 | D30: =D21-D$18 -> 0 | E30: -2675000 | F30: -2675000 | G30: -822033.8411 | H30: -320221.9319 | I30: 147401.0611 | J30: 562156.0245 | K30: 935081.1012 | L30: 1277289.838 | M30: 1596172.24 | N30: 1889161.269 | O30: 2154756.565 | P30: 2400684.725
S31: =SUM(D31:Q31) -> 0
B32: Balancing Area Load
B33: High | C33: =NPV('10 Year 18.9 Mill'!DiscRate,E33:P33)+D33 -> 24478619.6 | D33: =D24-D$18 -> 0 | E33: =E24-E$18 -> -2675000 | F33: -2675000 | G33: 2844492.82 | H33: 3419635.262 | I33: 3962055.399 | J33: 4453103.449 | K33: 4903847.474 | L33: 5325431.538 | M33: 5725276.775 | N33: 6100847.894 | O33: 6450676.923 | P33: 6782523.49 | S33: =SUM(D33:Q33) -> 44617891.02
B34: Base | C34: =NPV('10 Year 18.9 Mill'!DiscRate,E34:P34)+D34 -> -249691.2653 | D34: =D25-D$18 -> 0 | E34: -2675000 | F34: -2675000 | G34: -859694.7609 | H34: -358636.0701 | I34: 108218.6401 | J34: 522189.9551 | K34: 894315.7104 | L34: 1235709.139 | M34: 1553759.928 | N34: 1845900.71 | O34: 2110630.795 | P34: 2355676.439 | S34: =SUM(D34:Q34) -> 4058070.486
B35: Low | C35: =NPV('10 Year 18.9 Mill'!DiscRate,E35:P35)+D35 -> -17003487.68 | D35: =D26-D$18 -> 0 | E35: -2675000 | F35: -2675000 | G35: -3369336.642 | H35: -2918470.789 | I35: -2502812.773 | J35: -2141062.087 | K35: -1822201.372 | L35: -1535138.285 | M35: -1272504.445 | N35: -1036888.95 | O35: -829814.6581 | P35: -643577.9231 | S35: =SUM(D35:Q35) -> -23421807.92

Sheet Cost-Benefit $26.7 M (IRP)
B1: EIM Net Benefit/Cost
B2: 26700000 | C2: (Initial capital plus integration expense)
B3: 4000000 | C3: (annual O&M)
B4: IRP Method
B6: Inflation Factor | C6: 0.015 | D6: 100 | E6: =D6*1.015 -> 101.5 | F6: 103.0225 | G6: 104.5678375 | H6: 106.1363551 | I6: 107.7284004 | J6: 109.3443264 | K6: 110.9844913 | L6: 112.6492587 | M6: 114.3389975 | N6: 116.0540825 | O6: 117.7948937 | P6: 119.5618171
B7: Benefit Factor (2017 IRP Mid-C) | D7: 107.7822412 | E7: 109.0290512 | F7: 110.438695 | G7: 117.9690533 | H7: 134.9154928 | I7: 145.6084123 | J7: 148.1119785 | K7: 155.7518716 | L7: 170.9720996 | M7: 182.6156949 | N7: 200.2634268 | O7: 213.0045454 | P7: 218.5289527
D8: -2 | E8: -1 | F8: 0 | G8: 1 | H8: 2 | I8: 3 | J8: 4 | K8: 5 | L8: 6 | M8: 7 | N8: 8 | O8: 9 | P8: 10
C9: NPV 2019$ | D9: 2019 | E9: 2020 | F9: 2021 | G9: 2022 | H9: 2023 | I9: 2024 | J9: 2025 | K9: 2026 | L9: 2027 | M9: 2028 | N9: 2029 | O9: 2030 | P9: 2031 | S9: Total
B10: Costs | E10: 0.5 | F10: 0.5
B11: Implementation CapEx | C11: =NPV('10 Year 24.1 Mill'!DiscRate,E11:P11)+D11 -> 18120914.31 | D11: 0 | E11: =$B$2*E$10*$A15 -> 10012500 | F11: =$B$2*F$10*$A15 -> 10012500 | G11: 0 | H11: 0 | I11: 0 | J11: 0 | K11: 0 | L11: 0 | M11: 0 | N11: 0 | O11: 0 | P11: 0 | S11: =SUM(D11:Q11) -> 20025000
B12: Implementation AFUDC | C12: =NPV('10 Year 24.1 Mill'!DiscRate,E12:P12)+D12 -> 1904085.692 | D12: 0 | E12: =SUM(D11:D12,E11)*'10 Year 24.1 Mill'!DiscRate -> 693645.975 | F12: =SUM(E11:E12,F11)*'10 Year 24.1 Mill'!DiscRate -> 1435346.356 | G12: 0 | H12: 0 | I12: 0 | J12: 0 | K12: 0 | L12: 0 | M12: 0 | N12: 0 | O12: 0 | P12: 0 | S12: =SUM(D12:Q12) -> 2128992.331
B13: Total Rate Base | C13: =NPV('10 Year 24.1 Mill'!DiscRate,E13:P13)+D13 -> 20025000 | D13: =SUM(D11:D12) -> 0 | E13: 10706145.97 | F13: 11447846.36 | G13: 0 | H13: 0 | I13: 0 | J13: 0 | K13: 0 | L13: 0 | M13: 0 | N13: 0 | O13: 0 | P13: 0 | S13: =SUM(D13:Q13) -> 22153992.33
A15: 0.75 | B15: Capital Recovery Rev. Req. | C15: =NPV('10 Year 24.1 Mill'!DiscRate,E15:P15)+D15 -> 17245648.2 | D15: 0 | E15: 0 | F15: 0 | G15: ='10 Year 24.1 Mill'!$T$28 -> 4423166.328 | H15: ='10 Year 24.1 Mill'!$T$29 -> 3887856.251 | I15: ='10 Year 24.1 Mill'!$T$30 -> 3397360.558 | J15: ='10 Year 24.1 Mill'!$T$31 -> 2975032.797 | K15: ='10 Year 24.1 Mill'!$T$32 -> 2607150.422 | L15: ='10 Year 24.1 Mill'!$T$33 -> 2279897.873 | M15: ='10 Year 24.1 Mill'!$T$34 -> 1984106.405 | N15: ='10 Year 24.1 Mill'!$T$35 -> 1723031.424 | O15: ='10 Year 24.1 Mill'!$T$36 -> 1498598.614 | P15: ='10 Year 24.1 Mill'!$T$37 -> 1301222.679 | S15: =SUM(D15:Q15) -> 26077423.35
A16: 0.25 | B16: Implementation O&M | C16: =NPV('10 Year 24.1 Mill'!DiscRate,E16:P16)+D16 -> 6040304.769 | D16: 0 | E16: =$B$2*$A16*E$10 -> 3337500 | F16: =$B$2*$A16*F$10 -> 3337500 | G16: 0 | H16: 0 | I16: 0 | J16: 0 | K16: 0 | L16: 0 | M16: 0 | N16: 0 | O16: 0 | S16: =SUM(D16:Q16) -> 6675000
B17: On-Going O&M | C17: =NPV('10 Year 24.1 Mill'!DiscRate,E17:P17)+D17 -> 27366947.48 | D17: 0 | E17: 0 | F17: 0 | G17: =$B$3*G$6/100 -> 4182713.5 | H17: =$B$3*H$6/100 -> 4245454.202 | I17: 4309136.016 | J17: 4373773.056 | K17: 4439379.652 | L17: 4505970.346 | M17: 4573559.902 | N17: 4642163.3 | O17: 4711795.75 | P17: 4782472.686 | S17: =SUM(D17:Q17) -> 44766418.41
B18: Cost Revenue Requirement | C18: =NPV('10 Year 24.1 Mill'!DiscRate,E18:P18)+D18 -> 50652900.45 | D18: =SUM(D15:D17) -> 0 | E18: 3337500 | F18: 3337500 | G18: 8605879.828 | H18: 8133310.454 | I18: 7706496.574 | J18: 7348805.853 | K18: 7046530.074 | L18: 6785868.22 | M18: 6557666.306 | N18: 6365194.724 | O18: 6210394.364 | P18: 6083695.365 | S18: =SUM(D18:Q18) -> 77518841.76
B20: Benefits
B21: Break-Even | C21: =NPV('10 Year 24.1 Mill'!DiscRate,E21:P21)+D21 -> 50656024.69 | D21: 0 | E21: 0 | F21: 0 | G21: 5960000 | H21: =G21*H$7/G$7 -> 6816163.343 | I21: =H21*I$7/H$7 -> 7356388.077 | J21: 7482872.558 | K21: 7868853.131 | L21: 8637805.298 | M21: 9226059.807 | N21: 10117653.66 | O21: 10761356.94 | P21: 11040459.52 | S21: =SUM(D21:Q21) -> 85267612.33
B23: Balancing Area Load
B24: High | C24: =NPV('10 Year 24.1 Mill'!DiscRate,E24:P24)+D24 -> 94950669.4 | D24: 0 | E24: 0 | F24: 0 | G24: =Benefits!$B$26*1000000*G$7/100*(1+'10 Year 24.1 Mill'!$T$8) -> 11171543.62 | H24: =Benefits!$B$26*1000000*H$7/100*(1+'10 Year 24.1 Mill'!$T$8) -> 12776353.38 | I24: =Benefits!$B$26*1000000*I$7/100*(1+'10 Year 24.1 Mill'!$T$8) -> 13788961.46 | J24: =Benefits!$B$26*1000000*J$7/100*(1+'10 Year 24.1 Mill'!$T$8) -> 14026046.51 | K24: =Benefits!$B$26*1000000*K$7/100*(1+'10 Year 24.1 Mill'!$T$8) -> 14749536.25 | L24: =Benefits!$B$26*1000000*L$7/100*(1+'10 Year 24.1 Mill'!$T$8) -> 16190875.62 | M24: =Benefits!$B$26*1000000*M$7/100*(1+'10 Year 24.1 Mill'!$T$8) -> 17293511.68 | N24: =Benefits!$B$26*1000000*N$7/100*(1+'10 Year 24.1 Mill'!$T$8) -> 18964733.08 | O24: =Benefits!$B$26*1000000*O$7/100*(1+'10 Year 24.1 Mill'!$T$8) -> 20171303.43 | P24: =Benefits!$B$26*1000000*P$7/100*(1+'10 Year 24.1 Mill'!$T$8) -> 20694458.92 | S24: =SUM(D24:Q24) -> 159827324
B25: Base | C25: =NPV('10 Year 24.1 Mill'!DiscRate,E25:P25)+D25 -> 59952494.63 | D25: 0 | E25: 0 | F25: 0 | G25: =Benefits!$B$22*1000000*G$7/100*(1+'10 Year 24.1 Mill'!$T$8) -> 7053788.177 | H25: =Benefits!$B$22*1000000*H$7/100*(1+'10 Year 24.1 Mill'!$T$8) -> 8067075.906 | I25: =Benefits!$B$22*1000000*I$7/100*(1+'10 Year 24.1 Mill'!$T$8) -> 8706443.497 | J25: =Benefits!$B$22*1000000*J$7/100*(1+'10 Year 24.1 Mill'!$T$8) -> 8856140.601 | K25: =Benefits!$B$22*1000000*K$7/100*(1+'10 Year 24.1 Mill'!$T$8) -> 9312956.91 | L25: =Benefits!$B$22*1000000*L$7/100*(1+'10 Year 24.1 Mill'!$T$8) -> 10223028.34 | M25: =Benefits!$B$22*1000000*M$7/100*(1+'10 Year 24.1 Mill'!$T$8) -> 10919240.2 | N25: =Benefits!$B$22*1000000*N$7/100*(1+'10 Year 24.1 Mill'!$T$8) -> 11974460.69 | O25: =Benefits!$B$22*1000000*O$7/100*(1+'10 Year 24.1 Mill'!$T$8) -> 12736297.37 | P25: =Benefits!$B$22*1000000*P$7/100*(1+'10 Year 24.1 Mill'!$T$8) -> 13066621.28 | S25: =SUM(D25:Q25) -> 100916053
B26: Low | C26: =NPV('10 Year 24.1 Mill'!DiscRate,E26:P26)+D26 -> 36240713.51 | D26: 0 | E26: 0 | F26: 0 | G26: =Benefits!$B$25*1000000*G$7/100*(1+'10 Year 24.1 Mill'!$T$8) -> 4263947.948 | H26: =Benefits!$B$25*1000000*H$7/100*(1+'10 Year 24.1 Mill'!$T$8) -> 4876470.755 | I26: =Benefits!$B$25*1000000*I$7/100*(1+'10 Year 24.1 Mill'!$T$8) -> 5262962.39 | J26: =Benefits!$B$25*1000000*J$7/100*(1+'10 Year 24.1 Mill'!$T$8) -> 5353452.867 | K26: =Benefits!$B$25*1000000*K$7/100*(1+'10 Year 24.1 Mill'!$T$8) -> 5629593.987 | L26: =Benefits!$B$25*1000000*L$7/100*(1+'10 Year 24.1 Mill'!$T$8) -> 6179723.519 | M26: =Benefits!$B$25*1000000*M$7/100*(1+'10 Year 24.1 Mill'!$T$8) -> 6600576.977 | N26: =Benefits!$B$25*1000000*N$7/100*(1+'10 Year 24.1 Mill'!$T$8) -> 7238447.742 | O26: =Benefits!$B$25*1000000*O$7/100*(1+'10 Year 24.1 Mill'!$T$8) -> 7698970.777 | P26: =Benefits!$B$25*1000000*P$7/100*(1+'10 Year 24.1 Mill'!$T$8) -> 7898648.441 | S26: =SUM(D26:Q26) -> 61002795.4
B28: Net Benefit/Cost
B29: Scenario | C29: NPV 2017$ | D29: 2019 | E29: 2020 | F29: 2021 | G29: 2022 | H29: 2023 | I29: 2024 | J29: 2025 | K29: 2026 | L29: 2027 | M29: 2028 | N29: 2029 | O29: 2030 | P29: 2031 | S29: Total
B30: Break-Even | C30: =NPV('10 Year 24.1 Mill'!DiscRate,E30:P30)+D30 -> 3124.242457 | D30: =D21-D$18 -> 0 | E30: =E21-E$18 -> -3337500 | F30: -3337500 | G30: -2645879.828 | H30: -1317147.11 | I30: -350108.4964 | J30: 134066.7054 | K30: 822323.0578 | L30: 1851937.079 | M30: 2668393.5 | N30: 3752458.931 | O30: 4550962.573 | P30: 4956764.154 | S30: =SUM(D30:Q30) -> 7748770.566
B32: Balancing Area Load
B33: High | C33: =NPV('10 Year 24.1 Mill'!DiscRate,E33:P33)+D33 -> 44297768.95 | D33: =D24-D$18 -> 0 | E33: =E24-E$18 -> -3337500 | F33: -3337500 | G33: 2565663.796 | H33: 4643042.925 | I33: 6082464.889 | J33: 6677240.66 | K33: 7703006.172 | L33: 9405007.401 | M33: 10735845.37 | N33: 12599538.36 | O33: 13960909.07 | P33: 14610763.55 | S33: =SUM(D33:Q33) -> 82308482.2
B34: Base | C34: =NPV('10 Year 24.1 Mill'!DiscRate,E34:P34)+D34 -> 9299594.189 | D34: =D25-D$18 -> 0 | E34: -3337500 | F34: -3337500 | G34: -1552091.651 | H34: -66234.54738 | I34: 999946.9235 | J34: 1507334.748 | K34: 2266426.836 | L34: 3437160.117 | M34: 4361573.892 | N34: 5609265.968 | O34: 6525903.007 | P34: 6982925.914 | S34: =SUM(D34:Q34) -> 23397211.21
B35: Low | C35: =NPV('10 Year 24.1 Mill'!DiscRate,E35:P35)+D35 -> -14412186.94 | D35: =D26-D$18 -> 0 | E35: -3337500 | F35: -3337500 | G35: -4341931.88 | H35: -3256839.699 | I35: -2443534.183 | J35: -1995352.986 | K35: -1416936.087 | L35: -606144.7002 | M35: 42910.6702 | N35: 873253.0173 | O35: 1488576.413 | P35: 1814953.076 | S35: =SUM(D35:Q35) -> -16516046.36

Sheet Cost-Benefit $26.7 M (2%)
B1: EIM Net Benefit/Cost
B2: 26700000 | C2: (Initial capital plus integration expense)
B3: 4000000 | C3: (annual O&M)
B4: 2% Market Method
B6: Inflation Factor | C6: 0.015 | D6: 100 | E6: =D6*1.015 -> 101.5 | F6: 103.0225 | G6: 104.5678375 | H6: 106.1363551 | I6: 107.7284004 | J6: 109.3443264 | K6: 110.9844913 | L6: 112.6492587 | M6: 114.3389975 | N6: 116.0540825 | O6: 117.7948937 | P6: 119.5618171
B7: Benefit Factor (2% escalation) | D7: 100 | E7: =D7*1.02 -> 102 | F7: 104.04 | G7: 106.1208 | H7: 108.243216 | I7: 110.4080803 | J7: 112.6162419 | K7: 114.8685668 | L7: 117.1659381 | M7: 119.5092569 | N7: 121.899442 | O7: 124.3374308 | P7: 126.8241795
D8: -2 | E8: -1 | F8: 0 | G8: 1 | H8: 2 | I8: 3 | J8: 4 | K8: 5 | L8: 6 | M8: 7 | N8: 8 | O8: 9 | P8: 10
C9: NPV 2019$ | D9: 2019 | E9: 2020 | F9: 2021 | G9: 2022 | H9: 2023 | I9: 2024 | J9: 2025 | K9: 2026 | L9: 2027 | M9: 2028 | N9: 2029 | O9: 2030 | P9: 2031 | S9: Total
B10: Costs | E10: 0.5 | F10: 0.5
B11: Implementation CapEx | C11: =NPV('10 Year 24.1 Mill'!DiscRate,E11:P11)+D11 -> 18120914.31 | D11: 0 | E11: =$B$2*E$10*$A15 -> 10012500 | F11: =$B$2*F$10*$A15 -> 10012500 | G11: 0 | H11: 0 | I11: 0 | J11: 0 | K11: 0 | L11: 0 | M11: 0 | N11: 0 | O11: 0 | P11: 0 | S11: =SUM(D11:Q11) -> 20025000
B12: Implementation AFUDC | C12: =NPV('10 Year 24.1 Mill'!DiscRate,E12:P12)+D12 -> 1904085.692 | D12: 0 | E12: =SUM(D11:D12,E11)*'10 Year 24.1 Mill'!DiscRate -> 693645.975 | F12: =SUM(E11:E12,F11)*'10 Year 24.1 Mill'!DiscRate -> 1435346.356 | G12: 0 | H12: 0 | I12: 0 | J12: 0 | K12: 0 | L12: 0 | M12: 0 | N12: 0 | O12: 0 | P12: 0 | S12: =SUM(D12:Q12) -> 2128992.331
B13: Total Rate Base | C13: =NPV('10 Year 24.1 Mill'!DiscRate,E13:P13)+D13 -> 20025000 | D13: =SUM(D11:D12) -> 0 | E13: 10706145.97 | F13: 11447846.36 | G13: 0 | H13: 0 | I13: 0 | J13: 0 | K13: 0 | L13: 0 | M13: 0 | N13: 0 | O13: 0 | P13: 0 | S13: =SUM(D13:Q13) -> 22153992.33
A15: 0.75 | B15: Capital Recovery Rev. Req. | C15: =NPV('10 Year 24.1 Mill'!DiscRate,E15:P15)+D15 -> 17245648.2 | D15: 0 | E15: 0 | F15: 0 | G15: ='10 Year 24.1 Mill'!$T$28 -> 4423166.328 | H15: ='10 Year 24.1 Mill'!$T$29 -> 3887856.251 | I15: ='10 Year 24.1 Mill'!$T$30 -> 3397360.558 | J15: ='10 Year 24.1 Mill'!$T$31 -> 2975032.797 | K15: ='10 Year 24.1 Mill'!$T$32 -> 2607150.422 | L15: ='10 Year 24.1 Mill'!$T$33 -> 2279897.873 | M15: ='10 Year 24.1 Mill'!$T$34 -> 1984106.405 | N15: ='10 Year 24.1 Mill'!$T$35 -> 1723031.424 | O15: ='10 Year 24.1 Mill'!$T$36 -> 1498598.614 | P15: ='10 Year 24.1 Mill'!$T$37 -> 1301222.679 | S15: =SUM(D15:Q15) -> 26077423.35
A16: 0.25 | B16: Implementation O&M | C16: =NPV('10 Year 24.1 Mill'!DiscRate,E16:P16)+D16 -> 6040304.769 | D16: 0 | E16: =$B$2*$A16*E$10 -> 3337500 | F16: =$B$2*$A16*F$10 -> 3337500 | G16: 0 | H16: 0 | I16: 0 | J16: 0 | K16: 0 | L16: 0 | M16: 0 | N16: 0 | O16: 0 | S16: =SUM(D16:Q16) -> 6675000
B17: On-Going O&M | C17: =NPV('10 Year 24.1 Mill'!DiscRate,E17:P17)+D17 -> 27366947.48 | D17: 0 | E17: 0 | F17: 0 | G17: =$B$3*G$6/100 -> 4182713.5 | H17: =$B$3*H$6/100 -> 4245454.202 | I17: 4309136.016 | J17: 4373773.056 | K17: 4439379.652 | L17: 4505970.346 | M17: 4573559.902 | N17: 4642163.3 | O17: 4711795.75 | P17: 4782472.686 | S17: =SUM(D17:Q17) -> 44766418.41
B18: Cost Revenue Requirement | C18: =NPV('10 Year 24.1 Mill'!DiscRate,E18:P18)+D18 -> 50652900.45 | D18: =SUM(D15:D17) -> 0 | E18: 3337500 | F18: 3337500 | G18: 8605879.828 | H18: 8133310.454 | I18: 7706496.574 | J18: 7348805.853 | K18: 7046530.074 | L18: 6785868.22 | M18: 6557666.306 | N18: 6365194.724 | O18: 6210394.364 | P18: 6083695.365 | S18: =SUM(D18:Q18) -> 77518841.76
B20: Benefits
B21: Break-Even | C21: =NPV('10 Year 24.1 Mill'!DiscRate,E21:P21)+D21 -> 50655756.16 | D21: 0 | E21: 0 | F21: 0 | G21: 7588000 | H21: =G21*H$7/G$7 -> 7739760 | I21: =H21*I$7/H$7 -> 7894555.2 | J21: 8052446.304 | K21: 8213495.23 | L21: 8377765.135 | M21: 8545320.437 | N21: 8716226.846 | O21: 8890551.383 | P21: 9068362.411 | S21: =SUM(D21:Q21) -> 83086482.95
B23: Balancing Area Load
B24: High | C24: =NPV('10 Year 24.1 Mill'!DiscRate,E24:P24)+D24 -> 67088346.34 | D24: 0 | E24: 0 | F24: 0 | G24: =Benefits!$B$26*1000000*G$7/100*(1+'10 Year 24.1 Mill'!$T$8) -> 10049526.66 | H24: =Benefits!$B$26*1000000*H$7/100*(1+'10 Year 24.1 Mill'!$T$8) -> 10250517.19 | I24: =Benefits!$B$26*1000000*I$7/100*(1+'10 Year 24.1 Mill'!$T$8) -> 10455527.54 | J24: =Benefits!$B$26*1000000*J$7/100*(1+'10 Year 24.1 Mill'!$T$8) -> 10664638.09 | K24: =Benefits!$B$26*1000000*K$7/100*(1+'10 Year 24.1 Mill'!$T$8) -> 10877930.85 | L24: =Benefits!$B$26*1000000*L$7/100*(1+'10 Year 24.1 Mill'!$T$8) -> 11095489.47 | M24: =Benefits!$B$26*1000000*M$7/100*(1+'10 Year 24.1 Mill'!$T$8) -> 11317399.26 | N24: =Benefits!$B$26*1000000*N$7/100*(1+'10 Year 24.1 Mill'!$T$8) -> 11543747.24 | O24: =Benefits!$B$26*1000000*O$7/100*(1+'10 Year 24.1 Mill'!$T$8) -> 11774622.19 | P24: =Benefits!$B$26*1000000*P$7/100*(1+'10 Year 24.1 Mill'!$T$8) -> 12010114.63 | S24: =SUM(D24:Q24) -> 110039513.1
B25: Base | C25: =NPV('10 Year 24.1 Mill'!DiscRate,E25:P25)+D25 -> 42360035.47 | D25: 0 | E25: 0 | F25: 0 | G25: =Benefits!$B$22*1000000*G$7/100*(1+'10 Year 24.1 Mill'!$T$8) -> 6345339.08 | H25: =Benefits!$B$22*1000000*H$7/100*(1+'10 Year 24.1 Mill'!$T$8) -> 6472245.862 | I25: =Benefits!$B$22*1000000*I$7/100*(1+'10 Year 24.1 Mill'!$T$8) -> 6601690.779 | J25: =Benefits!$B$22*1000000*J$7/100*(1+'10 Year 24.1 Mill'!$T$8) -> 6733724.595 | K25: =Benefits!$B$22*1000000*K$7/100*(1+'10 Year 24.1 Mill'!$T$8) -> 6868399.087 | L25: =Benefits!$B$22*1000000*L$7/100*(1+'10 Year 24.1 Mill'!$T$8) -> 7005767.068 | M25: =Benefits!$B$22*1000000*M$7/100*(1+'10 Year 24.1 Mill'!$T$8) -> 7145882.41 | N25: =Benefits!$B$22*1000000*N$7/100*(1+'10 Year 24.1 Mill'!$T$8) -> 7288800.058 | O25: =Benefits!$B$22*1000000*O$7/100*(1+'10 Year 24.1 Mill'!$T$8) -> 7434576.059 | P25: =Benefits!$B$22*1000000*P$7/100*(1+'10 Year 24.1 Mill'!$T$8) -> 7583267.58 | S25: =SUM(D25:Q25) -> 69479692.58
B26: Low | C26: =NPV('10 Year 24.1 Mill'!DiscRate,E26:P26)+D26 -> 25606239.06 | D26: 0 | E26: 0 | F26: 0 | G26: =Benefits!$B$25*1000000*G$7/100*(1+'10 Year 24.1 Mill'!$T$8) -> 3835697.199 | H26: =Benefits!$B$25*1000000*H$7/100*(1+'10 Year 24.1 Mill'!$T$8) -> 3912411.143 | I26: =Benefits!$B$25*1000000*I$7/100*(1+'10 Year 24.1 Mill'!$T$8) -> 3990659.366 | J26: =Benefits!$B$25*1000000*J$7/100*(1+'10 Year 24.1 Mill'!$T$8) -> 4070472.553 | K26: =Benefits!$B$25*1000000*K$7/100*(1+'10 Year 24.1 Mill'!$T$8) -> 4151882.004 | L26: =Benefits!$B$25*1000000*L$7/100*(1+'10 Year 24.1 Mill'!$T$8) -> 4234919.644 | M26: =Benefits!$B$25*1000000*M$7/100*(1+'10 Year 24.1 Mill'!$T$8) -> 4319618.037 | N26: =Benefits!$B$25*1000000*N$7/100*(1+'10 Year 24.1 Mill'!$T$8) -> 4406010.398 | O26: =Benefits!$B$25*1000000*O$7/100*(1+'10 Year 24.1 Mill'!$T$8) -> 4494130.606 | P26: =Benefits!$B$25*1000000*P$7/100*(1+'10 Year 24.1 Mill'!$T$8) -> 4584013.218 | S26: =SUM(D26:Q26) -> 41999814.17
B28: Net Benefit/Cost
B29: Scenario | C29: NPV 2017$ | D29: 2019 | E29: 2020 | F29: 2021 | G29: 2022 | H29: 2023 | I29: 2024 | J29: 2025 | K29: 2026 | L29: 2027 | M29: 2028 | N29: 2029 | O29: 2030 | P29: 2031 | S29: Total
B30: Break-Even | C30: =NPV('10 Year 24.1 Mill'!DiscRate,E30:P30)+D30 -> 2855.711949 | D30: =D21-D$18 -> 0 | E30: =E21-E$18 -> -3337500 | F30: -3337500 | G30: -1017879.828 | H30: -393550.4537 | I30: 188058.6262 | J30: 703640.451 | K30: 1166965.156 | L30: 1591896.915 | M30: 1987654.131 | N30: 2351032.122 | O30: 2680157.019 | P30: 2984667.046 | S30: =SUM(D30:Q30) -> 5567641.185
B32: Balancing Area Load
B33: High | C33: =NPV('10 Year 24.1 Mill'!DiscRate,E33:P33)+D33 -> 16435445.89 | D33: =D24-D$18 -> 0 | E33: =E24-E$18 -> -3337500 | F33: -3337500 | G33: 1443646.833 | H33: 2117206.74 | I33: 2749030.964 | J33: 3315832.236 | K33: 3831400.777 | L33: 4309621.248 | M33: 4759732.95 | N33: 5178552.517 | O33: 5564227.823 | P33: 5926419.265 | S33: =SUM(D33:Q33) -> 32520671.35
B34: Base | C34: =NPV('10 Year 24.1 Mill'!DiscRate,E34:P34)+D34 -> -8292864.971 | D34: =D25-D$18 -> 0 | E34: -3337500 | F34: -3337500 | G34: -2260540.748 | H34: -1661064.592 | I34: -1104805.795 | J34: -615081.2583 | K34: -178130.9871 | L34: 219898.8487 | M34: 588216.1032 | N34: 923605.3334 | O34: 1224181.695 | P34: 1499572.215 | S34: =SUM(D34:Q34) -> -8039149.184
B35: Low | C35: =NPV('10 Year 24.1 Mill'!DiscRate,E35:P35)+D35 -> -25046661.38 | D35: =D26-D$18 -> 0 | E35: -3337500 | F35: -3337500 | G35: -4770182.629 | H35: -4220899.311 | I35: -3715837.208 | J35: -3278333.3 | K35: -2894648.07 | L35: -2550948.576 | M35: -2238048.27 | N35: -1959184.327 | O35: -1716263.758 | P35: -1499682.147 | S35: =SUM(D35:Q35) -> -35519027.6

Sheet Cost-Benefit $32.1 M (IRP)
B1: EIM Net Benefit/Cost
B2: 32100000 | C2: (Initial capital plus integration expense)
B3: 3900000 | C3: (annual O&M)
B4: IRP Method
B6: Mid-C Prices ($/MWh- Actuals/2020 IRP) | D6: 35.60361443 | E6: 22 | F6: 20.38876263 | G6: 18.36658166 | H6: 18.20946146 | I6: 19.37409388 | J6: 20.56883022 | K6: 22.92390733 | L6: 23.08719084 | M6: 25.32619468 | N6: 26.45460919 | O6: 28.19417706 | P6: 31.07288715 | Q6: 32.47344102
B7: Inflation Factor | C7: 0.015 | E7: 100 | F7: =E7*1.015 -> 101.5 | G7: 103.0225 | H7: 104.5678375 | I7: 106.1363551 | J7: 107.7284004 | K7: 109.3443264 | L7: 110.9844913 | M7: 112.6492587 | N7: 114.3389975 | O7: 116.0540825 | P7: 117.7948937 | Q7: 119.5618171
B8: Benefit Factor Escalator | D8: 100 | E8: =E6/D6*100 -> 61.79147918 | F8: =F6/E6*100 -> 92.67619376 | G8: 90.08188478 | H8: 99.14453216 | I8: 106.3957543 | J8: 106.1666695 | K8: 111.4497377 | L8: 100.7122848 | M8: 109.6980349 | N8: 104.4555233 | O8: 106.5756703 | P8: 110.2103001 | Q8: 104.5073181
D9: -2 | E9: -1 | F9: 0 | G9: 1 | H9: 2 | I9: 3 | J9: 4 | K9: 5 | L9: 6 | M9: 7 | N9: 8 | O9: 9 | P9: 10 | Q9: 11
C10: NPV 2019$ | D10: 2019 | E10: 2020 | F10: 2021 | G10: 2022 | H10: 2023 | I10: 2024 | J10: 2025 | K10: 2026 | L10: 2027 | M10: 2028 | N10: 2029 | O10: 2030 | P10: 2031 | Q10: 2032 | S10: Total
B11: Costs
B12: Implementation CapEx | C12: =NPV('[1]10 Year'!DiscRate,E12:Q12)+D12 -> 23983012.54 | D12: 1500000 | E12: 9860000 | F12: 10945571 | G12: 4386393 | H12: 0 | I12: 0 | J12: 0 | K12: 0 | L12: 0 | M12: 0 | N12: 0 | O12: 0 | P12: 0 | Q12: 0 | S12: =SUM(D12:Q12) -> 26691964
B13: Implementation AFUDC | C13: =NPV('[1]10 Year'!DiscRate,E13:Q13)+D13 -> 2995842.149 | D13: =SUM(D12)*'[1]10 Year'!DiscRate -> 99802.5 | E13: =SUM(D12:D13,E12)*'[1]10 Year'!DiscRate -> 762477.9593 | F13: =SUM(E12:E13,F12)*'[1]10 Year'!DiscRate -> 1435030.138 | G13: =SUM(F12:F13,G12)*'[1]10 Year'!DiscRate -> 1115591.955 | H13: 0 | I13: 0 | J13: 0 | K13: 0 | L13: 0 | M13: 0 | N13: 0 | O13: 0 | P13: 0 | Q13: 0 | S13: =SUM(D13:Q13) -> 3412902.552
B14: Total Rate Base | C14: =NPV('[1]10 Year'!DiscRate,E14:Q14)+D14 -> 26978854.69 | D14: =SUM(D12:D13) -> 1599802.5 | E14: =SUM(E12:E13) -> 10622477.96 | F14: =SUM(F12:F13) -> 12380601.14 | G14: 5501984.955 | H14: 0 | I14: 0 | J14: 0 | K14: 0 | L14: 0 | M14: 0 | N14: 0 | O14: 0 | P14: 0 | Q14: 0 | S14: =SUM(D14:Q14) -> 30104866.55
B16: Capital Recovery Rev. Req. | C16: =NPV('[1]10 Year'!DiscRate,E16:Q16)+D16 -> 27979445.42 | D16: 0 | E16: 0 | F16: 0 | G16: ='[1]10 Year'!$S$28 -> 4105399.627 | H16: ='[1]10 Year'!$S$29 -> 5385869.135 | I16: ='[1]10 Year'!$S$30 -> 5059457.438 | J16: ='[1]10 Year'!$S$31 -> 4766446.796 | K16: ='[1]10 Year'!$S$32 -> 4497294.449 | L16: ='[1]10 Year'!$S$33 -> 4238083.058 | M16: ='[1]10 Year'!$S$34 -> 3978871.667 | N16: ='[1]10 Year'!$S$35 -> 3732090.648 | O16: ='[1]10 Year'!$S$36 -> 3510162.019 | P16: ='[1]10 Year'!$S$37 -> 3300655.408 | Q16: ='[1]10 Year'!$S$38 -> 1597951.051 | S16: =SUM(D16:Q16) -> 44172281.3
B17: Implementation O&M | C17: =NPV('[1]10 Year'!DiscRate,E17:Q17)+D17 -> 4897967.407 | D17: 1006433 | E17: 1348507 | F17: 2121052 | G17: 925034 | H17: 0 | I17: 0 | J17: 0 | K17: 0 | L17: 0 | M17: 0 | N17: 0 | O17: 0 | P17: 0 | Q17: 0 | S17: =SUM(D17:Q17) -> 5401026
B18: On-Going O&M | C18: =NPV('[1]10 Year'!DiscRate,E18:Q18)+D18 -> 27017721.75 | D18: 0 | E18: 0 | F18: 0 | G18: =$B$3*G$7/100-G17 -> 3092843.5 | H18: =$B$3*H$7/100 -> 4078145.662 | I18: =$B$3*I$7/100 -> 4139317.847 | J18: 4201407.615 | K18: 4264428.729 | L18: 4328395.16 | M18: 4393321.088 | N18: 4459220.904 | O18: 4526109.218 | P18: 4594000.856 | Q18: =$B$3*Q$7/100/2 -> 2331455.434 | S18: =SUM(D18:Q18) -> 44408646.01
B19: Cost Revenue Requirement | C19: =NPV('[1]10 Year'!DiscRate,E19:Q19)+D19 -> 59895134.57 | D19: =SUM(D16:D18) -> 1006433 | E19: 1348507 | F19: 2121052 | G19: 8123277.127 | H19: 9464014.797 | I19: 9198775.285 | J19: 8967854.411 | K19: 8761723.178 | L19: 8566478.218 | M19: 8372192.755 | N19: 8191311.552 | O19: 8036271.237 | P19: 7894656.264 | Q19: 3929406.486 | S19: =SUM(D19:Q19) -> 93981953.31
B21: Benefits
B22: Break-Even | C22: =NPV('[1]10 Year'!DiscRate,E22:Q22)+D22 -> 59895134.57 | D22: 0 | E22: 0 | F22: 0 | G22: 7750594.501 | H22: =G22*H$8/G$8 -> 8530339.565 | I22: =H22*I$8/H$8 -> 9154230.628 | J22: 9134520.295 | K22: 9589072.504 | L22: 8665228.12 | M22: 9438356.984 | N22: 8987294.247 | O22: 9169710.491 | P22: 9482431.99 | Q22: 8991750.64 | S22: =SUM(D22:Q22) -> 98893529.97
B24: Balancing Area Load Case
B25: High | C25: =NPV('[1]10 Year'!DiscRate,E25:Q25)+D25 -> 63781490.41 | D25: 0 | E25: 0 | F25: 0 | G25: =[1]Benefits!$B$25*1000000*G$8/100*(1+'[1]10 Year'!$T$8) -> 8530658.483 | H25: =[1]Benefits!$B$25*1000000*H$8/100*(1+'[1]10 Year'!$T$8) -> 9388881.531 | I25: =[1]Benefits!$B$25*1000000*I$8/100*(1+'[1]10 Year'!$T$8) -> 10075564.54 | J25: =[1]Benefits!$B$25*1000000*J$8/100*(1+'[1]10 Year'!$T$8) -> 10053870.45 | K25: =[1]Benefits!$B$25*1000000*K$8/100*(1+'[1]10 Year'!$T$8) -> 10554171.38 | L25: =[1]Benefits!$B$25*1000000*L$8/100*(1+'[1]10 Year'!$T$8) -> 9537346.038 | M25: =[1]Benefits!$B$25*1000000*M$8/100*(1+'[1]10 Year'!$T$8) -> 10388287 | N25: =[1]Benefits!$B$25*1000000*N$8/100*(1+'[1]10 Year'!$T$8) -> 9891826.736 | O25: =[1]Benefits!$B$25*1000000*O$8/100*(1+'[1]10 Year'!$T$8) -> 10092602.39 | P25: =[1]Benefits!$B$25*1000000*P$8/100*(1+'[1]10 Year'!$T$8) -> 10436797.96 | Q25: =[1]Benefits!$B$25*1000000*Q$8/100*(1+'[1]10 Year'!$T$8)/2 -> 4948365.823 | S25: =SUM(D25:Q25) -> 103898372.3
B26: Base | C26: =NPV('[1]10 Year'!DiscRate,E26:Q26)+D26 -> 40272064.28 | D26: 0 | E26: 0 | F26: 0 | G26: =[1]Benefits!$B$21*1000000*G$8/100*(1+'[1]10 Year'!$T$8) -> 5386315.443 | H26: =[1]Benefits!$B$21*1000000*H$8/100*(1+'[1]10 Year'!$T$8) -> 5928203.279 | I26: =[1]Benefits!$B$21*1000000*I$8/100*(1+'[1]10 Year'!$T$8) -> 6361779.576 | J26: =[1]Benefits!$B$21*1000000*J$8/100*(1+'[1]10 Year'!$T$8) -> 6348081.779 | K26: =[1]Benefits!$B$21*1000000*K$8/100*(1+'[1]10 Year'!$T$8) -> 6663975.171 | L26: =[1]Benefits!$B$21*1000000*L$8/100*(1+'[1]10 Year'!$T$8) -> 6021944.772 | M26: =[1]Benefits!$B$21*1000000*M$8/100*(1+'[1]10 Year'!$T$8) -> 6559234.646 | N26: =[1]Benefits!$B$21*1000000*N$8/100*(1+'[1]10 Year'!$T$8) -> 6245766.281 | O26: =[1]Benefits!$B$21*1000000*O$8/100*(1+'[1]10 Year'!$T$8) -> 6372537.386 | P26: =[1]Benefits!$B$21*1000000*P$8/100*(1+'[1]10 Year'!$T$8) -> 6589864.798 | Q26: =[1]Benefits!$B$21*1000000*Q$8/100*(1+'[1]10 Year'!$T$8)/2 -> 3124431.637 | S26: =SUM(D26:Q26) -> 65602134.77
B27: Low | C27: =NPV('[1]10 Year'!DiscRate,E27:Q27)+D27 -> 24344080.31 | D27: 0 | E27: 0 | F27: 0 | G27: =[1]Benefits!$B$24*1000000*G$8/100*(1+'[1]10 Year'!$T$8) -> 3255976.52 | H27: =[1]Benefits!$B$24*1000000*H$8/100*(1+'[1]10 Year'!$T$8) -> 3583542.569 | I27: =[1]Benefits!$B$24*1000000*I$8/100*(1+'[1]10 Year'!$T$8) -> 3845635.322 | J27: =[1]Benefits!$B$24*1000000*J$8/100*(1+'[1]10 Year'!$T$8) -> 3837355.134 | K27: =[1]Benefits!$B$24*1000000*K$8/100*(1+'[1]10 Year'!$T$8) -> 4028309.689 | L27: =[1]Benefits!$B$24*1000000*L$8/100*(1+'[1]10 Year'!$T$8) -> 3640208.412 | M27: =[1]Benefits!$B$24*1000000*M$8/100*(1+'[1]10 Year'!$T$8) -> 3964995.037 | N27: =[1]Benefits!$B$24*1000000*N$8/100*(1+'[1]10 Year'!$T$8) -> 3775506.388 | O27: =[1]Benefits!$B$24*1000000*O$8/100*(1+'[1]10 Year'!$T$8) -> 3852138.317 | P27: =[1]Benefits!$B$24*1000000*P$8/100*(1+'[1]10 Year'!$T$8) -> 3983510.672 | Q27: =[1]Benefits!$B$24*1000000*Q$8/100*(1+'[1]10 Year'!$T$8)/2 -> 1888689.245 | S27: =SUM(D27:Q27) -> 39655867.3
B29: Net Benefit/Cost
B30: Scenario | C30: NPV 2019$ | D30: 2019 | E30: 2020 | F30: 2021 | G30: 2022 | H30: 2023 | I30: 2024 | J30: 2025 | K30: 2026 | L30: 2027 | M30: 2028 | N30: 2029 | O30: 2030 | P30: 2031 | Q30: 2032 | S30: Total
B31: Break-Even | C31: =NPV('[1]10 Year'!DiscRate,E31:Q31)+D31 -> 2.549495548e-08 | D31: =D22-D$19 -> -1006433 | E31: =E22-E$19 -> -1348507 | F31: =F22-F$19 -> -2121052 | G31: =G22-G$19 -> -372682.6261 | H31: =H22-H$19 -> -933675.2322 | I31: =I22-I$19 -> -44544.65728 | J31: 166665.8842 | K31: 827349.3258 | L31: 98749.90154 | M31: 1066164.229 | N31: 795982.6954 | O31: 1133439.254 | P31: 1587775.725 | Q31: 5062344.154 | S31: =SUM(D31:Q31) -> 4911576.655
B33: Balancing Area Load Case
B34: High | C34: =NPV('[1]10 Year'!DiscRate,E34:Q34)+D34 -> 3886355.833 | D34: =D25-D$19 -> -1006433 | E34: -1348507 | F34: -2121052 | G34: 407381.3552 | H34: -75133.26596 | I34: 876789.2595 | J34: 1086016.041 | K34: 1792448.206 | L34: 970867.8203 | M34: 2016094.241 | N34: 1700515.184 | O34: 2056331.153 | P34: 2542141.697 | Q34: 1018959.337 | S34: =SUM(D34:Q34) -> 9916419.027
B35: Base | C35: =NPV('[1]10 Year'!DiscRate,E35:Q35)+D35 -> -19623070.29 | D35: -1006433 | E35: -1348507 | F35: -2121052 | G35: -2736961.684 | H35: -3535811.519 | I35: -2836995.709 | J35: -2619772.632 | K35: -2097748.008 | L35: -2544533.446 | M35: -1812958.108 | N35: -1945545.271 | O35: -1663733.85 | P35: -1304791.467 | Q35: -804974.8486 | S35: =SUM(D35:Q35) -> -28379818.54
B36: Low | C36: =NPV('[1]10 Year'!DiscRate,E36:Q36)+D36 -> -35551054.27 | D36: -1006433 | E36: -1348507 | F36: -2121052 | G36: -4867300.607 | H36: -5880472.228 | I36: -5353139.963 | J36: -5130499.277 | K36: -4733413.49 | L36: -4926269.807 | M36: -4407197.718 | N36: -4415805.164 | O36: -4184132.92 | P36: -3911145.592 | Q36: -2040717.241 | S36: =SUM(D36:Q36) -> -54326086.01
B49: 2019 | C49: 35.60361443
B50: 2020 | C50: 22
B51: 2021 | C51: 20.38876263
B52: 2022 | C52: 18.36658166
B53: 2023 | C53: 18.20946146
B54: 2024 | C54: 19.37409388
B55: 2025 | C55: 20.56883022
B56: 2026 | C56: 22.92390733
B57: 2027 | C57: 23.08719084
B58: 2028 | C58: 25.32619468
B59: 2029 | C59: 26.45460919
B60: 2030 | C60: 28.19417706
B61: 2031 | C61: 31.07288715

Sheet Cost-Benefit $32.1 M (2%)
B1: EIM Net Benefit/Cost
B2: 32100000 | C2: (Initial capital plus integration expense)
B3: 3900000 | C3: (annual O&M)
B4: IRP Method
B6: Mid-C Prices ($/MWh- Actuals/2020 IRP) | D6: 35.60361443 | E6: 22 | F6: 20.38876263 | G6: 18.36658166 | H6: 18.20946146 | I6: 19.37409388 | J6: 20.56883022 | K6: 22.92390733 | L6: 23.08719084 | M6: 25.32619468 | N6: 26.45460919 | O6: 28.19417706 | P6: 31.07288715 | Q6: 32.47344102
B7: Inflation Factor | C7: 0.015 | E7: 100 | F7: =E7*1.015 -> 101.5 | G7: 103.0225 | H7: 104.5678375 | I7: 106.1363551 | J7: 107.7284004 | K7: 109.3443264 | L7: 110.9844913 | M7: 112.6492587 | N7: 114.3389975 | O7: 116.0540825 | P7: 117.7948937 | Q7: 119.5618171
B8: Benefit Factor Escalator | D8: 100 | E8: =D8*1.02 -> 102 | F8: =E8*1.02 -> 104.04 | G8: 106.1208 | H8: 108.243216 | I8: 110.4080803 | J8: 112.6162419 | K8: 114.8685668 | L8: 117.1659381 | M8: 119.5092569 | N8: 121.899442 | O8: 124.3374308 | P8: 126.8241795 | Q8: 129.360663
D9: -2 | E9: -1 | F9: 0 | G9: 1 | H9: 2 | I9: 3 | J9: 4 | K9: 5 | L9: 6 | M9: 7 | N9: 8 | O9: 9 | P9: 10 | Q9: 11
C10: NPV 2019$ | D10: 2019 | E10: 2020 | F10: 2021 | G10: 2022 | H10: 2023 | I10: 2024 | J10: 2025 | K10: 2026 | L10: 2027 | M10: 2028 | N10: 2029 | O10: 2030 | P10: 2031 | Q10: 2032 | S10: Total
B11: Costs
B12: Implementation CapEx | C12: =NPV('[1]10 Year'!DiscRate,E12:Q12)+D12 -> 23983012.54 | D12: 1500000 | E12: 9860000 | F12: 10945571 | G12: 4386393 | H12: 0 | I12: 0 | J12: 0 | K12: 0 | L12: 0 | M12: 0 | N12: 0 | O12: 0 | P12: 0 | Q12: 0 | S12: =SUM(D12:Q12) -> 26691964
B13: Implementation AFUDC | C13: =NPV('[1]10 Year'!DiscRate,E13:Q13)+D13 -> 2995842.149 | D13: =SUM(D12)*'[1]10 Year'!DiscRate -> 99802.5 | E13: =SUM(D12:D13,E12)*'[1]10 Year'!DiscRate -> 762477.9593 | F13: =SUM(E12:E13,F12)*'[1]10 Year'!DiscRate -> 1435030.138 | G13: =SUM(F12:F13,G12)*'[1]10 Year'!DiscRate -> 1115591.955 | H13: 0 | I13: 0 | J13: 0 | K13: 0 | L13: 0 | M13: 0 | N13: 0 | O13: 0 | P13: 0 | Q13: 0 | S13: =SUM(D13:Q13) -> 3412902.552
B14: Total Rate Base | C14: =NPV('[1]10 Year'!DiscRate,E14:Q14)+D14 -> 26978854.69 | D14: =SUM(D12:D13) -> 1599802.5 | E14: =SUM(E12:E13) -> 10622477.96 | F14: =SUM(F12:F13) -> 12380601.14 | G14: 5501984.955 | H14: 0 | I14: 0 | J14: 0 | K14: 0 | L14: 0 | M14: 0 | N14: 0 | O14: 0 | P14: 0 | Q14: 0 | S14: =SUM(D14:Q14) -> 30104866.55
B16: Capital Recovery Rev. Req. | C16: =NPV('[1]10 Year'!DiscRate,E16:Q16)+D16 -> 27979445.42 | D16: 0 | E16: 0 | F16: 0 | G16: ='[1]10 Year'!$S$28 -> 4105399.627 | H16: ='[1]10 Year'!$S$29 -> 5385869.135 | I16: ='[1]10 Year'!$S$30 -> 5059457.438 | J16: ='[1]10 Year'!$S$31 -> 4766446.796 | K16: ='[1]10 Year'!$S$32 -> 4497294.449 | L16: ='[1]10 Year'!$S$33 -> 4238083.058 | M16: ='[1]10 Year'!$S$34 -> 3978871.667 | N16: ='[1]10 Year'!$S$35 -> 3732090.648 | O16: ='[1]10 Year'!$S$36 -> 3510162.019 | P16: ='[1]10 Year'!$S$37 -> 3300655.408 | Q16: ='[1]10 Year'!$S$38 -> 1597951.051 | S16: =SUM(D16:Q16) -> 44172281.3
B17: Implementation O&M | C17: =NPV('[1]10 Year'!DiscRate,E17:Q17)+D17 -> 4897967.407 | D17: 1006433 | E17: 1348507 | F17: 2121052 | G17: 925034 | H17: 0 | I17: 0 | J17: 0 | K17: 0 | L17: 0 | M17: 0 | N17: 0 | O17: 0 | P17: 0 | Q17: 0 | S17: =SUM(D17:Q17) -> 5401026
B18: On-Going O&M | C18: =NPV('[1]10 Year'!DiscRate,E18:Q18)+D18 -> 27017721.75 | D18: 0 | E18: 0 | F18: 0 | G18: =$B$3*G$7/100-G17 -> 3092843.5 | H18: =$B$3*H$7/100 -> 4078145.662 | I18: =$B$3*I$7/100 -> 4139317.847 | J18: 4201407.615 | K18: 4264428.729 | L18: 4328395.16 | M18: 4393321.088 | N18: 4459220.904 | O18: 4526109.218 | P18: 4594000.856 | Q18: =$B$3*Q$7/100/2 -> 2331455.434 | S18: =SUM(D18:Q18) -> 44408646.01
B19: Cost Revenue Requirement | C19: =NPV('[1]10 Year'!DiscRate,E19:Q19)+D19 -> 59895134.57 | D19: =SUM(D16:D18) -> 1006433 | E19: 1348507 | F19: 2121052 | G19: 8123277.127 | H19: 9464014.797 | I19: 9198775.285 | J19: 8967854.411 | K19: 8761723.178 | L19: 8566478.218 | M19: 8372192.755 | N19: 8191311.552 | O19: 8036271.237 | P19: 7894656.264 | Q19: 3929406.486 | S19: =SUM(D19:Q19) -> 93981953.31
B21: Benefits
B22: Break-Even | C22: =NPV('[1]10 Year'!DiscRate,E22:Q22)+D22 -> 59895134.57 | D22: 0 | E22: 0 | F22: 0 | G22: 8174962.923 | H22: =G22*H$8/G$8 -> 8338462.181 | I22: =H22*I$8/H$8 -> 8505231.425 | J22: 8675336.053 | K22: 8848842.774 | L22: 9025819.63 | M22: 9206336.022 | N22: 9390462.743 | O22: 9578271.998 | P22: 9769837.438 | Q22: 9965234.187 | S22: =SUM(D22:Q22) -> 99478797.37
B24: Balancing Area Load Case
B25: High | C25: =NPV('[1]10 Year'!DiscRate,E25:Q25)+D25 -> 70978226.61 | D25: 0 | E25: 0 | F25: 0 | G25: =[1]Benefits!$B$25*1000000*G$8/100*(1+'[1]10 Year'!$T$8) -> 10049526.66 | H25: =[1]Benefits!$B$25*1000000*H$8/100*(1+'[1]10 Year'!$T$8) -> 10250517.19 | I25: =[1]Benefits!$B$25*1000000*I$8/100*(1+'[1]10 Year'!$T$8) -> 10455527.54 | J25: =[1]Benefits!$B$25*1000000*J$8/100*(1+'[1]10 Year'!$T$8) -> 10664638.09 | K25: =[1]Benefits!$B$25*1000000*K$8/100*(1+'[1]10 Year'!$T$8) -> 10877930.85 | L25: =[1]Benefits!$B$25*1000000*L$8/100*(1+'[1]10 Year'!$T$8) -> 11095489.47 | M25: =[1]Benefits!$B$25*1000000*M$8/100*(1+'[1]10 Year'!$T$8) -> 11317399.26 | N25: =[1]Benefits!$B$25*1000000*N$8/100*(1+'[1]10 Year'!$T$8) -> 11543747.24 | O25: =[1]Benefits!$B$25*1000000*O$8/100*(1+'[1]10 Year'!$T$8) -> 11774622.19 | P25: =[1]Benefits!$B$25*1000000*P$8/100*(1+'[1]10 Year'!$T$8) -> 12010114.63 | Q25: =[1]Benefits!$B$25*1000000*Q$8/100*(1+'[1]10 Year'!$T$8)/2 -> 6125158.461 | S25: =SUM(D25:Q25) -> 116164671.6
B26: Base | C26: =NPV('[1]10 Year'!DiscRate,E26:Q26)+D26 -> 44816132.18 | D26: 0 | E26: 0 | F26: 0 | G26: =[1]Benefits!$B$21*1000000*G$8/100*(1+'[1]10 Year'!$T$8) -> 6345339.08 | H26: =[1]Benefits!$B$21*1000000*H$8/100*(1+'[1]10 Year'!$T$8) -> 6472245.862 | I26: =[1]Benefits!$B$21*1000000*I$8/100*(1+'[1]10 Year'!$T$8) -> 6601690.779 | J26: =[1]Benefits!$B$21*1000000*J$8/100*(1+'[1]10 Year'!$T$8) -> 6733724.595 | K26: =[1]Benefits!$B$21*1000000*K$8/100*(1+'[1]10 Year'!$T$8) -> 6868399.087 | L26: =[1]Benefits!$B$21*1000000*L$8/100*(1+'[1]10 Year'!$T$8) -> 7005767.068 | M26: =[1]Benefits!$B$21*1000000*M$8/100*(1+'[1]10 Year'!$T$8) -> 7145882.41 | N26: =[1]Benefits!$B$21*1000000*N$8/100*(1+'[1]10 Year'!$T$8) -> 7288800.058 | O26: =[1]Benefits!$B$21*1000000*O$8/100*(1+'[1]10 Year'!$T$8) -> 7434576.059 | P26: =[1]Benefits!$B$21*1000000*P$8/100*(1+'[1]10 Year'!$T$8) -> 7583267.58 | Q26: =[1]Benefits!$B$21*1000000*Q$8/100*(1+'[1]10 Year'!$T$8)/2 -> 3867466.466 | S26: =SUM(D26:Q26) -> 73347159.04
B27: Low | C27: =NPV('[1]10 Year'!DiscRate,E27:Q27)+D27 -> 27090926.19 | D27: 0 | E27: 0 | F27: 0 | G27: =[1]Benefits!$B$24*1000000*G$8/100*(1+'[1]10 Year'!$T$8) -> 3835697.199 | H27: =[1]Benefits!$B$24*1000000*H$8/100*(1+'[1]10 Year'!$T$8) -> 3912411.143 | I27: =[1]Benefits!$B$24*1000000*I$8/100*(1+'[1]10 Year'!$T$8) -> 3990659.366 | J27: =[1]Benefits!$B$24*1000000*J$8/100*(1+'[1]10 Year'!$T$8) -> 4070472.553 | K27: =[1]Benefits!$B$24*1000000*K$8/100*(1+'[1]10 Year'!$T$8) -> 4151882.004 | L27: =[1]Benefits!$B$24*1000000*L$8/100*(1+'[1]10 Year'!$T$8) -> 4234919.644 | M27: =[1]Benefits!$B$24*1000000*M$8/100*(1+'[1]10 Year'!$T$8) -> 4319618.037 | N27: =[1]Benefits!$B$24*1000000*N$8/100*(1+'[1]10 Year'!$T$8) -> 4406010.398 | O27: =[1]Benefits!$B$24*1000000*O$8/100*(1+'[1]10 Year'!$T$8) -> 4494130.606 | P27: =[1]Benefits!$B$24*1000000*P$8/100*(1+'[1]10 Year'!$T$8) -> 4584013.218 | Q27: =[1]Benefits!$B$24*1000000*Q$8/100*(1+'[1]10 Year'!$T$8)/2 -> 2337846.741 | S27: =SUM(D27:Q27) -> 44337660.91
B29: Net Benefit/Cost
B30: Scenario | C30: NPV 2019$ | D30: 2019 | E30: 2020 | F30: 2021 | G30: 2022 | H30: 2023 | I30: 2024 | J30: 2025 | K30: 2026 | L30: 2027 | M30: 2028 | N30: 2029 | O30: 2030 | P30: 2031 | Q30: 2032 | S30: Total
B31: Break-Even | C31: =NPV('[1]10 Year'!DiscRate,E31:Q31)+D31 -> 2.82889232e-08 | D31: =D22-D$19 -> -1006433 | E31: =E22-E$19 -> -1348507 | F31: =F22-F$19 -> -2121052 | G31: =G22-G$19 -> 51685.7953 | H31: =H22-H$19 -> -1125552.616 | I31: =I22-I$19 -> -693543.8602 | J31: -292518.3578 | K31: 87119.59617 | L31: 459341.4117 | M31: 834143.2679 | N31: 1199151.191 | O31: 1542000.761 | P31: 1875181.174 | Q31: 6035827.701 | S31: =SUM(D31:Q31) -> 5496844.064
B33: Balancing Area Load Case
B34: High | C34: =NPV('[1]10 Year'!DiscRate,E34:Q34)+D34 -> 11083092.04 | D34: =D25-D$19 -> -1006433 | E34: -1348507 | F34: -2121052 | G34: 1926249.533 | H34: 786502.3966 | I34: 1256752.253 | J34: 1696783.677 | K34: 2116207.672 | L34: 2529011.249 | M34: 2945206.502 | N34: 3352435.69 | O34: 3738350.95 | P34: 4115458.366 | Q34: 2195751.976 | S34: =SUM(D34:Q34) -> 22182718.27
B35: Base | C35: =NPV('[1]10 Year'!DiscRate,E35:Q35)+D35 -> -15079002.4 | D35: -1006433 | E35: -1348507 | F35: -2121052 | G35: -1777938.047 | H35: -2991768.935 | I35: -2597084.506 | J35: -2234129.816 | K35: -1893324.092 | L35: -1560711.15 | M35: -1226310.345 | N35: -902511.494 | O35: -601695.1776 | P35: -311388.684 | Q35: -61940.01998 | S35: =SUM(D35:Q35) -> -20634794.27
B36: Low | C36: =NPV('[1]10 Year'!DiscRate,E36:Q36)+D36 -> -32804208.39 | D36: -1006433 | E36: -1348507 | F36: -2121052 | G36: -4287579.929 | H36: -5551603.655 | I36: -5208115.919 | J36: -4897381.858 | K36: -4609841.174 | L36: -4331558.574 | M36: -4052574.718 | N36: -3785301.154 | O36: -3542140.631 | P36: -3310643.046 | Q36: -1591559.745 | S36: =SUM(D36:Q36) -> -49644292.4
B49: 2019 | C49: 35.60361443
B50: 2020 | C50: 22
B51: 2021 | C51: 20.38876263
B52: 2022 | C52: 18.36658166
B53: 2023 | C53: 18.20946146
B54: 2024 | C54: 19.37409388
B55: 2025 | C55: 20.56883022
B56: 2026 | C56: 22.92390733
B57: 2027 | C57: 23.08719084
B58: 2028 | C58: 25.32619468
B59: 2029 | C59: 26.45460919
B60: 2030 | C60: 28.19417706
B61: 2031 | C61: 31.07288715

Sheet 10 Year 18.9 Mill
A1: State Income Tax Rate ............ | D1: 0.0265 | I1: Debt ........................... | L1: 0.4909 | M1: 0.05746 | N1: =ROUND(L1*M1,4) -> 0.0282 | O1: =N1*(1-D2) -> 0.022278 | Q1: Gross Revenue | T1: 1
A2: Federal Income Tax Rate ........ | D2: 0.21 | I2: Preferred Stock ................. | L2: 0.01885 | M2: 0.02119 | N2: =ROUND(L2*M2,4) -> 0.0004 | O2: =N2 -> 0.0004 | Q2: Uncollectables | T2: 0.005266
A3: Discount Factor ...................... | D3: =+O4 -> 0.069278 | I3: Common Equity ...................... | L3: 0.49025 | M3: 0.095 | N3: =ROUND(L3*M3,4) -> 0.0466 | O3: =N3 -> 0.0466 | Q3: Commission Fees | T3: 0.00209625
A4: Capital Class ........................... | D4: 3 | E4: (1) General Structures. | N4: =SUM(N1:N3) -> 0.0752 | O4: =SUM(O1:O3) -> 0.069278 | Q4: Excise Tax | T4: 0.02502175
E5: (2) Generation, Transmission, | Q5: Franchise Fees | T5: 0
E6: and Distribution. | Q6: ERSA | T6: 0.00031975398
E7: (3) Other Equipment. | N7: IRR CALC | T7: -
E8: (4) Transportation Equipment. | I8: Principal ...................... | L8: =T24 -> 20901005.98 | N8: =L8 -> 20901005.98 | O8: pv princ | Q8: Misc. Revenue Items | T8: =SUM(T2:T6) -> 0.03270375398
A9: Book Life (Years) .............. | D9: 10 | I9: Interest ....................... | L9: =D3 -> 0.069278 | N9: =V20 -> 0 | O9: pv lvlized margin | T9: -
A10: Property Tax Rate ............... | D10: 0.01 | I10: Term ............................. | L10: 10 | N10: =IRR($AI$28:$AI$102,0.059065190478108) ->  | O10: IRR | Q10: Before State Income Tax | T10: =T1-T8 -> 0.967296246
A11: O&M Escalation Factor .......... | D11: 0.03 | I11: Levelized Gr. Mar. Requirement ....... | L11: =PMT($L$9,$L$10,-$L$8) -> 2965909.13 | Q11: State Income Tax | T11: 0
T12: -
B13: Idaho | C13: Oregon | D13: Washington | Q13: Before Federal Income Tax | T13: =T10-T11 -> 0.967296246
A14: Electric | B14: 0.35 | C14: 0 | D14: 0.65 | E14: =SUM(B14:D14) -> 1 | K14: Lev ROE | L14: =PMT(L9,L10,-L15) -> 430637.551 | Q14: Federal Income Tax | T14: =T13*D2 -> 0.2031322117 | V14: (v) | W14: (w) | X14: (x) | Y14: (y) | Z14: (z) | AA14: (aa) | AB14: (ab) | AC14: (ac) | AD14: (ad) | AE14: (ae) | AF14: (af) | AG14: (ag) | AH14: (ah)
A15: Gas | B15: 0 | C15: 0 | D15: 0 | E15: =SUM(B15:D15) -> 0 | K15: NPV equity | L15: =NPV(L9,$M$28:$M$103) -> 3034738.299 | T15: - | V15: PV GM
B16: =SUM(B14:B15) -> 0.35 | C16: =SUM(C14:C15) -> 0 | D16: 0.65 | E16: 1 | Q16: Conversion Factor | T16: =T13-T14 -> 0.7641640344 | V16: =NPV(O4,$V$29:$V$103)+V28 -> 0
A17: ...................................................................................................................................................................................................................... | V17: TERM
B18: Capital Additions | V18: =L10 -> 10 | AD18: pv of contribution to fixed costs | AG18: =NPV(O4,20,AG28:AG28) -> -3100643.96
B19: ----------------- | D19: Rate | E19: Accum. | G19: Book Dep. | I19: Rate | K19: Average | P19: Misc. | Q19: State | R19: Federal | S19: Total | T19: Present Val | U19: ACTUAL | V19: LEVELIZED | AE19: Interest ....................... | AG19: =O4 -> 0.069278 | AL19: Inter.
B20: Tax | C20: Book | D20: Base | E20: Book | F20: Tax | G20: on Tax | H20: Deferred | I20: Base | J20: Book | K20: Rate | L20: Interest | M20: Equity | N20: O&M & A&G | O20: Property | P20: Revenue | Q20: Income | R20: Income | S20: Gross Marg | T20: Gross Marg | U20: ROR BY | V20: =PMT(L9,V18,-V16) -> 0 | AE20: Term ............................. | AG20: 50 | AH20: per kwh | AL20: Revenue | AN20: Net Book
B21: Basis | C21: Basis | D21: BOP | E21: Deprec. | F21: Deprec. | G21: Basis | H21: Taxes | I21: EOP | J21: Deprec. | K21: Base | L21: Expense | M21: Return | N21: Expense | O21: Taxes | P21: Items | Q21: Tax | R21: Taxes | S21: Reqmnt | T21: Reqmnt | U21: YEAR | AD21: levelized cont. to fixed costs | AG21: =PMT(AG19,AG20,-AG18) -> -222623.3964 | AH21: =AG21/(400*1000) -> -0.556558491 | AL21: Requirement | AN21: BOP
A22: (a) | B22: (b) | C22: (c) | D22: (d) | E22: (e) | F22: (f) | G22: (g) | H22: (h) | I22: (i) | J22: (j) | K22: (k) | L22: (l) | M22: (m) | N22: (n) | O22: (o) | P22: (p) | Q22: (q) | R22: (r) | S22: (s) | T22: (t) | U22: (u) | W22: - | X22: - | Y22: - | Z22: - | AA22: - | AB22: - | AC22: - | AD22: - | AE22: - | AF22: - | AG22: - | AH22: -
B23: - | C23: - | D23: - | E23: - | F23: - | G23: - | H23: - | I23: - | J23: - | K23: - | L23: - | M23: - | N23: - | O23: - | P23: - | Q23: - | R23: - | S23: - | T23: - | Z23: RES LOAD @ | AG23: ANNUAL | AH23: CUMULATIVE | AL23: - | AN23: -
A24: Total => | B24: =SUM(B25:B104) -> 17756383.37 | C24: =SUM(C25:C104) -> 17756383.37 | F24: =SUM(F25:F104) -> 17756383.37 | G24: =SUM(G25:G104) -> 17756383.37 | H24: =SUM(H25:H104) -> -3.492459655e-10 | J24: =SUM(J25:J104) -> 17756383.37 | L24: =SUM(L25:L104) -> 2306028.093 | M24: 3843380.155 | N24: 0 | O24: 976601.0851 | P24: 856951.793 | Q24: 114148.865 | R24: 880604.6494 | S24: 26734098.01 | T24: 20901005.98 | V24: Offsets | X24: NEW | Y24: CUML | Z24: 12000 | AA24: COMM | AB24: COMM | AC24: TOTAL | AD24: TOTAL | AE24: REVENUE | AF24: ESTIMATED | AG24: (SHORTFALL) | AH24: (SHORTFALL)
A25: Period | B25: - | C25: - | D25: - | E25: - | F25: - | G25: - | H25: - | I25: - | J25: - | K25: - | L25: - | M25: - | N25: - | O25: - | P25: - | Q25: - | R25: - | S25: - | T25: - | W25: YR | X25: CUST | Y25: CUST | Z25: KWH EA | AA25: CUST | AB25: LOAD | AC25: CUST | AD25: LOAD | AE25: REQ | AF25: MARGIN | AG25: EXCESS | AH25: EXCESS | AI25: 0.05906519048 | AL25: - | AN25: -
W26: - | X26: - | Y26: - | Z26: - | AA26: - | AB26: - | AC26: - | AD26: - | AE26: - | AF26: - | AG26: - | AH26: - | AJ26: =NPV(AI25,$AI$28:$AI$103) -> -19735334.68
A28: =1+A27 -> 1 | B28: =' Cost-Benefit $21.4 M (IRP)'!S11+' Cost-Benefit $21.4 M (IRP)'!S12 -> 17756383.37 | C28: =B28 -> 17756383.37 | D28: =I27+C28 -> 17756383.37 | E28: =E27+J28 -> 1775638.337 | F28: =CA137 -> 2536676.928 | G28: =CA229 -> 1775638.337 | H28: =(F28-G28)*$D$2 -> 159818.1041 | I28: =D28-J28-H28 -> 15820926.93 | J28: =CA323 -> 1775638.337 | K28: =(+I28+D28)/2 -> 16788655.15 | L28: =IF(A28=1,$N$1*K28,$N$1*K28) -> 473440.0751 | M28: =IF(A28=1,($N$3+$N$2)*K28,($N$3+$N$2)*K28) -> 789066.7919 | N28: 0 | O28: =AN28*$D$10 -> 177563.8337 | P28: =AL28*$T$8 -> 113638.7999 | Q28: =(+AL28-(G28+L28+N28+O28+P28))*$D$1 -> 24764.58667 | R28: =(+AL28-(G28+L28+N28+O28+P28+Q28))*$D$2 -> 191047.1047 | S28: =J28+M28+L28+N28+O28+P28+Q28+R28 -> 3545159.529 | T28: =S28/(1+$D$3)^(A28-1) -> 3545159.529 | U28: =S28/$B$28 -> 0.199655496 | V28: 0 | W28: =1+W27 -> 1 | X28: 0 | Y28: =+X28 -> 0 | Z28: =X28*$Z$24 -> 0 | AA28: 0 | AB28: 0 | AC28: =Y28+AA28 -> 0 | AD28: 0 | AE28: =S28 -> 3545159.529 | AF28: =V28 -> 0 | AG28: =AF28-AE28 -> -3545159.529 | AH28: =AF28-AE28 -> -3545159.529 | AI28: =IF(A28=1,AF28-T24,AF28) -> -20901005.98 | AL28: =(+J28+L28+M28+N28+O28-(($D$1+(1-$D$1)*$D$2)*(G28+L28+N28+O28)))/$T$16 -> 3474793.75 | AN28: =C28-J27+AN27 -> 17756383.37
A29: 2 | B29: 0 | C29: =B29 -> 0 | D29: =I28+C29 -> 15820926.93 | E29: 3551276.673 | F29: 4348538.286 | G29: =CA230 -> 1775638.337 | H29: 540308.9895 | I29: 13504979.6 | J29: 1775638.337 | K29: 14662953.26 | L29: =IF(A29=1,$N$1*K29,$N$1*K29) -> 413495.282 | M29: 689158.8033 | N29: 0 | O29: 159807.4503 | P29: =AL29*$T$8 -> 106805.6429 | Q29: 21467.8084 | R29: 165614.0155 | S29: 3331987.339 | T29: =S29/(1+$D$3)^(A29-1) -> 3116109.505 | U29: =S29/$B$28 -> 0.1876501127 | V29: 0 | W29: =1+W28 -> 2 | X29: 0 | Y29: =+X29 -> 0 | Z29: =X29*$Z$24 -> 0 | AA29: 0 | AB29: 0 | AC29: 0 | AD29: 0 | AE29: 3331987.339 | AF29: 0 | AG29: -3331987.339 | AH29: =AF29-AE29 -> -3331987.339 | AI29: =IF(A29=1,AF29-T25,AF29) -> 0 | AL29: =(+J29+L29+M29+N29+O29-(($D$1+(1-$D$1)*$D$2)*(G29+L29+N29+O29)))/$T$16 -> 3265852.689 | AN29: =C29-J28+AN28 -> 15980745.03
A30: 3 | B30: 0 | C30: 0 | D30: 13504979.6 | E30: 5326915.01 | F30: 3106124.142 | G30: 1775638.337 | H30: 279402.0192 | I30: 11449939.24 | J30: 1775638.337 | K30: 12477459.42 | L30: 351864.3557 | M30: 586440.5928 | N30: 0 | O30: 142051.0669 | P30: 99796.72086 | Q30: 18077.94728 | R30: 139462.8359 | S30: 3113331.856 | T30: 2722978.125 | U30: 0.1753359224 | V30: 0 | W30: 3 | X30: 0 | Y30: 0 | Z30: 0 | AA30: 0 | AB30: 0 | AC30: 0 | AD30: 0 | AE30: 3113331.856 | AF30: 0 | AG30: -3113331.856 | AH30: -3113331.856 | AI30: 0 | AL30: 3051537.17 | AN30: 14205106.69
A31: 4 | B31: 0 | C31: 0 | D31: 11449939.24 | E31: 7102553.347 | F31: 2218660.102 | G31: 1775638.337 | H31: 93034.57065 | I31: 9581266.336 | J31: 1775638.337 | K31: 10515602.79 | L31: 296539.9987 | M31: 494233.3311 | N31: 0 | O31: 124294.6836 | P31: 93445.20479 | Q31: 15036.23983 | R31: 115997.4977 | S31: 2915185.292 | T31: 2384483.216 | U31: 0.1641767488 | V31: 0 | W31: 4 | X31: 0 | Y31: 0 | Z31: 0 | AA31: 0 | AB31: 0 | AC31: 0 | AD31: 0 | AE31: 2915185.292 | AF31: 0 | AG31: -2915185.292 | AH31: -2915185.292 | AI31: 0 | AL31: 2857323.5 | AN31: 12429468.36
A32: 5 | B32: 0 | C32: 0 | D32: 9581266.336 | E32: 8878191.683 | F32: 1584757.215 | G32: 1775638.337 | H32: -40085.03545 | I32: 7845713.035 | J32: 1775638.337 | K32: 8713489.686 | L32: 245720.4091 | M32: 409534.0152 | N32: 0 | O32: 106538.3002 | P32: 87563.27223 | Q32: 12243.21772 | R32: 94450.64962 | S32: 2731688.201 | T32: 2089626.181 | U32: 0.153842601 | V32: 0 | W32: 5 | X32: 0 | Y32: 0 | Z32: 0 | AA32: 0 | AB32: 0 | AC32: 0 | AD32: 0 | AE32: 2731688.201 | AF32: 0 | AG32: -2731688.201 | AH32: -2731688.201 | AI32: 0 | AL32: 2677468.534 | AN32: 10653830.02
A33: 6 | B33: 0 | C33: 0 | D33: 7845713.035 | E33: 10653830.02 | F33: 1584757.215 | G33: 1775638.337 | H33: -40085.03545 | I33: 6110159.734 | J33: 1775638.337 | K33: 6977936.385 | L33: 196777.806 | M33: 327963.0101 | N33: 0 | O33: 88781.91683 | P33: 81876.99946 | Q33: 9553.814507 | R33: 73703.17241 | S33: 2554295.056 | T33: 1827333.876 | U33: 0.1438522138 | V33: 0 | W33: 6 | X33: 0 | Y33: 0 | Z33: 0 | AA33: 0 | AB33: 0 | AC33: 0 | AD33: 0 | AE33: 2554295.056 | AF33: 0 | AG33: -2554295.056 | AH33: -2554295.056 | AI33: 0 | AL33: 2503596.361 | AN33: 8878191.683
A34: 7 | B34: 0 | C34: 0 | D34: 6110159.734 | E34: 12429468.36 | F34: 1584757.215 | G34: 1775638.337 | H34: -40085.03545 | I34: 4374606.433 | J34: 1775638.337 | K34: 5242383.083 | L34: 147835.203 | M34: 246392.0049 | N34: 0 | O34: 71025.53347 | P34: 76190.72669 | Q34: 6864.411292 | R34: 52955.69519 | S34: 2376901.911 | T34: 1590257.568 | U34: 0.1338618266 | V34: 0 | W34: 7 | X34: 0 | Y34: 0 | Z34: 0 | AA34: 0 | AB34: 0 | AC34: 0 | AD34: 0 | AE34: 2376901.911 | AF34: 0 | AG34: -2376901.911 | AH34: -2376901.911 | AI34: 0 | AL34: 2329724.188 | AN34: 7102553.347
A35: 8 | B35: 0 | C35: 0 | D35: 4374606.433 | E35: 14205106.69 | F35: 792112.262 | G35: 1775638.337 | H35: -206540.4757 | I35: 2805508.572 | J35: 1775638.337 | K35: 3590057.502 | L35: 101239.6216 | M35: 168732.7026 | N35: 0 | O35: 53269.1501 | P35: 70749.11087 | Q35: 4304.57523 | R35: 33207.76744 | S35: 2207141.264 | T35: 1381006.46 | U35: 0.1243012847 | V35: 0 | W35: 8 | X35: 0 | Y35: 0 | Z35: 0 | AA35: 0 | AB35: 0 | AC35: 0 | AD35: 0 | AE35: 2207141.264 | AF35: 0 | AG35: -2207141.264 | AH35: -2207141.264 | AI35: 0 | AL35: 2163333.02 | AN35: 5326915.01
A36: 9 | B36: 0 | C36: 0 | D36: 2805508.572 | E36: 15980745.03 | F36: 0 | G36: 1775638.337 | H36: -372884.0507 | I36: 1402754.286 | J36: 1775638.337 | K36: 2104131.429 | L36: 59336.5063 | M36: 98894.17716 | N36: 0 | O36: 35512.76673 | P36: 65796.64454 | Q36: 2003.786399 | R36: 15458.26688 | S36: 2052640.485 | T36: 1201123.983 | U36: 0.1156001446 | V36: 0 | W36: 9 | X36: 0 | Y36: 0 | Z36: 0 | AA36: 0 | AB36: 0 | AC36: 0 | AD36: 0 | AE36: 2052640.485 | AF36: 0 | AG36: -2052640.485 | AH36: -2052640.485 | AI36: 0 | AL36: 2011898.835 | AN36: 3551276.673
A37: 10 | B37: 0 | C37: 0 | D37: 1402754.286 | E37: 17756383.37 | F37: 0 | G37: 1775638.337 | H37: -372884.0507 | I37: 0 | J37: 1775638.337 | K37: 701377.143 | L37: 19778.83543 | M37: 32964.72572 | N37: 0 | O37: 17756.38337 | P37: 61088.67074 | Q37: -167.5223552 | R37: -1292.35595 | S37: 1905767.074 | T37: 1042927.541 | U37: 0.1073285609 | V37: 0 | W37: 10 | X37: 0 | Y37: 0 | Z37: 0 | AA37: 0 | AB37: 0 | AC37: 0 | AD37: 0 | AE37: 1905767.074 | AF37: 0 | AG37: -1905767.074 | AH37: -1905767.074 | AI37: 0 | AL37: 1867940.628 | AN37: 1775638.337
A38: 11 | B38: 0 | C38: 0 | D38: 0 | E38: 17756383.37 | F38: 0 | G38: 0 | H38: 0 | I38: 0 | J38: 0 | K38: 0 | L38: 0 | M38: 0 | N38: 0 | O38: 2.328306437e-11 | P38: 7.663271271e-13 | Q38: -1.635053195e-14 | R38: -1.261366415e-13 | S38: 2.390690432e-11 | T38: 1.223536779e-11 | U38: 1.346383654e-18 | V38: 0 | W38: 11 | X38: 0 | Y38: 0 | Z38: 0 | AA38: 0 | AB38: 0 | AC38: 0 | AD38: 0 | AE38: 2.390690432e-11 | AF38: 0 | AG38: -2.390690432e-11 | AH38: -2.390690432e-11 | AI38: 0 | AL38: 2.343239029e-11 | AN38: 2.328306437e-09
A39: 12 | B39: 0 | C39: 0 | D39: 0 | E39: 17756383.37 | F39: 0 | G39: 0 | H39: 0 | I39: 0 | J39: 0 | K39: 0 | L39: 0 | M39: 0 | N39: 0 | O39: 2.328306437e-11 | P39: 7.663271271e-13 | Q39: -1.635053195e-14 | R39: -1.261366415e-13 | S39: 2.390690432e-11 | T39: 1.144264428e-11 | U39: 1.346383654e-18 | V39: 0 | W39: 12 | X39: 0 | Y39: 0 | Z39: 0 | AA39: 0 | AB39: 0 | AC39: 0 | AD39: 0 | AE39: 2.390690432e-11 | AF39: 0 | AG39: -2.390690432e-11 | AH39: -2.390690432e-11 | AI39: 0 | AL39: 2.343239029e-11 | AN39: 2.328306437e-09
A40: 13 | B40: 0 | C40: 0 | D40: 0 | E40: 17756383.37 | F40: 0 | G40: 0 | H40: 0 | I40: 0 | J40: 0 | K40: 0 | L40: 0 | M40: 0 | N40: 0 | O40: 2.328306437e-11 | P40: 7.663271271e-13 | Q40: -1.635053195e-14 | R40: -1.261366415e-13 | S40: 2.390690432e-11 | T40: 1.070128094e-11 | U40: 1.346383654e-18 | V40: 0 | W40: 13 | X40: 0 | Y40: 0 | Z40: 0 | AA40: 0 | AB40: 0 | AC40: 0 | AD40: 0 | AE40: 2.390690432e-11 | AF40: 0 | AG40: -2.390690432e-11 | AH40: -2.390690432e-11 | AI40: 0 | AL40: 2.343239029e-11 | AN40: 2.328306437e-09
A41: 14 | B41: 0 | C41: 0 | D41: 0 | E41: 17756383.37 | F41: 0 | G41: 0 | H41: 0 | I41: 0 | J41: 0 | K41: 0 | L41: 0 | M41: 0 | N41: 0 | O41: 2.328306437e-11 | P41: 7.663271271e-13 | Q41: -1.635053195e-14 | R41: -1.261366415e-13 | S41: 2.390690432e-11 | T41: 1.000795017e-11 | U41: 1.346383654e-18 | V41: 0 | W41: 14 | X41: 0 | Y41: 0 | Z41: 0 | AA41: 0 | AB41: 0 | AC41: 0 | AD41: 0 | AE41: 2.390690432e-11 | AF41: 0 | AG41: -2.390690432e-11 | AH41: -2.390690432e-11 | AI41: 0 | AL41: 2.343239029e-11 | AN41: 2.328306437e-09
A42: 15 | B42: 0 | C42: 0 | D42: 0 | E42: 17756383.37 | F42: 0 | G42: 0 | H42: 0 | I42: 0 | J42: 0 | K42: 0 | L42: 0 | M42: 0 | N42: 0 | O42: 2.328306437e-11 | P42: 7.663271271e-13 | Q42: -1.635053195e-14 | R42: -1.261366415e-13 | S42: 2.390690432e-11 | T42: 9.359539961e-12 | U42: 1.346383654e-18 | V42: 0 | W42: 15 | X42: 0 | Y42: 0 | Z42: 0 | AA42: 0 | AB42: 0 | AC42: 0 | AD42: 0 | AE42: 2.390690432e-11 | AF42: 0 | AG42: -2.390690432e-11 | AH42: -2.390690432e-11 | AI42: 0 | AL42: 2.343239029e-11 | AN42: 2.328306437e-09
A43: 16 | B43: 0 | C43: 0 | D43: 0 | E43: 17756383.37 | F43: 0 | G43: 0 | H43: 0 | I43: 0 | J43: 0 | K43: 0 | L43: 0 | M43: 0 | N43: 0 | O43: 2.328306437e-11 | P43: 7.663271271e-13 | Q43: -1.635053195e-14 | R43: -1.261366415e-13 | S43: 2.390690432e-11 | T43: 8.753139933e-12 | U43: 1.346383654e-18 | V43: 0 | W43: 16 | X43: 0 | Y43: 0 | Z43: 0 | AA43: 0 | AB43: 0 | AC43: 0 | AD43: 0 | AE43: 2.390690432e-11 | AF43: 0 | AG43: -2.390690432e-11 | AH43: -2.390690432e-11 | AI43: 0 | AL43: 2.343239029e-11 | AN43: 2.328306437e-09
A44: 17 | B44: 0 | C44: 0 | D44: 0 | E44: 17756383.37 | F44: 0 | G44: 0 | H44: 0 | I44: 0 | J44: 0 | K44: =(+I44+D44)/2 -> 0 | L44: 0 | M44: 0 | N44: 0 | O44: 2.328306437e-11 | P44: 7.663271271e-13 | Q44: -1.635053195e-14 | R44: =(+AL44-(G44+L44+N44+O44+P44+Q44))*$D$2 -> -1.261366415e-13 | S44: 2.390690432e-11 | T44: 8.186028266e-12 | U44: 1.346383654e-18 | V44: 0 | W44: 17 | X44: 0 | Y44: 0 | Z44: 0 | AA44: 0 | AB44: 0 | AC44: =Y44+AA44 -> 0 | AD44: 0 | AE44: 2.390690432e-11 | AF44: 0 | AG44: -2.390690432e-11 | AH44: -2.390690432e-11 | AI44: 0 | AL44: 2.343239029e-11 | AN44: 2.328306437e-09
A45: 18 | B45: 0 | C45: 0 | D45: 0 | E45: 17756383.37 | F45: 0 | G45: 0 | H45: 0 | I45: 0 | J45: 0 | K45: 0 | L45: 0 | M45: 0 | N45: 0 | O45: 2.328306437e-11 | P45: 7.663271271e-13 | Q45: -1.635053195e-14 | R45: -1.261366415e-13 | S45: 2.390690432e-11 | T45: 7.655659488e-12 | U45: 1.346383654e-18 | V45: 0 | W45: 18 | X45: 0 | Y45: 0 | Z45: 0 | AA45: 0 | AB45: 0 | AC45: 0 | AD45: 0 | AE45: 2.390690432e-11 | AF45: 0 | AG45: -2.390690432e-11 | AH45: -2.390690432e-11 | AI45: 0 | AL45: 2.343239029e-11 | AN45: 2.328306437e-09
A46: 19 | B46: 0 | C46: 0 | D46: 0 | E46: 17756383.37 | F46: 0 | G46: 0 | H46: 0 | I46: 0 | J46: 0 | K46: 0 | L46: 0 | M46: 0 | N46: 0 | O46: 2.328306437e-11 | P46: 7.663271271e-13 | Q46: -1.635053195e-14 | R46: -1.261366415e-13 | S46: 2.390690432e-11 | T46: 7.159653045e-12 | U46: 1.346383654e-18 | V46: 0 | W46: 19 | X46: 0 | Y46: 0 | Z46: 0 | AA46: 0 | AB46: 0 | AC46: 0 | AD46: 0 | AE46: 2.390690432e-11 | AF46: 0 | AG46: -2.390690432e-11 | AH46: -2.390690432e-11 | AI46: 0 | AL46: 2.343239029e-11 | AN46: 2.328306437e-09
A47: 20 | B47: 0 | C47: 0 | D47: 0 | E47: 17756383.37 | F47: 0 | G47: 0 | H47: 0 | I47: =D47-J47-H47 -> 0 | J47: 0 | K47: 0 | L47: 0 | M47: 0 | N47: 0 | O47: 2.328306437e-11 | P47: 7.663271271e-13 | Q47: -1.635053195e-14 | R47: -1.261366415e-13 | S47: 2.390690432e-11 | T47: 6.695782617e-12 | U47: 1.346383654e-18 | V47: 0 | W47: 20 | X47: 0 | Y47: 0 | Z47: 0 | AA47: 0 | AB47: 0 | AC47: 0 | AD47: 0 | AE47: 2.390690432e-11 | AF47: 0 | AG47: -2.390690432e-11 | AH47: -2.390690432e-11 | AI47: 0 | AL47: 2.343239029e-11 | AN47: 2.328306437e-09
A48: 21 | B48: 0 | C48: 0 | D48: =I47+C48 -> 0 | E48: 17756383.37 | F48: 0 | G48: 0 | H48: 0 | I48: 0 | J48: 0 | K48: 0 | L48: 0 | M48: 0 | N48: 0 | O48: 2.328306437e-11 | P48: 7.663271271e-13 | Q48: -1.635053195e-14 | R48: -1.261366415e-13 | S48: 2.390690432e-11 | T48: 6.261966127e-12 | U48: 1.346383654e-18 | V48: 0 | W48: 21 | X48: 0 | Y48: 0 | Z48: 0 | AA48: 0 | AB48: 0 | AC48: 0 | AD48: 0 | AE48: 2.390690432e-11 | AF48: 0 | AG48: -2.390690432e-11 | AH48: -2.390690432e-11 | AI48: 0 | AL48: 2.343239029e-11 | AN48: 2.328306437e-09
A49: 22 | B49: 0 | C49: 0 | D49: 0 | E49: 17756383.37 | F49: 0 | G49: 0 | H49: 0 | I49: 0 | J49: 0 | K49: 0 | L49: 0 | M49: 0 | N49: 0 | O49: 2.328306437e-11 | P49: 7.663271271e-13 | Q49: -1.635053195e-14 | R49: -1.261366415e-13 | S49: 2.390690432e-11 | T49: 5.856256397e-12 | U49: 1.346383654e-18 | V49: 0 | W49: 22 | X49: 0 | Y49: 0 | Z49: 0 | AA49: 0 | AB49: 0 | AC49: 0 | AD49: 0 | AE49: 2.390690432e-11 | AF49: 0 | AG49: -2.390690432e-11 | AH49: -2.390690432e-11 | AI49: 0 | AL49: 2.343239029e-11 | AN49: 2.328306437e-09
A50: 23 | B50: 0 | C50: 0 | D50: 0 | E50: 17756383.37 | F50: 0 | G50: 0 | H50: 0 | I50: 0 | J50: 0 | K50: 0 | L50: 0 | M50: 0 | N50: 0 | O50: 2.328306437e-11 | P50: 7.663271271e-13 | Q50: -1.635053195e-14 | R50: -1.261366415e-13 | S50: 2.390690432e-11 | T50: 5.476832401e-12 | U50: 1.346383654e-18 | V50: 0 | W50: 23 | X50: 0 | Y50: 0 | Z50: 0 | AA50: 0 | AB50: 0 | AC50: 0 | AD50: 0 | AE50: 2.390690432e-11 | AF50: 0 | AG50: -2.390690432e-11 | AH50: -2.390690432e-11 | AI50: 0 | AL50: 2.343239029e-11 | AN50: 2.328306437e-09
A51: 24 | B51: 0 | C51: 0 | D51: 0 | E51: 17756383.37 | F51: 0 | G51: 0 | H51: 0 | I51: 0 | J51: 0 | K51: 0 | L51: 0 | M51: 0 | N51: 0 | O51: 2.328306437e-11 | P51: 7.663271271e-13 | Q51: -1.635053195e-14 | R51: -1.261366415e-13 | S51: 2.390690432e-11 | T51: 5.121991102e-12 | U51: 1.346383654e-18 | V51: 0 | W51: 24 | X51: 0 | Y51: 0 | Z51: 0 | AA51: 0 | AB51: 0 | AC51: 0 | AD51: 0 | AE51: 2.390690432e-11 | AF51: 0 | AG51: -2.390690432e-11 | AH51: -2.390690432e-11 | AI51: 0 | AL51: 2.343239029e-11 | AN51: 2.328306437e-09
A52: 25 | B52: 0 | C52: 0 | D52: 0 | E52: 17756383.37 | F52: 0 | G52: 0 | H52: 0 | I52: 0 | J52: 0 | K52: 0 | L52: 0 | M52: 0 | N52: 0 | O52: 2.328306437e-11 | P52: 7.663271271e-13 | Q52: -1.635053195e-14 | R52: -1.261366415e-13 | S52: 2.390690432e-11 | T52: 4.790139797e-12 | U52: 1.346383654e-18 | V52: 0 | W52: 25 | X52: 0 | Y52: 0 | Z52: 0 | AA52: 0 | AB52: 0 | AC52: 0 | AD52: 0 | AE52: 2.390690432e-11 | AF52: 0 | AG52: -2.390690432e-11 | AH52: -2.390690432e-11 | AI52: 0 | AL52: 2.343239029e-11 | AN52: 2.328306437e-09
A53: 26 | B53: 0 | C53: 0 | D53: 0 | E53: 17756383.37 | F53: 0 | G53: 0 | H53: 0 | I53: 0 | J53: 0 | K53: 0 | L53: 0 | M53: 0 | N53: 0 | O53: 2.328306437e-11 | P53: 7.663271271e-13 | Q53: -1.635053195e-14 | R53: -1.261366415e-13 | S53: 2.390690432e-11 | T53: 4.479788976e-12 | U53: 1.346383654e-18 | V53: 0 | W53: 26 | X53: 0 | Y53: 0 | Z53: 0 | AA53: 0 | AB53: 0 | AC53: 0 | AD53: 0 | AE53: 2.390690432e-11 | AF53: 0 | AG53: -2.390690432e-11 | AH53: -2.390690432e-11 | AI53: 0 | AL53: 2.343239029e-11 | AN53: 2.328306437e-09
A54: 27 | B54: 0 | C54: 0 | D54: 0 | E54: 17756383.37 | F54: 0 | G54: 0 | H54: 0 | I54: 0 | J54: 0 | K54: 0 | L54: 0 | M54: 0 | N54: 0 | O54: 2.328306437e-11 | P54: 7.663271271e-13 | Q54: -1.635053195e-14 | R54: -1.261366415e-13 | S54: 2.390690432e-11 | T54: 4.189545634e-12 | U54: 1.346383654e-18 | V54: 0 | W54: 27 | X54: 0 | Y54: 0 | Z54: 0 | AA54: 0 | AB54: 0 | AC54: 0 | AD54: 0 | AE54: 2.390690432e-11 | AF54: 0 | AG54: -2.390690432e-11 | AH54: -2.390690432e-11 | AI54: 0 | AL54: 2.343239029e-11 | AN54: 2.328306437e-09
A55: 28 | B55: 0 | C55: 0 | D55: 0 | E55: 17756383.37 | F55: 0 | G55: 0 | H55: 0 | I55: 0 | J55: 0 | K55: 0 | L55: 0 | M55: 0 | N55: 0 | O55: 2.328306437e-11 | P55: 7.663271271e-13 | Q55: -1.635053195e-14 | R55: -1.261366415e-13 | S55: 2.390690432e-11 | T55: 3.918107016e-12 | U55: 1.346383654e-18 | V55: 0 | W55: 28 | X55: 0 | Y55: 0 | Z55: 0 | AA55: 0 | AB55: 0 | AC55: 0 | AD55: 0 | AE55: 2.390690432e-11 | AF55: 0 | AG55: -2.390690432e-11 | AH55: -2.390690432e-11 | AI55: 0 | AL55: 2.343239029e-11 | AN55: 2.328306437e-09
A56: 29 | B56: 0 | C56: 0 | D56: 0 | E56: 17756383.37 | F56: 0 | G56: 0 | H56: 0 | I56: 0 | J56: 0 | K56: 0 | L56: 0 | M56: 0 | N56: 0 | O56: 2.328306437e-11 | P56: 7.663271271e-13 | Q56: -1.635053195e-14 | R56: -1.261366415e-13 | S56: 2.390690432e-11 | T56: 3.664254774e-12 | U56: 1.346383654e-18 | V56: 0 | W56: 29 | X56: 0 | Y56: 0 | Z56: 0 | AA56: 0 | AB56: 0 | AC56: 0 | AD56: 0 | AE56: 2.390690432e-11 | AF56: 0 | AG56: -2.390690432e-11 | AH56: -2.390690432e-11 | AI56: 0 | AL56: 2.343239029e-11 | AN56: 2.328306437e-09
A57: 30 | B57: 0 | C57: 0 | D57: 0 | E57: 17756383.37 | F57: 0 | G57: 0 | H57: 0 | I57: 0 | J57: 0 | K57: 0 | L57: 0 | M57: 0 | N57: 0 | O57: 2.328306437e-11 | P57: 7.663271271e-13 | Q57: -1.635053195e-14 | R57: -1.261366415e-13 | S57: 2.390690432e-11 | T57: 3.426849495e-12 | U57: 1.346383654e-18 | V57: 0 | W57: 30 | X57: 0 | Y57: 0 | Z57: 0 | AA57: 0 | AB57: 0 | AC57: 0 | AD57: 0 | AE57: 2.390690432e-11 | AF57: 0 | AG57: -2.390690432e-11 | AH57: -2.390690432e-11 | AI57: 0 | AL57: 2.343239029e-11 | AN57: 2.328306437e-09
A58: 31 | B58: 0 | C58: 0 | D58: 0 | E58: 17756383.37 | F58: 0 | G58: 0 | H58: 0 | I58: 0 | J58: 0 | K58: 0 | L58: 0 | M58: 0 | N58: 0 | O58: 2.328306437e-11 | P58: 7.663271271e-13 | Q58: -1.635053195e-14 | R58: -1.261366415e-13 | S58: 2.390690432e-11 | T58: 3.204825588e-12 | U58: 1.346383654e-18 | V58: 0 | W58: 31 | X58: 0 | Y58: 0 | Z58: 0 | AA58: 0 | AB58: 0 | AC58: 0 | AD58: 0 | AE58: 2.390690432e-11 | AF58: 0 | AG58: -2.390690432e-11 | AH58: -2.390690432e-11 | AI58: 0 | AL58: 2.343239029e-11 | AN58: 2.328306437e-09
A59: 32 | B59: 0 | C59: 0 | D59: 0 | E59: 17756383.37 | F59: 0 | G59: 0 | H59: 0 | I59: 0 | J59: 0 | K59: 0 | L59: 0 | M59: 0 | N59: 0 | O59: 2.328306437e-11 | P59: 7.663271271e-13 | Q59: -1.635053195e-14 | R59: -1.261366415e-13 | S59: 2.390690432e-11 | T59: 2.997186501e-12 | U59: 1.346383654e-18 | V59: 0 | W59: 32 | X59: 0 | Y59: 0 | Z59: 0 | AA59: 0 | AB59: 0 | AC59: 0 | AD59: 0 | AE59: 2.390690432e-11 | AF59: 0 | AG59: -2.390690432e-11 | AH59: -2.390690432e-11 | AI59: 0 | AL59: 2.343239029e-11 | AN59: 2.328306437e-09
A60: 33 | B60: 0 | C60: 0 | D60: 0 | E60: 17756383.37 | F60: 0 | G60: 0 | H60: 0 | I60: 0 | J60: 0 | K60: 0 | L60: 0 | M60: 0 | N60: 0 | O60: 2.328306437e-11 | P60: 7.663271271e-13 | Q60: -1.635053195e-14 | R60: -1.261366415e-13 | S60: 2.390690432e-11 | T60: 2.80300025e-12 | U60: 1.346383654e-18 | V60: 0 | W60: 33 | X60: 0 | Y60: 0 | Z60: 0 | AA60: 0 | AB60: 0 | AC60: 0 | AD60: 0 | AE60: 2.390690432e-11 | AF60: 0 | AG60: -2.390690432e-11 | AH60: -2.390690432e-11 | AI60: 0 | AL60: 2.343239029e-11 | AN60: 2.328306437e-09
A61: 34 | B61: 0 | C61: 0 | D61: 0 | E61: 17756383.37 | F61: 0 | G61: 0 | H61: 0 | I61: 0 | J61: 0 | K61: 0 | L61: 0 | M61: 0 | N61: 0 | O61: 2.328306437e-11 | P61: 7.663271271e-13 | Q61: -1.635053195e-14 | R61: -1.261366415e-13 | S61: 2.390690432e-11 | T61: 2.621395231e-12 | U61: 1.346383654e-18 | V61: 0 | W61: 34 | X61: 0 | Y61: 0 | Z61: 0 | AA61: 0 | AB61: 0 | AC61: 0 | AD61: 0 | AE61: 2.390690432e-11 | AF61: 0 | AG61: -2.390690432e-11 | AH61: -2.390690432e-11 | AI61: 0 | AL61: 2.343239029e-11 | AN61: 2.328306437e-09
A62: 35 | B62: 0 | C62: 0 | D62: 0 | E62: 17756383.37 | F62: 0 | G62: 0 | H62: 0 | I62: 0 | J62: 0 | K62: 0 | L62: 0 | M62: 0 | N62: 0 | O62: 2.328306437e-11 | P62: 7.663271271e-13 | Q62: -1.635053195e-14 | R62: -1.261366415e-13 | S62: 2.390690432e-11 | T62: 2.451556313e-12 | U62: 1.346383654e-18 | V62: 0 | W62: 35 | X62: 0 | Y62: 0 | Z62: 0 | AA62: 0 | AB62: 0 | AC62: 0 | AD62: 0 | AE62: 2.390690432e-11 | AF62: 0 | AG62: -2.390690432e-11 | AH62: -2.390690432e-11 | AI62: 0 | AL62: 2.343239029e-11 | AN62: 2.328306437e-09
A63: 36 | B63: 0 | C63: 0 | D63: 0 | E63: 17756383.37 | F63: 0 | G63: 0 | H63: 0 | I63: 0 | J63: 0 | K63: 0 | L63: 0 | M63: 0 | N63: 0 | O63: 2.328306437e-11 | P63: 7.663271271e-13 | Q63: -1.635053195e-14 | R63: -1.261366415e-13 | S63: 2.390690432e-11 | T63: 2.292721175e-12 | U63: 1.346383654e-18 | V63: 0 | W63: 36 | X63: 0 | Y63: 0 | Z63: 0 | AA63: 0 | AB63: 0 | AC63: 0 | AD63: 0 | AE63: 2.390690432e-11 | AF63: 0 | AG63: -2.390690432e-11 | AH63: -2.390690432e-11 | AI63: 0 | AL63: 2.343239029e-11 | AN63: 2.328306437e-09
A64: 37 | B64: 0 | C64: 0 | D64: 0 | E64: 17756383.37 | F64: 0 | G64: 0 | H64: 0 | I64: 0 | J64: 0 | K64: 0 | L64: 0 | M64: 0 | N64: 0 | O64: 2.328306437e-11 | P64: 7.663271271e-13 | Q64: -1.635053195e-14 | R64: -1.261366415e-13 | S64: 2.390690432e-11 | T64: 2.144176889e-12 | U64: 1.346383654e-18 | V64: 0 | W64: 37 | X64: 0 | Y64: 0 | Z64: 0 | AA64: 0 | AB64: 0 | AC64: 0 | AD64: 0 | AE64: 2.390690432e-11 | AF64: 0 | AG64: -2.390690432e-11 | AH64: -2.390690432e-11 | AI64: 0 | AL64: 2.343239029e-11 | AN64: 2.328306437e-09
A65: 38 | B65: 0 | C65: 0 | D65: 0 | E65: 17756383.37 | F65: 0 | G65: 0 | H65: 0 | I65: 0 | J65: 0 | K65: 0 | L65: 0 | M65: 0 | N65: 0 | O65: 2.328306437e-11 | P65: 7.663271271e-13 | Q65: -1.635053195e-14 | R65: -1.261366415e-13 | S65: 2.390690432e-11 | T65: 2.005256714e-12 | U65: 1.346383654e-18 | V65: 0 | W65: 38 | X65: 0 | Y65: 0 | Z65: 0 | AA65: 0 | AB65: 0 | AC65: 0 | AD65: 0 | AE65: 2.390690432e-11 | AF65: 0 | AG65: -2.390690432e-11 | AH65: -2.390690432e-11 | AI65: 0 | AL65: 2.343239029e-11 | AN65: 2.328306437e-09
A66: 39 | B66: 0 | C66: 0 | D66: 0 | E66: 17756383.37 | F66: 0 | G66: 0 | H66: 0 | I66: 0 | J66: 0 | K66: 0 | L66: 0 | M66: 0 | N66: 0 | O66: 2.328306437e-11 | P66: 7.663271271e-13 | Q66: -1.635053195e-14 | R66: -1.261366415e-13 | S66: 2.390690432e-11 | T66: 1.87533711e-12 | U66: 1.346383654e-18 | V66: 0 | W66: 39 | X66: 0 | Y66: 0 | Z66: 0 | AA66: 0 | AB66: 0 | AC66: 0 | AD66: 0 | AE66: 2.390690432e-11 | AF66: 0 | AG66: -2.390690432e-11 | AH66: -2.390690432e-11 | AI66: 0 | AL66: 2.343239029e-11 | AN66: 2.328306437e-09
A67: 40 | B67: 0 | C67: 0 | D67: 0 | E67: 17756383.37 | F67: 0 | G67: 0 | H67: 0 | I67: 0 | J67: 0 | K67: 0 | L67: 0 | M67: 0 | N67: 0 | O67: 2.328306437e-11 | P67: 7.663271271e-13 | Q67: -1.635053195e-14 | R67: -1.261366415e-13 | S67: 2.390690432e-11 | T67: 1.753834933e-12 | U67: 1.346383654e-18 | V67: 0 | W67: 40 | X67: 0 | Y67: 0 | Z67: 0 | AA67: 0 | AB67: 0 | AC67: 0 | AD67: 0 | AE67: 2.390690432e-11 | AF67: 0 | AG67: -2.390690432e-11 | AH67: -2.390690432e-11 | AI67: 0 | AL67: 2.343239029e-11 | AN67: 2.328306437e-09
A68: 41 | B68: 0 | C68: 0 | D68: 0 | E68: 17756383.37 | F68: 0 | G68: 0 | H68: 0 | I68: 0 | J68: 0 | K68: 0 | L68: 0 | M68: 0 | N68: 0 | O68: 2.328306437e-11 | P68: 7.663271271e-13 | Q68: -1.635053195e-14 | R68: -1.261366415e-13 | S68: 2.390690432e-11 | T68: 1.640204823e-12 | U68: 1.346383654e-18 | V68: 0 | W68: 41 | X68: 0 | Y68: 0 | Z68: 0 | AA68: 0 | AB68: 0 | AC68: 0 | AD68: 0 | AE68: 2.390690432e-11 | AF68: 0 | AG68: -2.390690432e-11 | AH68: -2.390690432e-11 | AI68: 0 | AL68: 2.343239029e-11 | AN68: 2.328306437e-09
A69: 42 | B69: 0 | C69: 0 | D69: 0 | E69: 17756383.37 | F69: 0 | G69: 0 | H69: 0 | I69: 0 | J69: 0 | K69: 0 | L69: 0 | M69: 0 | N69: 0 | O69: 2.328306437e-11 | P69: 7.663271271e-13 | Q69: -1.635053195e-14 | R69: -1.261366415e-13 | S69: 2.390690432e-11 | T69: 1.533936753e-12 | U69: 1.346383654e-18 | V69: 0 | W69: 42 | X69: 0 | Y69: 0 | Z69: 0 | AA69: 0 | AB69: 0 | AC69: 0 | AD69: 0 | AE69: 2.390690432e-11 | AF69: 0 | AG69: -2.390690432e-11 | AH69: -2.390690432e-11 | AI69: 0 | AL69: 2.343239029e-11 | AN69: 2.328306437e-09
A70: 43 | B70: 0 | C70: 0 | D70: 0 | E70: 17756383.37 | F70: 0 | G70: 0 | H70: 0 | I70: 0 | J70: 0 | K70: 0 | L70: 0 | M70: 0 | N70: 0 | O70: 2.328306437e-11 | P70: 7.663271271e-13 | Q70: -1.635053195e-14 | R70: -1.261366415e-13 | S70: 2.390690432e-11 | T70: 1.434553739e-12 | U70: 1.346383654e-18 | V70: 0 | W70: 43 | X70: 0 | Y70: 0 | Z70: 0 | AA70: 0 | AB70: 0 | AC70: 0 | AD70: 0 | AE70: 2.390690432e-11 | AF70: 0 | AG70: -2.390690432e-11 | AH70: -2.390690432e-11 | AI70: 0 | AL70: 2.343239029e-11 | AN70: 2.328306437e-09
A71: 44 | B71: 0 | C71: 0 | D71: 0 | E71: 17756383.37 | F71: 0 | G71: 0 | H71: 0 | I71: 0 | J71: 0 | K71: 0 | L71: 0 | M71: 0 | N71: 0 | O71: 2.328306437e-11 | P71: 7.663271271e-13 | Q71: -1.635053195e-14 | R71: -1.261366415e-13 | S71: 2.390690432e-11 | T71: 1.341609702e-12 | U71: 1.346383654e-18 | V71: 0 | W71: 44 | X71: 0 | Y71: 0 | Z71: 0 | AA71: 0 | AB71: 0 | AC71: 0 | AD71: 0 | AE71: 2.390690432e-11 | AF71: 0 | AG71: -2.390690432e-11 | AH71: -2.390690432e-11 | AI71: 0 | AL71: 2.343239029e-11 | AN71: 2.328306437e-09
A72: 45 | B72: 0 | C72: 0 | D72: 0 | E72: 17756383.37 | F72: 0 | G72: 0 | H72: 0 | I72: 0 | J72: 0 | K72: 0 | L72: 0 | M72: 0 | N72: 0 | O72: 2.328306437e-11 | P72: 7.663271271e-13 | Q72: -1.635053195e-14 | R72: -1.261366415e-13 | S72: 2.390690432e-11 | T72: 1.254687464e-12 | U72: 1.346383654e-18 | V72: 0 | W72: 45 | X72: 0 | Y72: 0 | Z72: 0 | AA72: 0 | AB72: 0 | AC72: 0 | AD72: 0 | AE72: 2.390690432e-11 | AF72: 0 | AG72: -2.390690432e-11 | AH72: -2.390690432e-11 | AI72: 0 | AL72: 2.343239029e-11 | AN72: 2.328306437e-09
A73: 46 | B73: 0 | C73: 0 | D73: 0 | E73: 17756383.37 | F73: 0 | G73: 0 | H73: 0 | I73: 0 | J73: 0 | K73: 0 | L73: 0 | M73: 0 | N73: 0 | O73: 2.328306437e-11 | P73: 7.663271271e-13 | Q73: -1.635053195e-14 | R73: -1.261366415e-13 | S73: 2.390690432e-11 | T73: 1.173396875e-12 | U73: 1.346383654e-18 | V73: 0 | W73: 46 | X73: 0 | Y73: 0 | Z73: 0 | AA73: 0 | AB73: 0 | AC73: 0 | AD73: 0 | AE73: 2.390690432e-11 | AF73: 0 | AG73: -2.390690432e-11 | AH73: -2.390690432e-11 | AI73: 0 | AL73: 2.343239029e-11 | AN73: 2.328306437e-09
A74: 47 | B74: 0 | C74: 0 | D74: 0 | E74: 17756383.37 | F74: 0 | G74: 0 | H74: 0 | I74: 0 | J74: 0 | K74: 0 | L74: 0 | M74: 0 | N74: 0 | O74: 2.328306437e-11 | P74: 7.663271271e-13 | Q74: -1.635053195e-14 | R74: -1.261366415e-13 | S74: 2.390690432e-11 | T74: 1.097373064e-12 | U74: 1.346383654e-18 | V74: 0 | W74: 47 | X74: 0 | Y74: 0 | Z74: 0 | AA74: 0 | AB74: 0 | AC74: 0 | AD74: 0 | AE74: 2.390690432e-11 | AF74: 0 | AG74: -2.390690432e-11 | AH74: -2.390690432e-11 | AI74: 0 | AL74: 2.343239029e-11 | AN74: 2.328306437e-09
A75: 48 | B75: 0 | C75: 0 | D75: 0 | E75: 17756383.37 | F75: 0 | G75: 0 | H75: 0 | I75: 0 | J75: 0 | K75: 0 | L75: 0 | M75: 0 | N75: 0 | O75: 2.328306437e-11 | P75: 7.663271271e-13 | Q75: -1.635053195e-14 | R75: -1.261366415e-13 | S75: 2.390690432e-11 | T75: 1.026274799e-12 | U75: 1.346383654e-18 | V75: 0 | W75: 48 | X75: 0 | Y75: 0 | Z75: 0 | AA75: 0 | AB75: 0 | AC75: 0 | AD75: 0 | AE75: 2.390690432e-11 | AF75: 0 | AG75: -2.390690432e-11 | AH75: -2.390690432e-11 | AI75: 0 | AL75: 2.343239029e-11 | AN75: 2.328306437e-09
A76: 49 | B76: 0 | C76: 0 | D76: 0 | E76: 17756383.37 | F76: 0 | G76: 0 | H76: 0 | I76: 0 | J76: 0 | K76: 0 | L76: 0 | M76: 0 | N76: 0 | O76: 2.328306437e-11 | P76: 7.663271271e-13 | Q76: -1.635053195e-14 | R76: -1.261366415e-13 | S76: 2.390690432e-11 | T76: 9.597829551e-13 | U76: 1.346383654e-18 | V76: 0 | W76: 49 | X76: 0 | Y76: 0 | Z76: 0 | AA76: 0 | AB76: 0 | AC76: 0 | AD76: 0 | AE76: 2.390690432e-11 | AF76: 0 | AG76: -2.390690432e-11 | AH76: -2.390690432e-11 | AI76: 0 | AL76: 2.343239029e-11 | AN76: 2.328306437e-09
A77: 50 | B77: 0 | C77: 0 | D77: 0 | E77: 17756383.37 | F77: 0 | G77: 0 | H77: 0 | I77: 0 | J77: 0 | K77: 0 | L77: 0 | M77: 0 | N77: 0 | O77: 2.328306437e-11 | P77: 7.663271271e-13 | Q77: -1.635053195e-14 | R77: -1.261366415e-13 | S77: 2.390690432e-11 | T77: 8.975990857e-13 | U77: 1.346383654e-18 | V77: 0 | W77: 50 | X77: 0 | Y77: 0 | Z77: 0 | AA77: 0 | AB77: 0 | AC77: 0 | AD77: 0 | AE77: 2.390690432e-11 | AF77: 0 | AG77: -2.390690432e-11 | AH77: -2.390690432e-11 | AI77: 0 | AL77: 2.343239029e-11 | AN77: 2.328306437e-09
A78: 51 | B78: 0 | C78: 0 | D78: 0 | E78: 17756383.37 | F78: 0 | G78: 0 | H78: 0 | I78: 0 | J78: 0 | K78: 0 | L78: 0 | M78: 0 | N78: 0 | O78: 2.328306437e-11 | P78: 7.663271271e-13 | Q78: -1.635053195e-14 | R78: -1.261366415e-13 | S78: 2.390690432e-11 | T78: 8.394440788e-13 | U78: 1.346383654e-18 | V78: 0 | W78: 51 | X78: 0 | Y78: 0 | Z78: 0 | AA78: 0 | AB78: 0 | AC78: 0 | AD78: 0 | AE78: 2.390690432e-11 | AF78: 0 | AG78: -2.390690432e-11 | AH78: -2.390690432e-11 | AI78: 0 | AL78: 2.343239029e-11 | AN78: 2.328306437e-09
A79: 52 | B79: 0 | C79: 0 | D79: 0 | E79: 17756383.37 | F79: 0 | G79: 0 | H79: 0 | I79: 0 | J79: 0 | K79: 0 | L79: 0 | M79: 0 | N79: 0 | O79: 2.328306437e-11 | P79: 7.663271271e-13 | Q79: -1.635053195e-14 | R79: -1.261366415e-13 | S79: 2.390690432e-11 | T79: 7.850569064e-13 | U79: 1.346383654e-18 | V79: 0 | W79: 52 | X79: 0 | Y79: 0 | Z79: 0 | AA79: 0 | AB79: 0 | AC79: 0 | AD79: 0 | AE79: 2.390690432e-11 | AF79: 0 | AG79: -2.390690432e-11 | AH79: -2.390690432e-11 | AI79: 0 | AL79: 2.343239029e-11 | AN79: 2.328306437e-09
A80: 53 | B80: 0 | C80: 0 | D80: 0 | E80: 17756383.37 | F80: 0 | G80: 0 | H80: 0 | I80: 0 | J80: 0 | K80: 0 | L80: 0 | M80: 0 | N80: 0 | O80: 2.328306437e-11 | P80: 7.663271271e-13 | Q80: -1.635053195e-14 | R80: -1.261366415e-13 | S80: 2.390690432e-11 | T80: 7.341934524e-13 | U80: 1.346383654e-18 | V80: 0 | W80: 53 | X80: 0 | Y80: 0 | Z80: 0 | AA80: 0 | AB80: 0 | AC80: 0 | AD80: 0 | AE80: 2.390690432e-11 | AF80: 0 | AG80: -2.390690432e-11 | AH80: -2.390690432e-11 | AI80: 0 | AL80: 2.343239029e-11 | AN80: 2.328306437e-09
A81: 54 | B81: 0 | C81: 0 | D81: 0 | E81: 17756383.37 | F81: 0 | G81: 0 | H81: 0 | I81: 0 | J81: 0 | K81: 0 | L81: 0 | M81: 0 | N81: 0 | O81: 2.328306437e-11 | P81: 7.663271271e-13 | Q81: -1.635053195e-14 | R81: -1.261366415e-13 | S81: 2.390690432e-11 | T81: 6.866254168e-13 | U81: 1.346383654e-18 | V81: 0 | W81: 54 | X81: 0 | Y81: 0 | Z81: 0 | AA81: 0 | AB81: 0 | AC81: 0 | AD81: 0 | AE81: 2.390690432e-11 | AF81: 0 | AG81: -2.390690432e-11 | AH81: -2.390690432e-11 | AI81: 0 | AL81: 2.343239029e-11 | AN81: 2.328306437e-09
A82: 55 | B82: 0 | C82: 0 | D82: 0 | E82: 17756383.37 | F82: 0 | G82: 0 | H82: 0 | I82: 0 | J82: 0 | K82: 0 | L82: 0 | M82: 0 | N82: 0 | O82: 2.328306437e-11 | P82: 7.663271271e-13 | Q82: -1.635053195e-14 | R82: -1.261366415e-13 | S82: 2.390690432e-11 | T82: 6.42139291e-13 | U82: 1.346383654e-18 | V82: 0 | W82: 55 | X82: 0 | Y82: 0 | Z82: 0 | AA82: 0 | AB82: 0 | AC82: 0 | AD82: 0 | AE82: 2.390690432e-11 | AF82: 0 | AG82: -2.390690432e-11 | AH82: -2.390690432e-11 | AI82: 0 | AL82: 2.343239029e-11 | AN82: 2.328306437e-09
A83: 56 | B83: 0 | C83: 0 | D83: 0 | E83: 17756383.37 | F83: 0 | G83: 0 | H83: 0 | I83: 0 | J83: 0 | K83: 0 | L83: 0 | M83: 0 | N83: 0 | O83: 2.328306437e-11 | P83: 7.663271271e-13 | Q83: -1.635053195e-14 | R83: -1.261366415e-13 | S83: 2.390690432e-11 | T83: 6.005353996e-13 | U83: 1.346383654e-18 | V83: 0 | W83: 56 | X83: 0 | Y83: 0 | Z83: 0 | AA83: 0 | AB83: 0 | AC83: 0 | AD83: 0 | AE83: 2.390690432e-11 | AF83: 0 | AG83: -2.390690432e-11 | AH83: -2.390690432e-11 | AI83: 0 | AL83: 2.343239029e-11 | AN83: 2.328306437e-09
A84: 57 | B84: 0 | C84: 0 | D84: 0 | E84: 17756383.37 | F84: 0 | G84: 0 | H84: 0 | I84: 0 | J84: 0 | K84: 0 | L84: 0 | M84: 0 | N84: 0 | O84: 2.328306437e-11 | P84: 7.663271271e-13 | Q84: -1.635053195e-14 | R84: -1.261366415e-13 | S84: 2.390690432e-11 | T84: 5.61627004e-13 | U84: 1.346383654e-18 | V84: 0 | W84: 57 | X84: 0 | Y84: 0 | Z84: 0 | AA84: 0 | AB84: 0 | AC84: 0 | AD84: 0 | AE84: 2.390690432e-11 | AF84: 0 | AG84: -2.390690432e-11 | AH84: -2.390690432e-11 | AI84: 0 | AL84: 2.343239029e-11 | AN84: 2.328306437e-09
A85: 58 | B85: 0 | C85: 0 | D85: 0 | E85: 17756383.37 | F85: 0 | G85: 0 | H85: 0 | I85: 0 | J85: 0 | K85: 0 | L85: 0 | M85: 0 | N85: 0 | O85: 2.328306437e-11 | P85: 7.663271271e-13 | Q85: -1.635053195e-14 | R85: -1.261366415e-13 | S85: 2.390690432e-11 | T85: 5.252394644e-13 | U85: 1.346383654e-18 | V85: 0 | W85: 58 | X85: 0 | Y85: 0 | Z85: 0 | AA85: 0 | AB85: 0 | AC85: 0 | AD85: 0 | AE85: 2.390690432e-11 | AF85: 0 | AG85: -2.390690432e-11 | AH85: -2.390690432e-11 | AI85: 0 | AL85: 2.343239029e-11 | AN85: 2.328306437e-09
A86: 59 | B86: 0 | C86: 0 | D86: 0 | E86: 17756383.37 | F86: 0 | G86: 0 | H86: 0 | I86: 0 | J86: 0 | K86: 0 | L86: 0 | M86: 0 | N86: 0 | O86: 2.328306437e-11 | P86: 7.663271271e-13 | Q86: -1.635053195e-14 | R86: -1.261366415e-13 | S86: 2.390690432e-11 | T86: 4.912094557e-13 | U86: 1.346383654e-18 | V86: 0 | W86: 59 | X86: 0 | Y86: 0 | Z86: 0 | AA86: 0 | AB86: 0 | AC86: 0 | AD86: 0 | AE86: 2.390690432e-11 | AF86: 0 | AG86: -2.390690432e-11 | AH86: -2.390690432e-11 | AI86: 0 | AL86: 2.343239029e-11 | AN86: 2.328306437e-09
A87: 60 | B87: 0 | C87: 0 | D87: 0 | E87: 17756383.37 | F87: 0 | G87: 0 | H87: 0 | I87: 0 | J87: 0 | K87: 0 | L87: 0 | M87: 0 | N87: 0 | O87: 2.328306437e-11 | P87: 7.663271271e-13 | Q87: -1.635053195e-14 | R87: -1.261366415e-13 | S87: 2.390690432e-11 | T87: 4.593842347e-13 | U87: 1.346383654e-18 | V87: 0 | W87: 60 | X87: 0 | Y87: 0 | Z87: 0 | AA87: 0 | AB87: 0 | AC87: 0 | AD87: 0 | AE87: 2.390690432e-11 | AF87: 0 | AG87: -2.390690432e-11 | AH87: -2.390690432e-11 | AI87: 0 | AL87: 2.343239029e-11 | AN87: 2.328306437e-09
A88: 61 | B88: 0 | C88: 0 | D88: 0 | E88: 17756383.37 | F88: 0 | G88: 0 | H88: 0 | I88: 0 | J88: 0 | K88: 0 | L88: 0 | M88: =IF(A88=1,($N$3+$N$2)*K88,($N$3+$N$2)*K88) -> 0 | N88: 0 | O88: 2.328306437e-11 | P88: 7.663271271e-13 | Q88: -1.635053195e-14 | R88: -1.261366415e-13 | S88: 2.390690432e-11 | T88: 4.296209542e-13 | U88: 1.346383654e-18 | V88: 0 | W88: 61 | X88: 0 | Y88: 0 | Z88: 0 | AA88: 0 | AB88: 0 | AC88: 0 | AD88: 0 | AE88: 2.390690432e-11 | AF88: 0 | AG88: -2.390690432e-11 | AH88: -2.390690432e-11 | AI88: 0 | AL88: 2.343239029e-11 | AN88: 2.328306437e-09
A89: 62 | B89: 0 | C89: 0 | D89: 0 | E89: 17756383.37 | F89: 0 | G89: 0 | H89: 0 | I89: 0 | J89: 0 | K89: 0 | L89: 0 | M89: =IF(A89=1,($N$3+$N$2)*K89,($N$3+$N$2)*K89) -> 0 | N89: 0 | O89: 2.328306437e-11 | P89: 7.663271271e-13 | Q89: -1.635053195e-14 | R89: -1.261366415e-13 | S89: 2.390690432e-11 | T89: 4.017860222e-13 | U89: 1.346383654e-18 | V89: 0 | W89: 62 | X89: 0 | Y89: 0 | Z89: 0 | AA89: 0 | AB89: 0 | AC89: 0 | AD89: 0 | AE89: 2.390690432e-11 | AF89: 0 | AG89: -2.390690432e-11 | AH89: -2.390690432e-11 | AI89: 0 | AL89: 2.343239029e-11 | AN89: 2.328306437e-09
A90: 63 | B90: 0 | C90: 0 | D90: 0 | E90: 17756383.37 | F90: 0 | G90: 0 | H90: 0 | I90: 0 | J90: 0 | K90: 0 | L90: 0 | M90: 0 | N90: 0 | O90: 2.328306437e-11 | P90: 7.663271271e-13 | Q90: -1.635053195e-14 | R90: -1.261366415e-13 | S90: 2.390690432e-11 | T90: 3.757545018e-13 | U90: 1.346383654e-18 | V90: 0 | W90: 63 | X90: 0 | Y90: 0 | Z90: 0 | AA90: 0 | AB90: 0 | AC90: 0 | AD90: 0 | AE90: 2.390690432e-11 | AF90: 0 | AG90: -2.390690432e-11 | AH90: -2.390690432e-11 | AI90: 0 | AL90: 2.343239029e-11 | AN90: 2.328306437e-09
A91: 64 | B91: 0 | C91: 0 | D91: 0 | E91: 17756383.37 | F91: 0 | G91: 0 | H91: 0 | I91: 0 | J91: 0 | K91: 0 | L91: 0 | M91: 0 | N91: 0 | O91: 2.328306437e-11 | P91: 7.663271271e-13 | Q91: -1.635053195e-14 | R91: -1.261366415e-13 | S91: 2.390690432e-11 | T91: 3.514095509e-13 | U91: 1.346383654e-18 | V91: 0 | W91: 64 | X91: 0 | Y91: 0 | Z91: 0 | AA91: 0 | AB91: 0 | AC91: 0 | AD91: 0 | AE91: 2.390690432e-11 | AF91: 0 | AG91: -2.390690432e-11 | AH91: -2.390690432e-11 | AI91: 0 | AL91: 2.343239029e-11 | AN91: 2.328306437e-09
A92: =1+A91 -> 65 | B92: 0 | C92: 0 | D92: =I91+C92 -> 0 | E92: =E91+J92 -> 17756383.37 | F92: =CA201 -> 0 | G92: 0 | H92: =(F92-G92)*$D$2 -> 0 | I92: =D92-J92-H92 -> 0 | J92: =CA387 -> 0 | K92: =(+I92+D92)/2 -> 0 | L92: 0 | M92: 0 | N92: 0 | O92: =AN92*$D$10 -> 2.328306437e-11 | P92: 7.663271271e-13 | Q92: =(+AL92-(G92+L92+N92+O92+P92))*$D$1 -> -1.635053195e-14 | R92: =(+AL92-(G92+L92+N92+O92+P92+Q92))*$D$2 -> -1.261366415e-13 | S92: =J92+M92+L92+N92+O92+P92+Q92+R92 -> 2.390690432e-11 | T92: 3.286418976e-13 | U92: 1.346383654e-18 | V92: 0 | W92: 65 | X92: 0 | Y92: 0 | Z92: 0 | AA92: 0 | AB92: 0 | AC92: 0 | AD92: 0 | AE92: =S92 -> 2.390690432e-11 | AF92: =V92 -> 0 | AG92: =AF92-AE92 -> -2.390690432e-11 | AH92: -2.390690432e-11 | AI92: 0 | AL92: 2.343239029e-11 | AN92: 2.328306437e-09
A93: 66 | B93: 0 | C93: =B93 -> 0 | D93: 0 | E93: 17756383.37 | F93: 0 | G93: =CA294 -> 0 | H93: 0 | I93: 0 | J93: 0 | K93: 0 | L93: =IF(A93=1,$N$1*K93,$N$1*K93) -> 0 | M93: 0 | N93: 0 | O93: 2.328306437e-11 | P93: =AL93*$T$8 -> 7.663271271e-13 | Q93: -1.635053195e-14 | R93: -1.261366415e-13 | S93: 2.390690432e-11 | T93: =S93/(1+$D$3)^(A93-1) -> 3.073493493e-13 | U93: =S93/$B$28 -> 1.346383654e-18 | V93: 0 | W93: =1+W92 -> 66 | X93: 0 | Y93: =+X93 -> 0 | Z93: =X93*$Z$24 -> 0 | AA93: 0 | AB93: 0 | AC93: 0 | AD93: 0 | AE93: 2.390690432e-11 | AF93: 0 | AG93: -2.390690432e-11 | AH93: =AF93-AE93 -> -2.390690432e-11 | AI93: =IF(A93=1,AF93-T89,AF93) -> 0 | AL93: =(+J93+L93+M93+N93+O93-(($D$1+(1-$D$1)*$D$2)*(G93+L93+N93+O93)))/$T$16 -> 2.343239029e-11 | AN93: =C93-J92+AN92 -> 2.328306437e-09
A94: 67 | B94: 0 | C94: 0 | D94: 0 | E94: 17756383.37 | F94: 0 | G94: 0 | H94: 0 | I94: 0 | J94: 0 | K94: 0 | L94: 0 | M94: 0 | N94: 0 | O94: 2.328306437e-11 | P94: 7.663271271e-13 | Q94: -1.635053195e-14 | R94: -1.261366415e-13 | S94: 2.390690432e-11 | T94: 2.874363349e-13 | U94: 1.346383654e-18 | V94: 0 | W94: 67 | X94: 0 | Y94: 0 | Z94: 0 | AA94: 0 | AB94: 0 | AC94: 0 | AD94: 0 | AE94: 2.390690432e-11 | AF94: 0 | AG94: -2.390690432e-11 | AH94: -2.390690432e-11 | AI94: 0 | AL94: 2.343239029e-11 | AN94: 2.328306437e-09
A95: 68 | B95: 0 | C95: 0 | D95: 0 | E95: 17756383.37 | F95: 0 | G95: 0 | H95: 0 | I95: 0 | J95: 0 | K95: 0 | L95: 0 | M95: 0 | N95: 0 | O95: 2.328306437e-11 | P95: 7.663271271e-13 | Q95: -1.635053195e-14 | R95: -1.261366415e-13 | S95: 2.390690432e-11 | T95: 2.68813475e-13 | U95: 1.346383654e-18 | V95: 0 | W95: 68 | X95: 0 | Y95: 0 | Z95: 0 | AA95: 0 | AB95: 0 | AC95: 0 | AD95: 0 | AE95: 2.390690432e-11 | AF95: 0 | AG95: -2.390690432e-11 | AH95: -2.390690432e-11 | AI95: 0 | AL95: 2.343239029e-11 | AN95: 2.328306437e-09
A96: 69 | B96: 0 | C96: 0 | D96: 0 | E96: 17756383.37 | F96: 0 | G96: 0 | H96: 0 | I96: 0 | J96: 0 | K96: 0 | L96: 0 | M96: 0 | N96: 0 | O96: 2.328306437e-11 | P96: 7.663271271e-13 | Q96: -1.635053195e-14 | R96: -1.261366415e-13 | S96: 2.390690432e-11 | T96: 2.513971811e-13 | U96: 1.346383654e-18 | V96: 0 | W96: 69 | X96: 0 | Y96: 0 | Z96: 0 | AA96: 0 | AB96: 0 | AC96: 0 | AD96: 0 | AE96: 2.390690432e-11 | AF96: 0 | AG96: -2.390690432e-11 | AH96: -2.390690432e-11 | AI96: 0 | AL96: 2.343239029e-11 | AN96: 2.328306437e-09
A97: 70 | B97: 0 | C97: 0 | D97: 0 | E97: 17756383.37 | F97: 0 | G97: 0 | H97: 0 | I97: 0 | J97: 0 | K97: 0 | L97: 0 | M97: 0 | N97: 0 | O97: 2.328306437e-11 | P97: 7.663271271e-13 | Q97: -1.635053195e-14 | R97: -1.261366415e-13 | S97: 2.390690432e-11 | T97: 2.351092804e-13 | U97: 1.346383654e-18 | V97: 0 | W97: 70 | X97: 0 | Y97: 0 | Z97: 0 | AA97: 0 | AB97: 0 | AC97: 0 | AD97: 0 | AE97: 2.390690432e-11 | AF97: 0 | AG97: -2.390690432e-11 | AH97: -2.390690432e-11 | AI97: 0 | AL97: 2.343239029e-11 | AN97: 2.328306437e-09
A98: 71 | B98: 0 | C98: 0 | D98: 0 | E98: 17756383.37 | F98: 0 | G98: 0 | H98: 0 | I98: 0 | J98: 0 | K98: 0 | L98: 0 | M98: 0 | N98: 0 | O98: 2.328306437e-11 | P98: 7.663271271e-13 | Q98: -1.635053195e-14 | R98: -1.261366415e-13 | S98: 2.390690432e-11 | T98: 2.198766648e-13 | U98: 1.346383654e-18 | V98: 0 | W98: 71 | X98: 0 | Y98: 0 | Z98: 0 | AA98: 0 | AB98: 0 | AC98: 0 | AD98: 0 | AE98: 2.390690432e-11 | AF98: 0 | AG98: -2.390690432e-11 | AH98: -2.390690432e-11 | AI98: 0 | AL98: 2.343239029e-11 | AN98: 2.328306437e-09
A99: 72 | B99: 0 | C99: 0 | D99: 0 | E99: 17756383.37 | F99: 0 | G99: 0 | H99: 0 | I99: 0 | J99: 0 | K99: 0 | L99: 0 | M99: 0 | N99: 0 | O99: 2.328306437e-11 | P99: 7.663271271e-13 | Q99: -1.635053195e-14 | R99: -1.261366415e-13 | S99: 2.390690432e-11 | T99: 2.056309629e-13 | U99: 1.346383654e-18 | V99: 0 | W99: 72 | X99: 0 | Y99: 0 | Z99: 0 | AA99: 0 | AB99: 0 | AC99: 0 | AD99: 0 | AE99: 2.390690432e-11 | AF99: 0 | AG99: -2.390690432e-11 | AH99: -2.390690432e-11 | AI99: 0 | AL99: 2.343239029e-11 | AN99: 2.328306437e-09
A100: 73 | B100: 0 | C100: 0 | D100: 0 | E100: 17756383.37 | F100: 0 | G100: 0 | H100: 0 | I100: 0 | J100: 0 | K100: 0 | L100: 0 | M100: 0 | N100: 0 | O100: 2.328306437e-11 | P100: 7.663271271e-13 | Q100: -1.635053195e-14 | R100: -1.261366415e-13 | S100: 2.390690432e-11 | T100: 1.923082332e-13 | U100: 1.346383654e-18 | V100: 0 | W100: 73 | X100: 0 | Y100: 0 | Z100: 0 | AA100: 0 | AB100: 0 | AC100: 0 | AD100: 0 | AE100: 2.390690432e-11 | AF100: 0 | AG100: -2.390690432e-11 | AH100: -2.390690432e-11 | AI100: 0 | AL100: 2.343239029e-11 | AN100: 2.328306437e-09
A101: 74 | B101: 0 | C101: 0 | D101: 0 | E101: 17756383.37 | F101: 0 | G101: 0 | H101: 0 | I101: 0 | J101: 0 | K101: 0 | L101: 0 | M101: 0 | N101: 0 | O101: 2.328306437e-11 | P101: 7.663271271e-13 | Q101: -1.635053195e-14 | R101: -1.261366415e-13 | S101: 2.390690432e-11 | T101: 1.798486765e-13 | U101: 1.346383654e-18 | V101: 0 | W101: 74 | X101: 0 | Y101: 0 | Z101: 0 | AA101: 0 | AB101: 0 | AC101: 0 | AD101: 0 | AE101: 2.390690432e-11 | AF101: 0 | AG101: -2.390690432e-11 | AH101: -2.390690432e-11 | AI101: 0 | AL101: 2.343239029e-11 | AN101: 2.328306437e-09
A102: 75 | B102: 0 | C102: 0 | D102: 0 | E102: 17756383.37 | F102: 0 | G102: 0 | H102: 0 | I102: 0 | J102: 0 | K102: 0 | L102: 0 | M102: 0 | N102: 0 | O102: 2.328306437e-11 | P102: 7.663271271e-13 | Q102: -1.635053195e-14 | R102: -1.261366415e-13 | S102: 2.390690432e-11 | T102: 1.681963685e-13 | U102: 1.346383654e-18 | V102: 0 | W102: 75 | X102: 0 | Y102: 0 | Z102: 0 | AA102: 0 | AB102: 0 | AC102: 0 | AD102: 0 | AE102: 2.390690432e-11 | AF102: 0 | AG102: -2.390690432e-11 | AH102: -2.390690432e-11 | AI102: 0 | AL102: 2.343239029e-11 | AN102: 2.328306437e-09
A103: 76 | B103: 0 | C103: 0 | D103: 0 | E103: 17756383.37 | F103: 0 | G103: 0 | H103: 0 | I103: 0 | J103: 0 | K103: 0 | L103: 0 | M103: 0 | N103: 0 | O103: 2.328306437e-11 | P103: 7.663271271e-13 | Q103: -1.635053195e-14 | R103: -1.261366415e-13 | S103: 2.390690432e-11 | T103: 1.572990079e-13 | U103: 1.346383654e-18 | V103: 0 | W103: 76 | X103: 0 | Y103: 0 | Z103: 0 | AA103: 0 | AB103: 0 | AC103: 0 | AD103: 0 | AE103: 2.390690432e-11 | AF103: 0 | AG103: -2.390690432e-11 | AH103: -2.390690432e-11 | AI103: 0 | AL103: 2.343239029e-11 | AN103: 2.328306437e-09
A104: = | B104: = | C104: = | D104: = | E104: = | F104: = | G104: = | H104: = | I104: = | J104: = | K104: = | L104: = | M104: = | N104: = | O104: = | P104: = | Q104: = | R104: = | S104: = | T104: =
A106: (a) Time Period in Years
A107: (b) Capital Additions Tax Basis
A108: (c) Capital Additions Book Basis
A109: (d) Rate Base Beginning of Period = Previous(i) + Previous(c)
A110: (e) Accumulated Depreciation = Previous(e) + (j)
A111: (f) Tax Depreciation = Modified ACRS Schedules Times The Tax Basis
A112: (g) Book Depreciation on Tax Basis = Straight Line Depreciation of Tax Basis
A113: (h) Deferred Taxes = [(f)-(g)] * Federal Income Tax Rate
A114: (i) Rate Base End of Period = (d) - (j) - (h)
A115: (j) Book Depreciation = Straight Line Per Book Life
A116: (k) Average Rate Base = [(d) + (i)] / 2
A117: (l) Interest Expense = Weighted Cost of Debt * (k)
A118: (m) Equity Return = [Weighted Cost of Preferred + Weighted Cost of Common] * (k)
A119: (n) Operating and Maintenance Expense = Previous(n) * [1 + O&M Escalation Factor]
A120: (o) Property Taxes = Property Tax Rate * (d)
A121: (p) Miscellaneous Revenue Items = Revenue Requirements * Miscellaneous Revenue Items Percentage
A122: (q) State Income Tax = [Revenue Requirement - [(g) + (l) + (m) + (n) + (o) + (p)] * State Income Tax Rate
A123: (r) Federal Income Taxes = [Revenue Requirements - [(g) + (l) + (n) + (o) + Miscellaneous Revenue Items + State Tax] * Federal Income Tax Rate
A124: (s) Total Revenue Requirements = (j) + (l) + (m) + (n) + (o) + (p) + (q) + (r)
A125: (t) Present Value Revenue Requirements = Total Revenue Requirements / [1 + Discount Factor] ^ [(a) - .5]
A127: Revenue Requirements = [(j) + (l) + (m) + (n) + (o) - Federal Income Tax Rate * [(g) + (l) + (n) + (o)]] / Conversion Factor
A130: TAX DEPRECIATION
A132: Class => | B132: =$D$4 -> 3
C133: 1 | D133: 2 | E133: 3 | F133: 4 | G133: 5 | H133: 6 | I133: 7 | J133: 8 | K133: 9 | L133: 10 | M133: 11 | N133: 12 | O133: 13 | P133: 14 | Q133: 15 | R133: 16 | S133: 17 | T133: 18 | U133: 19 | V133: 20 | W133: 21 | X133: 22 | Y133: 23 | Z133: 24 | AA133: 25 | AB133: 26 | AC133: 27 | AD133: 28 | AE133: 29 | AF133: 30 | AG133: 31 | AH133: 32 | AI133: 33 | AJ133: 34 | AK133: 35 | AL133: 36 | AM133: 37 | AN133: 38 | AO133: 39 | AP133: 40 | AQ133: 41 | AR133: 42 | AS133: 43 | AT133: 44 | AU133: 45 | AV133: 46 | AW133: 47 | AX133: 48 | AY133: 49 | AZ133: 50 | BA133: 51 | BB133: 52 | BC133: 53 | BD133: 54 | BE133: 55 | BF133: 56 | BG133: 57 | BH133: 58 | BI133: 59 | BJ133: 60 | BK133: 61 | BL133: 62 | BM133: 63 | BN133: 64 | BO133: 65 | BP133: 66 | BQ133: 67 | BR133: 68 | BS133: 69 | BT133: 70 | BU133: 71 | BV133: 72 | BW133: 73 | BX133: 74 | BY133: 75 | BZ133: 76 | CA133: Total
C134: - | D134: - | E134: - | F134: - | G134: - | H134: - | I134: - | J134: - | K134: - | L134: - | M134: - | N134: - | O134: - | P134: - | Q134: - | R134: - | S134: - | T134: - | U134: - | V134: - | W134: - | X134: - | Y134: - | Z134: - | AA134: - | AB134: - | AC134: - | AD134: - | AE134: - | AF134: - | AG134: - | AH134: - | AI134: - | AJ134: - | AK134: - | AL134: - | AM134: - | AN134: - | AO134: - | AP134: - | AQ134: - | AR134: - | AS134: - | AT134: - | AU134: - | AV134: - | AW134: - | AX134: - | AY134: - | AZ134: - | BA134: - | BB134: - | BC134: - | BD134: - | BE134: - | BF134: - | BG134: - | BH134: - | BI134: - | BJ134: - | BK134: - | BL134: - | BM134: - | BN134: - | BO134: - | BP134: - | BQ134: - | BR134: - | BS134: - | BT134: - | BU134: - | BV134: - | BW134: - | BX134: - | BY134: - | BZ134: - | CA134: -
A135: Rate | B135: Capital | C135: =$B28 -> 17756383.37 | D135: =$B29 -> 0 | E135: =$B30 -> 0 | F135: =$B31 -> 0 | G135: =$B32 -> 0 | H135: =$B33 -> 0 | I135: =$B34 -> 0 | J135: =$B35 -> 0 | K135: =$B36 -> 0 | L135: =$B37 -> 0 | M135: =$B38 -> 0 | N135: =$B39 -> 0 | O135: =$B40 -> 0 | P135: =$B41 -> 0 | Q135: =$B42 -> 0 | R135: =$B43 -> 0 | S135: =$B44 -> 0 | T135: =$B45 -> 0 | U135: =$B46 -> 0 | V135: =$B47 -> 0 | W135: =$B48 -> 0 | X135: =$B49 -> 0 | Y135: =$B50 -> 0 | Z135: =$B51 -> 0 | AA135: =$B52 -> 0 | AB135: =$B53 -> 0 | AC135: =$B54 -> 0 | AD135: =$B55 -> 0 | AE135: =$B56 -> 0 | AF135: =$B57 -> 0 | AG135: =$B58 -> 0 | AH135: =$B59 -> 0 | AI135: =$B60 -> 0 | AJ135: =$B61 -> 0 | AK135: =$B62 -> 0 | AL135: =$B63 -> 0 | AM135: =$B64 -> 0 | AN135: =$B65 -> 0 | AO135: =$B66 -> 0 | AP135: =$B67 -> 0 | AQ135: =$B68 -> 0 | AR135: =$B69 -> 0 | AS135: =$B70 -> 0 | AT135: =$B71 -> 0 | AU135: =$B72 -> 0 | AV135: =$B73 -> 0 | AW135: =$B74 -> 0 | AX135: =$B75 -> 0 | AY135: =$B76 -> 0 | AZ135: =$B77 -> 0 | BA135: =$B78 -> 0 | BB135: =$B79 -> 0 | BC135: =$B80 -> 0 | BD135: =$B81 -> 0 | BE135: =$B82 -> 0 | BF135: =$B83 -> 0 | BG135: =$B84 -> 0 | BH135: =$B85 -> 0 | BI135: =$B86 -> 0 | BJ135: =$B87 -> 0 | BK135: =$B88 -> 0 | BL135: =$B89 -> 0 | BM135: =$B90 -> 0 | BN135: =$B91 -> 0 | BO135: =$B92 -> 0 | BP135: =$B93 -> 0 | BQ135: =$B94 -> 0 | BR135: =$B95 -> 0 | BS135: =$B96 -> 0 | BT135: =$B97 -> 0 | BU135: =$B98 -> 0 | BV135: =$B99 -> 0 | BW135: =$B100 -> 0 | BX135: =$B101 -> 0 | BY135: =$B102 -> 0 | BZ135: =$B103 -> 0 | CA135: =SUM($C135:$BZ135) -> 17756383.37 | CC135: 31.5 Year | CD135: 20 Years | CE135: 7 Years | CF135: 5 Years
C136: - | D136: - | E136: - | F136: - | G136: - | H136: - | I136: - | J136: - | K136: - | L136: - | M136: - | N136: - | O136: - | P136: - | Q136: - | R136: - | S136: - | T136: - | U136: - | V136: - | W136: - | X136: - | Y136: - | Z136: - | AA136: - | AB136: - | AC136: - | AD136: - | AE136: - | AF136: - | AG136: - | AH136: - | AI136: - | AJ136: - | AK136: - | AL136: - | AM136: - | AN136: - | AO136: - | AP136: - | AQ136: - | AR136: - | AS136: - | AT136: - | AU136: - | AV136: - | AW136: - | AX136: - | AY136: - | AZ136: - | BA136: - | BB136: - | BC136: - | BD136: - | BE136: - | BF136: - | BG136: - | BH136: - | BI136: - | BJ136: - | BK136: - | BL136: - | BM136: - | BN136: - | BO136: - | BP136: - | BQ136: - | BR136: - | BS136: - | BT136: - | BU136: - | BV136: - | BW136: - | BX136: - | BY136: - | BZ136: - | CA136: -
A137: =IF($B$132=1,CC137,IF($B$132=2,CD137,IF($B$132=3,CE137,IF($B$132=4,CF137,#VALUE!)))) -> 0.14286 | B137: =+B136+1 -> 1 | C137: =C$135*$A137 -> 2536676.928 | CA137: =SUM($C137:$BZ137) -> 2536676.928 | CC137: 0.01587 | CD137: 0.0375 | CE137: 0.14286 | CF137: 0.2
A138: =IF($B$132=1,CC138,IF($B$132=2,CD138,IF($B$132=3,CE138,IF($B$132=4,CF138,#VALUE!)))) -> 0.2449 | B138: =+B137+1 -> 2 | C138: =C$135*$A138 -> 4348538.286 | D138: =D$135*$A137 -> 0 | CA138: 4348538.286 | CC138: 0.03175 | CD138: 0.07219 | CE138: 0.2449 | CF138: 0.32
A139: 0.17493 | B139: 3 | C139: 3106124.142 | D139: =D$135*$A138 -> 0 | E139: =E$135*$A137 -> 0 | CA139: 3106124.142 | CC139: 0.03175 | CD139: 0.06678 | CE139: 0.17493 | CF139: 0.192
A140: 0.12495 | B140: 4 | C140: 2218660.102 | D140: 0 | E140: =E$135*$A138 -> 0 | F140: =F$135*$A137 -> 0 | CA140: 2218660.102 | CC140: 0.03175 | CD140: 0.06178 | CE140: 0.12495 | CF140: 0.1152
A141: 0.08925 | B141: 5 | C141: 1584757.215 | D141: 0 | E141: 0 | F141: =F$135*$A138 -> 0 | G141: =G$135*$A137 -> 0 | CA141: 1584757.215 | CC141: 0.03175 | CD141: 0.05715 | CE141: 0.08925 | CF141: 0.1152
A142: 0.08925 | B142: 6 | C142: 1584757.215 | D142: 0 | E142: 0 | F142: 0 | G142: =G$135*$A138 -> 0 | H142: =H$135*$A137 -> 0 | CA142: 1584757.215 | CC142: 0.03175 | CD142: 0.05286 | CE142: 0.08925 | CF142: 0.0576
A143: 0.08925 | B143: 7 | C143: 1584757.215 | D143: 0 | E143: 0 | F143: 0 | G143: 0 | H143: =H$135*$A138 -> 0 | I143: =I$135*$A137 -> 0 | CA143: 1584757.215 | CC143: 0.03175 | CD143: 0.0489 | CE143: 0.08925 | CF143: 0
A144: 0.04461 | B144: 8 | C144: 792112.262 | D144: 0 | E144: 0 | F144: 0 | G144: 0 | H144: 0 | I144: =I$135*$A138 -> 0 | J144: =J$135*$A137 -> 0 | CA144: 792112.262 | CC144: 0.03175 | CD144: 0.04523 | CE144: 0.04461 | CF144: 0
A145: 0 | B145: 9 | C145: 0 | D145: 0 | E145: 0 | F145: 0 | G145: 0 | H145: 0 | I145: 0 | J145: =J$135*$A138 -> 0 | K145: =K$135*$A137 -> 0 | CA145: 0 | CC145: 0.03175 | CD145: 0.04461 | CE145: 0 | CF145: 0
A146: 0 | B146: 10 | C146: 0 | D146: 0 | E146: 0 | F146: 0 | G146: 0 | H146: 0 | I146: 0 | J146: 0 | K146: =K$135*$A138 -> 0 | L146: =L$135*$A137 -> 0 | CA146: 0 | CC146: 0.03175 | CD146: 0.04461 | CE146: 0 | CF146: 0
A147: 0 | B147: 11 | C147: 0 | D147: 0 | E147: 0 | F147: 0 | G147: 0 | H147: 0 | I147: 0 | J147: 0 | K147: 0 | L147: =L$135*$A138 -> 0 | M147: =M$135*$A137 -> 0 | CA147: 0 | CC147: 0.03175 | CD147: 0.04461 | CE147: 0 | CF147: 0
A148: 0 | B148: 12 | C148: 0 | D148: 0 | E148: 0 | F148: 0 | G148: 0 | H148: 0 | I148: 0 | J148: 0 | K148: 0 | L148: 0 | M148: =M$135*$A138 -> 0 | N148: =N$135*$A137 -> 0 | CA148: 0 | CC148: 0.03175 | CD148: 0.04461 | CE148: 0 | CF148: 0
A149: 0 | B149: 13 | C149: 0 | D149: 0 | E149: 0 | F149: 0 | G149: 0 | H149: 0 | I149: 0 | J149: 0 | K149: 0 | L149: 0 | M149: 0 | N149: =N$135*$A138 -> 0 | O149: =O$135*$A137 -> 0 | CA149: 0 | CC149: 0.03175 | CD149: 0.04461 | CE149: 0 | CF149: 0
A150: 0 | B150: 14 | C150: 0 | D150: 0 | E150: 0 | F150: 0 | G150: 0 | H150: 0 | I150: 0 | J150: 0 | K150: 0 | L150: 0 | M150: 0 | N150: 0 | O150: =O$135*$A138 -> 0 | P150: =P$135*$A137 -> 0 | CA150: 0 | CC150: 0.03175 | CD150: 0.04461 | CE150: 0 | CF150: 0
A151: 0 | B151: 15 | C151: 0 | D151: 0 | E151: 0 | F151: 0 | G151: 0 | H151: 0 | I151: 0 | J151: 0 | K151: 0 | L151: 0 | M151: 0 | N151: 0 | O151: 0 | P151: =P$135*$A138 -> 0 | Q151: =Q$135*$A137 -> 0 | CA151: 0 | CC151: 0.03175 | CD151: 0.04461 | CE151: 0 | CF151: 0
A152: 0 | B152: 16 | C152: 0 | D152: 0 | E152: 0 | F152: 0 | G152: 0 | H152: 0 | I152: 0 | J152: 0 | K152: 0 | L152: 0 | M152: 0 | N152: 0 | O152: 0 | P152: 0 | Q152: =Q$135*$A138 -> 0 | R152: =R$135*$A137 -> 0 | CA152: 0 | CC152: 0.03175 | CD152: 0.04461 | CE152: 0 | CF152: 0
A153: 0 | B153: 17 | C153: 0 | D153: 0 | E153: 0 | F153: 0 | G153: 0 | H153: 0 | I153: 0 | J153: 0 | K153: 0 | L153: 0 | M153: 0 | N153: 0 | O153: 0 | P153: 0 | Q153: 0 | R153: =R$135*$A138 -> 0 | S153: =S$135*$A137 -> 0 | CA153: 0 | CC153: 0.03175 | CD153: 0.04461 | CE153: 0 | CF153: 0
A154: 0 | B154: 18 | C154: 0 | D154: 0 | E154: 0 | F154: 0 | G154: 0 | H154: 0 | I154: 0 | J154: 0 | K154: 0 | L154: 0 | M154: 0 | N154: 0 | O154: 0 | P154: 0 | Q154: 0 | R154: 0 | S154: =S$135*$A138 -> 0 | T154: =T$135*$A137 -> 0 | CA154: 0 | CC154: 0.03175 | CD154: 0.04461 | CE154: 0 | CF154: 0
A155: 0 | B155: 19 | C155: 0 | D155: 0 | E155: 0 | F155: 0 | G155: 0 | H155: 0 | I155: 0 | J155: 0 | K155: 0 | L155: 0 | M155: 0 | N155: 0 | O155: 0 | P155: 0 | Q155: 0 | R155: 0 | S155: 0 | T155: =T$135*$A138 -> 0 | U155: =U$135*$A137 -> 0 | CA155: 0 | CC155: 0.03175 | CD155: 0.04461 | CE155: 0 | CF155: 0
A156: 0 | B156: 20 | C156: 0 | D156: 0 | E156: 0 | F156: 0 | G156: 0 | H156: 0 | I156: 0 | J156: 0 | K156: 0 | L156: 0 | M156: 0 | N156: 0 | O156: 0 | P156: 0 | Q156: 0 | R156: 0 | S156: 0 | T156: 0 | U156: =U$135*$A138 -> 0 | V156: =V$135*$A137 -> 0 | CA156: 0 | CC156: 0.03175 | CD156: 0.04461 | CE156: 0 | CF156: 0
A157: 0 | B157: 21 | C157: 0 | D157: 0 | E157: 0 | F157: 0 | G157: 0 | H157: 0 | I157: 0 | J157: 0 | K157: 0 | L157: 0 | M157: 0 | N157: 0 | O157: 0 | P157: 0 | Q157: 0 | R157: 0 | S157: 0 | T157: 0 | U157: 0 | V157: =V$135*$A138 -> 0 | W157: =W$135*$A137 -> 0 | CA157: 0 | CC157: 0.03175 | CD157: 0.02229 | CE157: 0 | CF157: 0
A158: 0 | B158: 22 | C158: 0 | D158: 0 | E158: 0 | F158: 0 | G158: 0 | H158: 0 | I158: 0 | J158: 0 | K158: 0 | L158: 0 | M158: 0 | N158: 0 | O158: 0 | P158: 0 | Q158: 0 | R158: 0 | S158: 0 | T158: 0 | U158: 0 | V158: 0 | W158: =W$135*$A138 -> 0 | X158: =X$135*$A137 -> 0 | CA158: 0 | CC158: 0.03175 | CD158: 0 | CE158: 0 | CF158: 0
A159: 0 | B159: 23 | C159: 0 | D159: 0 | E159: 0 | F159: 0 | G159: 0 | H159: 0 | I159: 0 | J159: 0 | K159: 0 | L159: 0 | M159: 0 | N159: 0 | O159: 0 | P159: 0 | Q159: 0 | R159: 0 | S159: 0 | T159: 0 | U159: 0 | V159: 0 | W159: 0 | X159: =X$135*$A138 -> 0 | Y159: =Y$135*$A137 -> 0 | CA159: 0 | CC159: 0.03175 | CD159: 0 | CE159: 0 | CF159: 0
A160: 0 | B160: 24 | C160: 0 | D160: 0 | E160: 0 | F160: 0 | G160: 0 | H160: 0 | I160: 0 | J160: 0 | K160: 0 | L160: 0 | M160: 0 | N160: 0 | O160: 0 | P160: 0 | Q160: 0 | R160: 0 | S160: 0 | T160: 0 | U160: 0 | V160: 0 | W160: 0 | X160: 0 | Y160: =Y$135*$A138 -> 0 | Z160: =Z$135*$A137 -> 0 | CA160: 0 | CC160: 0.03175 | CD160: 0 | CE160: 0 | CF160: 0
A161: 0 | B161: 25 | C161: 0 | D161: 0 | E161: 0 | F161: 0 | G161: 0 | H161: 0 | I161: 0 | J161: 0 | K161: 0 | L161: 0 | M161: 0 | N161: 0 | O161: 0 | P161: 0 | Q161: 0 | R161: 0 | S161: 0 | T161: 0 | U161: 0 | V161: 0 | W161: 0 | X161: 0 | Y161: 0 | Z161: =Z$135*$A138 -> 0 | AA161: =AA$135*$A137 -> 0 | CA161: 0 | CC161: 0.03175 | CD161: 0 | CE161: 0 | CF161: 0
A162: 0 | B162: 26 | C162: 0 | D162: 0 | E162: 0 | F162: 0 | G162: 0 | H162: 0 | I162: 0 | J162: 0 | K162: 0 | L162: 0 | M162: 0 | N162: 0 | O162: 0 | P162: 0 | Q162: 0 | R162: 0 | S162: 0 | T162: 0 | U162: 0 | V162: 0 | W162: 0 | X162: 0 | Y162: 0 | Z162: 0 | AA162: =AA$135*$A138 -> 0 | AB162: =AB$135*$A137 -> 0 | CA162: 0 | CC162: 0.03175 | CD162: 0 | CE162: 0 | CF162: 0
A163: 0 | B163: 27 | C163: 0 | D163: 0 | E163: 0 | F163: 0 | G163: 0 | H163: 0 | I163: 0 | J163: 0 | K163: 0 | L163: 0 | M163: 0 | N163: 0 | O163: 0 | P163: 0 | Q163: 0 | R163: 0 | S163: 0 | T163: 0 | U163: 0 | V163: 0 | W163: 0 | X163: 0 | Y163: 0 | Z163: 0 | AA163: 0 | AB163: =AB$135*$A138 -> 0 | AC163: =AC$135*$A137 -> 0 | CA163: 0 | CC163: 0.03175 | CD163: 0 | CE163: 0 | CF163: 0
A164: 0 | B164: 28 | C164: 0 | D164: 0 | E164: 0 | F164: 0 | G164: 0 | H164: 0 | I164: 0 | J164: 0 | K164: 0 | L164: 0 | M164: 0 | N164: 0 | O164: 0 | P164: 0 | Q164: 0 | R164: 0 | S164: 0 | T164: 0 | U164: 0 | V164: 0 | W164: 0 | X164: 0 | Y164: 0 | Z164: 0 | AA164: 0 | AB164: 0 | AC164: =AC$135*$A138 -> 0 | AD164: =AD$135*$A137 -> 0 | CA164: 0 | CC164: 0.03175 | CD164: 0 | CE164: 0 | CF164: 0
A165: 0 | B165: 29 | C165: 0 | D165: 0 | E165: 0 | F165: 0 | G165: 0 | H165: 0 | I165: 0 | J165: 0 | K165: 0 | L165: 0 | M165: 0 | N165: 0 | O165: 0 | P165: 0 | Q165: 0 | R165: 0 | S165: 0 | T165: 0 | U165: 0 | V165: 0 | W165: 0 | X165: 0 | Y165: 0 | Z165: 0 | AA165: 0 | AB165: 0 | AC165: 0 | AD165: =AD$135*$A138 -> 0 | AE165: =AE$135*$A137 -> 0 | CA165: 0 | CC165: 0.03175 | CD165: 0 | CE165: 0 | CF165: 0
A166: 0 | B166: 30 | C166: 0 | D166: 0 | E166: 0 | F166: 0 | G166: 0 | H166: 0 | I166: 0 | J166: 0 | K166: 0 | L166: 0 | M166: 0 | N166: 0 | O166: 0 | P166: 0 | Q166: 0 | R166: 0 | S166: 0 | T166: 0 | U166: 0 | V166: 0 | W166: 0 | X166: 0 | Y166: 0 | Z166: 0 | AA166: 0 | AB166: 0 | AC166: 0 | AD166: 0 | AE166: =AE$135*$A138 -> 0 | AF166: =AF$135*$A137 -> 0 | CA166: 0 | CC166: 0.03175 | CD166: 0 | CE166: 0 | CF166: 0
A167: 0 | B167: 31 | C167: 0 | D167: 0 | E167: 0 | F167: 0 | G167: 0 | H167: 0 | I167: 0 | J167: 0 | K167: 0 | L167: 0 | M167: 0 | N167: 0 | O167: 0 | P167: 0 | Q167: 0 | R167: 0 | S167: 0 | T167: 0 | U167: 0 | V167: 0 | W167: 0 | X167: 0 | Y167: 0 | Z167: 0 | AA167: 0 | AB167: 0 | AC167: 0 | AD167: 0 | AE167: 0 | AF167: =AF$135*$A138 -> 0 | AG167: =AG$135*$A137 -> 0 | CA167: 0 | CC167: 0.03175 | CD167: 0 | CE167: 0 | CF167: 0
A168: 0 | B168: 32 | C168: 0 | D168: 0 | E168: 0 | F168: 0 | G168: 0 | H168: 0 | I168: 0 | J168: 0 | K168: 0 | L168: 0 | M168: 0 | N168: 0 | O168: 0 | P168: 0 | Q168: 0 | R168: 0 | S168: 0 | T168: 0 | U168: 0 | V168: 0 | W168: 0 | X168: 0 | Y168: 0 | Z168: 0 | AA168: 0 | AB168: 0 | AC168: 0 | AD168: 0 | AE168: 0 | AF168: 0 | AG168: =AG$135*$A138 -> 0 | AH168: =AH$135*$A137 -> 0 | CA168: 0 | CC168: 0.03163 | CD168: 0 | CE168: 0 | CF168: 0
A169: 0 | B169: 33 | C169: 0 | D169: 0 | E169: 0 | F169: 0 | G169: 0 | H169: 0 | I169: 0 | J169: 0 | K169: 0 | L169: 0 | M169: 0 | N169: 0 | O169: 0 | P169: 0 | Q169: 0 | R169: 0 | S169: 0 | T169: 0 | U169: 0 | V169: 0 | W169: 0 | X169: 0 | Y169: 0 | Z169: 0 | AA169: 0 | AB169: 0 | AC169: 0 | AD169: 0 | AE169: 0 | AF169: 0 | AG169: 0 | AH169: =AH$135*$A138 -> 0 | AI169: =AI$135*$A137 -> 0 | CA169: 0
A170: 0 | B170: 34 | C170: 0 | D170: 0 | E170: 0 | F170: 0 | G170: 0 | H170: 0 | I170: 0 | J170: 0 | K170: 0 | L170: 0 | M170: 0 | N170: 0 | O170: 0 | P170: 0 | Q170: 0 | R170: 0 | S170: 0 | T170: 0 | U170: 0 | V170: 0 | W170: 0 | X170: 0 | Y170: 0 | Z170: 0 | AA170: 0 | AB170: 0 | AC170: 0 | AD170: 0 | AE170: 0 | AF170: 0 | AG170: 0 | AH170: 0 | AI170: =AI$135*$A138 -> 0 | AJ170: =AJ$135*$A137 -> 0 | CA170: 0
A171: 0 | B171: 35 | C171: 0 | D171: 0 | E171: 0 | F171: 0 | G171: 0 | H171: 0 | I171: 0 | J171: 0 | K171: 0 | L171: 0 | M171: 0 | N171: 0 | O171: 0 | P171: 0 | Q171: 0 | R171: 0 | S171: 0 | T171: 0 | U171: 0 | V171: 0 | W171: 0 | X171: 0 | Y171: 0 | Z171: 0 | AA171: 0 | AB171: 0 | AC171: 0 | AD171: 0 | AE171: 0 | AF171: 0 | AG171: 0 | AH171: 0 | AI171: 0 | AJ171: =AJ$135*$A138 -> 0 | AK171: =AK$135*$A137 -> 0 | CA171: 0
A172: 0 | B172: 36 | C172: 0 | D172: 0 | E172: 0 | F172: 0 | G172: 0 | H172: 0 | I172: 0 | J172: 0 | K172: 0 | L172: 0 | M172: 0 | N172: 0 | O172: 0 | P172: 0 | Q172: 0 | R172: 0 | S172: 0 | T172: 0 | U172: 0 | V172: 0 | W172: 0 | X172: 0 | Y172: 0 | Z172: 0 | AA172: 0 | AB172: 0 | AC172: 0 | AD172: 0 | AE172: 0 | AF172: 0 | AG172: 0 | AH172: 0 | AI172: 0 | AJ172: 0 | AK172: =AK$135*$A138 -> 0 | AL172: =AL$135*$A137 -> 0 | CA172: 0
A173: 0 | B173: 37 | C173: 0 | D173: 0 | E173: 0 | F173: 0 | G173: 0 | H173: 0 | I173: 0 | J173: 0 | K173: 0 | L173: 0 | M173: 0 | N173: 0 | O173: 0 | P173: 0 | Q173: 0 | R173: 0 | S173: 0 | T173: 0 | U173: 0 | V173: 0 | W173: 0 | X173: 0 | Y173: 0 | Z173: 0 | AA173: 0 | AB173: 0 | AC173: 0 | AD173: 0 | AE173: 0 | AF173: 0 | AG173: 0 | AH173: 0 | AI173: 0 | AJ173: 0 | AK173: 0 | AL173: =AL$135*$A138 -> 0 | AM173: =AM$135*$A137 -> 0 | CA173: 0
A174: 0 | B174: 38 | C174: 0 | D174: 0 | E174: 0 | F174: 0 | G174: 0 | H174: 0 | I174: 0 | J174: 0 | K174: 0 | L174: 0 | M174: 0 | N174: 0 | O174: 0 | P174: 0 | Q174: 0 | R174: 0 | S174: 0 | T174: 0 | U174: 0 | V174: 0 | W174: 0 | X174: 0 | Y174: 0 | Z174: 0 | AA174: 0 | AB174: 0 | AC174: 0 | AD174: 0 | AE174: 0 | AF174: 0 | AG174: 0 | AH174: 0 | AI174: 0 | AJ174: 0 | AK174: 0 | AL174: 0 | AM174: =AM$135*$A138 -> 0 | AN174: =AN$135*$A137 -> 0 | CA174: 0
A175: 0 | B175: 39 | C175: 0 | D175: 0 | E175: 0 | F175: 0 | G175: 0 | H175: 0 | I175: 0 | J175: 0 | K175: 0 | L175: 0 | M175: 0 | N175: 0 | O175: 0 | P175: 0 | Q175: 0 | R175: 0 | S175: 0 | T175: 0 | U175: 0 | V175: 0 | W175: 0 | X175: 0 | Y175: 0 | Z175: 0 | AA175: 0 | AB175: 0 | AC175: 0 | AD175: 0 | AE175: 0 | AF175: 0 | AG175: 0 | AH175: 0 | AI175: 0 | AJ175: 0 | AK175: 0 | AL175: 0 | AM175: 0 | AN175: =AN$135*$A138 -> 0 | AO175: =AO$135*$A137 -> 0 | CA175: 0
A176: 0 | B176: 40 | C176: 0 | D176: 0 | E176: 0 | F176: 0 | G176: 0 | H176: 0 | I176: 0 | J176: 0 | K176: 0 | L176: 0 | M176: 0 | N176: 0 | O176: 0 | P176: 0 | Q176: 0 | R176: 0 | S176: 0 | T176: 0 | U176: 0 | V176: 0 | W176: 0 | X176: 0 | Y176: 0 | Z176: 0 | AA176: 0 | AB176: 0 | AC176: 0 | AD176: 0 | AE176: 0 | AF176: 0 | AG176: 0 | AH176: 0 | AI176: 0 | AJ176: 0 | AK176: 0 | AL176: 0 | AM176: 0 | AN176: 0 | AO176: =AO$135*$A138 -> 0 | AP176: =AP$135*$A137 -> 0 | CA176: 0
A177: 0 | B177: 41 | C177: 0 | D177: 0 | E177: 0 | F177: 0 | G177: 0 | H177: 0 | I177: 0 | J177: 0 | K177: 0 | L177: 0 | M177: 0 | N177: 0 | O177: 0 | P177: 0 | Q177: 0 | R177: 0 | S177: 0 | T177: 0 | U177: 0 | V177: 0 | W177: 0 | X177: 0 | Y177: 0 | Z177: 0 | AA177: 0 | AB177: 0 | AC177: 0 | AD177: 0 | AE177: 0 | AF177: 0 | AG177: 0 | AH177: 0 | AI177: 0 | AJ177: 0 | AK177: 0 | AL177: 0 | AM177: 0 | AN177: 0 | AO177: 0 | AP177: =AP$135*$A138 -> 0 | AQ177: =AQ$135*$A137 -> 0 | CA177: 0
A178: 0 | B178: 42 | C178: 0 | D178: 0 | E178: 0 | F178: 0 | G178: 0 | H178: 0 | I178: 0 | J178: 0 | K178: 0 | L178: 0 | M178: 0 | N178: 0 | O178: 0 | P178: 0 | Q178: 0 | R178: 0 | S178: 0 | T178: 0 | U178: 0 | V178: 0 | W178: 0 | X178: 0 | Y178: 0 | Z178: 0 | AA178: 0 | AB178: 0 | AC178: 0 | AD178: 0 | AE178: 0 | AF178: 0 | AG178: 0 | AH178: 0 | AI178: 0 | AJ178: 0 | AK178: 0 | AL178: 0 | AM178: 0 | AN178: 0 | AO178: 0 | AP178: 0 | AQ178: =AQ$135*$A138 -> 0 | AR178: =AR$135*$A137 -> 0 | CA178: 0
A179: 0 | B179: 43 | C179: 0 | D179: 0 | E179: 0 | F179: 0 | G179: 0 | H179: 0 | I179: 0 | J179: 0 | K179: 0 | L179: 0 | M179: 0 | N179: 0 | O179: 0 | P179: 0 | Q179: 0 | R179: 0 | S179: 0 | T179: 0 | U179: 0 | V179: 0 | W179: 0 | X179: 0 | Y179: 0 | Z179: 0 | AA179: 0 | AB179: 0 | AC179: 0 | AD179: 0 | AE179: 0 | AF179: 0 | AG179: 0 | AH179: 0 | AI179: 0 | AJ179: 0 | AK179: 0 | AL179: 0 | AM179: 0 | AN179: 0 | AO179: 0 | AP179: 0 | AQ179: 0 | AR179: =AR$135*$A138 -> 0 | AS179: =AS$135*$A137 -> 0 | CA179: 0
A180: 0 | B180: 44 | C180: 0 | D180: 0 | E180: 0 | F180: 0 | G180: 0 | H180: 0 | I180: 0 | J180: 0 | K180: 0 | L180: 0 | M180: 0 | N180: 0 | O180: 0 | P180: 0 | Q180: 0 | R180: 0 | S180: 0 | T180: 0 | U180: 0 | V180: 0 | W180: 0 | X180: 0 | Y180: 0 | Z180: 0 | AA180: 0 | AB180: 0 | AC180: 0 | AD180: 0 | AE180: 0 | AF180: 0 | AG180: 0 | AH180: 0 | AI180: 0 | AJ180: 0 | AK180: 0 | AL180: 0 | AM180: 0 | AN180: 0 | AO180: 0 | AP180: 0 | AQ180: 0 | AR180: 0 | AS180: =AS$135*$A138 -> 0 | AT180: =AT$135*$A137 -> 0 | CA180: 0
A181: 0 | B181: 45 | C181: 0 | D181: 0 | E181: 0 | F181: 0 | G181: 0 | H181: 0 | I181: 0 | J181: 0 | K181: 0 | L181: 0 | M181: 0 | N181: 0 | O181: 0 | P181: 0 | Q181: 0 | R181: 0 | S181: 0 | T181: 0 | U181: 0 | V181: 0 | W181: 0 | X181: 0 | Y181: 0 | Z181: 0 | AA181: 0 | AB181: 0 | AC181: 0 | AD181: 0 | AE181: 0 | AF181: 0 | AG181: 0 | AH181: 0 | AI181: 0 | AJ181: 0 | AK181: 0 | AL181: 0 | AM181: 0 | AN181: 0 | AO181: 0 | AP181: 0 | AQ181: 0 | AR181: 0 | AS181: 0 | AT181: =AT$135*$A138 -> 0 | AU181: =AU$135*$A137 -> 0 | CA181: 0
A182: 0 | B182: 46 | C182: 0 | D182: 0 | E182: 0 | F182: 0 | G182: 0 | H182: 0 | I182: 0 | J182: 0 | K182: 0 | L182: 0 | M182: 0 | N182: 0 | O182: 0 | P182: 0 | Q182: 0 | R182: 0 | S182: 0 | T182: 0 | U182: 0 | V182: 0 | W182: 0 | X182: 0 | Y182: 0 | Z182: 0 | AA182: 0 | AB182: 0 | AC182: 0 | AD182: 0 | AE182: 0 | AF182: 0 | AG182: 0 | AH182: 0 | AI182: 0 | AJ182: 0 | AK182: 0 | AL182: 0 | AM182: 0 | AN182: 0 | AO182: 0 | AP182: 0 | AQ182: 0 | AR182: 0 | AS182: 0 | AT182: 0 | AU182: =AU$135*$A138 -> 0 | AV182: =AV$135*$A137 -> 0 | CA182: 0
A183: 0 | B183: 47 | C183: 0 | D183: 0 | E183: 0 | F183: 0 | G183: 0 | H183: 0 | I183: 0 | J183: 0 | K183: 0 | L183: 0 | M183: 0 | N183: 0 | O183: 0 | P183: 0 | Q183: 0 | R183: 0 | S183: 0 | T183: 0 | U183: 0 | V183: 0 | W183: 0 | X183: 0 | Y183: 0 | Z183: 0 | AA183: 0 | AB183: 0 | AC183: 0 | AD183: 0 | AE183: 0 | AF183: 0 | AG183: 0 | AH183: 0 | AI183: 0 | AJ183: 0 | AK183: 0 | AL183: 0 | AM183: 0 | AN183: 0 | AO183: 0 | AP183: 0 | AQ183: 0 | AR183: 0 | AS183: 0 | AT183: 0 | AU183: 0 | AV183: =AV$135*$A138 -> 0 | AW183: =AW$135*$A137 -> 0 | CA183: 0
A184: 0 | B184: 48 | C184: 0 | D184: 0 | E184: 0 | F184: 0 | G184: 0 | H184: 0 | I184: 0 | J184: 0 | K184: 0 | L184: 0 | M184: 0 | N184: 0 | O184: 0 | P184: 0 | Q184: 0 | R184: 0 | S184: 0 | T184: 0 | U184: 0 | V184: 0 | W184: 0 | X184: 0 | Y184: 0 | Z184: 0 | AA184: 0 | AB184: 0 | AC184: 0 | AD184: 0 | AE184: 0 | AF184: 0 | AG184: 0 | AH184: 0 | AI184: 0 | AJ184: 0 | AK184: 0 | AL184: 0 | AM184: 0 | AN184: 0 | AO184: 0 | AP184: 0 | AQ184: 0 | AR184: 0 | AS184: 0 | AT184: 0 | AU184: 0 | AV184: 0 | AW184: =AW$135*$A138 -> 0 | AX184: =AX$135*$A137 -> 0 | CA184: 0
A185: 0 | B185: 49 | C185: 0 | D185: 0 | E185: 0 | F185: 0 | G185: 0 | H185: 0 | I185: 0 | J185: 0 | K185: 0 | L185: 0 | M185: 0 | N185: 0 | O185: 0 | P185: 0 | Q185: 0 | R185: 0 | S185: 0 | T185: 0 | U185: 0 | V185: 0 | W185: 0 | X185: 0 | Y185: 0 | Z185: 0 | AA185: 0 | AB185: 0 | AC185: 0 | AD185: 0 | AE185: 0 | AF185: 0 | AG185: 0 | AH185: 0 | AI185: 0 | AJ185: 0 | AK185: 0 | AL185: 0 | AM185: 0 | AN185: 0 | AO185: 0 | AP185: 0 | AQ185: 0 | AR185: 0 | AS185: 0 | AT185: 0 | AU185: 0 | AV185: 0 | AW185: 0 | AX185: =AX$135*$A138 -> 0 | AY185: =AY$135*$A137 -> 0 | CA185: 0
A186: 0 | B186: 50 | C186: 0 | D186: 0 | E186: 0 | F186: 0 | G186: 0 | H186: 0 | I186: 0 | J186: 0 | K186: 0 | L186: 0 | M186: 0 | N186: 0 | O186: 0 | P186: 0 | Q186: 0 | R186: 0 | S186: 0 | T186: 0 | U186: 0 | V186: 0 | W186: 0 | X186: 0 | Y186: 0 | Z186: 0 | AA186: 0 | AB186: 0 | AC186: 0 | AD186: 0 | AE186: 0 | AF186: 0 | AG186: 0 | AH186: 0 | AI186: 0 | AJ186: 0 | AK186: 0 | AL186: 0 | AM186: 0 | AN186: 0 | AO186: 0 | AP186: 0 | AQ186: 0 | AR186: 0 | AS186: 0 | AT186: 0 | AU186: 0 | AV186: 0 | AW186: 0 | AX186: 0 | AY186: =AY$135*$A138 -> 0 | AZ186: =AZ$135*$A137 -> 0 | CA186: 0
A187: 0 | B187: 51 | C187: 0 | D187: 0 | E187: 0 | F187: 0 | G187: 0 | H187: 0 | I187: 0 | J187: 0 | K187: 0 | L187: 0 | M187: 0 | N187: 0 | O187: 0 | P187: 0 | Q187: 0 | R187: 0 | S187: 0 | T187: 0 | U187: 0 | V187: 0 | W187: 0 | X187: 0 | Y187: 0 | Z187: 0 | AA187: 0 | AB187: 0 | AC187: 0 | AD187: 0 | AE187: 0 | AF187: 0 | AG187: 0 | AH187: 0 | AI187: 0 | AJ187: 0 | AK187: 0 | AL187: 0 | AM187: 0 | AN187: 0 | AO187: 0 | AP187: 0 | AQ187: 0 | AR187: 0 | AS187: 0 | AT187: 0 | AU187: 0 | AV187: 0 | AW187: 0 | AX187: 0 | AY187: 0 | AZ187: =AZ$135*$A138 -> 0 | BA187: =BA$135*$A137 -> 0 | CA187: 0
A188: 0 | B188: 52 | C188: 0 | D188: 0 | E188: 0 | F188: 0 | G188: 0 | H188: 0 | I188: 0 | J188: 0 | K188: 0 | L188: 0 | M188: 0 | N188: 0 | O188: 0 | P188: 0 | Q188: 0 | R188: 0 | S188: 0 | T188: 0 | U188: 0 | V188: 0 | W188: 0 | X188: 0 | Y188: 0 | Z188: 0 | AA188: 0 | AB188: 0 | AC188: 0 | AD188: 0 | AE188: 0 | AF188: 0 | AG188: 0 | AH188: 0 | AI188: 0 | AJ188: 0 | AK188: 0 | AL188: 0 | AM188: 0 | AN188: 0 | AO188: 0 | AP188: 0 | AQ188: 0 | AR188: 0 | AS188: 0 | AT188: 0 | AU188: 0 | AV188: 0 | AW188: 0 | AX188: 0 | AY188: 0 | AZ188: 0 | BA188: =BA$135*$A138 -> 0 | BB188: =BB$135*$A137 -> 0 | CA188: 0
A189: 0 | B189: 53 | C189: 0 | D189: 0 | E189: 0 | F189: 0 | G189: 0 | H189: 0 | I189: 0 | J189: 0 | K189: 0 | L189: 0 | M189: 0 | N189: 0 | O189: 0 | P189: 0 | Q189: 0 | R189: 0 | S189: 0 | T189: 0 | U189: 0 | V189: 0 | W189: 0 | X189: 0 | Y189: 0 | Z189: 0 | AA189: 0 | AB189: 0 | AC189: 0 | AD189: 0 | AE189: 0 | AF189: 0 | AG189: 0 | AH189: 0 | AI189: 0 | AJ189: 0 | AK189: 0 | AL189: 0 | AM189: 0 | AN189: 0 | AO189: 0 | AP189: 0 | AQ189: 0 | AR189: 0 | AS189: 0 | AT189: 0 | AU189: 0 | AV189: 0 | AW189: 0 | AX189: 0 | AY189: 0 | AZ189: 0 | BA189: 0 | BB189: =BB$135*$A138 -> 0 | BC189: =BC$135*$A137 -> 0 | CA189: 0
A190: 0 | B190: 54 | C190: 0 | D190: 0 | E190: 0 | F190: 0 | G190: 0 | H190: 0 | I190: 0 | J190: 0 | K190: 0 | L190: 0 | M190: 0 | N190: 0 | O190: 0 | P190: 0 | Q190: 0 | R190: 0 | S190: 0 | T190: 0 | U190: 0 | V190: 0 | W190: 0 | X190: 0 | Y190: 0 | Z190: 0 | AA190: 0 | AB190: 0 | AC190: 0 | AD190: 0 | AE190: 0 | AF190: 0 | AG190: 0 | AH190: 0 | AI190: 0 | AJ190: 0 | AK190: 0 | AL190: 0 | AM190: 0 | AN190: 0 | AO190: 0 | AP190: 0 | AQ190: 0 | AR190: 0 | AS190: 0 | AT190: 0 | AU190: 0 | AV190: 0 | AW190: 0 | AX190: 0 | AY190: 0 | AZ190: 0 | BA190: 0 | BB190: 0 | BC190: =BC$135*$A138 -> 0 | BD190: =BD$135*$A137 -> 0 | CA190: 0
A191: 0 | B191: 55 | C191: 0 | D191: 0 | E191: 0 | F191: 0 | G191: 0 | H191: 0 | I191: 0 | J191: 0 | K191: 0 | L191: 0 | M191: 0 | N191: 0 | O191: 0 | P191: 0 | Q191: 0 | R191: 0 | S191: 0 | T191: 0 | U191: 0 | V191: 0 | W191: 0 | X191: 0 | Y191: 0 | Z191: 0 | AA191: 0 | AB191: 0 | AC191: 0 | AD191: 0 | AE191: 0 | AF191: 0 | AG191: 0 | AH191: 0 | AI191: 0 | AJ191: 0 | AK191: 0 | AL191: 0 | AM191: 0 | AN191: 0 | AO191: 0 | AP191: 0 | AQ191: 0 | AR191: 0 | AS191: 0 | AT191: 0 | AU191: 0 | AV191: 0 | AW191: 0 | AX191: 0 | AY191: 0 | AZ191: 0 | BA191: 0 | BB191: 0 | BC191: 0 | BD191: =BD$135*$A138 -> 0 | BE191: =BE$135*$A137 -> 0 | CA191: 0
A192: 0 | B192: 56 | C192: 0 | D192: 0 | E192: 0 | F192: 0 | G192: 0 | H192: 0 | I192: 0 | J192: 0 | K192: 0 | L192: 0 | M192: 0 | N192: 0 | O192: 0 | P192: 0 | Q192: 0 | R192: 0 | S192: 0 | T192: 0 | U192: 0 | V192: 0 | W192: 0 | X192: 0 | Y192: 0 | Z192: 0 | AA192: 0 | AB192: 0 | AC192: 0 | AD192: 0 | AE192: 0 | AF192: 0 | AG192: 0 | AH192: 0 | AI192: 0 | AJ192: 0 | AK192: 0 | AL192: 0 | AM192: 0 | AN192: 0 | AO192: 0 | AP192: 0 | AQ192: 0 | AR192: 0 | AS192: 0 | AT192: 0 | AU192: 0 | AV192: 0 | AW192: 0 | AX192: 0 | AY192: 0 | AZ192: 0 | BA192: 0 | BB192: 0 | BC192: 0 | BD192: 0 | BE192: =BE$135*$A138 -> 0 | BF192: =BF$135*$A137 -> 0 | CA192: 0
A193: 0 | B193: 57 | C193: 0 | D193: 0 | E193: 0 | F193: 0 | G193: 0 | H193: 0 | I193: 0 | J193: 0 | K193: 0 | L193: 0 | M193: 0 | N193: 0 | O193: 0 | P193: 0 | Q193: 0 | R193: 0 | S193: 0 | T193: 0 | U193: 0 | V193: 0 | W193: 0 | X193: 0 | Y193: 0 | Z193: 0 | AA193: 0 | AB193: 0 | AC193: 0 | AD193: 0 | AE193: 0 | AF193: 0 | AG193: 0 | AH193: 0 | AI193: 0 | AJ193: 0 | AK193: 0 | AL193: 0 | AM193: 0 | AN193: 0 | AO193: 0 | AP193: 0 | AQ193: 0 | AR193: 0 | AS193: 0 | AT193: 0 | AU193: 0 | AV193: 0 | AW193: 0 | AX193: 0 | AY193: 0 | AZ193: 0 | BA193: 0 | BB193: 0 | BC193: 0 | BD193: 0 | BE193: 0 | BF193: =BF$135*$A138 -> 0 | BG193: =BG$135*$A137 -> 0 | CA193: 0
A194: 0 | B194: 58 | C194: 0 | D194: 0 | E194: 0 | F194: 0 | G194: 0 | H194: 0 | I194: 0 | J194: 0 | K194: 0 | L194: 0 | M194: 0 | N194: 0 | O194: 0 | P194: 0 | Q194: 0 | R194: 0 | S194: 0 | T194: 0 | U194: 0 | V194: 0 | W194: 0 | X194: 0 | Y194: 0 | Z194: 0 | AA194: 0 | AB194: 0 | AC194: 0 | AD194: 0 | AE194: 0 | AF194: 0 | AG194: 0 | AH194: 0 | AI194: 0 | AJ194: 0 | AK194: 0 | AL194: 0 | AM194: 0 | AN194: 0 | AO194: 0 | AP194: 0 | AQ194: 0 | AR194: 0 | AS194: 0 | AT194: 0 | AU194: 0 | AV194: 0 | AW194: 0 | AX194: 0 | AY194: 0 | AZ194: 0 | BA194: 0 | BB194: 0 | BC194: 0 | BD194: 0 | BE194: 0 | BF194: 0 | BG194: =BG$135*$A138 -> 0 | BH194: =BH$135*$A137 -> 0 | CA194: 0
A195: 0 | B195: 59 | C195: 0 | D195: 0 | E195: 0 | F195: 0 | G195: 0 | H195: 0 | I195: 0 | J195: 0 | K195: 0 | L195: 0 | M195: 0 | N195: 0 | O195: 0 | P195: 0 | Q195: 0 | R195: 0 | S195: 0 | T195: 0 | U195: 0 | V195: 0 | W195: 0 | X195: 0 | Y195: 0 | Z195: 0 | AA195: 0 | AB195: 0 | AC195: 0 | AD195: 0 | AE195: 0 | AF195: 0 | AG195: 0 | AH195: 0 | AI195: 0 | AJ195: 0 | AK195: 0 | AL195: 0 | AM195: 0 | AN195: 0 | AO195: 0 | AP195: 0 | AQ195: 0 | AR195: 0 | AS195: 0 | AT195: 0 | AU195: 0 | AV195: 0 | AW195: 0 | AX195: 0 | AY195: 0 | AZ195: 0 | BA195: 0 | BB195: 0 | BC195: 0 | BD195: 0 | BE195: 0 | BF195: 0 | BG195: 0 | BH195: =BH$135*$A138 -> 0 | BI195: =BI$135*$A137 -> 0 | CA195: 0
A196: 0 | B196: 60 | C196: 0 | D196: 0 | E196: 0 | F196: 0 | G196: 0 | H196: 0 | I196: 0 | J196: 0 | K196: 0 | L196: 0 | M196: 0 | N196: 0 | O196: 0 | P196: 0 | Q196: 0 | R196: 0 | S196: 0 | T196: 0 | U196: 0 | V196: 0 | W196: 0 | X196: 0 | Y196: 0 | Z196: 0 | AA196: 0 | AB196: 0 | AC196: 0 | AD196: 0 | AE196: 0 | AF196: 0 | AG196: 0 | AH196: 0 | AI196: 0 | AJ196: 0 | AK196: 0 | AL196: 0 | AM196: 0 | AN196: 0 | AO196: 0 | AP196: 0 | AQ196: 0 | AR196: 0 | AS196: 0 | AT196: 0 | AU196: 0 | AV196: 0 | AW196: 0 | AX196: 0 | AY196: 0 | AZ196: 0 | BA196: 0 | BB196: 0 | BC196: 0 | BD196: 0 | BE196: 0 | BF196: 0 | BG196: 0 | BH196: 0 | BI196: =BI$135*$A138 -> 0 | BJ196: =BJ$135*$A137 -> 0 | CA196: 0
A197: 0 | B197: 61 | C197: 0 | D197: 0 | E197: 0 | F197: 0 | G197: 0 | H197: 0 | I197: 0 | J197: 0 | K197: 0 | L197: 0 | M197: 0 | N197: 0 | O197: 0 | P197: 0 | Q197: 0 | R197: 0 | S197: 0 | T197: 0 | U197: 0 | V197: 0 | W197: 0 | X197: 0 | Y197: 0 | Z197: 0 | AA197: 0 | AB197: 0 | AC197: 0 | AD197: 0 | AE197: 0 | AF197: 0 | AG197: 0 | AH197: 0 | AI197: 0 | AJ197: 0 | AK197: 0 | AL197: 0 | AM197: 0 | AN197: 0 | AO197: 0 | AP197: 0 | AQ197: 0 | AR197: 0 | AS197: 0 | AT197: 0 | AU197: 0 | AV197: 0 | AW197: 0 | AX197: 0 | AY197: 0 | AZ197: 0 | BA197: 0 | BB197: 0 | BC197: 0 | BD197: 0 | BE197: 0 | BF197: 0 | BG197: 0 | BH197: 0 | BI197: 0 | BJ197: =BJ$135*$A138 -> 0 | BK197: =BK$135*$A137 -> 0 | CA197: 0
A198: 0 | B198: 62 | C198: 0 | D198: 0 | E198: 0 | F198: 0 | G198: 0 | H198: 0 | I198: 0 | J198: 0 | K198: 0 | L198: 0 | M198: 0 | N198: 0 | O198: 0 | P198: 0 | Q198: 0 | R198: 0 | S198: 0 | T198: 0 | U198: 0 | V198: 0 | W198: 0 | X198: 0 | Y198: 0 | Z198: 0 | AA198: 0 | AB198: 0 | AC198: 0 | AD198: 0 | AE198: 0 | AF198: 0 | AG198: 0 | AH198: 0 | AI198: 0 | AJ198: 0 | AK198: 0 | AL198: 0 | AM198: 0 | AN198: 0 | AO198: 0 | AP198: 0 | AQ198: 0 | AR198: 0 | AS198: 0 | AT198: 0 | AU198: 0 | AV198: 0 | AW198: 0 | AX198: 0 | AY198: 0 | AZ198: 0 | BA198: 0 | BB198: 0 | BC198: 0 | BD198: 0 | BE198: 0 | BF198: 0 | BG198: 0 | BH198: 0 | BI198: 0 | BJ198: 0 | BK198: =BK$135*$A138 -> 0 | BL198: =BL$135*$A137 -> 0 | CA198: 0
A199: 0 | B199: 63 | C199: 0 | D199: 0 | E199: 0 | F199: 0 | G199: 0 | H199: 0 | I199: 0 | J199: 0 | K199: 0 | L199: 0 | M199: 0 | N199: 0 | O199: 0 | P199: 0 | Q199: 0 | R199: 0 | S199: 0 | T199: 0 | U199: 0 | V199: 0 | W199: 0 | X199: 0 | Y199: 0 | Z199: 0 | AA199: 0 | AB199: 0 | AC199: 0 | AD199: 0 | AE199: 0 | AF199: 0 | AG199: 0 | AH199: 0 | AI199: 0 | AJ199: 0 | AK199: 0 | AL199: 0 | AM199: 0 | AN199: 0 | AO199: 0 | AP199: 0 | AQ199: 0 | AR199: 0 | AS199: 0 | AT199: 0 | AU199: 0 | AV199: 0 | AW199: 0 | AX199: 0 | AY199: 0 | AZ199: 0 | BA199: 0 | BB199: 0 | BC199: 0 | BD199: 0 | BE199: 0 | BF199: 0 | BG199: 0 | BH199: 0 | BI199: 0 | BJ199: 0 | BK199: 0 | BL199: =BL$135*$A138 -> 0 | BM199: =BM$135*$A137 -> 0 | CA199: 0
A200: 0 | B200: 64 | C200: 0 | D200: 0 | E200: 0 | F200: 0 | G200: 0 | H200: 0 | I200: 0 | J200: 0 | K200: 0 | L200: 0 | M200: 0 | N200: 0 | O200: 0 | P200: 0 | Q200: 0 | R200: 0 | S200: 0 | T200: 0 | U200: 0 | V200: 0 | W200: 0 | X200: 0 | Y200: 0 | Z200: 0 | AA200: 0 | AB200: 0 | AC200: 0 | AD200: 0 | AE200: 0 | AF200: 0 | AG200: 0 | AH200: 0 | AI200: 0 | AJ200: 0 | AK200: 0 | AL200: 0 | AM200: 0 | AN200: 0 | AO200: 0 | AP200: 0 | AQ200: 0 | AR200: 0 | AS200: 0 | AT200: 0 | AU200: 0 | AV200: 0 | AW200: 0 | AX200: 0 | AY200: 0 | AZ200: 0 | BA200: 0 | BB200: 0 | BC200: 0 | BD200: 0 | BE200: 0 | BF200: 0 | BG200: 0 | BH200: 0 | BI200: 0 | BJ200: 0 | BK200: 0 | BL200: 0 | BM200: =BM$135*$A138 -> 0 | BN200: =BN$135*$A137 -> 0 | CA200: 0
A201: 0 | B201: 65 | C201: 0 | D201: 0 | E201: 0 | F201: 0 | G201: 0 | H201: 0 | I201: 0 | J201: 0 | K201: 0 | L201: 0 | M201: 0 | N201: 0 | O201: 0 | P201: 0 | Q201: 0 | R201: 0 | S201: 0 | T201: 0 | U201: 0 | V201: 0 | W201: 0 | X201: 0 | Y201: 0 | Z201: 0 | AA201: 0 | AB201: 0 | AC201: 0 | AD201: 0 | AE201: 0 | AF201: 0 | AG201: 0 | AH201: 0 | AI201: 0 | AJ201: 0 | AK201: 0 | AL201: 0 | AM201: 0 | AN201: 0 | AO201: 0 | AP201: 0 | AQ201: 0 | AR201: 0 | AS201: 0 | AT201: 0 | AU201: 0 | AV201: 0 | AW201: 0 | AX201: 0 | AY201: 0 | AZ201: 0 | BA201: 0 | BB201: 0 | BC201: 0 | BD201: 0 | BE201: 0 | BF201: 0 | BG201: 0 | BH201: 0 | BI201: 0 | BJ201: 0 | BK201: 0 | BL201: 0 | BM201: 0 | BN201: =BN$135*$A138 -> 0 | BO201: =BO$135*$A137 -> 0 | CA201: =SUM($C201:$BZ201) -> 0
A202: =IF($B$132=1,CC202,IF($B$132=2,CD202,IF($B$132=3,CE202,IF($B$132=4,CF202,#VALUE!)))) -> 0 | B202: =+B201+1 -> 66 | C202: =C$135*$A202 -> 0 | D202: 0 | E202: 0 | F202: 0 | G202: 0 | H202: 0 | I202: 0 | J202: 0 | K202: 0 | L202: 0 | M202: 0 | N202: 0 | O202: 0 | P202: 0 | Q202: 0 | R202: 0 | S202: 0 | T202: 0 | U202: 0 | V202: 0 | W202: 0 | X202: 0 | Y202: 0 | Z202: 0 | AA202: 0 | AB202: 0 | AC202: 0 | AD202: 0 | AE202: 0 | AF202: 0 | AG202: 0 | AH202: 0 | AI202: 0 | AJ202: 0 | AK202: 0 | AL202: 0 | AM202: 0 | AN202: 0 | AO202: 0 | AP202: 0 | AQ202: 0 | AR202: 0 | AS202: 0 | AT202: 0 | AU202: 0 | AV202: 0 | AW202: 0 | AX202: 0 | AY202: 0 | AZ202: 0 | BA202: 0 | BB202: 0 | BC202: 0 | BD202: 0 | BE202: 0 | BF202: 0 | BG202: 0 | BH202: 0 | BI202: 0 | BJ202: 0 | BK202: 0 | BL202: 0 | BM202: 0 | BN202: 0 | BO202: =BO$135*$A138 -> 0 | BP202: =BP$135*$A137 -> 0 | CA202: 0
A203: 0 | B203: 67 | C203: 0 | D203: =D$135*$A202 -> 0 | E203: 0 | F203: 0 | G203: 0 | H203: 0 | I203: 0 | J203: 0 | K203: 0 | L203: 0 | M203: 0 | N203: 0 | O203: 0 | P203: 0 | Q203: 0 | R203: 0 | S203: 0 | T203: 0 | U203: 0 | V203: 0 | W203: 0 | X203: 0 | Y203: 0 | Z203: 0 | AA203: 0 | AB203: 0 | AC203: 0 | AD203: 0 | AE203: 0 | AF203: 0 | AG203: 0 | AH203: 0 | AI203: 0 | AJ203: 0 | AK203: 0 | AL203: 0 | AM203: 0 | AN203: 0 | AO203: 0 | AP203: 0 | AQ203: 0 | AR203: 0 | AS203: 0 | AT203: 0 | AU203: 0 | AV203: 0 | AW203: 0 | AX203: 0 | AY203: 0 | AZ203: 0 | BA203: 0 | BB203: 0 | BC203: 0 | BD203: 0 | BE203: 0 | BF203: 0 | BG203: 0 | BH203: 0 | BI203: 0 | BJ203: 0 | BK203: 0 | BL203: 0 | BM203: 0 | BN203: 0 | BO203: 0 | BP203: =BP$135*$A138 -> 0 | BQ203: =BQ$135*$A137 -> 0 | CA203: 0
A204: 0 | B204: 68 | C204: 0 | D204: 0 | E204: =E$135*$A202 -> 0 | F204: 0 | G204: 0 | H204: 0 | I204: 0 | J204: 0 | K204: 0 | L204: 0 | M204: 0 | N204: 0 | O204: 0 | P204: 0 | Q204: 0 | R204: 0 | S204: 0 | T204: 0 | U204: 0 | V204: 0 | W204: 0 | X204: 0 | Y204: 0 | Z204: 0 | AA204: 0 | AB204: 0 | AC204: 0 | AD204: 0 | AE204: 0 | AF204: 0 | AG204: 0 | AH204: 0 | AI204: 0 | AJ204: 0 | AK204: 0 | AL204: 0 | AM204: 0 | AN204: 0 | AO204: 0 | AP204: 0 | AQ204: 0 | AR204: 0 | AS204: 0 | AT204: 0 | AU204: 0 | AV204: 0 | AW204: 0 | AX204: 0 | AY204: 0 | AZ204: 0 | BA204: 0 | BB204: 0 | BC204: 0 | BD204: 0 | BE204: 0 | BF204: 0 | BG204: 0 | BH204: 0 | BI204: 0 | BJ204: 0 | BK204: 0 | BL204: 0 | BM204: 0 | BN204: 0 | BO204: 0 | BP204: 0 | BQ204: =BQ$135*$A138 -> 0 | BR204: =BR$135*$A137 -> 0 | CA204: 0
A205: 0 | B205: 69 | C205: 0 | D205: 0 | E205: 0 | F205: =F$135*$A202 -> 0 | G205: 0 | H205: 0 | I205: 0 | J205: 0 | K205: 0 | L205: 0 | M205: 0 | N205: 0 | O205: 0 | P205: 0 | Q205: 0 | R205: 0 | S205: 0 | T205: 0 | U205: 0 | V205: 0 | W205: 0 | X205: 0 | Y205: 0 | Z205: 0 | AA205: 0 | AB205: 0 | AC205: 0 | AD205: 0 | AE205: 0 | AF205: 0 | AG205: 0 | AH205: 0 | AI205: 0 | AJ205: 0 | AK205: 0 | AL205: 0 | AM205: 0 | AN205: 0 | AO205: 0 | AP205: 0 | AQ205: 0 | AR205: 0 | AS205: 0 | AT205: 0 | AU205: 0 | AV205: 0 | AW205: 0 | AX205: 0 | AY205: 0 | AZ205: 0 | BA205: 0 | BB205: 0 | BC205: 0 | BD205: 0 | BE205: 0 | BF205: 0 | BG205: 0 | BH205: 0 | BI205: 0 | BJ205: 0 | BK205: 0 | BL205: 0 | BM205: 0 | BN205: 0 | BO205: 0 | BP205: 0 | BQ205: 0 | BR205: =BR$135*$A138 -> 0 | BS205: =BS$135*$A137 -> 0 | CA205: 0
A206: 0 | B206: 70 | C206: 0 | D206: 0 | E206: 0 | F206: 0 | G206: =G$135*$A202 -> 0 | H206: 0 | I206: 0 | J206: 0 | K206: 0 | L206: 0 | M206: 0 | N206: 0 | O206: 0 | P206: 0 | Q206: 0 | R206: 0 | S206: 0 | T206: 0 | U206: 0 | V206: 0 | W206: 0 | X206: 0 | Y206: 0 | Z206: 0 | AA206: 0 | AB206: 0 | AC206: 0 | AD206: 0 | AE206: 0 | AF206: 0 | AG206: 0 | AH206: 0 | AI206: 0 | AJ206: 0 | AK206: 0 | AL206: 0 | AM206: 0 | AN206: 0 | AO206: 0 | AP206: 0 | AQ206: 0 | AR206: 0 | AS206: 0 | AT206: 0 | AU206: 0 | AV206: 0 | AW206: 0 | AX206: 0 | AY206: 0 | AZ206: 0 | BA206: 0 | BB206: 0 | BC206: 0 | BD206: 0 | BE206: 0 | BF206: 0 | BG206: 0 | BH206: 0 | BI206: 0 | BJ206: 0 | BK206: 0 | BL206: 0 | BM206: 0 | BN206: 0 | BO206: 0 | BP206: 0 | BQ206: 0 | BR206: 0 | BS206: =BS$135*$A138 -> 0 | BT206: =BT$135*$A137 -> 0 | CA206: 0
... 176 more rows

Sheet 10 Year 24.1 Mill
A1: State Income Tax Rate ............ | D1: 0.0265 | I1: Debt ........................... | L1: 0.4909 | M1: 0.05746 | N1: =ROUND(L1*M1,4) -> 0.0282 | O1: =N1*(1-D2) -> 0.022278 | Q1: Gross Revenue | T1: 1
A2: Federal Income Tax Rate ........ | D2: 0.21 | I2: Preferred Stock ................. | L2: 0.01885 | M2: 0.02119 | N2: =ROUND(L2*M2,4) -> 0.0004 | O2: =N2 -> 0.0004 | Q2: Uncollectables | T2: 0.005266
A3: Discount Factor ...................... | D3: =+O4 -> 0.069278 | I3: Common Equity ...................... | L3: 0.49025 | M3: 0.095 | N3: =ROUND(L3*M3,4) -> 0.0466 | O3: =N3 -> 0.0466 | Q3: Commission Fees | T3: 0.00209625
A4: Capital Class ........................... | D4: 3 | E4: (1) General Structures. | N4: =SUM(N1:N3) -> 0.0752 | O4: =SUM(O1:O3) -> 0.069278 | Q4: Excise Tax | T4: 0.02502175
E5: (2) Generation, Transmission, | Q5: Franchise Fees | T5: 0
E6: and Distribution. | Q6: ERSA | T6: 0.00031975398
E7: (3) Other Equipment. | N7: IRR CALC | T7: -
E8: (4) Transportation Equipment. | I8: Principal ...................... | L8: =T24 -> 26077423.35 | N8: =L8 -> 26077423.35 | O8: pv princ | Q8: Misc. Revenue Items | T8: =SUM(T2:T6) -> 0.03270375398
A9: Book Life (Years) .............. | D9: 10 | I9: Interest ....................... | L9: =D3 -> 0.069278 | N9: =V20 -> 0 | O9: pv lvlized margin | T9: -
A10: Property Tax Rate ............... | D10: 0.01 | I10: Term ............................. | L10: 10 | N10: =IRR($AI$28:$AI$102,0.059065190478108) ->  | O10: IRR | Q10: Before State Income Tax | T10: =T1-T8 -> 0.967296246
A11: O&M Escalation Factor .......... | D11: 0.03 | I11: Levelized Gr. Mar. Requirement ....... | L11: =PMT($L$9,$L$10,-$L$8) -> 3700456.719 | Q11: State Income Tax | T11: 0
T12: -
B13: Idaho | C13: Oregon | D13: Washington | Q13: Before Federal Income Tax | T13: =T10-T11 -> 0.967296246
A14: Electric | B14: 0.35 | C14: 0 | D14: 0.65 | E14: =SUM(B14:D14) -> 1 | K14: Lev ROE | L14: =PMT(L9,L10,-L15) -> 537290.7762 | Q14: Federal Income Tax | T14: =T13*D2 -> 0.2031322117 | V14: (v) | W14: (w) | X14: (x) | Y14: (y) | Z14: (z) | AA14: (aa) | AB14: (ab) | AC14: (ac) | AD14: (ad) | AE14: (ae) | AF14: (af) | AG14: (ag) | AH14: (ah)
A15: Gas | B15: 0 | C15: 0 | D15: 0 | E15: =SUM(B15:D15) -> 0 | K15: NPV equity | L15: =NPV(L9,$M$28:$M$103) -> 3786332.364 | T15: - | V15: PV GM
B16: =SUM(B14:B15) -> 0.35 | C16: =SUM(C14:C15) -> 0 | D16: 0.65 | E16: 1 | Q16: Conversion Factor | T16: =T13-T14 -> 0.7641640344 | V16: =NPV(O4,$V$29:$V$103)+V28 -> 0
A17: ...................................................................................................................................................................................................................... | V17: TERM
B18: Capital Additions | V18: =L10 -> 10 | AD18: pv of contribution to fixed costs | AG18: =NPV(O4,20,AG28:AG28) -> -3868565.087
B19: ----------------- | D19: Rate | E19: Accum. | G19: Book Dep. | I19: Rate | K19: Average | P19: Misc. | Q19: State | R19: Federal | S19: Total | T19: Present Val | U19: ACTUAL | V19: LEVELIZED | AE19: Interest ....................... | AG19: =O4 -> 0.069278 | AL19: Inter.
B20: Tax | C20: Book | D20: Base | E20: Book | F20: Tax | G20: on Tax | H20: Deferred | I20: Base | J20: Book | K20: Rate | L20: Interest | M20: Equity | N20: O&M & A&G | O20: Property | P20: Revenue | Q20: Income | R20: Income | S20: Gross Marg | T20: Gross Marg | U20: ROR BY | V20: =PMT(L9,V18,-V16) -> 0 | AE20: Term ............................. | AG20: 50 | AH20: per kwh | AL20: Revenue | AN20: Net Book
B21: Basis | C21: Basis | D21: BOP | E21: Deprec. | F21: Deprec. | G21: Basis | H21: Taxes | I21: EOP | J21: Deprec. | K21: Base | L21: Expense | M21: Return | N21: Expense | O21: Taxes | P21: Items | Q21: Tax | R21: Taxes | S21: Reqmnt | T21: Reqmnt | U21: YEAR | AD21: levelized cont. to fixed costs | AG21: =PMT(AG19,AG20,-AG18) -> -277759.43 | AH21: =AG21/(400*1000) -> -0.6943985749 | AL21: Requirement | AN21: BOP
A22: (a) | B22: (b) | C22: (c) | D22: (d) | E22: (e) | F22: (f) | G22: (g) | H22: (h) | I22: (i) | J22: (j) | K22: (k) | L22: (l) | M22: (m) | N22: (n) | O22: (o) | P22: (p) | Q22: (q) | R22: (r) | S22: (s) | T22: (t) | U22: (u) | W22: - | X22: - | Y22: - | Z22: - | AA22: - | AB22: - | AC22: - | AD22: - | AE22: - | AF22: - | AG22: - | AH22: -
B23: - | C23: - | D23: - | E23: - | F23: - | G23: - | H23: - | I23: - | J23: - | K23: - | L23: - | M23: - | N23: - | O23: - | P23: - | Q23: - | R23: - | S23: - | T23: - | Z23: RES LOAD @ | AG23: ANNUAL | AH23: CUMULATIVE | AL23: - | AN23: -
A24: Total => | B24: =SUM(B25:B104) -> 22153992.33 | C24: =SUM(C25:C104) -> 22153992.33 | F24: =SUM(F25:F104) -> 22153992.33 | G24: =SUM(G25:G104) -> 22153992.33 | H24: =SUM(H25:H104) -> -1.164153218e-10 | J24: =SUM(J25:J104) -> 22153992.33 | L24: =SUM(L25:L104) -> 2877147.2 | M24: 4795245.333 | N24: 0 | O24: 1218469.578 | P24: 1069187.517 | Q24: 142419.3782 | R24: 1098698.324 | S24: 33355159.66 | T24: 26077423.35 | V24: Offsets | X24: NEW | Y24: CUML | Z24: 12000 | AA24: COMM | AB24: COMM | AC24: TOTAL | AD24: TOTAL | AE24: REVENUE | AF24: ESTIMATED | AG24: (SHORTFALL) | AH24: (SHORTFALL)
A25: Period | B25: - | C25: - | D25: - | E25: - | F25: - | G25: - | H25: - | I25: - | J25: - | K25: - | L25: - | M25: - | N25: - | O25: - | P25: - | Q25: - | R25: - | S25: - | T25: - | W25: YR | X25: CUST | Y25: CUST | Z25: KWH EA | AA25: CUST | AB25: LOAD | AC25: CUST | AD25: LOAD | AE25: REQ | AF25: MARGIN | AG25: EXCESS | AH25: EXCESS | AI25: 0.05906519048 | AL25: - | AN25: -
W26: - | X26: - | Y26: - | Z26: - | AA26: - | AB26: - | AC26: - | AD26: - | AE26: - | AF26: - | AG26: - | AH26: - | AJ26: =NPV(AI25,$AI$28:$AI$103) -> -24623057.76
A28: =1+A27 -> 1 | B28: ='Cost-Benefit $26.7 M (IRP)'!S11+'Cost-Benefit $26.7 M (IRP)'!S12 -> 22153992.33 | C28: =B28 -> 22153992.33 | D28: =I27+C28 -> 22153992.33 | E28: =E27+J28 -> 2215399.233 | F28: =CA137 -> 3164919.344 | G28: =CA229 -> 2215399.233 | H28: =(F28-G28)*$D$2 -> 199399.2234 | I28: =D28-J28-H28 -> 19739193.87 | J28: =CA323 -> 2215399.233 | K28: =(+I28+D28)/2 -> 20946593.1 | L28: =IF(A28=1,$N$1*K28,$N$1*K28) -> 590693.9255 | M28: =IF(A28=1,($N$3+$N$2)*K28,($N$3+$N$2)*K28) -> 984489.8758 | N28: 0 | O28: =AN28*$D$10 -> 221539.9233 | P28: =AL28*$T$8 -> 141782.9887 | Q28: =(+AL28-(G28+L28+N28+O28+P28))*$D$1 -> 30897.87215 | R28: =(+AL28-(G28+L28+N28+O28+P28+Q28))*$D$2 -> 238362.5092 | S28: =J28+M28+L28+N28+O28+P28+Q28+R28 -> 4423166.328 | T28: =S28/(1+$D$3)^(A28-1) -> 4423166.328 | U28: =S28/$B$28 -> 0.199655496 | V28: 0 | W28: =1+W27 -> 1 | X28: 0 | Y28: =+X28 -> 0 | Z28: =X28*$Z$24 -> 0 | AA28: 0 | AB28: 0 | AC28: =Y28+AA28 -> 0 | AD28: 0 | AE28: =S28 -> 4423166.328 | AF28: =V28 -> 0 | AG28: =AF28-AE28 -> -4423166.328 | AH28: =AF28-AE28 -> -4423166.328 | AI28: =IF(A28=1,AF28-T24,AF28) -> -26077423.35 | AL28: =(+J28+L28+M28+N28+O28-(($D$1+(1-$D$1)*$D$2)*(G28+L28+N28+O28)))/$T$16 -> 4335373.51 | AN28: =C28-J27+AN27 -> 22153992.33
A29: 2 | B29: 0 | C29: =B29 -> 0 | D29: =I28+C29 -> 19739193.87 | E29: 4430798.466 | F29: 5425512.722 | G29: =CA230 -> 2215399.233 | H29: 674123.8326 | I29: 16849670.81 | J29: 2215399.233 | K29: 18294432.34 | L29: =IF(A29=1,$N$1*K29,$N$1*K29) -> 515902.992 | M29: 859838.3201 | N29: 0 | O29: 199385.931 | P29: =AL29*$T$8 -> 133257.5077 | Q29: 26784.60207 | R29: 206630.5707 | S29: 4157199.157 | T29: =S29/(1+$D$3)^(A29-1) -> 3887856.251 | U29: =S29/$B$28 -> 0.1876501127 | V29: 0 | W29: =1+W28 -> 2 | X29: 0 | Y29: =+X29 -> 0 | Z29: =X29*$Z$24 -> 0 | AA29: 0 | AB29: 0 | AC29: 0 | AD29: 0 | AE29: 4157199.157 | AF29: 0 | AG29: -4157199.157 | AH29: =AF29-AE29 -> -4157199.157 | AI29: =IF(A29=1,AF29-T25,AF29) -> 0 | AL29: =(+J29+L29+M29+N29+O29-(($D$1+(1-$D$1)*$D$2)*(G29+L29+N29+O29)))/$T$16 -> 4074685.364 | AN29: =C29-J28+AN28 -> 19938593.1
A30: 3 | B30: 0 | C30: 0 | D30: 16849670.81 | E30: 6646197.699 | F30: 3875397.878 | G30: 2215399.233 | H30: 348599.7155 | I30: 14285671.86 | J30: 2215399.233 | K30: 15567671.33 | L30: 439008.3316 | M30: 731680.5527 | N30: 0 | O30: 177231.9386 | P30: 124512.7312 | Q30: 22555.1959 | R30: 174002.6971 | S30: 3884390.68 | T30: 3397360.558 | U30: 0.1753359224 | V30: 0 | W30: 3 | X30: 0 | Y30: 0 | Z30: 0 | AA30: 0 | AB30: 0 | AC30: 0 | AD30: 0 | AE30: 3884390.68 | AF30: 0 | AG30: -3884390.68 | AH30: -3884390.68 | AI30: 0 | AL30: 3807291.703 | AN30: 17723193.86
A31: 4 | B31: 0 | C31: 0 | D31: 14285671.86 | E31: 8861596.932 | F31: 2768141.342 | G31: 2215399.233 | H31: 116075.8428 | I31: 11954196.78 | J31: 2215399.233 | K31: 13119934.32 | L31: 369982.1479 | M31: 616636.9131 | N31: 0 | O31: 155077.9463 | P31: 116588.1761 | Q31: 18760.16838 | R31: 144725.85 | S31: 3637170.435 | T31: 2975032.797 | U31: 0.1641767488 | V31: 0 | W31: 4 | X31: 0 | Y31: 0 | Z31: 0 | AA31: 0 | AB31: 0 | AC31: 0 | AD31: 0 | AE31: 3637170.435 | AF31: 0 | AG31: -3637170.435 | AH31: -3637170.435 | AI31: 0 | AL31: 3564978.386 | AN31: 15507794.63
A32: 5 | B32: 0 | C32: 0 | D32: 11954196.78 | E32: 11076996.17 | F32: 1977243.816 | G32: 2215399.233 | H32: -50012.63769 | I32: 9788810.189 | J32: 2215399.233 | K32: 10871503.49 | L32: 306576.3983 | M32: 510960.6639 | N32: 0 | O32: 132923.954 | P32: 109249.5032 | Q32: 15275.4165 | R32: 117842.6329 | S32: 3408227.802 | T32: 2607150.422 | U32: 0.153842601 | V32: 0 | W32: 5 | X32: 0 | Y32: 0 | Z32: 0 | AA32: 0 | AB32: 0 | AC32: 0 | AD32: 0 | AE32: 3408227.802 | AF32: 0 | AG32: -3408227.802 | AH32: -3408227.802 | AI32: 0 | AL32: 3340579.9 | AN32: 13292395.4
A33: 6 | B33: 0 | C33: 0 | D33: 9788810.189 | E33: 13292395.4 | F33: 1977243.816 | G33: 2215399.233 | H33: -50012.63769 | I33: 7623423.593 | J33: 2215399.233 | K33: 8706116.891 | L33: 245512.4963 | M33: 409187.4939 | N33: 0 | O33: 110769.9617 | P33: 102154.9479 | Q33: 11919.94614 | R33: 91956.76183 | S33: 3186900.841 | T33: 2279897.873 | U33: 0.1438522138 | V33: 0 | W33: 6 | X33: 0 | Y33: 0 | Z33: 0 | AA33: 0 | AB33: 0 | AC33: 0 | AD33: 0 | AE33: 3186900.841 | AF33: 0 | AG33: -3186900.841 | AH33: -3186900.841 | AI33: 0 | AL33: 3123645.927 | AN33: 11076996.17
A34: 7 | B34: 0 | C34: 0 | D34: 7623423.593 | E34: 15507794.63 | F34: 1977243.816 | G34: 2215399.233 | H34: -50012.63769 | I34: 5458036.998 | J34: 2215399.233 | K34: 6540730.296 | L34: 184448.5943 | M34: 307414.3239 | N34: 0 | O34: 88615.96932 | P34: 95060.39265 | Q34: 8564.475771 | R34: 66070.89073 | S34: 2965573.88 | T34: 1984106.405 | U34: 0.1338618266 | V34: 0 | W34: 7 | X34: 0 | Y34: 0 | Z34: 0 | AA34: 0 | AB34: 0 | AC34: 0 | AD34: 0 | AE34: 2965573.88 | AF34: 0 | AG34: -2965573.88 | AH34: -2965573.88 | AI34: 0 | AL34: 2906711.954 | AN34: 8861596.932
A35: 8 | B35: 0 | C35: 0 | D35: 5458036.998 | E35: 17723193.86 | F35: 988289.5979 | G35: 2215399.233 | H35: -257693.0234 | I35: 3500330.788 | J35: 2215399.233 | K35: 4479183.893 | L35: 126312.9858 | M35: 210521.643 | N35: 0 | O35: 66461.97699 | P35: 88271.08693 | Q35: 5370.661619 | R35: 41432.12106 | S35: 2753769.708 | T35: 1723031.424 | U35: 0.1243012847 | V35: 0 | W35: 8 | X35: 0 | Y35: 0 | Z35: 0 | AA35: 0 | AB35: 0 | AC35: 0 | AD35: 0 | AE35: 2753769.708 | AF35: 0 | AG35: -2753769.708 | AH35: -2753769.708 | AI35: 0 | AL35: 2699111.759 | AN35: 6646197.699
A36: 9 | B36: 0 | C36: 0 | D36: 3500330.788 | E36: 19938593.1 | F36: 0 | G36: 2215399.233 | H36: -465233.8389 | I36: 1750165.394 | J36: 2215399.233 | K36: 2625248.091 | L36: 74031.99617 | M36: 123386.6603 | N36: 0 | O36: 44307.98466 | P36: 82092.0752 | Q36: 2500.051254 | R36: 19286.71616 | S36: 2561004.717 | T36: 1498598.614 | U36: 0.1156001446 | V36: 0 | W36: 9 | X36: 0 | Y36: 0 | Z36: 0 | AA36: 0 | AB36: 0 | AC36: 0 | AD36: 0 | AE36: 2561004.717 | AF36: 0 | AG36: -2561004.717 | AH36: -2561004.717 | AI36: 0 | AL36: 2510172.846 | AN36: 4430798.466
A37: 10 | B37: 0 | C37: 0 | D37: 1750165.394 | E37: 22153992.33 | F37: 0 | G37: 2215399.233 | H37: -465233.8389 | I37: -6.111804396e-09 | J37: 2215399.233 | K37: 875082.6971 | L37: 24677.33206 | M37: 41128.88676 | N37: 0 | O37: 22153.99233 | P37: 76218.10789 | Q37: -209.0115366 | R37: -1612.425414 | S37: 2377756.115 | T37: 1301222.679 | U37: 0.1073285609 | V37: 0 | W37: 10 | X37: 0 | Y37: 0 | Z37: 0 | AA37: 0 | AB37: 0 | AC37: 0 | AD37: 0 | AE37: 2377756.115 | AF37: 0 | AG37: -2377756.115 | AH37: -2377756.115 | AI37: 0 | AL37: 2330561.438 | AN37: 2215399.233
A38: 11 | B38: 0 | C38: 0 | D38: -6.111804396e-09 | E38: 22153992.33 | F38: 0 | G38: 0 | H38: 0 | I38: -6.111804396e-09 | J38: 0 | K38: -6.111804396e-09 | L38: -1.72352884e-10 | M38: -2.872548066e-10 | N38: 0 | O38: -7.450580597e-11 | P38: -2.041856184e-11 | Q38: -9.462405985e-12 | R38: -7.299799878e-11 | S38: -6.369924631e-10 | T38: -3.260077911e-10 | U38: -2.87529423e-17 | V38: 0 | W38: 11 | X38: 0 | Y38: 0 | Z38: 0 | AA38: 0 | AB38: 0 | AC38: 0 | AD38: 0 | AE38: -6.369924631e-10 | AF38: 0 | AG38: 6.369924631e-10 | AH38: 6.369924631e-10 | AI38: 0 | AL38: -6.243491757e-10 | AN38: -7.450580597e-09
A39: 12 | B39: 0 | C39: 0 | D39: -6.111804396e-09 | E39: 22153992.33 | F39: 0 | G39: 0 | H39: 0 | I39: -6.111804396e-09 | J39: 0 | K39: -6.111804396e-09 | L39: -1.72352884e-10 | M39: -2.872548066e-10 | N39: 0 | O39: -7.450580597e-11 | P39: -2.041856184e-11 | Q39: -9.462405985e-12 | R39: -7.299799878e-11 | S39: -6.369924631e-10 | T39: -3.048859053e-10 | U39: -2.87529423e-17 | V39: 0 | W39: 12 | X39: 0 | Y39: 0 | Z39: 0 | AA39: 0 | AB39: 0 | AC39: 0 | AD39: 0 | AE39: -6.369924631e-10 | AF39: 0 | AG39: 6.369924631e-10 | AH39: 6.369924631e-10 | AI39: 0 | AL39: -6.243491757e-10 | AN39: -7.450580597e-09
A40: 13 | B40: 0 | C40: 0 | D40: -6.111804396e-09 | E40: 22153992.33 | F40: 0 | G40: 0 | H40: 0 | I40: -6.111804396e-09 | J40: 0 | K40: -6.111804396e-09 | L40: -1.72352884e-10 | M40: -2.872548066e-10 | N40: 0 | O40: -7.450580597e-11 | P40: -2.041856184e-11 | Q40: -9.462405985e-12 | R40: -7.299799878e-11 | S40: -6.369924631e-10 | T40: -2.851324963e-10 | U40: -2.87529423e-17 | V40: 0 | W40: 13 | X40: 0 | Y40: 0 | Z40: 0 | AA40: 0 | AB40: 0 | AC40: 0 | AD40: 0 | AE40: -6.369924631e-10 | AF40: 0 | AG40: 6.369924631e-10 | AH40: 6.369924631e-10 | AI40: 0 | AL40: -6.243491757e-10 | AN40: -7.450580597e-09
A41: 14 | B41: 0 | C41: 0 | D41: -6.111804396e-09 | E41: 22153992.33 | F41: 0 | G41: 0 | H41: 0 | I41: -6.111804396e-09 | J41: 0 | K41: -6.111804396e-09 | L41: -1.72352884e-10 | M41: -2.872548066e-10 | N41: 0 | O41: -7.450580597e-11 | P41: -2.041856184e-11 | Q41: -9.462405985e-12 | R41: -7.299799878e-11 | S41: -6.369924631e-10 | T41: -2.666589009e-10 | U41: -2.87529423e-17 | V41: 0 | W41: 14 | X41: 0 | Y41: 0 | Z41: 0 | AA41: 0 | AB41: 0 | AC41: 0 | AD41: 0 | AE41: -6.369924631e-10 | AF41: 0 | AG41: 6.369924631e-10 | AH41: 6.369924631e-10 | AI41: 0 | AL41: -6.243491757e-10 | AN41: -7.450580597e-09
A42: 15 | B42: 0 | C42: 0 | D42: -6.111804396e-09 | E42: 22153992.33 | F42: 0 | G42: 0 | H42: 0 | I42: -6.111804396e-09 | J42: 0 | K42: -6.111804396e-09 | L42: -1.72352884e-10 | M42: -2.872548066e-10 | N42: 0 | O42: -7.450580597e-11 | P42: -2.041856184e-11 | Q42: -9.462405985e-12 | R42: -7.299799878e-11 | S42: -6.369924631e-10 | T42: -2.493822008e-10 | U42: -2.87529423e-17 | V42: 0 | W42: 15 | X42: 0 | Y42: 0 | Z42: 0 | AA42: 0 | AB42: 0 | AC42: 0 | AD42: 0 | AE42: -6.369924631e-10 | AF42: 0 | AG42: 6.369924631e-10 | AH42: 6.369924631e-10 | AI42: 0 | AL42: -6.243491757e-10 | AN42: -7.450580597e-09
A43: 16 | B43: 0 | C43: 0 | D43: -6.111804396e-09 | E43: 22153992.33 | F43: 0 | G43: 0 | H43: 0 | I43: -6.111804396e-09 | J43: 0 | K43: -6.111804396e-09 | L43: -1.72352884e-10 | M43: -2.872548066e-10 | N43: 0 | O43: -7.450580597e-11 | P43: -2.041856184e-11 | Q43: -9.462405985e-12 | R43: -7.299799878e-11 | S43: -6.369924631e-10 | T43: -2.332248497e-10 | U43: -2.87529423e-17 | V43: 0 | W43: 16 | X43: 0 | Y43: 0 | Z43: 0 | AA43: 0 | AB43: 0 | AC43: 0 | AD43: 0 | AE43: -6.369924631e-10 | AF43: 0 | AG43: 6.369924631e-10 | AH43: 6.369924631e-10 | AI43: 0 | AL43: -6.243491757e-10 | AN43: -7.450580597e-09
A44: 17 | B44: 0 | C44: 0 | D44: -6.111804396e-09 | E44: 22153992.33 | F44: 0 | G44: 0 | H44: 0 | I44: -6.111804396e-09 | J44: 0 | K44: =(+I44+D44)/2 -> -6.111804396e-09 | L44: -1.72352884e-10 | M44: -2.872548066e-10 | N44: 0 | O44: -7.450580597e-11 | P44: -2.041856184e-11 | Q44: -9.462405985e-12 | R44: =(+AL44-(G44+L44+N44+O44+P44+Q44))*$D$2 -> -7.299799878e-11 | S44: -6.369924631e-10 | T44: -2.181143254e-10 | U44: -2.87529423e-17 | V44: 0 | W44: 17 | X44: 0 | Y44: 0 | Z44: 0 | AA44: 0 | AB44: 0 | AC44: =Y44+AA44 -> 0 | AD44: 0 | AE44: -6.369924631e-10 | AF44: 0 | AG44: 6.369924631e-10 | AH44: 6.369924631e-10 | AI44: 0 | AL44: -6.243491757e-10 | AN44: -7.450580597e-09
A45: 18 | B45: 0 | C45: 0 | D45: -6.111804396e-09 | E45: 22153992.33 | F45: 0 | G45: 0 | H45: 0 | I45: -6.111804396e-09 | J45: 0 | K45: -6.111804396e-09 | L45: -1.72352884e-10 | M45: -2.872548066e-10 | N45: 0 | O45: -7.450580597e-11 | P45: -2.041856184e-11 | Q45: -9.462405985e-12 | R45: -7.299799878e-11 | S45: -6.369924631e-10 | T45: -2.039828047e-10 | U45: -2.87529423e-17 | V45: 0 | W45: 18 | X45: 0 | Y45: 0 | Z45: 0 | AA45: 0 | AB45: 0 | AC45: 0 | AD45: 0 | AE45: -6.369924631e-10 | AF45: 0 | AG45: 6.369924631e-10 | AH45: 6.369924631e-10 | AI45: 0 | AL45: -6.243491757e-10 | AN45: -7.450580597e-09
A46: 19 | B46: 0 | C46: 0 | D46: -6.111804396e-09 | E46: 22153992.33 | F46: 0 | G46: 0 | H46: 0 | I46: -6.111804396e-09 | J46: 0 | K46: -6.111804396e-09 | L46: -1.72352884e-10 | M46: -2.872548066e-10 | N46: 0 | O46: -7.450580597e-11 | P46: -2.041856184e-11 | Q46: -9.462405985e-12 | R46: -7.299799878e-11 | S46: -6.369924631e-10 | T46: -1.907668583e-10 | U46: -2.87529423e-17 | V46: 0 | W46: 19 | X46: 0 | Y46: 0 | Z46: 0 | AA46: 0 | AB46: 0 | AC46: 0 | AD46: 0 | AE46: -6.369924631e-10 | AF46: 0 | AG46: 6.369924631e-10 | AH46: 6.369924631e-10 | AI46: 0 | AL46: -6.243491757e-10 | AN46: -7.450580597e-09
A47: 20 | B47: 0 | C47: 0 | D47: -6.111804396e-09 | E47: 22153992.33 | F47: 0 | G47: 0 | H47: 0 | I47: =D47-J47-H47 -> -6.111804396e-09 | J47: 0 | K47: -6.111804396e-09 | L47: -1.72352884e-10 | M47: -2.872548066e-10 | N47: 0 | O47: -7.450580597e-11 | P47: -2.041856184e-11 | Q47: -9.462405985e-12 | R47: -7.299799878e-11 | S47: -6.369924631e-10 | T47: -1.784071666e-10 | U47: -2.87529423e-17 | V47: 0 | W47: 20 | X47: 0 | Y47: 0 | Z47: 0 | AA47: 0 | AB47: 0 | AC47: 0 | AD47: 0 | AE47: -6.369924631e-10 | AF47: 0 | AG47: 6.369924631e-10 | AH47: 6.369924631e-10 | AI47: 0 | AL47: -6.243491757e-10 | AN47: -7.450580597e-09
A48: 21 | B48: 0 | C48: 0 | D48: =I47+C48 -> -6.111804396e-09 | E48: 22153992.33 | F48: 0 | G48: 0 | H48: 0 | I48: -6.111804396e-09 | J48: 0 | K48: -6.111804396e-09 | L48: -1.72352884e-10 | M48: -2.872548066e-10 | N48: 0 | O48: -7.450580597e-11 | P48: -2.041856184e-11 | Q48: -9.462405985e-12 | R48: -7.299799878e-11 | S48: -6.369924631e-10 | T48: -1.668482533e-10 | U48: -2.87529423e-17 | V48: 0 | W48: 21 | X48: 0 | Y48: 0 | Z48: 0 | AA48: 0 | AB48: 0 | AC48: 0 | AD48: 0 | AE48: -6.369924631e-10 | AF48: 0 | AG48: 6.369924631e-10 | AH48: 6.369924631e-10 | AI48: 0 | AL48: -6.243491757e-10 | AN48: -7.450580597e-09
A49: 22 | B49: 0 | C49: 0 | D49: -6.111804396e-09 | E49: 22153992.33 | F49: 0 | G49: 0 | H49: 0 | I49: -6.111804396e-09 | J49: 0 | K49: -6.111804396e-09 | L49: -1.72352884e-10 | M49: -2.872548066e-10 | N49: 0 | O49: -7.450580597e-11 | P49: -2.041856184e-11 | Q49: -9.462405985e-12 | R49: -7.299799878e-11 | S49: -6.369924631e-10 | T49: -1.560382364e-10 | U49: -2.87529423e-17 | V49: 0 | W49: 22 | X49: 0 | Y49: 0 | Z49: 0 | AA49: 0 | AB49: 0 | AC49: 0 | AD49: 0 | AE49: -6.369924631e-10 | AF49: 0 | AG49: 6.369924631e-10 | AH49: 6.369924631e-10 | AI49: 0 | AL49: -6.243491757e-10 | AN49: -7.450580597e-09
A50: 23 | B50: 0 | C50: 0 | D50: -6.111804396e-09 | E50: 22153992.33 | F50: 0 | G50: 0 | H50: 0 | I50: -6.111804396e-09 | J50: 0 | K50: -6.111804396e-09 | L50: -1.72352884e-10 | M50: -2.872548066e-10 | N50: 0 | O50: -7.450580597e-11 | P50: -2.041856184e-11 | Q50: -9.462405985e-12 | R50: -7.299799878e-11 | S50: -6.369924631e-10 | T50: -1.459285951e-10 | U50: -2.87529423e-17 | V50: 0 | W50: 23 | X50: 0 | Y50: 0 | Z50: 0 | AA50: 0 | AB50: 0 | AC50: 0 | AD50: 0 | AE50: -6.369924631e-10 | AF50: 0 | AG50: 6.369924631e-10 | AH50: 6.369924631e-10 | AI50: 0 | AL50: -6.243491757e-10 | AN50: -7.450580597e-09
A51: 24 | B51: 0 | C51: 0 | D51: -6.111804396e-09 | E51: 22153992.33 | F51: 0 | G51: 0 | H51: 0 | I51: -6.111804396e-09 | J51: 0 | K51: -6.111804396e-09 | L51: -1.72352884e-10 | M51: -2.872548066e-10 | N51: 0 | O51: -7.450580597e-11 | P51: -2.041856184e-11 | Q51: -9.462405985e-12 | R51: -7.299799878e-11 | S51: -6.369924631e-10 | T51: -1.364739527e-10 | U51: -2.87529423e-17 | V51: 0 | W51: 24 | X51: 0 | Y51: 0 | Z51: 0 | AA51: 0 | AB51: 0 | AC51: 0 | AD51: 0 | AE51: -6.369924631e-10 | AF51: 0 | AG51: 6.369924631e-10 | AH51: 6.369924631e-10 | AI51: 0 | AL51: -6.243491757e-10 | AN51: -7.450580597e-09
A52: 25 | B52: 0 | C52: 0 | D52: -6.111804396e-09 | E52: 22153992.33 | F52: 0 | G52: 0 | H52: 0 | I52: -6.111804396e-09 | J52: 0 | K52: -6.111804396e-09 | L52: -1.72352884e-10 | M52: -2.872548066e-10 | N52: 0 | O52: -7.450580597e-11 | P52: -2.041856184e-11 | Q52: -9.462405985e-12 | R52: -7.299799878e-11 | S52: -6.369924631e-10 | T52: -1.276318718e-10 | U52: -2.87529423e-17 | V52: 0 | W52: 25 | X52: 0 | Y52: 0 | Z52: 0 | AA52: 0 | AB52: 0 | AC52: 0 | AD52: 0 | AE52: -6.369924631e-10 | AF52: 0 | AG52: 6.369924631e-10 | AH52: 6.369924631e-10 | AI52: 0 | AL52: -6.243491757e-10 | AN52: -7.450580597e-09
A53: 26 | B53: 0 | C53: 0 | D53: -6.111804396e-09 | E53: 22153992.33 | F53: 0 | G53: 0 | H53: 0 | I53: -6.111804396e-09 | J53: 0 | K53: -6.111804396e-09 | L53: -1.72352884e-10 | M53: -2.872548066e-10 | N53: 0 | O53: -7.450580597e-11 | P53: -2.041856184e-11 | Q53: -9.462405985e-12 | R53: -7.299799878e-11 | S53: -6.369924631e-10 | T53: -1.193626651e-10 | U53: -2.87529423e-17 | V53: 0 | W53: 26 | X53: 0 | Y53: 0 | Z53: 0 | AA53: 0 | AB53: 0 | AC53: 0 | AD53: 0 | AE53: -6.369924631e-10 | AF53: 0 | AG53: 6.369924631e-10 | AH53: 6.369924631e-10 | AI53: 0 | AL53: -6.243491757e-10 | AN53: -7.450580597e-09
A54: 27 | B54: 0 | C54: 0 | D54: -6.111804396e-09 | E54: 22153992.33 | F54: 0 | G54: 0 | H54: 0 | I54: -6.111804396e-09 | J54: 0 | K54: -6.111804396e-09 | L54: -1.72352884e-10 | M54: -2.872548066e-10 | N54: 0 | O54: -7.450580597e-11 | P54: -2.041856184e-11 | Q54: -9.462405985e-12 | R54: -7.299799878e-11 | S54: -6.369924631e-10 | T54: -1.116292163e-10 | U54: -2.87529423e-17 | V54: 0 | W54: 27 | X54: 0 | Y54: 0 | Z54: 0 | AA54: 0 | AB54: 0 | AC54: 0 | AD54: 0 | AE54: -6.369924631e-10 | AF54: 0 | AG54: 6.369924631e-10 | AH54: 6.369924631e-10 | AI54: 0 | AL54: -6.243491757e-10 | AN54: -7.450580597e-09
A55: 28 | B55: 0 | C55: 0 | D55: -6.111804396e-09 | E55: 22153992.33 | F55: 0 | G55: 0 | H55: 0 | I55: -6.111804396e-09 | J55: 0 | K55: -6.111804396e-09 | L55: -1.72352884e-10 | M55: -2.872548066e-10 | N55: 0 | O55: -7.450580597e-11 | P55: -2.041856184e-11 | Q55: -9.462405985e-12 | R55: -7.299799878e-11 | S55: -6.369924631e-10 | T55: -1.043968138e-10 | U55: -2.87529423e-17 | V55: 0 | W55: 28 | X55: 0 | Y55: 0 | Z55: 0 | AA55: 0 | AB55: 0 | AC55: 0 | AD55: 0 | AE55: -6.369924631e-10 | AF55: 0 | AG55: 6.369924631e-10 | AH55: 6.369924631e-10 | AI55: 0 | AL55: -6.243491757e-10 | AN55: -7.450580597e-09
A56: 29 | B56: 0 | C56: 0 | D56: -6.111804396e-09 | E56: 22153992.33 | F56: 0 | G56: 0 | H56: 0 | I56: -6.111804396e-09 | J56: 0 | K56: -6.111804396e-09 | L56: -1.72352884e-10 | M56: -2.872548066e-10 | N56: 0 | O56: -7.450580597e-11 | P56: -2.041856184e-11 | Q56: -9.462405985e-12 | R56: -7.299799878e-11 | S56: -6.369924631e-10 | T56: -9.763299517e-11 | U56: -2.87529423e-17 | V56: 0 | W56: 29 | X56: 0 | Y56: 0 | Z56: 0 | AA56: 0 | AB56: 0 | AC56: 0 | AD56: 0 | AE56: -6.369924631e-10 | AF56: 0 | AG56: 6.369924631e-10 | AH56: 6.369924631e-10 | AI56: 0 | AL56: -6.243491757e-10 | AN56: -7.450580597e-09
A57: 30 | B57: 0 | C57: 0 | D57: -6.111804396e-09 | E57: 22153992.33 | F57: 0 | G57: 0 | H57: 0 | I57: -6.111804396e-09 | J57: 0 | K57: -6.111804396e-09 | L57: -1.72352884e-10 | M57: -2.872548066e-10 | N57: 0 | O57: -7.450580597e-11 | P57: -2.041856184e-11 | Q57: -9.462405985e-12 | R57: -7.299799878e-11 | S57: -6.369924631e-10 | T57: -9.130740104e-11 | U57: -2.87529423e-17 | V57: 0 | W57: 30 | X57: 0 | Y57: 0 | Z57: 0 | AA57: 0 | AB57: 0 | AC57: 0 | AD57: 0 | AE57: -6.369924631e-10 | AF57: 0 | AG57: 6.369924631e-10 | AH57: 6.369924631e-10 | AI57: 0 | AL57: -6.243491757e-10 | AN57: -7.450580597e-09
A58: 31 | B58: 0 | C58: 0 | D58: -6.111804396e-09 | E58: 22153992.33 | F58: 0 | G58: 0 | H58: 0 | I58: -6.111804396e-09 | J58: 0 | K58: -6.111804396e-09 | L58: -1.72352884e-10 | M58: -2.872548066e-10 | N58: 0 | O58: -7.450580597e-11 | P58: -2.041856184e-11 | Q58: -9.462405985e-12 | R58: -7.299799878e-11 | S58: -6.369924631e-10 | T58: -8.539163907e-11 | U58: -2.87529423e-17 | V58: 0 | W58: 31 | X58: 0 | Y58: 0 | Z58: 0 | AA58: 0 | AB58: 0 | AC58: 0 | AD58: 0 | AE58: -6.369924631e-10 | AF58: 0 | AG58: 6.369924631e-10 | AH58: 6.369924631e-10 | AI58: 0 | AL58: -6.243491757e-10 | AN58: -7.450580597e-09
A59: 32 | B59: 0 | C59: 0 | D59: -6.111804396e-09 | E59: 22153992.33 | F59: 0 | G59: 0 | H59: 0 | I59: -6.111804396e-09 | J59: 0 | K59: -6.111804396e-09 | L59: -1.72352884e-10 | M59: -2.872548066e-10 | N59: 0 | O59: -7.450580597e-11 | P59: -2.041856184e-11 | Q59: -9.462405985e-12 | R59: -7.299799878e-11 | S59: -6.369924631e-10 | T59: -7.985915643e-11 | U59: -2.87529423e-17 | V59: 0 | W59: 32 | X59: 0 | Y59: 0 | Z59: 0 | AA59: 0 | AB59: 0 | AC59: 0 | AD59: 0 | AE59: -6.369924631e-10 | AF59: 0 | AG59: 6.369924631e-10 | AH59: 6.369924631e-10 | AI59: 0 | AL59: -6.243491757e-10 | AN59: -7.450580597e-09
A60: 33 | B60: 0 | C60: 0 | D60: -6.111804396e-09 | E60: 22153992.33 | F60: 0 | G60: 0 | H60: 0 | I60: -6.111804396e-09 | J60: 0 | K60: -6.111804396e-09 | L60: -1.72352884e-10 | M60: -2.872548066e-10 | N60: 0 | O60: -7.450580597e-11 | P60: -2.041856184e-11 | Q60: -9.462405985e-12 | R60: -7.299799878e-11 | S60: -6.369924631e-10 | T60: -7.468512064e-11 | U60: -2.87529423e-17 | V60: 0 | W60: 33 | X60: 0 | Y60: 0 | Z60: 0 | AA60: 0 | AB60: 0 | AC60: 0 | AD60: 0 | AE60: -6.369924631e-10 | AF60: 0 | AG60: 6.369924631e-10 | AH60: 6.369924631e-10 | AI60: 0 | AL60: -6.243491757e-10 | AN60: -7.450580597e-09
A61: 34 | B61: 0 | C61: 0 | D61: -6.111804396e-09 | E61: 22153992.33 | F61: 0 | G61: 0 | H61: 0 | I61: -6.111804396e-09 | J61: 0 | K61: -6.111804396e-09 | L61: -1.72352884e-10 | M61: -2.872548066e-10 | N61: 0 | O61: -7.450580597e-11 | P61: -2.041856184e-11 | Q61: -9.462405985e-12 | R61: -7.299799878e-11 | S61: -6.369924631e-10 | T61: -6.984630811e-11 | U61: -2.87529423e-17 | V61: 0 | W61: 34 | X61: 0 | Y61: 0 | Z61: 0 | AA61: 0 | AB61: 0 | AC61: 0 | AD61: 0 | AE61: -6.369924631e-10 | AF61: 0 | AG61: 6.369924631e-10 | AH61: 6.369924631e-10 | AI61: 0 | AL61: -6.243491757e-10 | AN61: -7.450580597e-09
A62: 35 | B62: 0 | C62: 0 | D62: -6.111804396e-09 | E62: 22153992.33 | F62: 0 | G62: 0 | H62: 0 | I62: -6.111804396e-09 | J62: 0 | K62: -6.111804396e-09 | L62: -1.72352884e-10 | M62: -2.872548066e-10 | N62: 0 | O62: -7.450580597e-11 | P62: -2.041856184e-11 | Q62: -9.462405985e-12 | R62: -7.299799878e-11 | S62: -6.369924631e-10 | T62: -6.532099988e-11 | U62: -2.87529423e-17 | V62: 0 | W62: 35 | X62: 0 | Y62: 0 | Z62: 0 | AA62: 0 | AB62: 0 | AC62: 0 | AD62: 0 | AE62: -6.369924631e-10 | AF62: 0 | AG62: 6.369924631e-10 | AH62: 6.369924631e-10 | AI62: 0 | AL62: -6.243491757e-10 | AN62: -7.450580597e-09
A63: 36 | B63: 0 | C63: 0 | D63: -6.111804396e-09 | E63: 22153992.33 | F63: 0 | G63: 0 | H63: 0 | I63: -6.111804396e-09 | J63: 0 | K63: -6.111804396e-09 | L63: -1.72352884e-10 | M63: -2.872548066e-10 | N63: 0 | O63: -7.450580597e-11 | P63: -2.041856184e-11 | Q63: -9.462405985e-12 | R63: -7.299799878e-11 | S63: -6.369924631e-10 | T63: -6.108888416e-11 | U63: -2.87529423e-17 | V63: 0 | W63: 36 | X63: 0 | Y63: 0 | Z63: 0 | AA63: 0 | AB63: 0 | AC63: 0 | AD63: 0 | AE63: -6.369924631e-10 | AF63: 0 | AG63: 6.369924631e-10 | AH63: 6.369924631e-10 | AI63: 0 | AL63: -6.243491757e-10 | AN63: -7.450580597e-09
A64: 37 | B64: 0 | C64: 0 | D64: -6.111804396e-09 | E64: 22153992.33 | F64: 0 | G64: 0 | H64: 0 | I64: -6.111804396e-09 | J64: 0 | K64: -6.111804396e-09 | L64: -1.72352884e-10 | M64: -2.872548066e-10 | N64: 0 | O64: -7.450580597e-11 | P64: -2.041856184e-11 | Q64: -9.462405985e-12 | R64: -7.299799878e-11 | S64: -6.369924631e-10 | T64: -5.713096516e-11 | U64: -2.87529423e-17 | V64: 0 | W64: 37 | X64: 0 | Y64: 0 | Z64: 0 | AA64: 0 | AB64: 0 | AC64: 0 | AD64: 0 | AE64: -6.369924631e-10 | AF64: 0 | AG64: 6.369924631e-10 | AH64: 6.369924631e-10 | AI64: 0 | AL64: -6.243491757e-10 | AN64: -7.450580597e-09
A65: 38 | B65: 0 | C65: 0 | D65: -6.111804396e-09 | E65: 22153992.33 | F65: 0 | G65: 0 | H65: 0 | I65: -6.111804396e-09 | J65: 0 | K65: -6.111804396e-09 | L65: -1.72352884e-10 | M65: -2.872548066e-10 | N65: 0 | O65: -7.450580597e-11 | P65: -2.041856184e-11 | Q65: -9.462405985e-12 | R65: -7.299799878e-11 | S65: -6.369924631e-10 | T65: -5.34294778e-11 | U65: -2.87529423e-17 | V65: 0 | W65: 38 | X65: 0 | Y65: 0 | Z65: 0 | AA65: 0 | AB65: 0 | AC65: 0 | AD65: 0 | AE65: -6.369924631e-10 | AF65: 0 | AG65: 6.369924631e-10 | AH65: 6.369924631e-10 | AI65: 0 | AL65: -6.243491757e-10 | AN65: -7.450580597e-09
A66: 39 | B66: 0 | C66: 0 | D66: -6.111804396e-09 | E66: 22153992.33 | F66: 0 | G66: 0 | H66: 0 | I66: -6.111804396e-09 | J66: 0 | K66: -6.111804396e-09 | L66: -1.72352884e-10 | M66: -2.872548066e-10 | N66: 0 | O66: -7.450580597e-11 | P66: -2.041856184e-11 | Q66: -9.462405985e-12 | R66: -7.299799878e-11 | S66: -6.369924631e-10 | T66: -4.996780799e-11 | U66: -2.87529423e-17 | V66: 0 | W66: 39 | X66: 0 | Y66: 0 | Z66: 0 | AA66: 0 | AB66: 0 | AC66: 0 | AD66: 0 | AE66: -6.369924631e-10 | AF66: 0 | AG66: 6.369924631e-10 | AH66: 6.369924631e-10 | AI66: 0 | AL66: -6.243491757e-10 | AN66: -7.450580597e-09
A67: 40 | B67: 0 | C67: 0 | D67: -6.111804396e-09 | E67: 22153992.33 | F67: 0 | G67: 0 | H67: 0 | I67: -6.111804396e-09 | J67: 0 | K67: -6.111804396e-09 | L67: -1.72352884e-10 | M67: -2.872548066e-10 | N67: 0 | O67: -7.450580597e-11 | P67: -2.041856184e-11 | Q67: -9.462405985e-12 | R67: -7.299799878e-11 | S67: -6.369924631e-10 | T67: -4.673041809e-11 | U67: -2.87529423e-17 | V67: 0 | W67: 40 | X67: 0 | Y67: 0 | Z67: 0 | AA67: 0 | AB67: 0 | AC67: 0 | AD67: 0 | AE67: -6.369924631e-10 | AF67: 0 | AG67: 6.369924631e-10 | AH67: 6.369924631e-10 | AI67: 0 | AL67: -6.243491757e-10 | AN67: -7.450580597e-09
A68: 41 | B68: 0 | C68: 0 | D68: -6.111804396e-09 | E68: 22153992.33 | F68: 0 | G68: 0 | H68: 0 | I68: -6.111804396e-09 | J68: 0 | K68: -6.111804396e-09 | L68: -1.72352884e-10 | M68: -2.872548066e-10 | N68: 0 | O68: -7.450580597e-11 | P68: -2.041856184e-11 | Q68: -9.462405985e-12 | R68: -7.299799878e-11 | S68: -6.369924631e-10 | T68: -4.37027771e-11 | U68: -2.87529423e-17 | V68: 0 | W68: 41 | X68: 0 | Y68: 0 | Z68: 0 | AA68: 0 | AB68: 0 | AC68: 0 | AD68: 0 | AE68: -6.369924631e-10 | AF68: 0 | AG68: 6.369924631e-10 | AH68: 6.369924631e-10 | AI68: 0 | AL68: -6.243491757e-10 | AN68: -7.450580597e-09
A69: 42 | B69: 0 | C69: 0 | D69: -6.111804396e-09 | E69: 22153992.33 | F69: 0 | G69: 0 | H69: 0 | I69: -6.111804396e-09 | J69: 0 | K69: -6.111804396e-09 | L69: -1.72352884e-10 | M69: -2.872548066e-10 | N69: 0 | O69: -7.450580597e-11 | P69: -2.041856184e-11 | Q69: -9.462405985e-12 | R69: -7.299799878e-11 | S69: -6.369924631e-10 | T69: -4.087129549e-11 | U69: -2.87529423e-17 | V69: 0 | W69: 42 | X69: 0 | Y69: 0 | Z69: 0 | AA69: 0 | AB69: 0 | AC69: 0 | AD69: 0 | AE69: -6.369924631e-10 | AF69: 0 | AG69: 6.369924631e-10 | AH69: 6.369924631e-10 | AI69: 0 | AL69: -6.243491757e-10 | AN69: -7.450580597e-09
A70: 43 | B70: 0 | C70: 0 | D70: -6.111804396e-09 | E70: 22153992.33 | F70: 0 | G70: 0 | H70: 0 | I70: -6.111804396e-09 | J70: 0 | K70: -6.111804396e-09 | L70: -1.72352884e-10 | M70: -2.872548066e-10 | N70: 0 | O70: -7.450580597e-11 | P70: -2.041856184e-11 | Q70: -9.462405985e-12 | R70: -7.299799878e-11 | S70: -6.369924631e-10 | T70: -3.822326419e-11 | U70: -2.87529423e-17 | V70: 0 | W70: 43 | X70: 0 | Y70: 0 | Z70: 0 | AA70: 0 | AB70: 0 | AC70: 0 | AD70: 0 | AE70: -6.369924631e-10 | AF70: 0 | AG70: 6.369924631e-10 | AH70: 6.369924631e-10 | AI70: 0 | AL70: -6.243491757e-10 | AN70: -7.450580597e-09
A71: 44 | B71: 0 | C71: 0 | D71: -6.111804396e-09 | E71: 22153992.33 | F71: 0 | G71: 0 | H71: 0 | I71: -6.111804396e-09 | J71: 0 | K71: -6.111804396e-09 | L71: -1.72352884e-10 | M71: -2.872548066e-10 | N71: 0 | O71: -7.450580597e-11 | P71: -2.041856184e-11 | Q71: -9.462405985e-12 | R71: -7.299799878e-11 | S71: -6.369924631e-10 | T71: -3.574679755e-11 | U71: -2.87529423e-17 | V71: 0 | W71: 44 | X71: 0 | Y71: 0 | Z71: 0 | AA71: 0 | AB71: 0 | AC71: 0 | AD71: 0 | AE71: -6.369924631e-10 | AF71: 0 | AG71: 6.369924631e-10 | AH71: 6.369924631e-10 | AI71: 0 | AL71: -6.243491757e-10 | AN71: -7.450580597e-09
A72: 45 | B72: 0 | C72: 0 | D72: -6.111804396e-09 | E72: 22153992.33 | F72: 0 | G72: 0 | H72: 0 | I72: -6.111804396e-09 | J72: 0 | K72: -6.111804396e-09 | L72: -1.72352884e-10 | M72: -2.872548066e-10 | N72: 0 | O72: -7.450580597e-11 | P72: -2.041856184e-11 | Q72: -9.462405985e-12 | R72: -7.299799878e-11 | S72: -6.369924631e-10 | T72: -3.343077998e-11 | U72: -2.87529423e-17 | V72: 0 | W72: 45 | X72: 0 | Y72: 0 | Z72: 0 | AA72: 0 | AB72: 0 | AC72: 0 | AD72: 0 | AE72: -6.369924631e-10 | AF72: 0 | AG72: 6.369924631e-10 | AH72: 6.369924631e-10 | AI72: 0 | AL72: -6.243491757e-10 | AN72: -7.450580597e-09
A73: 46 | B73: 0 | C73: 0 | D73: -6.111804396e-09 | E73: 22153992.33 | F73: 0 | G73: 0 | H73: 0 | I73: -6.111804396e-09 | J73: 0 | K73: -6.111804396e-09 | L73: -1.72352884e-10 | M73: -2.872548066e-10 | N73: 0 | O73: -7.450580597e-11 | P73: -2.041856184e-11 | Q73: -9.462405985e-12 | R73: -7.299799878e-11 | S73: -6.369924631e-10 | T73: -3.126481605e-11 | U73: -2.87529423e-17 | V73: 0 | W73: 46 | X73: 0 | Y73: 0 | Z73: 0 | AA73: 0 | AB73: 0 | AC73: 0 | AD73: 0 | AE73: -6.369924631e-10 | AF73: 0 | AG73: 6.369924631e-10 | AH73: 6.369924631e-10 | AI73: 0 | AL73: -6.243491757e-10 | AN73: -7.450580597e-09
A74: 47 | B74: 0 | C74: 0 | D74: -6.111804396e-09 | E74: 22153992.33 | F74: 0 | G74: 0 | H74: 0 | I74: -6.111804396e-09 | J74: 0 | K74: -6.111804396e-09 | L74: -1.72352884e-10 | M74: -2.872548066e-10 | N74: 0 | O74: -7.450580597e-11 | P74: -2.041856184e-11 | Q74: -9.462405985e-12 | R74: -7.299799878e-11 | S74: -6.369924631e-10 | T74: -2.923918387e-11 | U74: -2.87529423e-17 | V74: 0 | W74: 47 | X74: 0 | Y74: 0 | Z74: 0 | AA74: 0 | AB74: 0 | AC74: 0 | AD74: 0 | AE74: -6.369924631e-10 | AF74: 0 | AG74: 6.369924631e-10 | AH74: 6.369924631e-10 | AI74: 0 | AL74: -6.243491757e-10 | AN74: -7.450580597e-09
A75: 48 | B75: 0 | C75: 0 | D75: -6.111804396e-09 | E75: 22153992.33 | F75: 0 | G75: 0 | H75: 0 | I75: -6.111804396e-09 | J75: 0 | K75: -6.111804396e-09 | L75: -1.72352884e-10 | M75: -2.872548066e-10 | N75: 0 | O75: -7.450580597e-11 | P75: -2.041856184e-11 | Q75: -9.462405985e-12 | R75: -7.299799878e-11 | S75: -6.369924631e-10 | T75: -2.734479141e-11 | U75: -2.87529423e-17 | V75: 0 | W75: 48 | X75: 0 | Y75: 0 | Z75: 0 | AA75: 0 | AB75: 0 | AC75: 0 | AD75: 0 | AE75: -6.369924631e-10 | AF75: 0 | AG75: 6.369924631e-10 | AH75: 6.369924631e-10 | AI75: 0 | AL75: -6.243491757e-10 | AN75: -7.450580597e-09
A76: 49 | B76: 0 | C76: 0 | D76: -6.111804396e-09 | E76: 22153992.33 | F76: 0 | G76: 0 | H76: 0 | I76: -6.111804396e-09 | J76: 0 | K76: -6.111804396e-09 | L76: -1.72352884e-10 | M76: -2.872548066e-10 | N76: 0 | O76: -7.450580597e-11 | P76: -2.041856184e-11 | Q76: -9.462405985e-12 | R76: -7.299799878e-11 | S76: -6.369924631e-10 | T76: -2.557313571e-11 | U76: -2.87529423e-17 | V76: 0 | W76: 49 | X76: 0 | Y76: 0 | Z76: 0 | AA76: 0 | AB76: 0 | AC76: 0 | AD76: 0 | AE76: -6.369924631e-10 | AF76: 0 | AG76: 6.369924631e-10 | AH76: 6.369924631e-10 | AI76: 0 | AL76: -6.243491757e-10 | AN76: -7.450580597e-09
A77: 50 | B77: 0 | C77: 0 | D77: -6.111804396e-09 | E77: 22153992.33 | F77: 0 | G77: 0 | H77: 0 | I77: -6.111804396e-09 | J77: 0 | K77: -6.111804396e-09 | L77: -1.72352884e-10 | M77: -2.872548066e-10 | N77: 0 | O77: -7.450580597e-11 | P77: -2.041856184e-11 | Q77: -9.462405985e-12 | R77: -7.299799878e-11 | S77: -6.369924631e-10 | T77: -2.391626473e-11 | U77: -2.87529423e-17 | V77: 0 | W77: 50 | X77: 0 | Y77: 0 | Z77: 0 | AA77: 0 | AB77: 0 | AC77: 0 | AD77: 0 | AE77: -6.369924631e-10 | AF77: 0 | AG77: 6.369924631e-10 | AH77: 6.369924631e-10 | AI77: 0 | AL77: -6.243491757e-10 | AN77: -7.450580597e-09
A78: 51 | B78: 0 | C78: 0 | D78: -6.111804396e-09 | E78: 22153992.33 | F78: 0 | G78: 0 | H78: 0 | I78: -6.111804396e-09 | J78: 0 | K78: -6.111804396e-09 | L78: -1.72352884e-10 | M78: -2.872548066e-10 | N78: 0 | O78: -7.450580597e-11 | P78: -2.041856184e-11 | Q78: -9.462405985e-12 | R78: -7.299799878e-11 | S78: -6.369924631e-10 | T78: -2.23667416e-11 | U78: -2.87529423e-17 | V78: 0 | W78: 51 | X78: 0 | Y78: 0 | Z78: 0 | AA78: 0 | AB78: 0 | AC78: 0 | AD78: 0 | AE78: -6.369924631e-10 | AF78: 0 | AG78: 6.369924631e-10 | AH78: 6.369924631e-10 | AI78: 0 | AL78: -6.243491757e-10 | AN78: -7.450580597e-09
A79: 52 | B79: 0 | C79: 0 | D79: -6.111804396e-09 | E79: 22153992.33 | F79: 0 | G79: 0 | H79: 0 | I79: -6.111804396e-09 | J79: 0 | K79: -6.111804396e-09 | L79: -1.72352884e-10 | M79: -2.872548066e-10 | N79: 0 | O79: -7.450580597e-11 | P79: -2.041856184e-11 | Q79: -9.462405985e-12 | R79: -7.299799878e-11 | S79: -6.369924631e-10 | T79: -2.091761133e-11 | U79: -2.87529423e-17 | V79: 0 | W79: 52 | X79: 0 | Y79: 0 | Z79: 0 | AA79: 0 | AB79: 0 | AC79: 0 | AD79: 0 | AE79: -6.369924631e-10 | AF79: 0 | AG79: 6.369924631e-10 | AH79: 6.369924631e-10 | AI79: 0 | AL79: -6.243491757e-10 | AN79: -7.450580597e-09
A80: 53 | B80: 0 | C80: 0 | D80: -6.111804396e-09 | E80: 22153992.33 | F80: 0 | G80: 0 | H80: 0 | I80: -6.111804396e-09 | J80: 0 | K80: -6.111804396e-09 | L80: -1.72352884e-10 | M80: -2.872548066e-10 | N80: 0 | O80: -7.450580597e-11 | P80: -2.041856184e-11 | Q80: -9.462405985e-12 | R80: -7.299799878e-11 | S80: -6.369924631e-10 | T80: -1.956236949e-11 | U80: -2.87529423e-17 | V80: 0 | W80: 53 | X80: 0 | Y80: 0 | Z80: 0 | AA80: 0 | AB80: 0 | AC80: 0 | AD80: 0 | AE80: -6.369924631e-10 | AF80: 0 | AG80: 6.369924631e-10 | AH80: 6.369924631e-10 | AI80: 0 | AL80: -6.243491757e-10 | AN80: -7.450580597e-09
A81: 54 | B81: 0 | C81: 0 | D81: -6.111804396e-09 | E81: 22153992.33 | F81: 0 | G81: 0 | H81: 0 | I81: -6.111804396e-09 | J81: 0 | K81: -6.111804396e-09 | L81: -1.72352884e-10 | M81: -2.872548066e-10 | N81: 0 | O81: -7.450580597e-11 | P81: -2.041856184e-11 | Q81: -9.462405985e-12 | R81: -7.299799878e-11 | S81: -6.369924631e-10 | T81: -1.829493312e-11 | U81: -2.87529423e-17 | V81: 0 | W81: 54 | X81: 0 | Y81: 0 | Z81: 0 | AA81: 0 | AB81: 0 | AC81: 0 | AD81: 0 | AE81: -6.369924631e-10 | AF81: 0 | AG81: 6.369924631e-10 | AH81: 6.369924631e-10 | AI81: 0 | AL81: -6.243491757e-10 | AN81: -7.450580597e-09
A82: 55 | B82: 0 | C82: 0 | D82: -6.111804396e-09 | E82: 22153992.33 | F82: 0 | G82: 0 | H82: 0 | I82: -6.111804396e-09 | J82: 0 | K82: -6.111804396e-09 | L82: -1.72352884e-10 | M82: -2.872548066e-10 | N82: 0 | O82: -7.450580597e-11 | P82: -2.041856184e-11 | Q82: -9.462405985e-12 | R82: -7.299799878e-11 | S82: -6.369924631e-10 | T82: -1.710961332e-11 | U82: -2.87529423e-17 | V82: 0 | W82: 55 | X82: 0 | Y82: 0 | Z82: 0 | AA82: 0 | AB82: 0 | AC82: 0 | AD82: 0 | AE82: -6.369924631e-10 | AF82: 0 | AG82: 6.369924631e-10 | AH82: 6.369924631e-10 | AI82: 0 | AL82: -6.243491757e-10 | AN82: -7.450580597e-09
A83: 56 | B83: 0 | C83: 0 | D83: -6.111804396e-09 | E83: 22153992.33 | F83: 0 | G83: 0 | H83: 0 | I83: -6.111804396e-09 | J83: 0 | K83: -6.111804396e-09 | L83: -1.72352884e-10 | M83: -2.872548066e-10 | N83: 0 | O83: -7.450580597e-11 | P83: -2.041856184e-11 | Q83: -9.462405985e-12 | R83: -7.299799878e-11 | S83: -6.369924631e-10 | T83: -1.600108982e-11 | U83: -2.87529423e-17 | V83: 0 | W83: 56 | X83: 0 | Y83: 0 | Z83: 0 | AA83: 0 | AB83: 0 | AC83: 0 | AD83: 0 | AE83: -6.369924631e-10 | AF83: 0 | AG83: 6.369924631e-10 | AH83: 6.369924631e-10 | AI83: 0 | AL83: -6.243491757e-10 | AN83: -7.450580597e-09
A84: 57 | B84: 0 | C84: 0 | D84: -6.111804396e-09 | E84: 22153992.33 | F84: 0 | G84: 0 | H84: 0 | I84: -6.111804396e-09 | J84: 0 | K84: -6.111804396e-09 | L84: -1.72352884e-10 | M84: -2.872548066e-10 | N84: 0 | O84: -7.450580597e-11 | P84: -2.041856184e-11 | Q84: -9.462405985e-12 | R84: -7.299799878e-11 | S84: -6.369924631e-10 | T84: -1.496438702e-11 | U84: -2.87529423e-17 | V84: 0 | W84: 57 | X84: 0 | Y84: 0 | Z84: 0 | AA84: 0 | AB84: 0 | AC84: 0 | AD84: 0 | AE84: -6.369924631e-10 | AF84: 0 | AG84: 6.369924631e-10 | AH84: 6.369924631e-10 | AI84: 0 | AL84: -6.243491757e-10 | AN84: -7.450580597e-09
A85: 58 | B85: 0 | C85: 0 | D85: -6.111804396e-09 | E85: 22153992.33 | F85: 0 | G85: 0 | H85: 0 | I85: -6.111804396e-09 | J85: 0 | K85: -6.111804396e-09 | L85: -1.72352884e-10 | M85: -2.872548066e-10 | N85: 0 | O85: -7.450580597e-11 | P85: -2.041856184e-11 | Q85: -9.462405985e-12 | R85: -7.299799878e-11 | S85: -6.369924631e-10 | T85: -1.399485168e-11 | U85: -2.87529423e-17 | V85: 0 | W85: 58 | X85: 0 | Y85: 0 | Z85: 0 | AA85: 0 | AB85: 0 | AC85: 0 | AD85: 0 | AE85: -6.369924631e-10 | AF85: 0 | AG85: 6.369924631e-10 | AH85: 6.369924631e-10 | AI85: 0 | AL85: -6.243491757e-10 | AN85: -7.450580597e-09
A86: 59 | B86: 0 | C86: 0 | D86: -6.111804396e-09 | E86: 22153992.33 | F86: 0 | G86: 0 | H86: 0 | I86: -6.111804396e-09 | J86: 0 | K86: -6.111804396e-09 | L86: -1.72352884e-10 | M86: -2.872548066e-10 | N86: 0 | O86: -7.450580597e-11 | P86: -2.041856184e-11 | Q86: -9.462405985e-12 | R86: -7.299799878e-11 | S86: -6.369924631e-10 | T86: -1.308813207e-11 | U86: -2.87529423e-17 | V86: 0 | W86: 59 | X86: 0 | Y86: 0 | Z86: 0 | AA86: 0 | AB86: 0 | AC86: 0 | AD86: 0 | AE86: -6.369924631e-10 | AF86: 0 | AG86: 6.369924631e-10 | AH86: 6.369924631e-10 | AI86: 0 | AL86: -6.243491757e-10 | AN86: -7.450580597e-09
A87: 60 | B87: 0 | C87: 0 | D87: -6.111804396e-09 | E87: 22153992.33 | F87: 0 | G87: 0 | H87: 0 | I87: -6.111804396e-09 | J87: 0 | K87: -6.111804396e-09 | L87: -1.72352884e-10 | M87: -2.872548066e-10 | N87: 0 | O87: -7.450580597e-11 | P87: -2.041856184e-11 | Q87: -9.462405985e-12 | R87: -7.299799878e-11 | S87: -6.369924631e-10 | T87: -1.224015838e-11 | U87: -2.87529423e-17 | V87: 0 | W87: 60 | X87: 0 | Y87: 0 | Z87: 0 | AA87: 0 | AB87: 0 | AC87: 0 | AD87: 0 | AE87: -6.369924631e-10 | AF87: 0 | AG87: 6.369924631e-10 | AH87: 6.369924631e-10 | AI87: 0 | AL87: -6.243491757e-10 | AN87: -7.450580597e-09
A88: 61 | B88: 0 | C88: 0 | D88: -6.111804396e-09 | E88: 22153992.33 | F88: 0 | G88: 0 | H88: 0 | I88: -6.111804396e-09 | J88: 0 | K88: -6.111804396e-09 | L88: -1.72352884e-10 | M88: =IF(A88=1,($N$3+$N$2)*K88,($N$3+$N$2)*K88) -> -2.872548066e-10 | N88: 0 | O88: -7.450580597e-11 | P88: -2.041856184e-11 | Q88: -9.462405985e-12 | R88: -7.299799878e-11 | S88: -6.369924631e-10 | T88: -1.144712449e-11 | U88: -2.87529423e-17 | V88: 0 | W88: 61 | X88: 0 | Y88: 0 | Z88: 0 | AA88: 0 | AB88: 0 | AC88: 0 | AD88: 0 | AE88: -6.369924631e-10 | AF88: 0 | AG88: 6.369924631e-10 | AH88: 6.369924631e-10 | AI88: 0 | AL88: -6.243491757e-10 | AN88: -7.450580597e-09
A89: 62 | B89: 0 | C89: 0 | D89: -6.111804396e-09 | E89: 22153992.33 | F89: 0 | G89: 0 | H89: 0 | I89: -6.111804396e-09 | J89: 0 | K89: -6.111804396e-09 | L89: -1.72352884e-10 | M89: =IF(A89=1,($N$3+$N$2)*K89,($N$3+$N$2)*K89) -> -2.872548066e-10 | N89: 0 | O89: -7.450580597e-11 | P89: -2.041856184e-11 | Q89: -9.462405985e-12 | R89: -7.299799878e-11 | S89: -6.369924631e-10 | T89: -1.070547088e-11 | U89: -2.87529423e-17 | V89: 0 | W89: 62 | X89: 0 | Y89: 0 | Z89: 0 | AA89: 0 | AB89: 0 | AC89: 0 | AD89: 0 | AE89: -6.369924631e-10 | AF89: 0 | AG89: 6.369924631e-10 | AH89: 6.369924631e-10 | AI89: 0 | AL89: -6.243491757e-10 | AN89: -7.450580597e-09
A90: 63 | B90: 0 | C90: 0 | D90: -6.111804396e-09 | E90: 22153992.33 | F90: 0 | G90: 0 | H90: 0 | I90: -6.111804396e-09 | J90: 0 | K90: -6.111804396e-09 | L90: -1.72352884e-10 | M90: -2.872548066e-10 | N90: 0 | O90: -7.450580597e-11 | P90: -2.041856184e-11 | Q90: -9.462405985e-12 | R90: -7.299799878e-11 | S90: -6.369924631e-10 | T90: -1.001186864e-11 | U90: -2.87529423e-17 | V90: 0 | W90: 63 | X90: 0 | Y90: 0 | Z90: 0 | AA90: 0 | AB90: 0 | AC90: 0 | AD90: 0 | AE90: -6.369924631e-10 | AF90: 0 | AG90: 6.369924631e-10 | AH90: 6.369924631e-10 | AI90: 0 | AL90: -6.243491757e-10 | AN90: -7.450580597e-09
A91: 64 | B91: 0 | C91: 0 | D91: -6.111804396e-09 | E91: 22153992.33 | F91: 0 | G91: 0 | H91: 0 | I91: -6.111804396e-09 | J91: 0 | K91: -6.111804396e-09 | L91: -1.72352884e-10 | M91: -2.872548066e-10 | N91: 0 | O91: -7.450580597e-11 | P91: -2.041856184e-11 | Q91: -9.462405985e-12 | R91: -7.299799878e-11 | S91: -6.369924631e-10 | T91: -9.363204555e-12 | U91: -2.87529423e-17 | V91: 0 | W91: 64 | X91: 0 | Y91: 0 | Z91: 0 | AA91: 0 | AB91: 0 | AC91: 0 | AD91: 0 | AE91: -6.369924631e-10 | AF91: 0 | AG91: 6.369924631e-10 | AH91: 6.369924631e-10 | AI91: 0 | AL91: -6.243491757e-10 | AN91: -7.450580597e-09
A92: =1+A91 -> 65 | B92: 0 | C92: 0 | D92: =I91+C92 -> -6.111804396e-09 | E92: =E91+J92 -> 22153992.33 | F92: =CA201 -> 0 | G92: 0 | H92: =(F92-G92)*$D$2 -> 0 | I92: =D92-J92-H92 -> -6.111804396e-09 | J92: =CA387 -> 0 | K92: =(+I92+D92)/2 -> -6.111804396e-09 | L92: -1.72352884e-10 | M92: -2.872548066e-10 | N92: 0 | O92: =AN92*$D$10 -> -7.450580597e-11 | P92: -2.041856184e-11 | Q92: =(+AL92-(G92+L92+N92+O92+P92))*$D$1 -> -9.462405985e-12 | R92: =(+AL92-(G92+L92+N92+O92+P92+Q92))*$D$2 -> -7.299799878e-11 | S92: =J92+M92+L92+N92+O92+P92+Q92+R92 -> -6.369924631e-10 | T92: -8.7565671e-12 | U92: -2.87529423e-17 | V92: 0 | W92: 65 | X92: 0 | Y92: 0 | Z92: 0 | AA92: 0 | AB92: 0 | AC92: 0 | AD92: 0 | AE92: =S92 -> -6.369924631e-10 | AF92: =V92 -> 0 | AG92: =AF92-AE92 -> 6.369924631e-10 | AH92: 6.369924631e-10 | AI92: 0 | AL92: -6.243491757e-10 | AN92: -7.450580597e-09
A93: 66 | B93: 0 | C93: =B93 -> 0 | D93: -6.111804396e-09 | E93: 22153992.33 | F93: 0 | G93: =CA294 -> 0 | H93: 0 | I93: -6.111804396e-09 | J93: 0 | K93: -6.111804396e-09 | L93: =IF(A93=1,$N$1*K93,$N$1*K93) -> -1.72352884e-10 | M93: -2.872548066e-10 | N93: 0 | O93: -7.450580597e-11 | P93: =AL93*$T$8 -> -2.041856184e-11 | Q93: -9.462405985e-12 | R93: -7.299799878e-11 | S93: -6.369924631e-10 | T93: =S93/(1+$D$3)^(A93-1) -> -8.189233389e-12 | U93: =S93/$B$28 -> -2.87529423e-17 | V93: 0 | W93: =1+W92 -> 66 | X93: 0 | Y93: =+X93 -> 0 | Z93: =X93*$Z$24 -> 0 | AA93: 0 | AB93: 0 | AC93: 0 | AD93: 0 | AE93: -6.369924631e-10 | AF93: 0 | AG93: 6.369924631e-10 | AH93: =AF93-AE93 -> 6.369924631e-10 | AI93: =IF(A93=1,AF93-T89,AF93) -> 0 | AL93: =(+J93+L93+M93+N93+O93-(($D$1+(1-$D$1)*$D$2)*(G93+L93+N93+O93)))/$T$16 -> -6.243491757e-10 | AN93: =C93-J92+AN92 -> -7.450580597e-09
A94: 67 | B94: 0 | C94: 0 | D94: -6.111804396e-09 | E94: 22153992.33 | F94: 0 | G94: 0 | H94: 0 | I94: -6.111804396e-09 | J94: 0 | K94: -6.111804396e-09 | L94: -1.72352884e-10 | M94: -2.872548066e-10 | N94: 0 | O94: -7.450580597e-11 | P94: -2.041856184e-11 | Q94: -9.462405985e-12 | R94: -7.299799878e-11 | S94: -6.369924631e-10 | T94: -7.658656953e-12 | U94: -2.87529423e-17 | V94: 0 | W94: 67 | X94: 0 | Y94: 0 | Z94: 0 | AA94: 0 | AB94: 0 | AC94: 0 | AD94: 0 | AE94: -6.369924631e-10 | AF94: 0 | AG94: 6.369924631e-10 | AH94: 6.369924631e-10 | AI94: 0 | AL94: -6.243491757e-10 | AN94: -7.450580597e-09
A95: 68 | B95: 0 | C95: 0 | D95: -6.111804396e-09 | E95: 22153992.33 | F95: 0 | G95: 0 | H95: 0 | I95: -6.111804396e-09 | J95: 0 | K95: -6.111804396e-09 | L95: -1.72352884e-10 | M95: -2.872548066e-10 | N95: 0 | O95: -7.450580597e-11 | P95: -2.041856184e-11 | Q95: -9.462405985e-12 | R95: -7.299799878e-11 | S95: -6.369924631e-10 | T95: -7.162456305e-12 | U95: -2.87529423e-17 | V95: 0 | W95: 68 | X95: 0 | Y95: 0 | Z95: 0 | AA95: 0 | AB95: 0 | AC95: 0 | AD95: 0 | AE95: -6.369924631e-10 | AF95: 0 | AG95: 6.369924631e-10 | AH95: 6.369924631e-10 | AI95: 0 | AL95: -6.243491757e-10 | AN95: -7.450580597e-09
A96: 69 | B96: 0 | C96: 0 | D96: -6.111804396e-09 | E96: 22153992.33 | F96: 0 | G96: 0 | H96: 0 | I96: -6.111804396e-09 | J96: 0 | K96: -6.111804396e-09 | L96: -1.72352884e-10 | M96: -2.872548066e-10 | N96: 0 | O96: -7.450580597e-11 | P96: -2.041856184e-11 | Q96: -9.462405985e-12 | R96: -7.299799878e-11 | S96: -6.369924631e-10 | T96: -6.698404255e-12 | U96: -2.87529423e-17 | V96: 0 | W96: 69 | X96: 0 | Y96: 0 | Z96: 0 | AA96: 0 | AB96: 0 | AC96: 0 | AD96: 0 | AE96: -6.369924631e-10 | AF96: 0 | AG96: 6.369924631e-10 | AH96: 6.369924631e-10 | AI96: 0 | AL96: -6.243491757e-10 | AN96: -7.450580597e-09
A97: 70 | B97: 0 | C97: 0 | D97: -6.111804396e-09 | E97: 22153992.33 | F97: 0 | G97: 0 | H97: 0 | I97: -6.111804396e-09 | J97: 0 | K97: -6.111804396e-09 | L97: -1.72352884e-10 | M97: -2.872548066e-10 | N97: 0 | O97: -7.450580597e-11 | P97: -2.041856184e-11 | Q97: -9.462405985e-12 | R97: -7.299799878e-11 | S97: -6.369924631e-10 | T97: -6.264417911e-12 | U97: -2.87529423e-17 | V97: 0 | W97: 70 | X97: 0 | Y97: 0 | Z97: 0 | AA97: 0 | AB97: 0 | AC97: 0 | AD97: 0 | AE97: -6.369924631e-10 | AF97: 0 | AG97: 6.369924631e-10 | AH97: 6.369924631e-10 | AI97: 0 | AL97: -6.243491757e-10 | AN97: -7.450580597e-09
A98: 71 | B98: 0 | C98: 0 | D98: -6.111804396e-09 | E98: 22153992.33 | F98: 0 | G98: 0 | H98: 0 | I98: -6.111804396e-09 | J98: 0 | K98: -6.111804396e-09 | L98: -1.72352884e-10 | M98: -2.872548066e-10 | N98: 0 | O98: -7.450580597e-11 | P98: -2.041856184e-11 | Q98: -9.462405985e-12 | R98: -7.299799878e-11 | S98: -6.369924631e-10 | T98: -5.85854933e-12 | U98: -2.87529423e-17 | V98: 0 | W98: 71 | X98: 0 | Y98: 0 | Z98: 0 | AA98: 0 | AB98: 0 | AC98: 0 | AD98: 0 | AE98: -6.369924631e-10 | AF98: 0 | AG98: 6.369924631e-10 | AH98: 6.369924631e-10 | AI98: 0 | AL98: -6.243491757e-10 | AN98: -7.450580597e-09
A99: 72 | B99: 0 | C99: 0 | D99: -6.111804396e-09 | E99: 22153992.33 | F99: 0 | G99: 0 | H99: 0 | I99: -6.111804396e-09 | J99: 0 | K99: -6.111804396e-09 | L99: -1.72352884e-10 | M99: -2.872548066e-10 | N99: 0 | O99: -7.450580597e-11 | P99: -2.041856184e-11 | Q99: -9.462405985e-12 | R99: -7.299799878e-11 | S99: -6.369924631e-10 | T99: -5.478976777e-12 | U99: -2.87529423e-17 | V99: 0 | W99: 72 | X99: 0 | Y99: 0 | Z99: 0 | AA99: 0 | AB99: 0 | AC99: 0 | AD99: 0 | AE99: -6.369924631e-10 | AF99: 0 | AG99: 6.369924631e-10 | AH99: 6.369924631e-10 | AI99: 0 | AL99: -6.243491757e-10 | AN99: -7.450580597e-09
A100: 73 | B100: 0 | C100: 0 | D100: -6.111804396e-09 | E100: 22153992.33 | F100: 0 | G100: 0 | H100: 0 | I100: -6.111804396e-09 | J100: 0 | K100: -6.111804396e-09 | L100: -1.72352884e-10 | M100: -2.872548066e-10 | N100: 0 | O100: -7.450580597e-11 | P100: -2.041856184e-11 | Q100: -9.462405985e-12 | R100: -7.299799878e-11 | S100: -6.369924631e-10 | T100: -5.123996545e-12 | U100: -2.87529423e-17 | V100: 0 | W100: 73 | X100: 0 | Y100: 0 | Z100: 0 | AA100: 0 | AB100: 0 | AC100: 0 | AD100: 0 | AE100: -6.369924631e-10 | AF100: 0 | AG100: 6.369924631e-10 | AH100: 6.369924631e-10 | AI100: 0 | AL100: -6.243491757e-10 | AN100: -7.450580597e-09
A101: 74 | B101: 0 | C101: 0 | D101: -6.111804396e-09 | E101: 22153992.33 | F101: 0 | G101: 0 | H101: 0 | I101: -6.111804396e-09 | J101: 0 | K101: -6.111804396e-09 | L101: -1.72352884e-10 | M101: -2.872548066e-10 | N101: 0 | O101: -7.450580597e-11 | P101: -2.041856184e-11 | Q101: -9.462405985e-12 | R101: -7.299799878e-11 | S101: -6.369924631e-10 | T101: -4.792015308e-12 | U101: -2.87529423e-17 | V101: 0 | W101: 74 | X101: 0 | Y101: 0 | Z101: 0 | AA101: 0 | AB101: 0 | AC101: 0 | AD101: 0 | AE101: -6.369924631e-10 | AF101: 0 | AG101: 6.369924631e-10 | AH101: 6.369924631e-10 | AI101: 0 | AL101: -6.243491757e-10 | AN101: -7.450580597e-09
A102: 75 | B102: 0 | C102: 0 | D102: -6.111804396e-09 | E102: 22153992.33 | F102: 0 | G102: 0 | H102: 0 | I102: -6.111804396e-09 | J102: 0 | K102: -6.111804396e-09 | L102: -1.72352884e-10 | M102: -2.872548066e-10 | N102: 0 | O102: -7.450580597e-11 | P102: -2.041856184e-11 | Q102: -9.462405985e-12 | R102: -7.299799878e-11 | S102: -6.369924631e-10 | T102: -4.481542974e-12 | U102: -2.87529423e-17 | V102: 0 | W102: 75 | X102: 0 | Y102: 0 | Z102: 0 | AA102: 0 | AB102: 0 | AC102: 0 | AD102: 0 | AE102: -6.369924631e-10 | AF102: 0 | AG102: 6.369924631e-10 | AH102: 6.369924631e-10 | AI102: 0 | AL102: -6.243491757e-10 | AN102: -7.450580597e-09
A103: 76 | B103: 0 | C103: 0 | D103: -6.111804396e-09 | E103: 22153992.33 | F103: 0 | G103: 0 | H103: 0 | I103: -6.111804396e-09 | J103: 0 | K103: -6.111804396e-09 | L103: -1.72352884e-10 | M103: -2.872548066e-10 | N103: 0 | O103: -7.450580597e-11 | P103: -2.041856184e-11 | Q103: -9.462405985e-12 | R103: -7.299799878e-11 | S103: -6.369924631e-10 | T103: -4.191185991e-12 | U103: -2.87529423e-17 | V103: 0 | W103: 76 | X103: 0 | Y103: 0 | Z103: 0 | AA103: 0 | AB103: 0 | AC103: 0 | AD103: 0 | AE103: -6.369924631e-10 | AF103: 0 | AG103: 6.369924631e-10 | AH103: 6.369924631e-10 | AI103: 0 | AL103: -6.243491757e-10 | AN103: -7.450580597e-09
A104: = | B104: = | C104: = | D104: = | E104: = | F104: = | G104: = | H104: = | I104: = | J104: = | K104: = | L104: = | M104: = | N104: = | O104: = | P104: = | Q104: = | R104: = | S104: = | T104: =
A106: (a) Time Period in Years
A107: (b) Capital Additions Tax Basis
A108: (c) Capital Additions Book Basis
A109: (d) Rate Base Beginning of Period = Previous(i) + Previous(c)
A110: (e) Accumulated Depreciation = Previous(e) + (j)
A111: (f) Tax Depreciation = Modified ACRS Schedules Times The Tax Basis
A112: (g) Book Depreciation on Tax Basis = Straight Line Depreciation of Tax Basis
A113: (h) Deferred Taxes = [(f)-(g)] * Federal Income Tax Rate
A114: (i) Rate Base End of Period = (d) - (j) - (h)
A115: (j) Book Depreciation = Straight Line Per Book Life
A116: (k) Average Rate Base = [(d) + (i)] / 2
A117: (l) Interest Expense = Weighted Cost of Debt * (k)
A118: (m) Equity Return = [Weighted Cost of Preferred + Weighted Cost of Common] * (k)
A119: (n) Operating and Maintenance Expense = Previous(n) * [1 + O&M Escalation Factor]
A120: (o) Property Taxes = Property Tax Rate * (d)
A121: (p) Miscellaneous Revenue Items = Revenue Requirements * Miscellaneous Revenue Items Percentage
A122: (q) State Income Tax = [Revenue Requirement - [(g) + (l) + (m) + (n) + (o) + (p)] * State Income Tax Rate
A123: (r) Federal Income Taxes = [Revenue Requirements - [(g) + (l) + (n) + (o) + Miscellaneous Revenue Items + State Tax] * Federal Income Tax Rate
A124: (s) Total Revenue Requirements = (j) + (l) + (m) + (n) + (o) + (p) + (q) + (r)
A125: (t) Present Value Revenue Requirements = Total Revenue Requirements / [1 + Discount Factor] ^ [(a) - .5]
A127: Revenue Requirements = [(j) + (l) + (m) + (n) + (o) - Federal Income Tax Rate * [(g) + (l) + (n) + (o)]] / Conversion Factor
A130: TAX DEPRECIATION
A132: Class => | B132: =$D$4 -> 3
C133: 1 | D133: 2 | E133: 3 | F133: 4 | G133: 5 | H133: 6 | I133: 7 | J133: 8 | K133: 9 | L133: 10 | M133: 11 | N133: 12 | O133: 13 | P133: 14 | Q133: 15 | R133: 16 | S133: 17 | T133: 18 | U133: 19 | V133: 20 | W133: 21 | X133: 22 | Y133: 23 | Z133: 24 | AA133: 25 | AB133: 26 | AC133: 27 | AD133: 28 | AE133: 29 | AF133: 30 | AG133: 31 | AH133: 32 | AI133: 33 | AJ133: 34 | AK133: 35 | AL133: 36 | AM133: 37 | AN133: 38 | AO133: 39 | AP133: 40 | AQ133: 41 | AR133: 42 | AS133: 43 | AT133: 44 | AU133: 45 | AV133: 46 | AW133: 47 | AX133: 48 | AY133: 49 | AZ133: 50 | BA133: 51 | BB133: 52 | BC133: 53 | BD133: 54 | BE133: 55 | BF133: 56 | BG133: 57 | BH133: 58 | BI133: 59 | BJ133: 60 | BK133: 61 | BL133: 62 | BM133: 63 | BN133: 64 | BO133: 65 | BP133: 66 | BQ133: 67 | BR133: 68 | BS133: 69 | BT133: 70 | BU133: 71 | BV133: 72 | BW133: 73 | BX133: 74 | BY133: 75 | BZ133: 76 | CA133: Total
C134: - | D134: - | E134: - | F134: - | G134: - | H134: - | I134: - | J134: - | K134: - | L134: - | M134: - | N134: - | O134: - | P134: - | Q134: - | R134: - | S134: - | T134: - | U134: - | V134: - | W134: - | X134: - | Y134: - | Z134: - | AA134: - | AB134: - | AC134: - | AD134: - | AE134: - | AF134: - | AG134: - | AH134: - | AI134: - | AJ134: - | AK134: - | AL134: - | AM134: - | AN134: - | AO134: - | AP134: - | AQ134: - | AR134: - | AS134: - | AT134: - | AU134: - | AV134: - | AW134: - | AX134: - | AY134: - | AZ134: - | BA134: - | BB134: - | BC134: - | BD134: - | BE134: - | BF134: - | BG134: - | BH134: - | BI134: - | BJ134: - | BK134: - | BL134: - | BM134: - | BN134: - | BO134: - | BP134: - | BQ134: - | BR134: - | BS134: - | BT134: - | BU134: - | BV134: - | BW134: - | BX134: - | BY134: - | BZ134: - | CA134: -
A135: Rate | B135: Capital | C135: =$B28 -> 22153992.33 | D135: =$B29 -> 0 | E135: =$B30 -> 0 | F135: =$B31 -> 0 | G135: =$B32 -> 0 | H135: =$B33 -> 0 | I135: =$B34 -> 0 | J135: =$B35 -> 0 | K135: =$B36 -> 0 | L135: =$B37 -> 0 | M135: =$B38 -> 0 | N135: =$B39 -> 0 | O135: =$B40 -> 0 | P135: =$B41 -> 0 | Q135: =$B42 -> 0 | R135: =$B43 -> 0 | S135: =$B44 -> 0 | T135: =$B45 -> 0 | U135: =$B46 -> 0 | V135: =$B47 -> 0 | W135: =$B48 -> 0 | X135: =$B49 -> 0 | Y135: =$B50 -> 0 | Z135: =$B51 -> 0 | AA135: =$B52 -> 0 | AB135: =$B53 -> 0 | AC135: =$B54 -> 0 | AD135: =$B55 -> 0 | AE135: =$B56 -> 0 | AF135: =$B57 -> 0 | AG135: =$B58 -> 0 | AH135: =$B59 -> 0 | AI135: =$B60 -> 0 | AJ135: =$B61 -> 0 | AK135: =$B62 -> 0 | AL135: =$B63 -> 0 | AM135: =$B64 -> 0 | AN135: =$B65 -> 0 | AO135: =$B66 -> 0 | AP135: =$B67 -> 0 | AQ135: =$B68 -> 0 | AR135: =$B69 -> 0 | AS135: =$B70 -> 0 | AT135: =$B71 -> 0 | AU135: =$B72 -> 0 | AV135: =$B73 -> 0 | AW135: =$B74 -> 0 | AX135: =$B75 -> 0 | AY135: =$B76 -> 0 | AZ135: =$B77 -> 0 | BA135: =$B78 -> 0 | BB135: =$B79 -> 0 | BC135: =$B80 -> 0 | BD135: =$B81 -> 0 | BE135: =$B82 -> 0 | BF135: =$B83 -> 0 | BG135: =$B84 -> 0 | BH135: =$B85 -> 0 | BI135: =$B86 -> 0 | BJ135: =$B87 -> 0 | BK135: =$B88 -> 0 | BL135: =$B89 -> 0 | BM135: =$B90 -> 0 | BN135: =$B91 -> 0 | BO135: =$B92 -> 0 | BP135: =$B93 -> 0 | BQ135: =$B94 -> 0 | BR135: =$B95 -> 0 | BS135: =$B96 -> 0 | BT135: =$B97 -> 0 | BU135: =$B98 -> 0 | BV135: =$B99 -> 0 | BW135: =$B100 -> 0 | BX135: =$B101 -> 0 | BY135: =$B102 -> 0 | BZ135: =$B103 -> 0 | CA135: =SUM($C135:$BZ135) -> 22153992.33 | CC135: 31.5 Year | CD135: 20 Years | CE135: 7 Years | CF135: 5 Years
C136: - | D136: - | E136: - | F136: - | G136: - | H136: - | I136: - | J136: - | K136: - | L136: - | M136: - | N136: - | O136: - | P136: - | Q136: - | R136: - | S136: - | T136: - | U136: - | V136: - | W136: - | X136: - | Y136: - | Z136: - | AA136: - | AB136: - | AC136: - | AD136: - | AE136: - | AF136: - | AG136: - | AH136: - | AI136: - | AJ136: - | AK136: - | AL136: - | AM136: - | AN136: - | AO136: - | AP136: - | AQ136: - | AR136: - | AS136: - | AT136: - | AU136: - | AV136: - | AW136: - | AX136: - | AY136: - | AZ136: - | BA136: - | BB136: - | BC136: - | BD136: - | BE136: - | BF136: - | BG136: - | BH136: - | BI136: - | BJ136: - | BK136: - | BL136: - | BM136: - | BN136: - | BO136: - | BP136: - | BQ136: - | BR136: - | BS136: - | BT136: - | BU136: - | BV136: - | BW136: - | BX136: - | BY136: - | BZ136: - | CA136: -
A137: =IF($B$132=1,CC137,IF($B$132=2,CD137,IF($B$132=3,CE137,IF($B$132=4,CF137,#VALUE!)))) -> 0.14286 | B137: =+B136+1 -> 1 | C137: =C$135*$A137 -> 3164919.344 | CA137: =SUM($C137:$BZ137) -> 3164919.344 | CC137: 0.01587 | CD137: 0.0375 | CE137: 0.14286 | CF137: 0.2
A138: =IF($B$132=1,CC138,IF($B$132=2,CD138,IF($B$132=3,CE138,IF($B$132=4,CF138,#VALUE!)))) -> 0.2449 | B138: =+B137+1 -> 2 | C138: =C$135*$A138 -> 5425512.722 | D138: =D$135*$A137 -> 0 | CA138: 5425512.722 | CC138: 0.03175 | CD138: 0.07219 | CE138: 0.2449 | CF138: 0.32
A139: 0.17493 | B139: 3 | C139: 3875397.878 | D139: =D$135*$A138 -> 0 | E139: =E$135*$A137 -> 0 | CA139: 3875397.878 | CC139: 0.03175 | CD139: 0.06678 | CE139: 0.17493 | CF139: 0.192
A140: 0.12495 | B140: 4 | C140: 2768141.342 | D140: 0 | E140: =E$135*$A138 -> 0 | F140: =F$135*$A137 -> 0 | CA140: 2768141.342 | CC140: 0.03175 | CD140: 0.06178 | CE140: 0.12495 | CF140: 0.1152
A141: 0.08925 | B141: 5 | C141: 1977243.816 | D141: 0 | E141: 0 | F141: =F$135*$A138 -> 0 | G141: =G$135*$A137 -> 0 | CA141: 1977243.816 | CC141: 0.03175 | CD141: 0.05715 | CE141: 0.08925 | CF141: 0.1152
A142: 0.08925 | B142: 6 | C142: 1977243.816 | D142: 0 | E142: 0 | F142: 0 | G142: =G$135*$A138 -> 0 | H142: =H$135*$A137 -> 0 | CA142: 1977243.816 | CC142: 0.03175 | CD142: 0.05286 | CE142: 0.08925 | CF142: 0.0576
A143: 0.08925 | B143: 7 | C143: 1977243.816 | D143: 0 | E143: 0 | F143: 0 | G143: 0 | H143: =H$135*$A138 -> 0 | I143: =I$135*$A137 -> 0 | CA143: 1977243.816 | CC143: 0.03175 | CD143: 0.0489 | CE143: 0.08925 | CF143: 0
A144: 0.04461 | B144: 8 | C144: 988289.5979 | D144: 0 | E144: 0 | F144: 0 | G144: 0 | H144: 0 | I144: =I$135*$A138 -> 0 | J144: =J$135*$A137 -> 0 | CA144: 988289.5979 | CC144: 0.03175 | CD144: 0.04523 | CE144: 0.04461 | CF144: 0
A145: 0 | B145: 9 | C145: 0 | D145: 0 | E145: 0 | F145: 0 | G145: 0 | H145: 0 | I145: 0 | J145: =J$135*$A138 -> 0 | K145: =K$135*$A137 -> 0 | CA145: 0 | CC145: 0.03175 | CD145: 0.04461 | CE145: 0 | CF145: 0
A146: 0 | B146: 10 | C146: 0 | D146: 0 | E146: 0 | F146: 0 | G146: 0 | H146: 0 | I146: 0 | J146: 0 | K146: =K$135*$A138 -> 0 | L146: =L$135*$A137 -> 0 | CA146: 0 | CC146: 0.03175 | CD146: 0.04461 | CE146: 0 | CF146: 0
A147: 0 | B147: 11 | C147: 0 | D147: 0 | E147: 0 | F147: 0 | G147: 0 | H147: 0 | I147: 0 | J147: 0 | K147: 0 | L147: =L$135*$A138 -> 0 | M147: =M$135*$A137 -> 0 | CA147: 0 | CC147: 0.03175 | CD147: 0.04461 | CE147: 0 | CF147: 0
A148: 0 | B148: 12 | C148: 0 | D148: 0 | E148: 0 | F148: 0 | G148: 0 | H148: 0 | I148: 0 | J148: 0 | K148: 0 | L148: 0 | M148: =M$135*$A138 -> 0 | N148: =N$135*$A137 -> 0 | CA148: 0 | CC148: 0.03175 | CD148: 0.04461 | CE148: 0 | CF148: 0
A149: 0 | B149: 13 | C149: 0 | D149: 0 | E149: 0 | F149: 0 | G149: 0 | H149: 0 | I149: 0 | J149: 0 | K149: 0 | L149: 0 | M149: 0 | N149: =N$135*$A138 -> 0 | O149: =O$135*$A137 -> 0 | CA149: 0 | CC149: 0.03175 | CD149: 0.04461 | CE149: 0 | CF149: 0
A150: 0 | B150: 14 | C150: 0 | D150: 0 | E150: 0 | F150: 0 | G150: 0 | H150: 0 | I150: 0 | J150: 0 | K150: 0 | L150: 0 | M150: 0 | N150: 0 | O150: =O$135*$A138 -> 0 | P150: =P$135*$A137 -> 0 | CA150: 0 | CC150: 0.03175 | CD150: 0.04461 | CE150: 0 | CF150: 0
A151: 0 | B151: 15 | C151: 0 | D151: 0 | E151: 0 | F151: 0 | G151: 0 | H151: 0 | I151: 0 | J151: 0 | K151: 0 | L151: 0 | M151: 0 | N151: 0 | O151: 0 | P151: =P$135*$A138 -> 0 | Q151: =Q$135*$A137 -> 0 | CA151: 0 | CC151: 0.03175 | CD151: 0.04461 | CE151: 0 | CF151: 0
A152: 0 | B152: 16 | C152: 0 | D152: 0 | E152: 0 | F152: 0 | G152: 0 | H152: 0 | I152: 0 | J152: 0 | K152: 0 | L152: 0 | M152: 0 | N152: 0 | O152: 0 | P152: 0 | Q152: =Q$135*$A138 -> 0 | R152: =R$135*$A137 -> 0 | CA152: 0 | CC152: 0.03175 | CD152: 0.04461 | CE152: 0 | CF152: 0
A153: 0 | B153: 17 | C153: 0 | D153: 0 | E153: 0 | F153: 0 | G153: 0 | H153: 0 | I153: 0 | J153: 0 | K153: 0 | L153: 0 | M153: 0 | N153: 0 | O153: 0 | P153: 0 | Q153: 0 | R153: =R$135*$A138 -> 0 | S153: =S$135*$A137 -> 0 | CA153: 0 | CC153: 0.03175 | CD153: 0.04461 | CE153: 0 | CF153: 0
A154: 0 | B154: 18 | C154: 0 | D154: 0 | E154: 0 | F154: 0 | G154: 0 | H154: 0 | I154: 0 | J154: 0 | K154: 0 | L154: 0 | M154: 0 | N154: 0 | O154: 0 | P154: 0 | Q154: 0 | R154: 0 | S154: =S$135*$A138 -> 0 | T154: =T$135*$A137 -> 0 | CA154: 0 | CC154: 0.03175 | CD154: 0.04461 | CE154: 0 | CF154: 0
A155: 0 | B155: 19 | C155: 0 | D155: 0 | E155: 0 | F155: 0 | G155: 0 | H155: 0 | I155: 0 | J155: 0 | K155: 0 | L155: 0 | M155: 0 | N155: 0 | O155: 0 | P155: 0 | Q155: 0 | R155: 0 | S155: 0 | T155: =T$135*$A138 -> 0 | U155: =U$135*$A137 -> 0 | CA155: 0 | CC155: 0.03175 | CD155: 0.04461 | CE155: 0 | CF155: 0
A156: 0 | B156: 20 | C156: 0 | D156: 0 | E156: 0 | F156: 0 | G156: 0 | H156: 0 | I156: 0 | J156: 0 | K156: 0 | L156: 0 | M156: 0 | N156: 0 | O156: 0 | P156: 0 | Q156: 0 | R156: 0 | S156: 0 | T156: 0 | U156: =U$135*$A138 -> 0 | V156: =V$135*$A137 -> 0 | CA156: 0 | CC156: 0.03175 | CD156: 0.04461 | CE156: 0 | CF156: 0
A157: 0 | B157: 21 | C157: 0 | D157: 0 | E157: 0 | F157: 0 | G157: 0 | H157: 0 | I157: 0 | J157: 0 | K157: 0 | L157: 0 | M157: 0 | N157: 0 | O157: 0 | P157: 0 | Q157: 0 | R157: 0 | S157: 0 | T157: 0 | U157: 0 | V157: =V$135*$A138 -> 0 | W157: =W$135*$A137 -> 0 | CA157: 0 | CC157: 0.03175 | CD157: 0.02229 | CE157: 0 | CF157: 0
A158: 0 | B158: 22 | C158: 0 | D158: 0 | E158: 0 | F158: 0 | G158: 0 | H158: 0 | I158: 0 | J158: 0 | K158: 0 | L158: 0 | M158: 0 | N158: 0 | O158: 0 | P158: 0 | Q158: 0 | R158: 0 | S158: 0 | T158: 0 | U158: 0 | V158: 0 | W158: =W$135*$A138 -> 0 | X158: =X$135*$A137 -> 0 | CA158: 0 | CC158: 0.03175 | CD158: 0 | CE158: 0 | CF158: 0
A159: 0 | B159: 23 | C159: 0 | D159: 0 | E159: 0 | F159: 0 | G159: 0 | H159: 0 | I159: 0 | J159: 0 | K159: 0 | L159: 0 | M159: 0 | N159: 0 | O159: 0 | P159: 0 | Q159: 0 | R159: 0 | S159: 0 | T159: 0 | U159: 0 | V159: 0 | W159: 0 | X159: =X$135*$A138 -> 0 | Y159: =Y$135*$A137 -> 0 | CA159: 0 | CC159: 0.03175 | CD159: 0 | CE159: 0 | CF159: 0
A160: 0 | B160: 24 | C160: 0 | D160: 0 | E160: 0 | F160: 0 | G160: 0 | H160: 0 | I160: 0 | J160: 0 | K160: 0 | L160: 0 | M160: 0 | N160: 0 | O160: 0 | P160: 0 | Q160: 0 | R160: 0 | S160: 0 | T160: 0 | U160: 0 | V160: 0 | W160: 0 | X160: 0 | Y160: =Y$135*$A138 -> 0 | Z160: =Z$135*$A137 -> 0 | CA160: 0 | CC160: 0.03175 | CD160: 0 | CE160: 0 | CF160: 0
A161: 0 | B161: 25 | C161: 0 | D161: 0 | E161: 0 | F161: 0 | G161: 0 | H161: 0 | I161: 0 | J161: 0 | K161: 0 | L161: 0 | M161: 0 | N161: 0 | O161: 0 | P161: 0 | Q161: 0 | R161: 0 | S161: 0 | T161: 0 | U161: 0 | V161: 0 | W161: 0 | X161: 0 | Y161: 0 | Z161: =Z$135*$A138 -> 0 | AA161: =AA$135*$A137 -> 0 | CA161: 0 | CC161: 0.03175 | CD161: 0 | CE161: 0 | CF161: 0
A162: 0 | B162: 26 | C162: 0 | D162: 0 | E162: 0 | F162: 0 | G162: 0 | H162: 0 | I162: 0 | J162: 0 | K162: 0 | L162: 0 | M162: 0 | N162: 0 | O162: 0 | P162: 0 | Q162: 0 | R162: 0 | S162: 0 | T162: 0 | U162: 0 | V162: 0 | W162: 0 | X162: 0 | Y162: 0 | Z162: 0 | AA162: =AA$135*$A138 -> 0 | AB162: =AB$135*$A137 -> 0 | CA162: 0 | CC162: 0.03175 | CD162: 0 | CE162: 0 | CF162: 0
A163: 0 | B163: 27 | C163: 0 | D163: 0 | E163: 0 | F163: 0 | G163: 0 | H163: 0 | I163: 0 | J163: 0 | K163: 0 | L163: 0 | M163: 0 | N163: 0 | O163: 0 | P163: 0 | Q163: 0 | R163: 0 | S163: 0 | T163: 0 | U163: 0 | V163: 0 | W163: 0 | X163: 0 | Y163: 0 | Z163: 0 | AA163: 0 | AB163: =AB$135*$A138 -> 0 | AC163: =AC$135*$A137 -> 0 | CA163: 0 | CC163: 0.03175 | CD163: 0 | CE163: 0 | CF163: 0
A164: 0 | B164: 28 | C164: 0 | D164: 0 | E164: 0 | F164: 0 | G164: 0 | H164: 0 | I164: 0 | J164: 0 | K164: 0 | L164: 0 | M164: 0 | N164: 0 | O164: 0 | P164: 0 | Q164: 0 | R164: 0 | S164: 0 | T164: 0 | U164: 0 | V164: 0 | W164: 0 | X164: 0 | Y164: 0 | Z164: 0 | AA164: 0 | AB164: 0 | AC164: =AC$135*$A138 -> 0 | AD164: =AD$135*$A137 -> 0 | CA164: 0 | CC164: 0.03175 | CD164: 0 | CE164: 0 | CF164: 0
A165: 0 | B165: 29 | C165: 0 | D165: 0 | E165: 0 | F165: 0 | G165: 0 | H165: 0 | I165: 0 | J165: 0 | K165: 0 | L165: 0 | M165: 0 | N165: 0 | O165: 0 | P165: 0 | Q165: 0 | R165: 0 | S165: 0 | T165: 0 | U165: 0 | V165: 0 | W165: 0 | X165: 0 | Y165: 0 | Z165: 0 | AA165: 0 | AB165: 0 | AC165: 0 | AD165: =AD$135*$A138 -> 0 | AE165: =AE$135*$A137 -> 0 | CA165: 0 | CC165: 0.03175 | CD165: 0 | CE165: 0 | CF165: 0
A166: 0 | B166: 30 | C166: 0 | D166: 0 | E166: 0 | F166: 0 | G166: 0 | H166: 0 | I166: 0 | J166: 0 | K166: 0 | L166: 0 | M166: 0 | N166: 0 | O166: 0 | P166: 0 | Q166: 0 | R166: 0 | S166: 0 | T166: 0 | U166: 0 | V166: 0 | W166: 0 | X166: 0 | Y166: 0 | Z166: 0 | AA166: 0 | AB166: 0 | AC166: 0 | AD166: 0 | AE166: =AE$135*$A138 -> 0 | AF166: =AF$135*$A137 -> 0 | CA166: 0 | CC166: 0.03175 | CD166: 0 | CE166: 0 | CF166: 0
A167: 0 | B167: 31 | C167: 0 | D167: 0 | E167: 0 | F167: 0 | G167: 0 | H167: 0 | I167: 0 | J167: 0 | K167: 0 | L167: 0 | M167: 0 | N167: 0 | O167: 0 | P167: 0 | Q167: 0 | R167: 0 | S167: 0 | T167: 0 | U167: 0 | V167: 0 | W167: 0 | X167: 0 | Y167: 0 | Z167: 0 | AA167: 0 | AB167: 0 | AC167: 0 | AD167: 0 | AE167: 0 | AF167: =AF$135*$A138 -> 0 | AG167: =AG$135*$A137 -> 0 | CA167: 0 | CC167: 0.03175 | CD167: 0 | CE167: 0 | CF167: 0
A168: 0 | B168: 32 | C168: 0 | D168: 0 | E168: 0 | F168: 0 | G168: 0 | H168: 0 | I168: 0 | J168: 0 | K168: 0 | L168: 0 | M168: 0 | N168: 0 | O168: 0 | P168: 0 | Q168: 0 | R168: 0 | S168: 0 | T168: 0 | U168: 0 | V168: 0 | W168: 0 | X168: 0 | Y168: 0 | Z168: 0 | AA168: 0 | AB168: 0 | AC168: 0 | AD168: 0 | AE168: 0 | AF168: 0 | AG168: =AG$135*$A138 -> 0 | AH168: =AH$135*$A137 -> 0 | CA168: 0 | CC168: 0.03163 | CD168: 0 | CE168: 0 | CF168: 0
A169: 0 | B169: 33 | C169: 0 | D169: 0 | E169: 0 | F169: 0 | G169: 0 | H169: 0 | I169: 0 | J169: 0 | K169: 0 | L169: 0 | M169: 0 | N169: 0 | O169: 0 | P169: 0 | Q169: 0 | R169: 0 | S169: 0 | T169: 0 | U169: 0 | V169: 0 | W169: 0 | X169: 0 | Y169: 0 | Z169: 0 | AA169: 0 | AB169: 0 | AC169: 0 | AD169: 0 | AE169: 0 | AF169: 0 | AG169: 0 | AH169: =AH$135*$A138 -> 0 | AI169: =AI$135*$A137 -> 0 | CA169: 0
A170: 0 | B170: 34 | C170: 0 | D170: 0 | E170: 0 | F170: 0 | G170: 0 | H170: 0 | I170: 0 | J170: 0 | K170: 0 | L170: 0 | M170: 0 | N170: 0 | O170: 0 | P170: 0 | Q170: 0 | R170: 0 | S170: 0 | T170: 0 | U170: 0 | V170: 0 | W170: 0 | X170: 0 | Y170: 0 | Z170: 0 | AA170: 0 | AB170: 0 | AC170: 0 | AD170: 0 | AE170: 0 | AF170: 0 | AG170: 0 | AH170: 0 | AI170: =AI$135*$A138 -> 0 | AJ170: =AJ$135*$A137 -> 0 | CA170: 0
A171: 0 | B171: 35 | C171: 0 | D171: 0 | E171: 0 | F171: 0 | G171: 0 | H171: 0 | I171: 0 | J171: 0 | K171: 0 | L171: 0 | M171: 0 | N171: 0 | O171: 0 | P171: 0 | Q171: 0 | R171: 0 | S171: 0 | T171: 0 | U171: 0 | V171: 0 | W171: 0 | X171: 0 | Y171: 0 | Z171: 0 | AA171: 0 | AB171: 0 | AC171: 0 | AD171: 0 | AE171: 0 | AF171: 0 | AG171: 0 | AH171: 0 | AI171: 0 | AJ171: =AJ$135*$A138 -> 0 | AK171: =AK$135*$A137 -> 0 | CA171: 0
A172: 0 | B172: 36 | C172: 0 | D172: 0 | E172: 0 | F172: 0 | G172: 0 | H172: 0 | I172: 0 | J172: 0 | K172: 0 | L172: 0 | M172: 0 | N172: 0 | O172: 0 | P172: 0 | Q172: 0 | R172: 0 | S172: 0 | T172: 0 | U172: 0 | V172: 0 | W172: 0 | X172: 0 | Y172: 0 | Z172: 0 | AA172: 0 | AB172: 0 | AC172: 0 | AD172: 0 | AE172: 0 | AF172: 0 | AG172: 0 | AH172: 0 | AI172: 0 | AJ172: 0 | AK172: =AK$135*$A138 -> 0 | AL172: =AL$135*$A137 -> 0 | CA172: 0
A173: 0 | B173: 37 | C173: 0 | D173: 0 | E173: 0 | F173: 0 | G173: 0 | H173: 0 | I173: 0 | J173: 0 | K173: 0 | L173: 0 | M173: 0 | N173: 0 | O173: 0 | P173: 0 | Q173: 0 | R173: 0 | S173: 0 | T173: 0 | U173: 0 | V173: 0 | W173: 0 | X173: 0 | Y173: 0 | Z173: 0 | AA173: 0 | AB173: 0 | AC173: 0 | AD173: 0 | AE173: 0 | AF173: 0 | AG173: 0 | AH173: 0 | AI173: 0 | AJ173: 0 | AK173: 0 | AL173: =AL$135*$A138 -> 0 | AM173: =AM$135*$A137 -> 0 | CA173: 0
A174: 0 | B174: 38 | C174: 0 | D174: 0 | E174: 0 | F174: 0 | G174: 0 | H174: 0 | I174: 0 | J174: 0 | K174: 0 | L174: 0 | M174: 0 | N174: 0 | O174: 0 | P174: 0 | Q174: 0 | R174: 0 | S174: 0 | T174: 0 | U174: 0 | V174: 0 | W174: 0 | X174: 0 | Y174: 0 | Z174: 0 | AA174: 0 | AB174: 0 | AC174: 0 | AD174: 0 | AE174: 0 | AF174: 0 | AG174: 0 | AH174: 0 | AI174: 0 | AJ174: 0 | AK174: 0 | AL174: 0 | AM174: =AM$135*$A138 -> 0 | AN174: =AN$135*$A137 -> 0 | CA174: 0
A175: 0 | B175: 39 | C175: 0 | D175: 0 | E175: 0 | F175: 0 | G175: 0 | H175: 0 | I175: 0 | J175: 0 | K175: 0 | L175: 0 | M175: 0 | N175: 0 | O175: 0 | P175: 0 | Q175: 0 | R175: 0 | S175: 0 | T175: 0 | U175: 0 | V175: 0 | W175: 0 | X175: 0 | Y175: 0 | Z175: 0 | AA175: 0 | AB175: 0 | AC175: 0 | AD175: 0 | AE175: 0 | AF175: 0 | AG175: 0 | AH175: 0 | AI175: 0 | AJ175: 0 | AK175: 0 | AL175: 0 | AM175: 0 | AN175: =AN$135*$A138 -> 0 | AO175: =AO$135*$A137 -> 0 | CA175: 0
A176: 0 | B176: 40 | C176: 0 | D176: 0 | E176: 0 | F176: 0 | G176: 0 | H176: 0 | I176: 0 | J176: 0 | K176: 0 | L176: 0 | M176: 0 | N176: 0 | O176: 0 | P176: 0 | Q176: 0 | R176: 0 | S176: 0 | T176: 0 | U176: 0 | V176: 0 | W176: 0 | X176: 0 | Y176: 0 | Z176: 0 | AA176: 0 | AB176: 0 | AC176: 0 | AD176: 0 | AE176: 0 | AF176: 0 | AG176: 0 | AH176: 0 | AI176: 0 | AJ176: 0 | AK176: 0 | AL176: 0 | AM176: 0 | AN176: 0 | AO176: =AO$135*$A138 -> 0 | AP176: =AP$135*$A137 -> 0 | CA176: 0
A177: 0 | B177: 41 | C177: 0 | D177: 0 | E177: 0 | F177: 0 | G177: 0 | H177: 0 | I177: 0 | J177: 0 | K177: 0 | L177: 0 | M177: 0 | N177: 0 | O177: 0 | P177: 0 | Q177: 0 | R177: 0 | S177: 0 | T177: 0 | U177: 0 | V177: 0 | W177: 0 | X177: 0 | Y177: 0 | Z177: 0 | AA177: 0 | AB177: 0 | AC177: 0 | AD177: 0 | AE177: 0 | AF177: 0 | AG177: 0 | AH177: 0 | AI177: 0 | AJ177: 0 | AK177: 0 | AL177: 0 | AM177: 0 | AN177: 0 | AO177: 0 | AP177: =AP$135*$A138 -> 0 | AQ177: =AQ$135*$A137 -> 0 | CA177: 0
A178: 0 | B178: 42 | C178: 0 | D178: 0 | E178: 0 | F178: 0 | G178: 0 | H178: 0 | I178: 0 | J178: 0 | K178: 0 | L178: 0 | M178: 0 | N178: 0 | O178: 0 | P178: 0 | Q178: 0 | R178: 0 | S178: 0 | T178: 0 | U178: 0 | V178: 0 | W178: 0 | X178: 0 | Y178: 0 | Z178: 0 | AA178: 0 | AB178: 0 | AC178: 0 | AD178: 0 | AE178: 0 | AF178: 0 | AG178: 0 | AH178: 0 | AI178: 0 | AJ178: 0 | AK178: 0 | AL178: 0 | AM178: 0 | AN178: 0 | AO178: 0 | AP178: 0 | AQ178: =AQ$135*$A138 -> 0 | AR178: =AR$135*$A137 -> 0 | CA178: 0
A179: 0 | B179: 43 | C179: 0 | D179: 0 | E179: 0 | F179: 0 | G179: 0 | H179: 0 | I179: 0 | J179: 0 | K179: 0 | L179: 0 | M179: 0 | N179: 0 | O179: 0 | P179: 0 | Q179: 0 | R179: 0 | S179: 0 | T179: 0 | U179: 0 | V179: 0 | W179: 0 | X179: 0 | Y179: 0 | Z179: 0 | AA179: 0 | AB179: 0 | AC179: 0 | AD179: 0 | AE179: 0 | AF179: 0 | AG179: 0 | AH179: 0 | AI179: 0 | AJ179: 0 | AK179: 0 | AL179: 0 | AM179: 0 | AN179: 0 | AO179: 0 | AP179: 0 | AQ179: 0 | AR179: =AR$135*$A138 -> 0 | AS179: =AS$135*$A137 -> 0 | CA179: 0
A180: 0 | B180: 44 | C180: 0 | D180: 0 | E180: 0 | F180: 0 | G180: 0 | H180: 0 | I180: 0 | J180: 0 | K180: 0 | L180: 0 | M180: 0 | N180: 0 | O180: 0 | P180: 0 | Q180: 0 | R180: 0 | S180: 0 | T180: 0 | U180: 0 | V180: 0 | W180: 0 | X180: 0 | Y180: 0 | Z180: 0 | AA180: 0 | AB180: 0 | AC180: 0 | AD180: 0 | AE180: 0 | AF180: 0 | AG180: 0 | AH180: 0 | AI180: 0 | AJ180: 0 | AK180: 0 | AL180: 0 | AM180: 0 | AN180: 0 | AO180: 0 | AP180: 0 | AQ180: 0 | AR180: 0 | AS180: =AS$135*$A138 -> 0 | AT180: =AT$135*$A137 -> 0 | CA180: 0
A181: 0 | B181: 45 | C181: 0 | D181: 0 | E181: 0 | F181: 0 | G181: 0 | H181: 0 | I181: 0 | J181: 0 | K181: 0 | L181: 0 | M181: 0 | N181: 0 | O181: 0 | P181: 0 | Q181: 0 | R181: 0 | S181: 0 | T181: 0 | U181: 0 | V181: 0 | W181: 0 | X181: 0 | Y181: 0 | Z181: 0 | AA181: 0 | AB181: 0 | AC181: 0 | AD181: 0 | AE181: 0 | AF181: 0 | AG181: 0 | AH181: 0 | AI181: 0 | AJ181: 0 | AK181: 0 | AL181: 0 | AM181: 0 | AN181: 0 | AO181: 0 | AP181: 0 | AQ181: 0 | AR181: 0 | AS181: 0 | AT181: =AT$135*$A138 -> 0 | AU181: =AU$135*$A137 -> 0 | CA181: 0
A182: 0 | B182: 46 | C182: 0 | D182: 0 | E182: 0 | F182: 0 | G182: 0 | H182: 0 | I182: 0 | J182: 0 | K182: 0 | L182: 0 | M182: 0 | N182: 0 | O182: 0 | P182: 0 | Q182: 0 | R182: 0 | S182: 0 | T182: 0 | U182: 0 | V182: 0 | W182: 0 | X182: 0 | Y182: 0 | Z182: 0 | AA182: 0 | AB182: 0 | AC182: 0 | AD182: 0 | AE182: 0 | AF182: 0 | AG182: 0 | AH182: 0 | AI182: 0 | AJ182: 0 | AK182: 0 | AL182: 0 | AM182: 0 | AN182: 0 | AO182: 0 | AP182: 0 | AQ182: 0 | AR182: 0 | AS182: 0 | AT182: 0 | AU182: =AU$135*$A138 -> 0 | AV182: =AV$135*$A137 -> 0 | CA182: 0
A183: 0 | B183: 47 | C183: 0 | D183: 0 | E183: 0 | F183: 0 | G183: 0 | H183: 0 | I183: 0 | J183: 0 | K183: 0 | L183: 0 | M183: 0 | N183: 0 | O183: 0 | P183: 0 | Q183: 0 | R183: 0 | S183: 0 | T183: 0 | U183: 0 | V183: 0 | W183: 0 | X183: 0 | Y183: 0 | Z183: 0 | AA183: 0 | AB183: 0 | AC183: 0 | AD183: 0 | AE183: 0 | AF183: 0 | AG183: 0 | AH183: 0 | AI183: 0 | AJ183: 0 | AK183: 0 | AL183: 0 | AM183: 0 | AN183: 0 | AO183: 0 | AP183: 0 | AQ183: 0 | AR183: 0 | AS183: 0 | AT183: 0 | AU183: 0 | AV183: =AV$135*$A138 -> 0 | AW183: =AW$135*$A137 -> 0 | CA183: 0
A184: 0 | B184: 48 | C184: 0 | D184: 0 | E184: 0 | F184: 0 | G184: 0 | H184: 0 | I184: 0 | J184: 0 | K184: 0 | L184: 0 | M184: 0 | N184: 0 | O184: 0 | P184: 0 | Q184: 0 | R184: 0 | S184: 0 | T184: 0 | U184: 0 | V184: 0 | W184: 0 | X184: 0 | Y184: 0 | Z184: 0 | AA184: 0 | AB184: 0 | AC184: 0 | AD184: 0 | AE184: 0 | AF184: 0 | AG184: 0 | AH184: 0 | AI184: 0 | AJ184: 0 | AK184: 0 | AL184: 0 | AM184: 0 | AN184: 0 | AO184: 0 | AP184: 0 | AQ184: 0 | AR184: 0 | AS184: 0 | AT184: 0 | AU184: 0 | AV184: 0 | AW184: =AW$135*$A138 -> 0 | AX184: =AX$135*$A137 -> 0 | CA184: 0
A185: 0 | B185: 49 | C185: 0 | D185: 0 | E185: 0 | F185: 0 | G185: 0 | H185: 0 | I185: 0 | J185: 0 | K185: 0 | L185: 0 | M185: 0 | N185: 0 | O185: 0 | P185: 0 | Q185: 0 | R185: 0 | S185: 0 | T185: 0 | U185: 0 | V185: 0 | W185: 0 | X185: 0 | Y185: 0 | Z185: 0 | AA185: 0 | AB185: 0 | AC185: 0 | AD185: 0 | AE185: 0 | AF185: 0 | AG185: 0 | AH185: 0 | AI185: 0 | AJ185: 0 | AK185: 0 | AL185: 0 | AM185: 0 | AN185: 0 | AO185: 0 | AP185: 0 | AQ185: 0 | AR185: 0 | AS185: 0 | AT185: 0 | AU185: 0 | AV185: 0 | AW185: 0 | AX185: =AX$135*$A138 -> 0 | AY185: =AY$135*$A137 -> 0 | CA185: 0
A186: 0 | B186: 50 | C186: 0 | D186: 0 | E186: 0 | F186: 0 | G186: 0 | H186: 0 | I186: 0 | J186: 0 | K186: 0 | L186: 0 | M186: 0 | N186: 0 | O186: 0 | P186: 0 | Q186: 0 | R186: 0 | S186: 0 | T186: 0 | U186: 0 | V186: 0 | W186: 0 | X186: 0 | Y186: 0 | Z186: 0 | AA186: 0 | AB186: 0 | AC186: 0 | AD186: 0 | AE186: 0 | AF186: 0 | AG186: 0 | AH186: 0 | AI186: 0 | AJ186: 0 | AK186: 0 | AL186: 0 | AM186: 0 | AN186: 0 | AO186: 0 | AP186: 0 | AQ186: 0 | AR186: 0 | AS186: 0 | AT186: 0 | AU186: 0 | AV186: 0 | AW186: 0 | AX186: 0 | AY186: =AY$135*$A138 -> 0 | AZ186: =AZ$135*$A137 -> 0 | CA186: 0
A187: 0 | B187: 51 | C187: 0 | D187: 0 | E187: 0 | F187: 0 | G187: 0 | H187: 0 | I187: 0 | J187: 0 | K187: 0 | L187: 0 | M187: 0 | N187: 0 | O187: 0 | P187: 0 | Q187: 0 | R187: 0 | S187: 0 | T187: 0 | U187: 0 | V187: 0 | W187: 0 | X187: 0 | Y187: 0 | Z187: 0 | AA187: 0 | AB187: 0 | AC187: 0 | AD187: 0 | AE187: 0 | AF187: 0 | AG187: 0 | AH187: 0 | AI187: 0 | AJ187: 0 | AK187: 0 | AL187: 0 | AM187: 0 | AN187: 0 | AO187: 0 | AP187: 0 | AQ187: 0 | AR187: 0 | AS187: 0 | AT187: 0 | AU187: 0 | AV187: 0 | AW187: 0 | AX187: 0 | AY187: 0 | AZ187: =AZ$135*$A138 -> 0 | BA187: =BA$135*$A137 -> 0 | CA187: 0
A188: 0 | B188: 52 | C188: 0 | D188: 0 | E188: 0 | F188: 0 | G188: 0 | H188: 0 | I188: 0 | J188: 0 | K188: 0 | L188: 0 | M188: 0 | N188: 0 | O188: 0 | P188: 0 | Q188: 0 | R188: 0 | S188: 0 | T188: 0 | U188: 0 | V188: 0 | W188: 0 | X188: 0 | Y188: 0 | Z188: 0 | AA188: 0 | AB188: 0 | AC188: 0 | AD188: 0 | AE188: 0 | AF188: 0 | AG188: 0 | AH188: 0 | AI188: 0 | AJ188: 0 | AK188: 0 | AL188: 0 | AM188: 0 | AN188: 0 | AO188: 0 | AP188: 0 | AQ188: 0 | AR188: 0 | AS188: 0 | AT188: 0 | AU188: 0 | AV188: 0 | AW188: 0 | AX188: 0 | AY188: 0 | AZ188: 0 | BA188: =BA$135*$A138 -> 0 | BB188: =BB$135*$A137 -> 0 | CA188: 0
A189: 0 | B189: 53 | C189: 0 | D189: 0 | E189: 0 | F189: 0 | G189: 0 | H189: 0 | I189: 0 | J189: 0 | K189: 0 | L189: 0 | M189: 0 | N189: 0 | O189: 0 | P189: 0 | Q189: 0 | R189: 0 | S189: 0 | T189: 0 | U189: 0 | V189: 0 | W189: 0 | X189: 0 | Y189: 0 | Z189: 0 | AA189: 0 | AB189: 0 | AC189: 0 | AD189: 0 | AE189: 0 | AF189: 0 | AG189: 0 | AH189: 0 | AI189: 0 | AJ189: 0 | AK189: 0 | AL189: 0 | AM189: 0 | AN189: 0 | AO189: 0 | AP189: 0 | AQ189: 0 | AR189: 0 | AS189: 0 | AT189: 0 | AU189: 0 | AV189: 0 | AW189: 0 | AX189: 0 | AY189: 0 | AZ189: 0 | BA189: 0 | BB189: =BB$135*$A138 -> 0 | BC189: =BC$135*$A137 -> 0 | CA189: 0
A190: 0 | B190: 54 | C190: 0 | D190: 0 | E190: 0 | F190: 0 | G190: 0 | H190: 0 | I190: 0 | J190: 0 | K190: 0 | L190: 0 | M190: 0 | N190: 0 | O190: 0 | P190: 0 | Q190: 0 | R190: 0 | S190: 0 | T190: 0 | U190: 0 | V190: 0 | W190: 0 | X190: 0 | Y190: 0 | Z190: 0 | AA190: 0 | AB190: 0 | AC190: 0 | AD190: 0 | AE190: 0 | AF190: 0 | AG190: 0 | AH190: 0 | AI190: 0 | AJ190: 0 | AK190: 0 | AL190: 0 | AM190: 0 | AN190: 0 | AO190: 0 | AP190: 0 | AQ190: 0 | AR190: 0 | AS190: 0 | AT190: 0 | AU190: 0 | AV190: 0 | AW190: 0 | AX190: 0 | AY190: 0 | AZ190: 0 | BA190: 0 | BB190: 0 | BC190: =BC$135*$A138 -> 0 | BD190: =BD$135*$A137 -> 0 | CA190: 0
A191: 0 | B191: 55 | C191: 0 | D191: 0 | E191: 0 | F191: 0 | G191: 0 | H191: 0 | I191: 0 | J191: 0 | K191: 0 | L191: 0 | M191: 0 | N191: 0 | O191: 0 | P191: 0 | Q191: 0 | R191: 0 | S191: 0 | T191: 0 | U191: 0 | V191: 0 | W191: 0 | X191: 0 | Y191: 0 | Z191: 0 | AA191: 0 | AB191: 0 | AC191: 0 | AD191: 0 | AE191: 0 | AF191: 0 | AG191: 0 | AH191: 0 | AI191: 0 | AJ191: 0 | AK191: 0 | AL191: 0 | AM191: 0 | AN191: 0 | AO191: 0 | AP191: 0 | AQ191: 0 | AR191: 0 | AS191: 0 | AT191: 0 | AU191: 0 | AV191: 0 | AW191: 0 | AX191: 0 | AY191: 0 | AZ191: 0 | BA191: 0 | BB191: 0 | BC191: 0 | BD191: =BD$135*$A138 -> 0 | BE191: =BE$135*$A137 -> 0 | CA191: 0
A192: 0 | B192: 56 | C192: 0 | D192: 0 | E192: 0 | F192: 0 | G192: 0 | H192: 0 | I192: 0 | J192: 0 | K192: 0 | L192: 0 | M192: 0 | N192: 0 | O192: 0 | P192: 0 | Q192: 0 | R192: 0 | S192: 0 | T192: 0 | U192: 0 | V192: 0 | W192: 0 | X192: 0 | Y192: 0 | Z192: 0 | AA192: 0 | AB192: 0 | AC192: 0 | AD192: 0 | AE192: 0 | AF192: 0 | AG192: 0 | AH192: 0 | AI192: 0 | AJ192: 0 | AK192: 0 | AL192: 0 | AM192: 0 | AN192: 0 | AO192: 0 | AP192: 0 | AQ192: 0 | AR192: 0 | AS192: 0 | AT192: 0 | AU192: 0 | AV192: 0 | AW192: 0 | AX192: 0 | AY192: 0 | AZ192: 0 | BA192: 0 | BB192: 0 | BC192: 0 | BD192: 0 | BE192: =BE$135*$A138 -> 0 | BF192: =BF$135*$A137 -> 0 | CA192: 0
A193: 0 | B193: 57 | C193: 0 | D193: 0 | E193: 0 | F193: 0 | G193: 0 | H193: 0 | I193: 0 | J193: 0 | K193: 0 | L193: 0 | M193: 0 | N193: 0 | O193: 0 | P193: 0 | Q193: 0 | R193: 0 | S193: 0 | T193: 0 | U193: 0 | V193: 0 | W193: 0 | X193: 0 | Y193: 0 | Z193: 0 | AA193: 0 | AB193: 0 | AC193: 0 | AD193: 0 | AE193: 0 | AF193: 0 | AG193: 0 | AH193: 0 | AI193: 0 | AJ193: 0 | AK193: 0 | AL193: 0 | AM193: 0 | AN193: 0 | AO193: 0 | AP193: 0 | AQ193: 0 | AR193: 0 | AS193: 0 | AT193: 0 | AU193: 0 | AV193: 0 | AW193: 0 | AX193: 0 | AY193: 0 | AZ193: 0 | BA193: 0 | BB193: 0 | BC193: 0 | BD193: 0 | BE193: 0 | BF193: =BF$135*$A138 -> 0 | BG193: =BG$135*$A137 -> 0 | CA193: 0
A194: 0 | B194: 58 | C194: 0 | D194: 0 | E194: 0 | F194: 0 | G194: 0 | H194: 0 | I194: 0 | J194: 0 | K194: 0 | L194: 0 | M194: 0 | N194: 0 | O194: 0 | P194: 0 | Q194: 0 | R194: 0 | S194: 0 | T194: 0 | U194: 0 | V194: 0 | W194: 0 | X194: 0 | Y194: 0 | Z194: 0 | AA194: 0 | AB194: 0 | AC194: 0 | AD194: 0 | AE194: 0 | AF194: 0 | AG194: 0 | AH194: 0 | AI194: 0 | AJ194: 0 | AK194: 0 | AL194: 0 | AM194: 0 | AN194: 0 | AO194: 0 | AP194: 0 | AQ194: 0 | AR194: 0 | AS194: 0 | AT194: 0 | AU194: 0 | AV194: 0 | AW194: 0 | AX194: 0 | AY194: 0 | AZ194: 0 | BA194: 0 | BB194: 0 | BC194: 0 | BD194: 0 | BE194: 0 | BF194: 0 | BG194: =BG$135*$A138 -> 0 | BH194: =BH$135*$A137 -> 0 | CA194: 0
A195: 0 | B195: 59 | C195: 0 | D195: 0 | E195: 0 | F195: 0 | G195: 0 | H195: 0 | I195: 0 | J195: 0 | K195: 0 | L195: 0 | M195: 0 | N195: 0 | O195: 0 | P195: 0 | Q195: 0 | R195: 0 | S195: 0 | T195: 0 | U195: 0 | V195: 0 | W195: 0 | X195: 0 | Y195: 0 | Z195: 0 | AA195: 0 | AB195: 0 | AC195: 0 | AD195: 0 | AE195: 0 | AF195: 0 | AG195: 0 | AH195: 0 | AI195: 0 | AJ195: 0 | AK195: 0 | AL195: 0 | AM195: 0 | AN195: 0 | AO195: 0 | AP195: 0 | AQ195: 0 | AR195: 0 | AS195: 0 | AT195: 0 | AU195: 0 | AV195: 0 | AW195: 0 | AX195: 0 | AY195: 0 | AZ195: 0 | BA195: 0 | BB195: 0 | BC195: 0 | BD195: 0 | BE195: 0 | BF195: 0 | BG195: 0 | BH195: =BH$135*$A138 -> 0 | BI195: =BI$135*$A137 -> 0 | CA195: 0
A196: 0 | B196: 60 | C196: 0 | D196: 0 | E196: 0 | F196: 0 | G196: 0 | H196: 0 | I196: 0 | J196: 0 | K196: 0 | L196: 0 | M196: 0 | N196: 0 | O196: 0 | P196: 0 | Q196: 0 | R196: 0 | S196: 0 | T196: 0 | U196: 0 | V196: 0 | W196: 0 | X196: 0 | Y196: 0 | Z196: 0 | AA196: 0 | AB196: 0 | AC196: 0 | AD196: 0 | AE196: 0 | AF196: 0 | AG196: 0 | AH196: 0 | AI196: 0 | AJ196: 0 | AK196: 0 | AL196: 0 | AM196: 0 | AN196: 0 | AO196: 0 | AP196: 0 | AQ196: 0 | AR196: 0 | AS196: 0 | AT196: 0 | AU196: 0 | AV196: 0 | AW196: 0 | AX196: 0 | AY196: 0 | AZ196: 0 | BA196: 0 | BB196: 0 | BC196: 0 | BD196: 0 | BE196: 0 | BF196: 0 | BG196: 0 | BH196: 0 | BI196: =BI$135*$A138 -> 0 | BJ196: =BJ$135*$A137 -> 0 | CA196: 0
A197: 0 | B197: 61 | C197: 0 | D197: 0 | E197: 0 | F197: 0 | G197: 0 | H197: 0 | I197: 0 | J197: 0 | K197: 0 | L197: 0 | M197: 0 | N197: 0 | O197: 0 | P197: 0 | Q197: 0 | R197: 0 | S197: 0 | T197: 0 | U197: 0 | V197: 0 | W197: 0 | X197: 0 | Y197: 0 | Z197: 0 | AA197: 0 | AB197: 0 | AC197: 0 | AD197: 0 | AE197: 0 | AF197: 0 | AG197: 0 | AH197: 0 | AI197: 0 | AJ197: 0 | AK197: 0 | AL197: 0 | AM197: 0 | AN197: 0 | AO197: 0 | AP197: 0 | AQ197: 0 | AR197: 0 | AS197: 0 | AT197: 0 | AU197: 0 | AV197: 0 | AW197: 0 | AX197: 0 | AY197: 0 | AZ197: 0 | BA197: 0 | BB197: 0 | BC197: 0 | BD197: 0 | BE197: 0 | BF197: 0 | BG197: 0 | BH197: 0 | BI197: 0 | BJ197: =BJ$135*$A138 -> 0 | BK197: =BK$135*$A137 -> 0 | CA197: 0
A198: 0 | B198: 62 | C198: 0 | D198: 0 | E198: 0 | F198: 0 | G198: 0 | H198: 0 | I198: 0 | J198: 0 | K198: 0 | L198: 0 | M198: 0 | N198: 0 | O198: 0 | P198: 0 | Q198: 0 | R198: 0 | S198: 0 | T198: 0 | U198: 0 | V198: 0 | W198: 0 | X198: 0 | Y198: 0 | Z198: 0 | AA198: 0 | AB198: 0 | AC198: 0 | AD198: 0 | AE198: 0 | AF198: 0 | AG198: 0 | AH198: 0 | AI198: 0 | AJ198: 0 | AK198: 0 | AL198: 0 | AM198: 0 | AN198: 0 | AO198: 0 | AP198: 0 | AQ198: 0 | AR198: 0 | AS198: 0 | AT198: 0 | AU198: 0 | AV198: 0 | AW198: 0 | AX198: 0 | AY198: 0 | AZ198: 0 | BA198: 0 | BB198: 0 | BC198: 0 | BD198: 0 | BE198: 0 | BF198: 0 | BG198: 0 | BH198: 0 | BI198: 0 | BJ198: 0 | BK198: =BK$135*$A138 -> 0 | BL198: =BL$135*$A137 -> 0 | CA198: 0
A199: 0 | B199: 63 | C199: 0 | D199: 0 | E199: 0 | F199: 0 | G199: 0 | H199: 0 | I199: 0 | J199: 0 | K199: 0 | L199: 0 | M199: 0 | N199: 0 | O199: 0 | P199: 0 | Q199: 0 | R199: 0 | S199: 0 | T199: 0 | U199: 0 | V199: 0 | W199: 0 | X199: 0 | Y199: 0 | Z199: 0 | AA199: 0 | AB199: 0 | AC199: 0 | AD199: 0 | AE199: 0 | AF199: 0 | AG199: 0 | AH199: 0 | AI199: 0 | AJ199: 0 | AK199: 0 | AL199: 0 | AM199: 0 | AN199: 0 | AO199: 0 | AP199: 0 | AQ199: 0 | AR199: 0 | AS199: 0 | AT199: 0 | AU199: 0 | AV199: 0 | AW199: 0 | AX199: 0 | AY199: 0 | AZ199: 0 | BA199: 0 | BB199: 0 | BC199: 0 | BD199: 0 | BE199: 0 | BF199: 0 | BG199: 0 | BH199: 0 | BI199: 0 | BJ199: 0 | BK199: 0 | BL199: =BL$135*$A138 -> 0 | BM199: =BM$135*$A137 -> 0 | CA199: 0
A200: 0 | B200: 64 | C200: 0 | D200: 0 | E200: 0 | F200: 0 | G200: 0 | H200: 0 | I200: 0 | J200: 0 | K200: 0 | L200: 0 | M200: 0 | N200: 0 | O200: 0 | P200: 0 | Q200: 0 | R200: 0 | S200: 0 | T200: 0 | U200: 0 | V200: 0 | W200: 0 | X200: 0 | Y200: 0 | Z200: 0 | AA200: 0 | AB200: 0 | AC200: 0 | AD200: 0 | AE200: 0 | AF200: 0 | AG200: 0 | AH200: 0 | AI200: 0 | AJ200: 0 | AK200: 0 | AL200: 0 | AM200: 0 | AN200: 0 | AO200: 0 | AP200: 0 | AQ200: 0 | AR200: 0 | AS200: 0 | AT200: 0 | AU200: 0 | AV200: 0 | AW200: 0 | AX200: 0 | AY200: 0 | AZ200: 0 | BA200: 0 | BB200: 0 | BC200: 0 | BD200: 0 | BE200: 0 | BF200: 0 | BG200: 0 | BH200: 0 | BI200: 0 | BJ200: 0 | BK200: 0 | BL200: 0 | BM200: =BM$135*$A138 -> 0 | BN200: =BN$135*$A137 -> 0 | CA200: 0
A201: 0 | B201: 65 | C201: 0 | D201: 0 | E201: 0 | F201: 0 | G201: 0 | H201: 0 | I201: 0 | J201: 0 | K201: 0 | L201: 0 | M201: 0 | N201: 0 | O201: 0 | P201: 0 | Q201: 0 | R201: 0 | S201: 0 | T201: 0 | U201: 0 | V201: 0 | W201: 0 | X201: 0 | Y201: 0 | Z201: 0 | AA201: 0 | AB201: 0 | AC201: 0 | AD201: 0 | AE201: 0 | AF201: 0 | AG201: 0 | AH201: 0 | AI201: 0 | AJ201: 0 | AK201: 0 | AL201: 0 | AM201: 0 | AN201: 0 | AO201: 0 | AP201: 0 | AQ201: 0 | AR201: 0 | AS201: 0 | AT201: 0 | AU201: 0 | AV201: 0 | AW201: 0 | AX201: 0 | AY201: 0 | AZ201: 0 | BA201: 0 | BB201: 0 | BC201: 0 | BD201: 0 | BE201: 0 | BF201: 0 | BG201: 0 | BH201: 0 | BI201: 0 | BJ201: 0 | BK201: 0 | BL201: 0 | BM201: 0 | BN201: =BN$135*$A138 -> 0 | BO201: =BO$135*$A137 -> 0 | CA201: =SUM($C201:$BZ201) -> 0
A202: =IF($B$132=1,CC202,IF($B$132=2,CD202,IF($B$132=3,CE202,IF($B$132=4,CF202,#VALUE!)))) -> 0 | B202: =+B201+1 -> 66 | C202: =C$135*$A202 -> 0 | D202: 0 | E202: 0 | F202: 0 | G202: 0 | H202: 0 | I202: 0 | J202: 0 | K202: 0 | L202: 0 | M202: 0 | N202: 0 | O202: 0 | P202: 0 | Q202: 0 | R202: 0 | S202: 0 | T202: 0 | U202: 0 | V202: 0 | W202: 0 | X202: 0 | Y202: 0 | Z202: 0 | AA202: 0 | AB202: 0 | AC202: 0 | AD202: 0 | AE202: 0 | AF202: 0 | AG202: 0 | AH202: 0 | AI202: 0 | AJ202: 0 | AK202: 0 | AL202: 0 | AM202: 0 | AN202: 0 | AO202: 0 | AP202: 0 | AQ202: 0 | AR202: 0 | AS202: 0 | AT202: 0 | AU202: 0 | AV202: 0 | AW202: 0 | AX202: 0 | AY202: 0 | AZ202: 0 | BA202: 0 | BB202: 0 | BC202: 0 | BD202: 0 | BE202: 0 | BF202: 0 | BG202: 0 | BH202: 0 | BI202: 0 | BJ202: 0 | BK202: 0 | BL202: 0 | BM202: 0 | BN202: 0 | BO202: =BO$135*$A138 -> 0 | BP202: =BP$135*$A137 -> 0 | CA202: 0
A203: 0 | B203: 67 | C203: 0 | D203: =D$135*$A202 -> 0 | E203: 0 | F203: 0 | G203: 0 | H203: 0 | I203: 0 | J203: 0 | K203: 0 | L203: 0 | M203: 0 | N203: 0 | O203: 0 | P203: 0 | Q203: 0 | R203: 0 | S203: 0 | T203: 0 | U203: 0 | V203: 0 | W203: 0 | X203: 0 | Y203: 0 | Z203: 0 | AA203: 0 | AB203: 0 | AC203: 0 | AD203: 0 | AE203: 0 | AF203: 0 | AG203: 0 | AH203: 0 | AI203: 0 | AJ203: 0 | AK203: 0 | AL203: 0 | AM203: 0 | AN203: 0 | AO203: 0 | AP203: 0 | AQ203: 0 | AR203: 0 | AS203: 0 | AT203: 0 | AU203: 0 | AV203: 0 | AW203: 0 | AX203: 0 | AY203: 0 | AZ203: 0 | BA203: 0 | BB203: 0 | BC203: 0 | BD203: 0 | BE203: 0 | BF203: 0 | BG203: 0 | BH203: 0 | BI203: 0 | BJ203: 0 | BK203: 0 | BL203: 0 | BM203: 0 | BN203: 0 | BO203: 0 | BP203: =BP$135*$A138 -> 0 | BQ203: =BQ$135*$A137 -> 0 | CA203: 0
A204: 0 | B204: 68 | C204: 0 | D204: 0 | E204: =E$135*$A202 -> 0 | F204: 0 | G204: 0 | H204: 0 | I204: 0 | J204: 0 | K204: 0 | L204: 0 | M204: 0 | N204: 0 | O204: 0 | P204: 0 | Q204: 0 | R204: 0 | S204: 0 | T204: 0 | U204: 0 | V204: 0 | W204: 0 | X204: 0 | Y204: 0 | Z204: 0 | AA204: 0 | AB204: 0 | AC204: 0 | AD204: 0 | AE204: 0 | AF204: 0 | AG204: 0 | AH204: 0 | AI204: 0 | AJ204: 0 | AK204: 0 | AL204: 0 | AM204: 0 | AN204: 0 | AO204: 0 | AP204: 0 | AQ204: 0 | AR204: 0 | AS204: 0 | AT204: 0 | AU204: 0 | AV204: 0 | AW204: 0 | AX204: 0 | AY204: 0 | AZ204: 0 | BA204: 0 | BB204: 0 | BC204: 0 | BD204: 0 | BE204: 0 | BF204: 0 | BG204: 0 | BH204: 0 | BI204: 0 | BJ204: 0 | BK204: 0 | BL204: 0 | BM204: 0 | BN204: 0 | BO204: 0 | BP204: 0 | BQ204: =BQ$135*$A138 -> 0 | BR204: =BR$135*$A137 -> 0 | CA204: 0
A205: 0 | B205: 69 | C205: 0 | D205: 0 | E205: 0 | F205: =F$135*$A202 -> 0 | G205: 0 | H205: 0 | I205: 0 | J205: 0 | K205: 0 | L205: 0 | M205: 0 | N205: 0 | O205: 0 | P205: 0 | Q205: 0 | R205: 0 | S205: 0 | T205: 0 | U205: 0 | V205: 0 | W205: 0 | X205: 0 | Y205: 0 | Z205: 0 | AA205: 0 | AB205: 0 | AC205: 0 | AD205: 0 | AE205: 0 | AF205: 0 | AG205: 0 | AH205: 0 | AI205: 0 | AJ205: 0 | AK205: 0 | AL205: 0 | AM205: 0 | AN205: 0 | AO205: 0 | AP205: 0 | AQ205: 0 | AR205: 0 | AS205: 0 | AT205: 0 | AU205: 0 | AV205: 0 | AW205: 0 | AX205: 0 | AY205: 0 | AZ205: 0 | BA205: 0 | BB205: 0 | BC205: 0 | BD205: 0 | BE205: 0 | BF205: 0 | BG205: 0 | BH205: 0 | BI205: 0 | BJ205: 0 | BK205: 0 | BL205: 0 | BM205: 0 | BN205: 0 | BO205: 0 | BP205: 0 | BQ205: 0 | BR205: =BR$135*$A138 -> 0 | BS205: =BS$135*$A137 -> 0 | CA205: 0
A206: 0 | B206: 70 | C206: 0 | D206: 0 | E206: 0 | F206: 0 | G206: =G$135*$A202 -> 0 | H206: 0 | I206: 0 | J206: 0 | K206: 0 | L206: 0 | M206: 0 | N206: 0 | O206: 0 | P206: 0 | Q206: 0 | R206: 0 | S206: 0 | T206: 0 | U206: 0 | V206: 0 | W206: 0 | X206: 0 | Y206: 0 | Z206: 0 | AA206: 0 | AB206: 0 | AC206: 0 | AD206: 0 | AE206: 0 | AF206: 0 | AG206: 0 | AH206: 0 | AI206: 0 | AJ206: 0 | AK206: 0 | AL206: 0 | AM206: 0 | AN206: 0 | AO206: 0 | AP206: 0 | AQ206: 0 | AR206: 0 | AS206: 0 | AT206: 0 | AU206: 0 | AV206: 0 | AW206: 0 | AX206: 0 | AY206: 0 | AZ206: 0 | BA206: 0 | BB206: 0 | BC206: 0 | BD206: 0 | BE206: 0 | BF206: 0 | BG206: 0 | BH206: 0 | BI206: 0 | BJ206: 0 | BK206: 0 | BL206: 0 | BM206: 0 | BN206: 0 | BO206: 0 | BP206: 0 | BQ206: 0 | BR206: 0 | BS206: =BS$135*$A138 -> 0 | BT206: =BT$135*$A137 -> 0 | CA206: 0
... 176 more rows

Sheet 10 Year
A1: State Income Tax Rate ............ | D1: 0.0265 | I1: Debt ........................... | L1: 0.515 | M1: 0.0515 | N1: =ROUND(L1*M1,4) -> 0.0265 | O1: =N1*(1-D2) -> 0.020935 | Q1: Gross Revenue | T1: 1
A2: Federal Income Tax Rate ........ | D2: 0.21 | I2: Preferred Stock ................. | N2: =ROUND(L2*M2,4) -> 0 | O2: =N2 -> 0 | Q2: Uncollectables | T2: 0.005266
A3: Discount Factor ...................... | D3: =+O4 -> 0.066535 | I3: Common Equity ...................... | L3: 0.485 | M3: 0.094 | N3: =ROUND(L3*M3,4) -> 0.0456 | O3: =N3 -> 0.0456 | Q3: Commission Fees | T3: 0.00209625
A4: Capital Class ........................... | D4: 3 | E4: (1) General Structures. | N4: =SUM(N1:N3) -> 0.0721 | O4: =SUM(O1:O3) -> 0.066535 | Q4: Excise Tax | T4: 0.02502175
E5: (2) Generation, Transmission, | Q5: Franchise Fees | T5: 0
E6: and Distribution. | Q6: ERSA | T6: 0.00031975398
E7: (3) Other Equipment. | N7: IRR CALC | T7: -
E8: (4) Transportation Equipment. | I8: Principal ...................... | L8: =T24 -> 42192468.38 | N8: =L8 -> 42192468.38 | O8: pv princ | Q8: Misc. Revenue Items | T8: =SUM(T2:T6) -> 0.03270375398
A9: Book Life (Years) .............. | D9: 10 | I9: Interest ....................... | L9: =D3 -> 0.066535 | N9: =V20 -> 0 | O9: pv lvlized margin | T9: -
A10: Property Tax Rate ............... | D10: 0 | I10: Term ............................. | L10: 10 | N10: =IRR($AI$28:$AI$102,0.059065190478108) ->  | O10: IRR | Q10: Before State Income Tax | T10: =T1-T8 -> 0.967296246
A11: O&M Escalation Factor .......... | D11: 0.03 | I11: Levelized Gr. Mar. Requirement ....... | L11: =PMT($L$9,$L$10,-$L$8) -> 5911402.238 | Q11: State Income Tax | T11: 0
T12: -
B13: Idaho | C13: Oregon | D13: Washington | Q13: Before Federal Income Tax | T13: =T10-T11 -> 0.967296246
A14: Electric | B14: 0.35 | C14: 0 | D14: 0.65 | E14: =SUM(B14:D14) -> 1 | K14: Lev ROE | L14: =PMT(L9,L10,-L15) -> 2869104.119 | Q14: Federal Income Tax | T14: =T13*D2 -> 0.2031322117 | V14: (v) | W14: (w) | X14: (x) | Y14: (y) | Z14: (z) | AA14: (aa) | AB14: (ab) | AC14: (ac) | AD14: (ad) | AE14: (ae) | AF14: (af) | AG14: (ag) | AH14: (ah)
A15: Gas | B15: 0 | C15: 0 | D15: 0 | E15: =SUM(B15:D15) -> 0 | K15: NPV equity | L15: =NPV(L9,$M$28:$M$103) -> 20478150.53 | T15: - | V15: PV GM
B16: =SUM(B14:B15) -> 0.35 | C16: =SUM(C14:C15) -> 0 | D16: 0.65 | E16: 1 | Q16: Conversion Factor | T16: =T13-T14 -> 0.7641640344 | V16: =NPV(O4,$V$29:$V$103)+V28 -> 0
A17: ...................................................................................................................................................................................................................... | V17: TERM
B18: Capital Additions | V18: =L10 -> 10 | AD18: pv of contribution to fixed costs | AG18: =NPV(O4,20,AG28:AG28) -> -2331400.699
B19: ----------------- | D19: Rate | E19: Accum. | G19: Book Dep. | I19: Rate | K19: Average | P19: Misc. | Q19: State | R19: Federal | S19: Total | T19: Present Val | U19: ACTUAL | V19: LEVELIZED | AE19: Interest ....................... | AG19: =O4 -> 0.066535 | AL19: Inter.
B20: Tax | C20: Book | D20: Base | E20: Book | F20: Tax | G20: on Tax | H20: Deferred | I20: Base | J20: Book | K20: Rate | L20: Interest | M20: Equity | N20: O&M & A&G | O20: Property | P20: Revenue | Q20: Income | R20: Income | S20: Gross Marg | T20: Gross Marg | U20: ROR BY | V20: =PMT(L9,V18,-V16) -> 0 | AE20: Term ............................. | AG20: 50 | AH20: per kwh | AL20: Revenue | AN20: Net Book
B21: Basis | C21: Basis | D21: BOP | E21: Deprec. | F21: Deprec. | G21: Basis | H21: Taxes | I21: EOP | J21: Deprec. | K21: Base | L21: Expense | M21: Return | N21: Expense | O21: Taxes | P21: Items | Q21: Tax | R21: Taxes | S21: Reqmnt | T21: Reqmnt | U21: YEAR | AD21: levelized cont. to fixed costs | AG21: =PMT(AG19,AG20,-AG18) -> -161570.4374 | AH21: =AG21/(400*1000) -> -0.4039260935 | AL21: Requirement | AN21: BOP
A22: (a) | B22: (b) | C22: (c) | D22: (d) | E22: (e) | F22: (f) | G22: (g) | H22: (h) | I22: (i) | J22: (j) | K22: (k) | L22: (l) | M22: (m) | N22: (n) | O22: (o) | P22: (p) | Q22: (q) | R22: (r) | S22: (s) | T22: (t) | U22: (u) | W22: - | X22: - | Y22: - | Z22: - | AA22: - | AB22: - | AC22: - | AD22: - | AE22: - | AF22: - | AG22: - | AH22: -
B23: - | C23: - | D23: - | E23: - | F23: - | G23: - | H23: - | I23: - | J23: - | K23: - | L23: - | M23: - | N23: - | O23: - | P23: - | Q23: - | R23: - | S23: - | T23: - | Z23: RES LOAD @ | AG23: ANNUAL | AH23: CUMULATIVE | AL23: - | AN23: -
A24: Total => | B24: =SUM(B25:B104) -> 30104866.55 | C24: =SUM(C25:C104) -> 30104866.55 | F24: =SUM(F25:F104) -> 0 | G24: =SUM(G25:G104) -> 0 | H24: =SUM(H25:H104) -> 0 | J24: =SUM(J25:J104) -> 0 | L24: =SUM(L25:L104) -> 60631201.24 | M24: 104331425.5 | N24: 0 | O24: 0 | P24: 6460633.246 | Q24: 3457146.772 | R24: 26670256.62 | S24: 201550663.4 | T24: 42192468.38 | V24: Offsets | X24: NEW | Y24: CUML | Z24: 12000 | AA24: COMM | AB24: COMM | AC24: TOTAL | AD24: TOTAL | AE24: REVENUE | AF24: ESTIMATED | AG24: (SHORTFALL) | AH24: (SHORTFALL)
A25: Period | B25: - | C25: - | D25: - | E25: - | F25: - | G25: - | H25: - | I25: - | J25: - | K25: - | L25: - | M25: - | N25: - | O25: - | P25: - | Q25: - | R25: - | S25: - | T25: - | W25: YR | X25: CUST | Y25: CUST | Z25: KWH EA | AA25: CUST | AB25: LOAD | AC25: CUST | AD25: LOAD | AE25: REQ | AF25: MARGIN | AG25: EXCESS | AH25: EXCESS | AI25: 0.05906519048 | AL25: - | AN25: -
W26: - | X26: - | Y26: - | Z26: - | AA26: - | AB26: - | AC26: - | AD26: - | AE26: - | AF26: - | AG26: - | AH26: - | AJ26: =NPV(AI25,$AI$28:$AI$103) -> -39839349.61
A28: =1+A27 -> 1 | B28: ='[1] Cost-Benefit'!S12+'[1] Cost-Benefit'!S13 -> 30104866.55 | C28: =B28 -> 30104866.55 | D28: =I27+C28 -> 30104866.55 | E28: =E27+J28 -> 0 | F28: =CA137 -> 0 | G28: =CA229 -> 0 | H28: =(F28-G28)*$D$2 -> 0 | I28: =D28-J28-H28 -> 30104866.55 | J28: =CA323 -> 0 | K28: =(+I28+D28)/2 -> 30104866.55 | L28: =IF(A28=1,$N$1*K28,$N$1*K28) -> 797778.9636 | M28: =IF(A28=1,($N$3+$N$2)*K28,($N$3+$N$2)*K28) -> 1372781.915 | N28: 0 | O28: =AN28*$D$10 -> 0 | P28: =AL28*$T$8 -> 85008.33218 | Q28: =(+AL28-(G28+L28+N28+O28+P28))*$D$1 -> 45488.77332 | R28: =(+AL28-(G28+L28+N28+O28+P28+Q28))*$D$2 -> 350924.4292 | S28: =J28+M28+L28+N28+O28+P28+Q28+R28 -> 2651982.413 | T28: =S28/(1+$D$3)^(A28-1) -> 2651982.413 | U28: =S28/$B$28 -> 0.08809148543 | V28: 0 | W28: =1+W27 -> 1 | X28: 0 | Y28: =+X28 -> 0 | Z28: =X28*$Z$24 -> 0 | AA28: 0 | AB28: 0 | AC28: =Y28+AA28 -> 0 | AD28: 0 | AE28: =S28 -> 2651982.413 | AF28: =V28 -> 0 | AG28: =AF28-AE28 -> -2651982.413 | AH28: =AF28-AE28 -> -2651982.413 | AI28: =IF(A28=1,AF28-T24,AF28) -> -42192468.38 | AL28: =(+J28+L28+M28+N28+O28-(($D$1+(1-$D$1)*$D$2)*(G28+L28+N28+O28)))/$T$16 -> 2599344.78 | AN28: =C28-J27+AN27 -> 30104866.55
A29: 2 | B29: 0 | C29: =B29 -> 0 | D29: =I28+C29 -> 30104866.55 | E29: 0 | F29: 0 | G29: =CA230 -> 0 | H29: 0 | I29: 30104866.55 | J29: 0 | K29: 30104866.55 | L29: =IF(A29=1,$N$1*K29,$N$1*K29) -> 797778.9636 | M29: 1372781.915 | N29: 0 | O29: 0 | P29: =AL29*$T$8 -> 85008.33218 | Q29: 45488.77332 | R29: 350924.4292 | S29: 2651982.413 | T29: =S29/(1+$D$3)^(A29-1) -> 2486540.445 | U29: =S29/$B$28 -> 0.08809148543 | V29: 0 | W29: =1+W28 -> 2 | X29: 0 | Y29: =+X29 -> 0 | Z29: =X29*$Z$24 -> 0 | AA29: 0 | AB29: 0 | AC29: 0 | AD29: 0 | AE29: 2651982.413 | AF29: 0 | AG29: -2651982.413 | AH29: =AF29-AE29 -> -2651982.413 | AI29: =IF(A29=1,AF29-T25,AF29) -> 0 | AL29: =(+J29+L29+M29+N29+O29-(($D$1+(1-$D$1)*$D$2)*(G29+L29+N29+O29)))/$T$16 -> 2599344.78 | AN29: =C29-J28+AN28 -> 30104866.55
A30: 3 | B30: 0 | C30: 0 | D30: 30104866.55 | E30: 0 | F30: 0 | G30: 0 | H30: 0 | I30: 30104866.55 | J30: 0 | K30: 30104866.55 | L30: 797778.9636 | M30: 1372781.915 | N30: 0 | O30: 0 | P30: 85008.33218 | Q30: 45488.77332 | R30: 350924.4292 | S30: 2651982.413 | T30: 2331419.451 | U30: 0.08809148543 | V30: 0 | W30: 3 | X30: 0 | Y30: 0 | Z30: 0 | AA30: 0 | AB30: 0 | AC30: 0 | AD30: 0 | AE30: 2651982.413 | AF30: 0 | AG30: -2651982.413 | AH30: -2651982.413 | AI30: 0 | AL30: 2599344.78 | AN30: 30104866.55
A31: 4 | B31: 0 | C31: 0 | D31: 30104866.55 | E31: 0 | F31: 0 | G31: 0 | H31: 0 | I31: 30104866.55 | J31: 0 | K31: 30104866.55 | L31: 797778.9636 | M31: 1372781.915 | N31: 0 | O31: 0 | P31: 85008.33218 | Q31: 45488.77332 | R31: 350924.4292 | S31: 2651982.413 | T31: 2185975.567 | U31: 0.08809148543 | V31: 0 | W31: 4 | X31: 0 | Y31: 0 | Z31: 0 | AA31: 0 | AB31: 0 | AC31: 0 | AD31: 0 | AE31: 2651982.413 | AF31: 0 | AG31: -2651982.413 | AH31: -2651982.413 | AI31: 0 | AL31: 2599344.78 | AN31: 30104866.55
A32: 5 | B32: 0 | C32: 0 | D32: 30104866.55 | E32: 0 | F32: 0 | G32: 0 | H32: 0 | I32: 30104866.55 | J32: 0 | K32: 30104866.55 | L32: 797778.9636 | M32: 1372781.915 | N32: 0 | O32: 0 | P32: 85008.33218 | Q32: 45488.77332 | R32: 350924.4292 | S32: 2651982.413 | T32: 2049605.092 | U32: 0.08809148543 | V32: 0 | W32: 5 | X32: 0 | Y32: 0 | Z32: 0 | AA32: 0 | AB32: 0 | AC32: 0 | AD32: 0 | AE32: 2651982.413 | AF32: 0 | AG32: -2651982.413 | AH32: -2651982.413 | AI32: 0 | AL32: 2599344.78 | AN32: 30104866.55
A33: 6 | B33: 0 | C33: 0 | D33: 30104866.55 | E33: 0 | F33: 0 | G33: 0 | H33: 0 | I33: 30104866.55 | J33: 0 | K33: 30104866.55 | L33: 797778.9636 | M33: 1372781.915 | N33: 0 | O33: 0 | P33: 85008.33218 | Q33: 45488.77332 | R33: 350924.4292 | S33: 2651982.413 | T33: 1921741.989 | U33: 0.08809148543 | V33: 0 | W33: 6 | X33: 0 | Y33: 0 | Z33: 0 | AA33: 0 | AB33: 0 | AC33: 0 | AD33: 0 | AE33: 2651982.413 | AF33: 0 | AG33: -2651982.413 | AH33: -2651982.413 | AI33: 0 | AL33: 2599344.78 | AN33: 30104866.55
A34: 7 | B34: 0 | C34: 0 | D34: 30104866.55 | E34: 0 | F34: 0 | G34: 0 | H34: 0 | I34: 30104866.55 | J34: 0 | K34: 30104866.55 | L34: 797778.9636 | M34: 1372781.915 | N34: 0 | O34: 0 | P34: 85008.33218 | Q34: 45488.77332 | R34: 350924.4292 | S34: 2651982.413 | T34: 1801855.531 | U34: 0.08809148543 | V34: 0 | W34: 7 | X34: 0 | Y34: 0 | Z34: 0 | AA34: 0 | AB34: 0 | AC34: 0 | AD34: 0 | AE34: 2651982.413 | AF34: 0 | AG34: -2651982.413 | AH34: -2651982.413 | AI34: 0 | AL34: 2599344.78 | AN34: 30104866.55
A35: 8 | B35: 0 | C35: 0 | D35: 30104866.55 | E35: 0 | F35: 0 | G35: 0 | H35: 0 | I35: 30104866.55 | J35: 0 | K35: 30104866.55 | L35: 797778.9636 | M35: 1372781.915 | N35: 0 | O35: 0 | P35: 85008.33218 | Q35: 45488.77332 | R35: 350924.4292 | S35: 2651982.413 | T35: 1689448.102 | U35: 0.08809148543 | V35: 0 | W35: 8 | X35: 0 | Y35: 0 | Z35: 0 | AA35: 0 | AB35: 0 | AC35: 0 | AD35: 0 | AE35: 2651982.413 | AF35: 0 | AG35: -2651982.413 | AH35: -2651982.413 | AI35: 0 | AL35: 2599344.78 | AN35: 30104866.55
A36: 9 | B36: 0 | C36: 0 | D36: 30104866.55 | E36: 0 | F36: 0 | G36: 0 | H36: 0 | I36: 30104866.55 | J36: 0 | K36: 30104866.55 | L36: 797778.9636 | M36: 1372781.915 | N36: 0 | O36: 0 | P36: 85008.33218 | Q36: 45488.77332 | R36: 350924.4292 | S36: 2651982.413 | T36: 1584053.127 | U36: 0.08809148543 | V36: 0 | W36: 9 | X36: 0 | Y36: 0 | Z36: 0 | AA36: 0 | AB36: 0 | AC36: 0 | AD36: 0 | AE36: 2651982.413 | AF36: 0 | AG36: -2651982.413 | AH36: -2651982.413 | AI36: 0 | AL36: 2599344.78 | AN36: 30104866.55
A37: 10 | B37: 0 | C37: 0 | D37: 30104866.55 | E37: 0 | F37: 0 | G37: 0 | H37: 0 | I37: 30104866.55 | J37: 0 | K37: 30104866.55 | L37: 797778.9636 | M37: 1372781.915 | N37: 0 | O37: 0 | P37: 85008.33218 | Q37: 45488.77332 | R37: 350924.4292 | S37: 2651982.413 | T37: 1485233.14 | U37: 0.08809148543 | V37: 0 | W37: 10 | X37: 0 | Y37: 0 | Z37: 0 | AA37: 0 | AB37: 0 | AC37: 0 | AD37: 0 | AE37: 2651982.413 | AF37: 0 | AG37: -2651982.413 | AH37: -2651982.413 | AI37: 0 | AL37: 2599344.78 | AN37: 30104866.55
A38: 11 | B38: 0 | C38: 0 | D38: 30104866.55 | E38: 0 | F38: 0 | G38: 0 | H38: 0 | I38: 30104866.55 | J38: 0 | K38: 30104866.55 | L38: 797778.9636 | M38: 1372781.915 | N38: 0 | O38: 0 | P38: 85008.33218 | Q38: 45488.77332 | R38: 350924.4292 | S38: 2651982.413 | T38: 1392577.965 | U38: 0.08809148543 | V38: 0 | W38: 11 | X38: 0 | Y38: 0 | Z38: 0 | AA38: 0 | AB38: 0 | AC38: 0 | AD38: 0 | AE38: 2651982.413 | AF38: 0 | AG38: -2651982.413 | AH38: -2651982.413 | AI38: 0 | AL38: 2599344.78 | AN38: 30104866.55
A39: 12 | B39: 0 | C39: 0 | D39: 30104866.55 | E39: 0 | F39: 0 | G39: 0 | H39: 0 | I39: 30104866.55 | J39: 0 | K39: 30104866.55 | L39: 797778.9636 | M39: 1372781.915 | N39: 0 | O39: 0 | P39: 85008.33218 | Q39: 45488.77332 | R39: 350924.4292 | S39: 2651982.413 | T39: 1305703.015 | U39: 0.08809148543 | V39: 0 | W39: 12 | X39: 0 | Y39: 0 | Z39: 0 | AA39: 0 | AB39: 0 | AC39: 0 | AD39: 0 | AE39: 2651982.413 | AF39: 0 | AG39: -2651982.413 | AH39: -2651982.413 | AI39: 0 | AL39: 2599344.78 | AN39: 30104866.55
A40: 13 | B40: 0 | C40: 0 | D40: 30104866.55 | E40: 0 | F40: 0 | G40: 0 | H40: 0 | I40: 30104866.55 | J40: 0 | K40: 30104866.55 | L40: 797778.9636 | M40: 1372781.915 | N40: 0 | O40: 0 | P40: 85008.33218 | Q40: 45488.77332 | R40: 350924.4292 | S40: 2651982.413 | T40: 1224247.695 | U40: 0.08809148543 | V40: 0 | W40: 13 | X40: 0 | Y40: 0 | Z40: 0 | AA40: 0 | AB40: 0 | AC40: 0 | AD40: 0 | AE40: 2651982.413 | AF40: 0 | AG40: -2651982.413 | AH40: -2651982.413 | AI40: 0 | AL40: 2599344.78 | AN40: 30104866.55
A41: 14 | B41: 0 | C41: 0 | D41: 30104866.55 | E41: 0 | F41: 0 | G41: 0 | H41: 0 | I41: 30104866.55 | J41: 0 | K41: 30104866.55 | L41: 797778.9636 | M41: 1372781.915 | N41: 0 | O41: 0 | P41: 85008.33218 | Q41: 45488.77332 | R41: 350924.4292 | S41: 2651982.413 | T41: 1147873.904 | U41: 0.08809148543 | V41: 0 | W41: 14 | X41: 0 | Y41: 0 | Z41: 0 | AA41: 0 | AB41: 0 | AC41: 0 | AD41: 0 | AE41: 2651982.413 | AF41: 0 | AG41: -2651982.413 | AH41: -2651982.413 | AI41: 0 | AL41: 2599344.78 | AN41: 30104866.55
A42: 15 | B42: 0 | C42: 0 | D42: 30104866.55 | E42: 0 | F42: 0 | G42: 0 | H42: 0 | I42: 30104866.55 | J42: 0 | K42: 30104866.55 | L42: 797778.9636 | M42: 1372781.915 | N42: 0 | O42: 0 | P42: 85008.33218 | Q42: 45488.77332 | R42: 350924.4292 | S42: 2651982.413 | T42: 1076264.637 | U42: 0.08809148543 | V42: 0 | W42: 15 | X42: 0 | Y42: 0 | Z42: 0 | AA42: 0 | AB42: 0 | AC42: 0 | AD42: 0 | AE42: 2651982.413 | AF42: 0 | AG42: -2651982.413 | AH42: -2651982.413 | AI42: 0 | AL42: 2599344.78 | AN42: 30104866.55
A43: 16 | B43: 0 | C43: 0 | D43: 30104866.55 | E43: 0 | F43: 0 | G43: 0 | H43: 0 | I43: 30104866.55 | J43: 0 | K43: 30104866.55 | L43: 797778.9636 | M43: 1372781.915 | N43: 0 | O43: 0 | P43: 85008.33218 | Q43: 45488.77332 | R43: 350924.4292 | S43: 2651982.413 | T43: 1009122.661 | U43: 0.08809148543 | V43: 0 | W43: 16 | X43: 0 | Y43: 0 | Z43: 0 | AA43: 0 | AB43: 0 | AC43: 0 | AD43: 0 | AE43: 2651982.413 | AF43: 0 | AG43: -2651982.413 | AH43: -2651982.413 | AI43: 0 | AL43: 2599344.78 | AN43: 30104866.55
A44: 17 | B44: 0 | C44: 0 | D44: 30104866.55 | E44: 0 | F44: 0 | G44: 0 | H44: 0 | I44: 30104866.55 | J44: 0 | K44: =(+I44+D44)/2 -> 30104866.55 | L44: 797778.9636 | M44: 1372781.915 | N44: 0 | O44: 0 | P44: 85008.33218 | Q44: 45488.77332 | R44: =(+AL44-(G44+L44+N44+O44+P44+Q44))*$D$2 -> 350924.4292 | S44: 2651982.413 | T44: 946169.2871 | U44: 0.08809148543 | V44: 0 | W44: 17 | X44: 0 | Y44: 0 | Z44: 0 | AA44: 0 | AB44: 0 | AC44: =Y44+AA44 -> 0 | AD44: 0 | AE44: 2651982.413 | AF44: 0 | AG44: -2651982.413 | AH44: -2651982.413 | AI44: 0 | AL44: 2599344.78 | AN44: 30104866.55
A45: 18 | B45: 0 | C45: 0 | D45: 30104866.55 | E45: 0 | F45: 0 | G45: 0 | H45: 0 | I45: 30104866.55 | J45: 0 | K45: 30104866.55 | L45: 797778.9636 | M45: 1372781.915 | N45: 0 | O45: 0 | P45: 85008.33218 | Q45: 45488.77332 | R45: 350924.4292 | S45: 2651982.413 | T45: 887143.2134 | U45: 0.08809148543 | V45: 0 | W45: 18 | X45: 0 | Y45: 0 | Z45: 0 | AA45: 0 | AB45: 0 | AC45: 0 | AD45: 0 | AE45: 2651982.413 | AF45: 0 | AG45: -2651982.413 | AH45: -2651982.413 | AI45: 0 | AL45: 2599344.78 | AN45: 30104866.55
A46: 19 | B46: 0 | C46: 0 | D46: 30104866.55 | E46: 0 | F46: 0 | G46: 0 | H46: 0 | I46: 30104866.55 | J46: 0 | K46: 30104866.55 | L46: 797778.9636 | M46: 1372781.915 | N46: 0 | O46: 0 | P46: 85008.33218 | Q46: 45488.77332 | R46: 350924.4292 | S46: 2651982.413 | T46: 831799.4378 | U46: 0.08809148543 | V46: 0 | W46: 19 | X46: 0 | Y46: 0 | Z46: 0 | AA46: 0 | AB46: 0 | AC46: 0 | AD46: 0 | AE46: 2651982.413 | AF46: 0 | AG46: -2651982.413 | AH46: -2651982.413 | AI46: 0 | AL46: 2599344.78 | AN46: 30104866.55
A47: 20 | B47: 0 | C47: 0 | D47: 30104866.55 | E47: 0 | F47: 0 | G47: 0 | H47: 0 | I47: =D47-J47-H47 -> 30104866.55 | J47: 0 | K47: 30104866.55 | L47: 797778.9636 | M47: 1372781.915 | N47: 0 | O47: 0 | P47: 85008.33218 | Q47: 45488.77332 | R47: 350924.4292 | S47: 2651982.413 | T47: 779908.2428 | U47: 0.08809148543 | V47: 0 | W47: 20 | X47: 0 | Y47: 0 | Z47: 0 | AA47: 0 | AB47: 0 | AC47: 0 | AD47: 0 | AE47: 2651982.413 | AF47: 0 | AG47: -2651982.413 | AH47: -2651982.413 | AI47: 0 | AL47: 2599344.78 | AN47: 30104866.55
A48: 21 | B48: 0 | C48: 0 | D48: =I47+C48 -> 30104866.55 | E48: 0 | F48: 0 | G48: 0 | H48: 0 | I48: 30104866.55 | J48: 0 | K48: 30104866.55 | L48: 797778.9636 | M48: 1372781.915 | N48: 0 | O48: 0 | P48: 85008.33218 | Q48: 45488.77332 | R48: 350924.4292 | S48: 2651982.413 | T48: 731254.2418 | U48: 0.08809148543 | V48: 0 | W48: 21 | X48: 0 | Y48: 0 | Z48: 0 | AA48: 0 | AB48: 0 | AC48: 0 | AD48: 0 | AE48: 2651982.413 | AF48: 0 | AG48: -2651982.413 | AH48: -2651982.413 | AI48: 0 | AL48: 2599344.78 | AN48: 30104866.55
A49: 22 | B49: 0 | C49: 0 | D49: 30104866.55 | E49: 0 | F49: 0 | G49: 0 | H49: 0 | I49: 30104866.55 | J49: 0 | K49: 30104866.55 | L49: 797778.9636 | M49: 1372781.915 | N49: 0 | O49: 0 | P49: 85008.33218 | Q49: 45488.77332 | R49: 350924.4292 | S49: 2651982.413 | T49: 685635.4849 | U49: 0.08809148543 | V49: 0 | W49: 22 | X49: 0 | Y49: 0 | Z49: 0 | AA49: 0 | AB49: 0 | AC49: 0 | AD49: 0 | AE49: 2651982.413 | AF49: 0 | AG49: -2651982.413 | AH49: -2651982.413 | AI49: 0 | AL49: 2599344.78 | AN49: 30104866.55
A50: 23 | B50: 0 | C50: 0 | D50: 30104866.55 | E50: 0 | F50: 0 | G50: 0 | H50: 0 | I50: 30104866.55 | J50: 0 | K50: 30104866.55 | L50: 797778.9636 | M50: 1372781.915 | N50: 0 | O50: 0 | P50: 85008.33218 | Q50: 45488.77332 | R50: 350924.4292 | S50: 2651982.413 | T50: 642862.6204 | U50: 0.08809148543 | V50: 0 | W50: 23 | X50: 0 | Y50: 0 | Z50: 0 | AA50: 0 | AB50: 0 | AC50: 0 | AD50: 0 | AE50: 2651982.413 | AF50: 0 | AG50: -2651982.413 | AH50: -2651982.413 | AI50: 0 | AL50: 2599344.78 | AN50: 30104866.55
A51: 24 | B51: 0 | C51: 0 | D51: 30104866.55 | E51: 0 | F51: 0 | G51: 0 | H51: 0 | I51: 30104866.55 | J51: 0 | K51: 30104866.55 | L51: 797778.9636 | M51: 1372781.915 | N51: 0 | O51: 0 | P51: 85008.33218 | Q51: 45488.77332 | R51: 350924.4292 | S51: 2651982.413 | T51: 602758.1096 | U51: 0.08809148543 | V51: 0 | W51: 24 | X51: 0 | Y51: 0 | Z51: 0 | AA51: 0 | AB51: 0 | AC51: 0 | AD51: 0 | AE51: 2651982.413 | AF51: 0 | AG51: -2651982.413 | AH51: -2651982.413 | AI51: 0 | AL51: 2599344.78 | AN51: 30104866.55
A52: 25 | B52: 0 | C52: 0 | D52: 30104866.55 | E52: 0 | F52: 0 | G52: 0 | H52: 0 | I52: 30104866.55 | J52: 0 | K52: 30104866.55 | L52: 797778.9636 | M52: 1372781.915 | N52: 0 | O52: 0 | P52: 85008.33218 | Q52: 45488.77332 | R52: 350924.4292 | S52: 2651982.413 | T52: 565155.4891 | U52: 0.08809148543 | V52: 0 | W52: 25 | X52: 0 | Y52: 0 | Z52: 0 | AA52: 0 | AB52: 0 | AC52: 0 | AD52: 0 | AE52: 2651982.413 | AF52: 0 | AG52: -2651982.413 | AH52: -2651982.413 | AI52: 0 | AL52: 2599344.78 | AN52: 30104866.55
A53: 26 | B53: 0 | C53: 0 | D53: 30104866.55 | E53: 0 | F53: 0 | G53: 0 | H53: 0 | I53: 30104866.55 | J53: 0 | K53: 30104866.55 | L53: 797778.9636 | M53: 1372781.915 | N53: 0 | O53: 0 | P53: 85008.33218 | Q53: 45488.77332 | R53: 350924.4292 | S53: 2651982.413 | T53: 529898.6804 | U53: 0.08809148543 | V53: 0 | W53: 26 | X53: 0 | Y53: 0 | Z53: 0 | AA53: 0 | AB53: 0 | AC53: 0 | AD53: 0 | AE53: 2651982.413 | AF53: 0 | AG53: -2651982.413 | AH53: -2651982.413 | AI53: 0 | AL53: 2599344.78 | AN53: 30104866.55
A54: 27 | B54: 0 | C54: 0 | D54: 30104866.55 | E54: 0 | F54: 0 | G54: 0 | H54: 0 | I54: 30104866.55 | J54: 0 | K54: 30104866.55 | L54: 797778.9636 | M54: 1372781.915 | N54: 0 | O54: 0 | P54: 85008.33218 | Q54: 45488.77332 | R54: 350924.4292 | S54: 2651982.413 | T54: 496841.3417 | U54: 0.08809148543 | V54: 0 | W54: 27 | X54: 0 | Y54: 0 | Z54: 0 | AA54: 0 | AB54: 0 | AC54: 0 | AD54: 0 | AE54: 2651982.413 | AF54: 0 | AG54: -2651982.413 | AH54: -2651982.413 | AI54: 0 | AL54: 2599344.78 | AN54: 30104866.55
A55: 28 | B55: 0 | C55: 0 | D55: 30104866.55 | E55: 0 | F55: 0 | G55: 0 | H55: 0 | I55: 30104866.55 | J55: 0 | K55: 30104866.55 | L55: 797778.9636 | M55: 1372781.915 | N55: 0 | O55: 0 | P55: 85008.33218 | Q55: 45488.77332 | R55: 350924.4292 | S55: 2651982.413 | T55: 465846.2608 | U55: 0.08809148543 | V55: 0 | W55: 28 | X55: 0 | Y55: 0 | Z55: 0 | AA55: 0 | AB55: 0 | AC55: 0 | AD55: 0 | AE55: 2651982.413 | AF55: 0 | AG55: -2651982.413 | AH55: -2651982.413 | AI55: 0 | AL55: 2599344.78 | AN55: 30104866.55
A56: 29 | B56: 0 | C56: 0 | D56: 30104866.55 | E56: 0 | F56: 0 | G56: 0 | H56: 0 | I56: 30104866.55 | J56: 0 | K56: 30104866.55 | L56: 797778.9636 | M56: 1372781.915 | N56: 0 | O56: 0 | P56: 85008.33218 | Q56: 45488.77332 | R56: 350924.4292 | S56: 2651982.413 | T56: 436784.7851 | U56: 0.08809148543 | V56: 0 | W56: 29 | X56: 0 | Y56: 0 | Z56: 0 | AA56: 0 | AB56: 0 | AC56: 0 | AD56: 0 | AE56: 2651982.413 | AF56: 0 | AG56: -2651982.413 | AH56: -2651982.413 | AI56: 0 | AL56: 2599344.78 | AN56: 30104866.55
A57: 30 | B57: 0 | C57: 0 | D57: 30104866.55 | E57: 0 | F57: 0 | G57: 0 | H57: 0 | I57: 30104866.55 | J57: 0 | K57: 30104866.55 | L57: 797778.9636 | M57: 1372781.915 | N57: 0 | O57: 0 | P57: 85008.33218 | Q57: 45488.77332 | R57: 350924.4292 | S57: 2651982.413 | T57: 409536.2882 | U57: 0.08809148543 | V57: 0 | W57: 30 | X57: 0 | Y57: 0 | Z57: 0 | AA57: 0 | AB57: 0 | AC57: 0 | AD57: 0 | AE57: 2651982.413 | AF57: 0 | AG57: -2651982.413 | AH57: -2651982.413 | AI57: 0 | AL57: 2599344.78 | AN57: 30104866.55
A58: 31 | B58: 0 | C58: 0 | D58: 30104866.55 | E58: 0 | F58: 0 | G58: 0 | H58: 0 | I58: 30104866.55 | J58: 0 | K58: 30104866.55 | L58: 797778.9636 | M58: 1372781.915 | N58: 0 | O58: 0 | P58: 85008.33218 | Q58: 45488.77332 | R58: 350924.4292 | S58: 2651982.413 | T58: 383987.6686 | U58: 0.08809148543 | V58: 0 | W58: 31 | X58: 0 | Y58: 0 | Z58: 0 | AA58: 0 | AB58: 0 | AC58: 0 | AD58: 0 | AE58: 2651982.413 | AF58: 0 | AG58: -2651982.413 | AH58: -2651982.413 | AI58: 0 | AL58: 2599344.78 | AN58: 30104866.55
A59: 32 | B59: 0 | C59: 0 | D59: 30104866.55 | E59: 0 | F59: 0 | G59: 0 | H59: 0 | I59: 30104866.55 | J59: 0 | K59: 30104866.55 | L59: 797778.9636 | M59: 1372781.915 | N59: 0 | O59: 0 | P59: 85008.33218 | Q59: 45488.77332 | R59: 350924.4292 | S59: 2651982.413 | T59: 360032.8809 | U59: 0.08809148543 | V59: 0 | W59: 32 | X59: 0 | Y59: 0 | Z59: 0 | AA59: 0 | AB59: 0 | AC59: 0 | AD59: 0 | AE59: 2651982.413 | AF59: 0 | AG59: -2651982.413 | AH59: -2651982.413 | AI59: 0 | AL59: 2599344.78 | AN59: 30104866.55
A60: 33 | B60: 0 | C60: 0 | D60: 30104866.55 | E60: 0 | F60: 0 | G60: 0 | H60: 0 | I60: 30104866.55 | J60: 0 | K60: 30104866.55 | L60: 797778.9636 | M60: 1372781.915 | N60: 0 | O60: 0 | P60: 85008.33218 | Q60: 45488.77332 | R60: 350924.4292 | S60: 2651982.413 | T60: 337572.495 | U60: 0.08809148543 | V60: 0 | W60: 33 | X60: 0 | Y60: 0 | Z60: 0 | AA60: 0 | AB60: 0 | AC60: 0 | AD60: 0 | AE60: 2651982.413 | AF60: 0 | AG60: -2651982.413 | AH60: -2651982.413 | AI60: 0 | AL60: 2599344.78 | AN60: 30104866.55
A61: 34 | B61: 0 | C61: 0 | D61: 30104866.55 | E61: 0 | F61: 0 | G61: 0 | H61: 0 | I61: 30104866.55 | J61: 0 | K61: 30104866.55 | L61: 797778.9636 | M61: 1372781.915 | N61: 0 | O61: 0 | P61: 85008.33218 | Q61: 45488.77332 | R61: 350924.4292 | S61: 2651982.413 | T61: 316513.2836 | U61: 0.08809148543 | V61: 0 | W61: 34 | X61: 0 | Y61: 0 | Z61: 0 | AA61: 0 | AB61: 0 | AC61: 0 | AD61: 0 | AE61: 2651982.413 | AF61: 0 | AG61: -2651982.413 | AH61: -2651982.413 | AI61: 0 | AL61: 2599344.78 | AN61: 30104866.55
A62: 35 | B62: 0 | C62: 0 | D62: 30104866.55 | E62: 0 | F62: 0 | G62: 0 | H62: 0 | I62: 30104866.55 | J62: 0 | K62: 30104866.55 | L62: 797778.9636 | M62: 1372781.915 | N62: 0 | O62: 0 | P62: 85008.33218 | Q62: 45488.77332 | R62: 350924.4292 | S62: 2651982.413 | T62: 296767.8357 | U62: 0.08809148543 | V62: 0 | W62: 35 | X62: 0 | Y62: 0 | Z62: 0 | AA62: 0 | AB62: 0 | AC62: 0 | AD62: 0 | AE62: 2651982.413 | AF62: 0 | AG62: -2651982.413 | AH62: -2651982.413 | AI62: 0 | AL62: 2599344.78 | AN62: 30104866.55
A63: 36 | B63: 0 | C63: 0 | D63: 30104866.55 | E63: 0 | F63: 0 | G63: 0 | H63: 0 | I63: 30104866.55 | J63: 0 | K63: 30104866.55 | L63: 797778.9636 | M63: 1372781.915 | N63: 0 | O63: 0 | P63: 85008.33218 | Q63: 45488.77332 | R63: 350924.4292 | S63: 2651982.413 | T63: 278254.193 | U63: 0.08809148543 | V63: 0 | W63: 36 | X63: 0 | Y63: 0 | Z63: 0 | AA63: 0 | AB63: 0 | AC63: 0 | AD63: 0 | AE63: 2651982.413 | AF63: 0 | AG63: -2651982.413 | AH63: -2651982.413 | AI63: 0 | AL63: 2599344.78 | AN63: 30104866.55
A64: 37 | B64: 0 | C64: 0 | D64: 30104866.55 | E64: 0 | F64: 0 | G64: 0 | H64: 0 | I64: 30104866.55 | J64: 0 | K64: 30104866.55 | L64: 797778.9636 | M64: 1372781.915 | N64: 0 | O64: 0 | P64: 85008.33218 | Q64: 45488.77332 | R64: 350924.4292 | S64: 2651982.413 | T64: 260895.5102 | U64: 0.08809148543 | V64: 0 | W64: 37 | X64: 0 | Y64: 0 | Z64: 0 | AA64: 0 | AB64: 0 | AC64: 0 | AD64: 0 | AE64: 2651982.413 | AF64: 0 | AG64: -2651982.413 | AH64: -2651982.413 | AI64: 0 | AL64: 2599344.78 | AN64: 30104866.55
A65: 38 | B65: 0 | C65: 0 | D65: 30104866.55 | E65: 0 | F65: 0 | G65: 0 | H65: 0 | I65: 30104866.55 | J65: 0 | K65: 30104866.55 | L65: 797778.9636 | M65: 1372781.915 | N65: 0 | O65: 0 | P65: 85008.33218 | Q65: 45488.77332 | R65: 350924.4292 | S65: 2651982.413 | T65: 244619.736 | U65: 0.08809148543 | V65: 0 | W65: 38 | X65: 0 | Y65: 0 | Z65: 0 | AA65: 0 | AB65: 0 | AC65: 0 | AD65: 0 | AE65: 2651982.413 | AF65: 0 | AG65: -2651982.413 | AH65: -2651982.413 | AI65: 0 | AL65: 2599344.78 | AN65: 30104866.55
A66: 39 | B66: 0 | C66: 0 | D66: 30104866.55 | E66: 0 | F66: 0 | G66: 0 | H66: 0 | I66: 30104866.55 | J66: 0 | K66: 30104866.55 | L66: 797778.9636 | M66: 1372781.915 | N66: 0 | O66: 0 | P66: 85008.33218 | Q66: 45488.77332 | R66: 350924.4292 | S66: 2651982.413 | T66: 229359.3141 | U66: 0.08809148543 | V66: 0 | W66: 39 | X66: 0 | Y66: 0 | Z66: 0 | AA66: 0 | AB66: 0 | AC66: 0 | AD66: 0 | AE66: 2651982.413 | AF66: 0 | AG66: -2651982.413 | AH66: -2651982.413 | AI66: 0 | AL66: 2599344.78 | AN66: 30104866.55
A67: 40 | B67: 0 | C67: 0 | D67: 30104866.55 | E67: 0 | F67: 0 | G67: 0 | H67: 0 | I67: 30104866.55 | J67: 0 | K67: 30104866.55 | L67: 797778.9636 | M67: 1372781.915 | N67: 0 | O67: 0 | P67: 85008.33218 | Q67: 45488.77332 | R67: 350924.4292 | S67: 2651982.413 | T67: 215050.9023 | U67: 0.08809148543 | V67: 0 | W67: 40 | X67: 0 | Y67: 0 | Z67: 0 | AA67: 0 | AB67: 0 | AC67: 0 | AD67: 0 | AE67: 2651982.413 | AF67: 0 | AG67: -2651982.413 | AH67: -2651982.413 | AI67: 0 | AL67: 2599344.78 | AN67: 30104866.55
A68: 41 | B68: 0 | C68: 0 | D68: 30104866.55 | E68: 0 | F68: 0 | G68: 0 | H68: 0 | I68: 30104866.55 | J68: 0 | K68: 30104866.55 | L68: 797778.9636 | M68: 1372781.915 | N68: 0 | O68: 0 | P68: 85008.33218 | Q68: 45488.77332 | R68: 350924.4292 | S68: 2651982.413 | T68: 201635.1102 | U68: 0.08809148543 | V68: 0 | W68: 41 | X68: 0 | Y68: 0 | Z68: 0 | AA68: 0 | AB68: 0 | AC68: 0 | AD68: 0 | AE68: 2651982.413 | AF68: 0 | AG68: -2651982.413 | AH68: -2651982.413 | AI68: 0 | AL68: 2599344.78 | AN68: 30104866.55
A69: 42 | B69: 0 | C69: 0 | D69: 30104866.55 | E69: 0 | F69: 0 | G69: 0 | H69: 0 | I69: 30104866.55 | J69: 0 | K69: 30104866.55 | L69: 797778.9636 | M69: 1372781.915 | N69: 0 | O69: 0 | P69: 85008.33218 | Q69: 45488.77332 | R69: 350924.4292 | S69: 2651982.413 | T69: 189056.2525 | U69: 0.08809148543 | V69: 0 | W69: 42 | X69: 0 | Y69: 0 | Z69: 0 | AA69: 0 | AB69: 0 | AC69: 0 | AD69: 0 | AE69: 2651982.413 | AF69: 0 | AG69: -2651982.413 | AH69: -2651982.413 | AI69: 0 | AL69: 2599344.78 | AN69: 30104866.55
A70: 43 | B70: 0 | C70: 0 | D70: 30104866.55 | E70: 0 | F70: 0 | G70: 0 | H70: 0 | I70: 30104866.55 | J70: 0 | K70: 30104866.55 | L70: 797778.9636 | M70: 1372781.915 | N70: 0 | O70: 0 | P70: 85008.33218 | Q70: 45488.77332 | R70: 350924.4292 | S70: 2651982.413 | T70: 177262.1175 | U70: 0.08809148543 | V70: 0 | W70: 43 | X70: 0 | Y70: 0 | Z70: 0 | AA70: 0 | AB70: 0 | AC70: 0 | AD70: 0 | AE70: 2651982.413 | AF70: 0 | AG70: -2651982.413 | AH70: -2651982.413 | AI70: 0 | AL70: 2599344.78 | AN70: 30104866.55
A71: 44 | B71: 0 | C71: 0 | D71: 30104866.55 | E71: 0 | F71: 0 | G71: 0 | H71: 0 | I71: 30104866.55 | J71: 0 | K71: 30104866.55 | L71: 797778.9636 | M71: 1372781.915 | N71: 0 | O71: 0 | P71: 85008.33218 | Q71: 45488.77332 | R71: 350924.4292 | S71: 2651982.413 | T71: 166203.7509 | U71: 0.08809148543 | V71: 0 | W71: 44 | X71: 0 | Y71: 0 | Z71: 0 | AA71: 0 | AB71: 0 | AC71: 0 | AD71: 0 | AE71: 2651982.413 | AF71: 0 | AG71: -2651982.413 | AH71: -2651982.413 | AI71: 0 | AL71: 2599344.78 | AN71: 30104866.55
A72: 45 | B72: 0 | C72: 0 | D72: 30104866.55 | E72: 0 | F72: 0 | G72: 0 | H72: 0 | I72: 30104866.55 | J72: 0 | K72: 30104866.55 | L72: 797778.9636 | M72: 1372781.915 | N72: 0 | O72: 0 | P72: 85008.33218 | Q72: 45488.77332 | R72: 350924.4292 | S72: 2651982.413 | T72: 155835.2524 | U72: 0.08809148543 | V72: 0 | W72: 45 | X72: 0 | Y72: 0 | Z72: 0 | AA72: 0 | AB72: 0 | AC72: 0 | AD72: 0 | AE72: 2651982.413 | AF72: 0 | AG72: -2651982.413 | AH72: -2651982.413 | AI72: 0 | AL72: 2599344.78 | AN72: 30104866.55
A73: 46 | B73: 0 | C73: 0 | D73: 30104866.55 | E73: 0 | F73: 0 | G73: 0 | H73: 0 | I73: 30104866.55 | J73: 0 | K73: 30104866.55 | L73: 797778.9636 | M73: 1372781.915 | N73: 0 | O73: 0 | P73: 85008.33218 | Q73: 45488.77332 | R73: 350924.4292 | S73: 2651982.413 | T73: 146113.585 | U73: 0.08809148543 | V73: 0 | W73: 46 | X73: 0 | Y73: 0 | Z73: 0 | AA73: 0 | AB73: 0 | AC73: 0 | AD73: 0 | AE73: 2651982.413 | AF73: 0 | AG73: -2651982.413 | AH73: -2651982.413 | AI73: 0 | AL73: 2599344.78 | AN73: 30104866.55
A74: 47 | B74: 0 | C74: 0 | D74: 30104866.55 | E74: 0 | F74: 0 | G74: 0 | H74: 0 | I74: 30104866.55 | J74: 0 | K74: 30104866.55 | L74: 797778.9636 | M74: 1372781.915 | N74: 0 | O74: 0 | P74: 85008.33218 | Q74: 45488.77332 | R74: 350924.4292 | S74: 2651982.413 | T74: 136998.3967 | U74: 0.08809148543 | V74: 0 | W74: 47 | X74: 0 | Y74: 0 | Z74: 0 | AA74: 0 | AB74: 0 | AC74: 0 | AD74: 0 | AE74: 2651982.413 | AF74: 0 | AG74: -2651982.413 | AH74: -2651982.413 | AI74: 0 | AL74: 2599344.78 | AN74: 30104866.55
A75: 48 | B75: 0 | C75: 0 | D75: 30104866.55 | E75: 0 | F75: 0 | G75: 0 | H75: 0 | I75: 30104866.55 | J75: 0 | K75: 30104866.55 | L75: 797778.9636 | M75: 1372781.915 | N75: 0 | O75: 0 | P75: 85008.33218 | Q75: 45488.77332 | R75: 350924.4292 | S75: 2651982.413 | T75: 128451.8527 | U75: 0.08809148543 | V75: 0 | W75: 48 | X75: 0 | Y75: 0 | Z75: 0 | AA75: 0 | AB75: 0 | AC75: 0 | AD75: 0 | AE75: 2651982.413 | AF75: 0 | AG75: -2651982.413 | AH75: -2651982.413 | AI75: 0 | AL75: 2599344.78 | AN75: 30104866.55
A76: 49 | B76: 0 | C76: 0 | D76: 30104866.55 | E76: 0 | F76: 0 | G76: 0 | H76: 0 | I76: 30104866.55 | J76: 0 | K76: 30104866.55 | L76: 797778.9636 | M76: 1372781.915 | N76: 0 | O76: 0 | P76: 85008.33218 | Q76: 45488.77332 | R76: 350924.4292 | S76: 2651982.413 | T76: 120438.4785 | U76: 0.08809148543 | V76: 0 | W76: 49 | X76: 0 | Y76: 0 | Z76: 0 | AA76: 0 | AB76: 0 | AC76: 0 | AD76: 0 | AE76: 2651982.413 | AF76: 0 | AG76: -2651982.413 | AH76: -2651982.413 | AI76: 0 | AL76: 2599344.78 | AN76: 30104866.55
A77: 50 | B77: 0 | C77: 0 | D77: 30104866.55 | E77: 0 | F77: 0 | G77: 0 | H77: 0 | I77: 30104866.55 | J77: 0 | K77: 30104866.55 | L77: 797778.9636 | M77: 1372781.915 | N77: 0 | O77: 0 | P77: 85008.33218 | Q77: 45488.77332 | R77: 350924.4292 | S77: 2651982.413 | T77: 112925.0128 | U77: 0.08809148543 | V77: 0 | W77: 50 | X77: 0 | Y77: 0 | Z77: 0 | AA77: 0 | AB77: 0 | AC77: 0 | AD77: 0 | AE77: 2651982.413 | AF77: 0 | AG77: -2651982.413 | AH77: -2651982.413 | AI77: 0 | AL77: 2599344.78 | AN77: 30104866.55
A78: 51 | B78: 0 | C78: 0 | D78: 30104866.55 | E78: 0 | F78: 0 | G78: 0 | H78: 0 | I78: 30104866.55 | J78: 0 | K78: 30104866.55 | L78: 797778.9636 | M78: 1372781.915 | N78: 0 | O78: 0 | P78: 85008.33218 | Q78: 45488.77332 | R78: 350924.4292 | S78: 2651982.413 | T78: 105880.2691 | U78: 0.08809148543 | V78: 0 | W78: 51 | X78: 0 | Y78: 0 | Z78: 0 | AA78: 0 | AB78: 0 | AC78: 0 | AD78: 0 | AE78: 2651982.413 | AF78: 0 | AG78: -2651982.413 | AH78: -2651982.413 | AI78: 0 | AL78: 2599344.78 | AN78: 30104866.55
A79: 52 | B79: 0 | C79: 0 | D79: 30104866.55 | E79: 0 | F79: 0 | G79: 0 | H79: 0 | I79: 30104866.55 | J79: 0 | K79: 30104866.55 | L79: 797778.9636 | M79: 1372781.915 | N79: 0 | O79: 0 | P79: 85008.33218 | Q79: 45488.77332 | R79: 350924.4292 | S79: 2651982.413 | T79: 99275.00653 | U79: 0.08809148543 | V79: 0 | W79: 52 | X79: 0 | Y79: 0 | Z79: 0 | AA79: 0 | AB79: 0 | AC79: 0 | AD79: 0 | AE79: 2651982.413 | AF79: 0 | AG79: -2651982.413 | AH79: -2651982.413 | AI79: 0 | AL79: 2599344.78 | AN79: 30104866.55
A80: 53 | B80: 0 | C80: 0 | D80: 30104866.55 | E80: 0 | F80: 0 | G80: 0 | H80: 0 | I80: 30104866.55 | J80: 0 | K80: 30104866.55 | L80: 797778.9636 | M80: 1372781.915 | N80: 0 | O80: 0 | P80: 85008.33218 | Q80: 45488.77332 | R80: 350924.4292 | S80: 2651982.413 | T80: 93081.80841 | U80: 0.08809148543 | V80: 0 | W80: 53 | X80: 0 | Y80: 0 | Z80: 0 | AA80: 0 | AB80: 0 | AC80: 0 | AD80: 0 | AE80: 2651982.413 | AF80: 0 | AG80: -2651982.413 | AH80: -2651982.413 | AI80: 0 | AL80: 2599344.78 | AN80: 30104866.55
A81: 54 | B81: 0 | C81: 0 | D81: 30104866.55 | E81: 0 | F81: 0 | G81: 0 | H81: 0 | I81: 30104866.55 | J81: 0 | K81: 30104866.55 | L81: 797778.9636 | M81: 1372781.915 | N81: 0 | O81: 0 | P81: 85008.33218 | Q81: 45488.77332 | R81: 350924.4292 | S81: 2651982.413 | T81: 87274.96838 | U81: 0.08809148543 | V81: 0 | W81: 54 | X81: 0 | Y81: 0 | Z81: 0 | AA81: 0 | AB81: 0 | AC81: 0 | AD81: 0 | AE81: 2651982.413 | AF81: 0 | AG81: -2651982.413 | AH81: -2651982.413 | AI81: 0 | AL81: 2599344.78 | AN81: 30104866.55
A82: 55 | B82: 0 | C82: 0 | D82: 30104866.55 | E82: 0 | F82: 0 | G82: 0 | H82: 0 | I82: 30104866.55 | J82: 0 | K82: 30104866.55 | L82: 797778.9636 | M82: 1372781.915 | N82: 0 | O82: 0 | P82: 85008.33218 | Q82: 45488.77332 | R82: 350924.4292 | S82: 2651982.413 | T82: 81830.3838 | U82: 0.08809148543 | V82: 0 | W82: 55 | X82: 0 | Y82: 0 | Z82: 0 | AA82: 0 | AB82: 0 | AC82: 0 | AD82: 0 | AE82: 2651982.413 | AF82: 0 | AG82: -2651982.413 | AH82: -2651982.413 | AI82: 0 | AL82: 2599344.78 | AN82: 30104866.55
A83: 56 | B83: 0 | C83: 0 | D83: 30104866.55 | E83: 0 | F83: 0 | G83: 0 | H83: 0 | I83: 30104866.55 | J83: 0 | K83: 30104866.55 | L83: 797778.9636 | M83: 1372781.915 | N83: 0 | O83: 0 | P83: 85008.33218 | Q83: 45488.77332 | R83: 350924.4292 | S83: 2651982.413 | T83: 76725.45561 | U83: 0.08809148543 | V83: 0 | W83: 56 | X83: 0 | Y83: 0 | Z83: 0 | AA83: 0 | AB83: 0 | AC83: 0 | AD83: 0 | AE83: 2651982.413 | AF83: 0 | AG83: -2651982.413 | AH83: -2651982.413 | AI83: 0 | AL83: 2599344.78 | AN83: 30104866.55
A84: 57 | B84: 0 | C84: 0 | D84: 30104866.55 | E84: 0 | F84: 0 | G84: 0 | H84: 0 | I84: 30104866.55 | J84: 0 | K84: 30104866.55 | L84: 797778.9636 | M84: 1372781.915 | N84: 0 | O84: 0 | P84: 85008.33218 | Q84: 45488.77332 | R84: 350924.4292 | S84: 2651982.413 | T84: 71938.9946 | U84: 0.08809148543 | V84: 0 | W84: 57 | X84: 0 | Y84: 0 | Z84: 0 | AA84: 0 | AB84: 0 | AC84: 0 | AD84: 0 | AE84: 2651982.413 | AF84: 0 | AG84: -2651982.413 | AH84: -2651982.413 | AI84: 0 | AL84: 2599344.78 | AN84: 30104866.55
A85: 58 | B85: 0 | C85: 0 | D85: 30104866.55 | E85: 0 | F85: 0 | G85: 0 | H85: 0 | I85: 30104866.55 | J85: 0 | K85: 30104866.55 | L85: 797778.9636 | M85: 1372781.915 | N85: 0 | O85: 0 | P85: 85008.33218 | Q85: 45488.77332 | R85: 350924.4292 | S85: 2651982.413 | T85: 67451.13344 | U85: 0.08809148543 | V85: 0 | W85: 58 | X85: 0 | Y85: 0 | Z85: 0 | AA85: 0 | AB85: 0 | AC85: 0 | AD85: 0 | AE85: 2651982.413 | AF85: 0 | AG85: -2651982.413 | AH85: -2651982.413 | AI85: 0 | AL85: 2599344.78 | AN85: 30104866.55
A86: 59 | B86: 0 | C86: 0 | D86: 30104866.55 | E86: 0 | F86: 0 | G86: 0 | H86: 0 | I86: 30104866.55 | J86: 0 | K86: 30104866.55 | L86: 797778.9636 | M86: 1372781.915 | N86: 0 | O86: 0 | P86: 85008.33218 | Q86: 45488.77332 | R86: 350924.4292 | S86: 2651982.413 | T86: 63243.24419 | U86: 0.08809148543 | V86: 0 | W86: 59 | X86: 0 | Y86: 0 | Z86: 0 | AA86: 0 | AB86: 0 | AC86: 0 | AD86: 0 | AE86: 2651982.413 | AF86: 0 | AG86: -2651982.413 | AH86: -2651982.413 | AI86: 0 | AL86: 2599344.78 | AN86: 30104866.55
A87: 60 | B87: 0 | C87: 0 | D87: 30104866.55 | E87: 0 | F87: 0 | G87: 0 | H87: 0 | I87: 30104866.55 | J87: 0 | K87: 30104866.55 | L87: 797778.9636 | M87: 1372781.915 | N87: 0 | O87: 0 | P87: 85008.33218 | Q87: 45488.77332 | R87: 350924.4292 | S87: 2651982.413 | T87: 59297.86101 | U87: 0.08809148543 | V87: 0 | W87: 60 | X87: 0 | Y87: 0 | Z87: 0 | AA87: 0 | AB87: 0 | AC87: 0 | AD87: 0 | AE87: 2651982.413 | AF87: 0 | AG87: -2651982.413 | AH87: -2651982.413 | AI87: 0 | AL87: 2599344.78 | AN87: 30104866.55
A88: 61 | B88: 0 | C88: 0 | D88: 30104866.55 | E88: 0 | F88: 0 | G88: 0 | H88: 0 | I88: 30104866.55 | J88: 0 | K88: 30104866.55 | L88: 797778.9636 | M88: =IF(A88=1,($N$3+$N$2)*K88,($N$3+$N$2)*K88) -> 1372781.915 | N88: 0 | O88: 0 | P88: 85008.33218 | Q88: 45488.77332 | R88: 350924.4292 | S88: 2651982.413 | T88: 55598.60765 | U88: 0.08809148543 | V88: 0 | W88: 61 | X88: 0 | Y88: 0 | Z88: 0 | AA88: 0 | AB88: 0 | AC88: 0 | AD88: 0 | AE88: 2651982.413 | AF88: 0 | AG88: -2651982.413 | AH88: -2651982.413 | AI88: 0 | AL88: 2599344.78 | AN88: 30104866.55
A89: 62 | B89: 0 | C89: 0 | D89: 30104866.55 | E89: 0 | F89: 0 | G89: 0 | H89: 0 | I89: 30104866.55 | J89: 0 | K89: 30104866.55 | L89: 797778.9636 | M89: =IF(A89=1,($N$3+$N$2)*K89,($N$3+$N$2)*K89) -> 1372781.915 | N89: 0 | O89: 0 | P89: 85008.33218 | Q89: 45488.77332 | R89: 350924.4292 | S89: 2651982.413 | T89: 52130.12948 | U89: 0.08809148543 | V89: 0 | W89: 62 | X89: 0 | Y89: 0 | Z89: 0 | AA89: 0 | AB89: 0 | AC89: 0 | AD89: 0 | AE89: 2651982.413 | AF89: 0 | AG89: -2651982.413 | AH89: -2651982.413 | AI89: 0 | AL89: 2599344.78 | AN89: 30104866.55
A90: 63 | B90: 0 | C90: 0 | D90: 30104866.55 | E90: 0 | F90: 0 | G90: 0 | H90: 0 | I90: 30104866.55 | J90: 0 | K90: 30104866.55 | L90: 797778.9636 | M90: 1372781.915 | N90: 0 | O90: 0 | P90: 85008.33218 | Q90: 45488.77332 | R90: 350924.4292 | S90: 2651982.413 | T90: 48878.02977 | U90: 0.08809148543 | V90: 0 | W90: 63 | X90: 0 | Y90: 0 | Z90: 0 | AA90: 0 | AB90: 0 | AC90: 0 | AD90: 0 | AE90: 2651982.413 | AF90: 0 | AG90: -2651982.413 | AH90: -2651982.413 | AI90: 0 | AL90: 2599344.78 | AN90: 30104866.55
A91: 64 | B91: 0 | C91: 0 | D91: 30104866.55 | E91: 0 | F91: 0 | G91: 0 | H91: 0 | I91: 30104866.55 | J91: 0 | K91: 30104866.55 | L91: 797778.9636 | M91: 1372781.915 | N91: 0 | O91: 0 | P91: 85008.33218 | Q91: 45488.77332 | R91: 350924.4292 | S91: 2651982.413 | T91: 45828.8099 | U91: 0.08809148543 | V91: 0 | W91: 64 | X91: 0 | Y91: 0 | Z91: 0 | AA91: 0 | AB91: 0 | AC91: 0 | AD91: 0 | AE91: 2651982.413 | AF91: 0 | AG91: -2651982.413 | AH91: -2651982.413 | AI91: 0 | AL91: 2599344.78 | AN91: 30104866.55
A92: =1+A91 -> 65 | B92: 0 | C92: 0 | D92: =I91+C92 -> 30104866.55 | E92: =E91+J92 -> 0 | F92: =CA201 -> 0 | G92: 0 | H92: =(F92-G92)*$D$2 -> 0 | I92: =D92-J92-H92 -> 30104866.55 | J92: =CA387 -> 0 | K92: =(+I92+D92)/2 -> 30104866.55 | L92: 797778.9636 | M92: 1372781.915 | N92: 0 | O92: =AN92*$D$10 -> 0 | P92: 85008.33218 | Q92: =(+AL92-(G92+L92+N92+O92+P92))*$D$1 -> 45488.77332 | R92: =(+AL92-(G92+L92+N92+O92+P92+Q92))*$D$2 -> 350924.4292 | S92: =J92+M92+L92+N92+O92+P92+Q92+R92 -> 2651982.413 | T92: 42969.81337 | U92: 0.08809148543 | V92: 0 | W92: 65 | X92: 0 | Y92: 0 | Z92: 0 | AA92: 0 | AB92: 0 | AC92: 0 | AD92: 0 | AE92: =S92 -> 2651982.413 | AF92: =V92 -> 0 | AG92: =AF92-AE92 -> -2651982.413 | AH92: -2651982.413 | AI92: 0 | AL92: 2599344.78 | AN92: 30104866.55
A93: 66 | B93: 0 | C93: =B93 -> 0 | D93: 30104866.55 | E93: 0 | F93: 0 | G93: =CA294 -> 0 | H93: 0 | I93: 30104866.55 | J93: 0 | K93: 30104866.55 | L93: =IF(A93=1,$N$1*K93,$N$1*K93) -> 797778.9636 | M93: 1372781.915 | N93: 0 | O93: 0 | P93: =AL93*$T$8 -> 85008.33218 | Q93: 45488.77332 | R93: 350924.4292 | S93: 2651982.413 | T93: =S93/(1+$D$3)^(A93-1) -> 40289.17323 | U93: =S93/$B$28 -> 0.08809148543 | V93: 0 | W93: =1+W92 -> 66 | X93: 0 | Y93: =+X93 -> 0 | Z93: =X93*$Z$24 -> 0 | AA93: 0 | AB93: 0 | AC93: 0 | AD93: 0 | AE93: 2651982.413 | AF93: 0 | AG93: -2651982.413 | AH93: =AF93-AE93 -> -2651982.413 | AI93: =IF(A93=1,AF93-T89,AF93) -> 0 | AL93: =(+J93+L93+M93+N93+O93-(($D$1+(1-$D$1)*$D$2)*(G93+L93+N93+O93)))/$T$16 -> 2599344.78 | AN93: =C93-J92+AN92 -> 30104866.55
A94: 67 | B94: 0 | C94: 0 | D94: 30104866.55 | E94: 0 | F94: 0 | G94: 0 | H94: 0 | I94: 30104866.55 | J94: 0 | K94: 30104866.55 | L94: 797778.9636 | M94: 1372781.915 | N94: 0 | O94: 0 | P94: 85008.33218 | Q94: 45488.77332 | R94: 350924.4292 | S94: 2651982.413 | T94: 37775.76285 | U94: 0.08809148543 | V94: 0 | W94: 67 | X94: 0 | Y94: 0 | Z94: 0 | AA94: 0 | AB94: 0 | AC94: 0 | AD94: 0 | AE94: 2651982.413 | AF94: 0 | AG94: -2651982.413 | AH94: -2651982.413 | AI94: 0 | AL94: 2599344.78 | AN94: 30104866.55
A95: 68 | B95: 0 | C95: 0 | D95: 30104866.55 | E95: 0 | F95: 0 | G95: 0 | H95: 0 | I95: 30104866.55 | J95: 0 | K95: 30104866.55 | L95: 797778.9636 | M95: 1372781.915 | N95: 0 | O95: 0 | P95: 85008.33218 | Q95: 45488.77332 | R95: 350924.4292 | S95: 2651982.413 | T95: 35419.14972 | U95: 0.08809148543 | V95: 0 | W95: 68 | X95: 0 | Y95: 0 | Z95: 0 | AA95: 0 | AB95: 0 | AC95: 0 | AD95: 0 | AE95: 2651982.413 | AF95: 0 | AG95: -2651982.413 | AH95: -2651982.413 | AI95: 0 | AL95: 2599344.78 | AN95: 30104866.55
A96: 69 | B96: 0 | C96: 0 | D96: 30104866.55 | E96: 0 | F96: 0 | G96: 0 | H96: 0 | I96: 30104866.55 | J96: 0 | K96: 30104866.55 | L96: 797778.9636 | M96: 1372781.915 | N96: 0 | O96: 0 | P96: 85008.33218 | Q96: 45488.77332 | R96: 350924.4292 | S96: 2651982.413 | T96: 33209.55217 | U96: 0.08809148543 | V96: 0 | W96: 69 | X96: 0 | Y96: 0 | Z96: 0 | AA96: 0 | AB96: 0 | AC96: 0 | AD96: 0 | AE96: 2651982.413 | AF96: 0 | AG96: -2651982.413 | AH96: -2651982.413 | AI96: 0 | AL96: 2599344.78 | AN96: 30104866.55
A97: 70 | B97: 0 | C97: 0 | D97: 30104866.55 | E97: 0 | F97: 0 | G97: 0 | H97: 0 | I97: 30104866.55 | J97: 0 | K97: 30104866.55 | L97: 797778.9636 | M97: 1372781.915 | N97: 0 | O97: 0 | P97: 85008.33218 | Q97: 45488.77332 | R97: 350924.4292 | S97: 2651982.413 | T97: 31137.79873 | U97: 0.08809148543 | V97: 0 | W97: 70 | X97: 0 | Y97: 0 | Z97: 0 | AA97: 0 | AB97: 0 | AC97: 0 | AD97: 0 | AE97: 2651982.413 | AF97: 0 | AG97: -2651982.413 | AH97: -2651982.413 | AI97: 0 | AL97: 2599344.78 | AN97: 30104866.55
